{"text_format":"1","workbook":"xlsx","n_sheets":6,"sheets":["Données","Générer XML","Guide","Correspondances","Categories","Country"],"not_rendered":{"charts":0,"images":1,"macros":1,"external_links":1,"defined_names":3,"comments":1,"pivot_tables":0},"unopened":[],"bounds":{"document_bytes":16777216,"sheet_cells":100000,"rows_first":2000,"rows_last":500,"rows_between":2000,"halvings":0,"cell_chars":16384,"cell_head_chars":4096},"cells_cut":0,"cells_raw":0,"read":"whole","date_system":"1900"}

{"sheet":"Données","index":0,"n_rows":313,"n_cols":33,"rows_kept":313,"cut":false,"hidden":false,"merged":[]}
["Reporting organisation","Organisation identifier","Organisation Name","Language","Document Titre","Document Link","Document Category","Document Language","Document Date","Recipient country","Total budget","TB-Period-start","TB-Period-end","TB-value","TB-currency","TB-value-date","TB-budget-line","TB-BL-value","TB-BL-currency","TB-BL-value-date","TB-BL-narrative","Total expenditure","TE-Period-start","TE-Period-end","TE-value","TE-currency","TE-value-date","TE-expense-line","TE-EL-value","TE-EL-currency","TE-EL-value-date","TE-EL-narrative","Colonne1"]
[{"$f":"VLOOKUP(Tableau2[[#This Row],[Organisation identifier]],Tableau3[#All],4,FALSE)","v":"Agence Francaise de Developpement"},"FR-03",{"$f":"VLOOKUP(Tableau2[[#This Row],[Organisation identifier]],Tableau3[#All],4,FALSE)","v":"Agence Francaise de Developpement"},"French","Présentation de l'AFD aux investisseurs","https://www.afd.fr/sites/afd/files/2019-05-03-37-45/presentation-investisseurs-afd.pdf","A02 - Objectives / Purpose of activity\n","French",2019,null,{"$f":"IF(Tableau2[[#This Row],[TB-Period-start]]=\"\",\"N/A\",IF(Tableau2[[#This Row],[TB-Period-end]]=\"\",\"N/A\",IF(Tableau2[[#This Row],[TB-value]]=\"\",\"N/A\",IF(Tableau2[[#This Row],[TB-value-date]]=\"\",\"N/A\",\"Yes\"))))","v":"N/A"},null,null,null,null,null,null,null,null,null,null,{"$f":"IF(Tableau2[[#This Row],[TE-Period-start]]=\"\",\"N/A\",IF(Tableau2[[#This Row],[TE-Period-end]]=\"\",\"N/A\",IF(Tableau2[[#This Row],[TE-value]]=\"\",\"N/A\",IF(Tableau2[[#This Row],[TE-value-date]]=\"\",\"N/A\",\"Yes\"))))","v":"N/A"}]
["Agence Francaise de Developpement","FR-03",{"$f":"VLOOKUP(Tableau2[[#This Row],[Organisation identifier]],Tableau3[#All],4,FALSE)","v":"Agence Francaise de Developpement"},"French","Les produits financiers de l'AFD - Allocation","https://www.afd.fr/fr/financer-les-projets","B04 - Aid Allocation Policy\n","French",2019,null,{"$f":"IF(Tableau2[[#This Row],[TB-Period-start]]=\"\",\"N/A\",IF(Tableau2[[#This Row],[TB-Period-end]]=\"\",\"N/A\",IF(Tableau2[[#This Row],[TB-value]]=\"\",\"N/A\",IF(Tableau2[[#This Row],[TB-value-date]]=\"\",\"N/A\",\"Yes\"))))","v":"N/A"},null,null,null,null,null,null,null,null,null,null,{"$f":"IF(Tableau2[[#This Row],[TE-Period-start]]=\"\",\"N/A\",IF(Tableau2[[#This Row],[TE-Period-end]]=\"\",\"N/A\",IF(Tableau2[[#This Row],[TE-value]]=\"\",\"N/A\",IF(Tableau2[[#This Row],[TE-value-date]]=\"\",\"N/A\",\"Yes\"))))","v":"N/A"}]
[{"$f":"VLOOKUP(Tableau2[[#This Row],[Organisation identifier]],Tableau3[#All],4,FALSE)","v":"Agence Francaise de Developpement"},"FR-03",{"$f":"VLOOKUP(Tableau2[[#This Row],[Organisation identifier]],Tableau3[#All],4,FALSE)","v":"Agence Francaise de Developpement"},"French","Moyens Intervention Les outils de financement de l AFD","https://www.afd.fr/fr/financer-les-projets","A04 - Conditions\n","French",2017,null,{"$f":"IF(Tableau2[[#This Row],[TB-Period-start]]=\"\",\"N/A\",IF(Tableau2[[#This Row],[TB-Period-end]]=\"\",\"N/A\",IF(Tableau2[[#This Row],[TB-value]]=\"\",\"N/A\",IF(Tableau2[[#This Row],[TB-value-date]]=\"\",\"N/A\",\"Yes\"))))","v":"N/A"},null,null,null,null,null,null,null,null,null,null,{"$f":"IF(Tableau2[[#This Row],[TE-Period-start]]=\"\",\"N/A\",IF(Tableau2[[#This Row],[TE-Period-end]]=\"\",\"N/A\",IF(Tableau2[[#This Row],[TE-value]]=\"\",\"N/A\",IF(Tableau2[[#This Row],[TE-value-date]]=\"\",\"N/A\",\"Yes\"))))","v":"N/A"}]
[{"$f":"VLOOKUP(Tableau2[[#This Row],[Organisation identifier]],Tableau3[#All],4,FALSE)","v":"Agence Francaise de Developpement"},"FR-03",{"$f":"VLOOKUP(Tableau2[[#This Row],[Organisation identifier]],Tableau3[#All],4,FALSE)","v":"Agence Francaise de Developpement"},"French","Programme d evaluation de l AFD","https://www.afd.fr/fr/les-evaluations","A01 - Pre- and post-project impact appraisal","French",2019,null,{"$f":"IF(Tableau2[[#This Row],[TB-Period-start]]=\"\",\"N/A\",IF(Tableau2[[#This Row],[TB-Period-end]]=\"\",\"N/A\",IF(Tableau2[[#This Row],[TB-value]]=\"\",\"N/A\",IF(Tableau2[[#This Row],[TB-value-date]]=\"\",\"N/A\",\"Yes\"))))","v":"N/A"},null,null,null,null,null,null,null,null,null,null,{"$f":"IF(Tableau2[[#This Row],[TE-Period-start]]=\"\",\"N/A\",IF(Tableau2[[#This Row],[TE-Period-end]]=\"\",\"N/A\",IF(Tableau2[[#This Row],[TE-value]]=\"\",\"N/A\",IF(Tableau2[[#This Row],[TE-value-date]]=\"\",\"N/A\",\"Yes\"))))","v":"N/A"}]
[{"$f":"VLOOKUP(Tableau2[[#This Row],[Organisation identifier]],Tableau3[#All],4,FALSE)","v":"Agence Francaise de Developpement"},"FR-03",{"$f":"VLOOKUP(Tableau2[[#This Row],[Organisation identifier]],Tableau3[#All],4,FALSE)","v":"Agence Francaise de Developpement"},"French","Politique d'évaluation","https://www.afd.fr/fr/la-politique-devaluation-de-lafd","B14 - Evaluations policy\n","French",2014,null,{"$f":"IF(Tableau2[[#This Row],[TB-Period-start]]=\"\",\"N/A\",IF(Tableau2[[#This Row],[TB-Period-end]]=\"\",\"N/A\",IF(Tableau2[[#This Row],[TB-value]]=\"\",\"N/A\",IF(Tableau2[[#This Row],[TB-value-date]]=\"\",\"N/A\",\"Yes\"))))","v":"N/A"},null,null,null,null,null,null,null,null,null,null,{"$f":"IF(Tableau2[[#This Row],[TE-Period-start]]=\"\",\"N/A\",IF(Tableau2[[#This Row],[TE-Period-end]]=\"\",\"N/A\",IF(Tableau2[[#This Row],[TE-value]]=\"\",\"N/A\",IF(Tableau2[[#This Row],[TE-value-date]]=\"\",\"N/A\",\"Yes\"))))","v":"N/A"}]
[{"$f":"VLOOKUP(Tableau2[[#This Row],[Organisation identifier]],Tableau3[#All],4,FALSE)","v":"Agence Francaise de Developpement"},"FR-03",{"$f":"VLOOKUP(Tableau2[[#This Row],[Organisation identifier]],Tableau3[#All],4,FALSE)","v":"Agence Francaise de Developpement"},"French","Rapport RSE 2017","https://www.afd.fr/fr/rapport-responsabilite-societale-rso-afd-2017?origin=/fr/rechercher?query=Rapport+de+responsabilit%C3%A9+soci%C3%A9tale","A02 - Objectives / Purpose of activity\nA08 - Results, outcomes and outputs\nB01 - Annual report\n","French",2018,null,{"$f":"IF(Tableau2[[#This Row],[TB-Period-start]]=\"\",\"N/A\",IF(Tableau2[[#This Row],[TB-Period-end]]=\"\",\"N/A\",IF(Tableau2[[#This Row],[TB-value]]=\"\",\"N/A\",IF(Tableau2[[#This Row],[TB-value-date]]=\"\",\"N/A\",\"Yes\"))))","v":"N/A"},null,null,null,null,null,null,null,null,null,null,{"$f":"IF(Tableau2[[#This Row],[TE-Period-start]]=\"\",\"N/A\",IF(Tableau2[[#This Row],[TE-Period-end]]=\"\",\"N/A\",IF(Tableau2[[#This Row],[TE-value]]=\"\",\"N/A\",IF(Tableau2[[#This Row],[TE-value-date]]=\"\",\"N/A\",\"Yes\"))))","v":"N/A"}]
[{"$f":"VLOOKUP(Tableau2[[#This Row],[Organisation identifier]],Tableau3[#All],4,FALSE)","v":"Agence Francaise de Developpement"},"FR-03",{"$f":"VLOOKUP(Tableau2[[#This Row],[Organisation identifier]],Tableau3[#All],4,FALSE)","v":"Agence Francaise de Developpement"},"French","La charte d'éthique professionnelle","https://www.afd.fr/fr/charte-ethique-du-groupe-afd","A02 - Objectives / Purpose of activity\n","French",2017,null,{"$f":"IF(Tableau2[[#This Row],[TB-Period-start]]=\"\",\"N/A\",IF(Tableau2[[#This Row],[TB-Period-end]]=\"\",\"N/A\",IF(Tableau2[[#This Row],[TB-value]]=\"\",\"N/A\",IF(Tableau2[[#This Row],[TB-value-date]]=\"\",\"N/A\",\"Yes\"))))","v":"N/A"},null,null,null,null,null,null,null,null,null,null,{"$f":"IF(Tableau2[[#This Row],[TE-Period-start]]=\"\",\"N/A\",IF(Tableau2[[#This Row],[TE-Period-end]]=\"\",\"N/A\",IF(Tableau2[[#This Row],[TE-value]]=\"\",\"N/A\",IF(Tableau2[[#This Row],[TE-value-date]]=\"\",\"N/A\",\"Yes\"))))","v":"N/A"}]
[{"$f":"VLOOKUP(Tableau2[[#This Row],[Organisation identifier]],Tableau3[#All],4,FALSE)","v":"Agence Francaise de Developpement"},"FR-03",{"$f":"VLOOKUP(Tableau2[[#This Row],[Organisation identifier]],Tableau3[#All],4,FALSE)","v":"Agence Francaise de Developpement"},"French","Résultats 2018","https://www.afd.fr/sites/afd/files/2019-04-04-07-16/AFD%20chiffres%202018-VFR%20imprim%C3%A9e%2010_04.pdf","A07 - Review of project performance and evaluation\nA08 - Results, outcomes and outputs\n","French",2018,null,{"$f":"IF(Tableau2[[#This Row],[TB-Period-start]]=\"\",\"N/A\",IF(Tableau2[[#This Row],[TB-Period-end]]=\"\",\"N/A\",IF(Tableau2[[#This Row],[TB-value]]=\"\",\"N/A\",IF(Tableau2[[#This Row],[TB-value-date]]=\"\",\"N/A\",\"Yes\"))))","v":"N/A"},null,null,null,null,null,null,null,null,null,null,{"$f":"IF(Tableau2[[#This Row],[TE-Period-start]]=\"\",\"N/A\",IF(Tableau2[[#This Row],[TE-Period-end]]=\"\",\"N/A\",IF(Tableau2[[#This Row],[TE-value]]=\"\",\"N/A\",IF(Tableau2[[#This Row],[TE-value-date]]=\"\",\"N/A\",\"Yes\"))))","v":"N/A"}]
[{"$f":"VLOOKUP(Tableau2[[#This Row],[Organisation identifier]],Tableau3[#All],4,FALSE)","v":"Agence Francaise de Developpement"},"FR-03",{"$f":"VLOOKUP(Tableau2[[#This Row],[Organisation identifier]],Tableau3[#All],4,FALSE)","v":"Agence Francaise de Developpement"},"French","Composition et reglement intérieur du comite des evaluations","https://www.afd.fr/fr/les-evaluations","A01 - Pre- and post-project impact appraisal","French",2017,null,{"$f":"IF(Tableau2[[#This Row],[TB-Period-start]]=\"\",\"N/A\",IF(Tableau2[[#This Row],[TB-Period-end]]=\"\",\"N/A\",IF(Tableau2[[#This Row],[TB-value]]=\"\",\"N/A\",IF(Tableau2[[#This Row],[TB-value-date]]=\"\",\"N/A\",\"Yes\"))))","v":"N/A"},null,null,null,null,null,null,null,null,null,null,{"$f":"IF(Tableau2[[#This Row],[TE-Period-start]]=\"\",\"N/A\",IF(Tableau2[[#This Row],[TE-Period-end]]=\"\",\"N/A\",IF(Tableau2[[#This Row],[TE-value]]=\"\",\"N/A\",IF(Tableau2[[#This Row],[TE-value-date]]=\"\",\"N/A\",\"Yes\"))))","v":"N/A"}]
[{"$f":"VLOOKUP(Tableau2[[#This Row],[Organisation identifier]],Tableau3[#All],4,FALSE)","v":"Agence Francaise de Developpement"},"FR-03",{"$f":"VLOOKUP(Tableau2[[#This Row],[Organisation identifier]],Tableau3[#All],4,FALSE)","v":"Agence Francaise de Developpement"},"French","Guide de methodologique du dispositif Avis Developpement Durable ","https://www.afd.fr/sites/afd/files/2017-10/guide-methodologique-dispositif-avis-developpement-durable.pdf","A01 - Pre- and post-project impact appraisal","French",2014,null,{"$f":"IF(Tableau2[[#This Row],[TB-Period-start]]=\"\",\"N/A\",IF(Tableau2[[#This Row],[TB-Period-end]]=\"\",\"N/A\",IF(Tableau2[[#This Row],[TB-value]]=\"\",\"N/A\",IF(Tableau2[[#This Row],[TB-value-date]]=\"\",\"N/A\",\"Yes\"))))","v":"N/A"},null,null,null,null,null,null,null,null,null,null,{"$f":"IF(Tableau2[[#This Row],[TE-Period-start]]=\"\",\"N/A\",IF(Tableau2[[#This Row],[TE-Period-end]]=\"\",\"N/A\",IF(Tableau2[[#This Row],[TE-value]]=\"\",\"N/A\",IF(Tableau2[[#This Row],[TE-value-date]]=\"\",\"N/A\",\"Yes\"))))","v":"N/A"}]
[{"$f":"VLOOKUP(Tableau2[[#This Row],[Organisation identifier]],Tableau3[#All],4,FALSE)","v":"Agence Francaise de Developpement"},"FR-03",{"$f":"VLOOKUP(Tableau2[[#This Row],[Organisation identifier]],Tableau3[#All],4,FALSE)","v":"Agence Francaise de Developpement"},"French","Plan d actions RSO 2018 2022","https://www.afd.fr/sites/afd/files/2018-08-02-50-23/politique-responsabilite-societale-groupe-afd-2018-2022.pdf","B02 - Institutional Strategy paper ","French",2018,null,{"$f":"IF(Tableau2[[#This Row],[TB-Period-start]]=\"\",\"N/A\",IF(Tableau2[[#This Row],[TB-Period-end]]=\"\",\"N/A\",IF(Tableau2[[#This Row],[TB-value]]=\"\",\"N/A\",IF(Tableau2[[#This Row],[TB-value-date]]=\"\",\"N/A\",\"Yes\"))))","v":"N/A"},null,null,null,null,null,null,null,null,null,null,{"$f":"IF(Tableau2[[#This Row],[TE-Period-start]]=\"\",\"N/A\",IF(Tableau2[[#This Row],[TE-Period-end]]=\"\",\"N/A\",IF(Tableau2[[#This Row],[TE-value]]=\"\",\"N/A\",IF(Tableau2[[#This Row],[TE-value-date]]=\"\",\"N/A\",\"Yes\"))))","v":"N/A"}]
[{"$f":"VLOOKUP(Tableau2[[#This Row],[Organisation identifier]],Tableau3[#All],4,FALSE)","v":"Agence Francaise de Developpement"},"FR-03",{"$f":"VLOOKUP(Tableau2[[#This Row],[Organisation identifier]],Tableau3[#All],4,FALSE)","v":"Agence Francaise de Developpement"},"French","Politique de maitrise des risques environnementaux et sociaux","https://www.afd.fr/fr/politique-de-maitrise-des-risques-environnementaux-et-sociaux-lies-aux-operations-financees-par-lafd","A01 - Pre- and post-project impact appraisal","French",2017,null,{"$f":"IF(Tableau2[[#This Row],[TB-Period-start]]=\"\",\"N/A\",IF(Tableau2[[#This Row],[TB-Period-end]]=\"\",\"N/A\",IF(Tableau2[[#This Row],[TB-value]]=\"\",\"N/A\",IF(Tableau2[[#This Row],[TB-value-date]]=\"\",\"N/A\",\"Yes\"))))","v":"N/A"},null,null,null,null,null,null,null,null,null,null,{"$f":"IF(Tableau2[[#This Row],[TE-Period-start]]=\"\",\"N/A\",IF(Tableau2[[#This Row],[TE-Period-end]]=\"\",\"N/A\",IF(Tableau2[[#This Row],[TE-value]]=\"\",\"N/A\",IF(Tableau2[[#This Row],[TE-value-date]]=\"\",\"N/A\",\"Yes\"))))","v":"N/A"}]
[{"$f":"VLOOKUP(Tableau2[[#This Row],[Organisation identifier]],Tableau3[#All],4,FALSE)","v":"Agence Francaise de Developpement"},"FR-03",{"$f":"VLOOKUP(Tableau2[[#This Row],[Organisation identifier]],Tableau3[#All],4,FALSE)","v":"Agence Francaise de Developpement"},"French","Cycle de vie du projet","https://www.afd.fr/fr/media/download/7913","B02 - Institutional Strategy paper","French",2017,null,{"$f":"IF(Tableau2[[#This Row],[TB-Period-start]]=\"\",\"N/A\",IF(Tableau2[[#This Row],[TB-Period-end]]=\"\",\"N/A\",IF(Tableau2[[#This Row],[TB-value]]=\"\",\"N/A\",IF(Tableau2[[#This Row],[TB-value-date]]=\"\",\"N/A\",\"Yes\"))))","v":"N/A"},null,null,null,null,null,null,null,null,null,null,{"$f":"IF(Tableau2[[#This Row],[TE-Period-start]]=\"\",\"N/A\",IF(Tableau2[[#This Row],[TE-Period-end]]=\"\",\"N/A\",IF(Tableau2[[#This Row],[TE-value]]=\"\",\"N/A\",IF(Tableau2[[#This Row],[TE-value-date]]=\"\",\"N/A\",\"Yes\"))))","v":"N/A"}]
[{"$f":"VLOOKUP(Tableau2[[#This Row],[Organisation identifier]],Tableau3[#All],4,FALSE)","v":"Agence Francaise de Developpement"},"FR-03",{"$f":"VLOOKUP(Tableau2[[#This Row],[Organisation identifier]],Tableau3[#All],4,FALSE)","v":"Agence Francaise de Developpement"},"French","Organigramme","https://www.afd.fr/fr/media/download/7492","B02 - Institutional Strategy paper","French",2017,null,{"$f":"IF(Tableau2[[#This Row],[TB-Period-start]]=\"\",\"N/A\",IF(Tableau2[[#This Row],[TB-Period-end]]=\"\",\"N/A\",IF(Tableau2[[#This Row],[TB-value]]=\"\",\"N/A\",IF(Tableau2[[#This Row],[TB-value-date]]=\"\",\"N/A\",\"Yes\"))))","v":"N/A"},null,null,null,null,null,null,null,null,null,null,{"$f":"IF(Tableau2[[#This Row],[TE-Period-start]]=\"\",\"N/A\",IF(Tableau2[[#This Row],[TE-Period-end]]=\"\",\"N/A\",IF(Tableau2[[#This Row],[TE-value]]=\"\",\"N/A\",IF(Tableau2[[#This Row],[TE-value-date]]=\"\",\"N/A\",\"Yes\"))))","v":"N/A"}]
[{"$f":"VLOOKUP(Tableau2[[#This Row],[Organisation identifier]],Tableau3[#All],4,FALSE)","v":"Agence Francaise de Developpement"},"FR-03",{"$f":"VLOOKUP(Tableau2[[#This Row],[Organisation identifier]],Tableau3[#All],4,FALSE)","v":"Agence Francaise de Developpement"},"French","Statut de l'AFD","https://www.afd.fr/fr/media/download/7559","B02 - Institutional Strategy paper","French",2020,null,{"$f":"IF(Tableau2[[#This Row],[TB-Period-start]]=\"\",\"N/A\",IF(Tableau2[[#This Row],[TB-Period-end]]=\"\",\"N/A\",IF(Tableau2[[#This Row],[TB-value]]=\"\",\"N/A\",IF(Tableau2[[#This Row],[TB-value-date]]=\"\",\"N/A\",\"Yes\"))))","v":"N/A"},null,null,null,null,null,null,null,null,null,null,{"$f":"IF(Tableau2[[#This Row],[TE-Period-start]]=\"\",\"N/A\",IF(Tableau2[[#This Row],[TE-Period-end]]=\"\",\"N/A\",IF(Tableau2[[#This Row],[TE-value]]=\"\",\"N/A\",IF(Tableau2[[#This Row],[TE-value-date]]=\"\",\"N/A\",\"Yes\"))))","v":"N/A"}]
[{"$f":"VLOOKUP(Tableau2[[#This Row],[Organisation identifier]],Tableau3[#All],4,FALSE)","v":"Agence Francaise de Developpement"},"FR-03",{"$f":"VLOOKUP(Tableau2[[#This Row],[Organisation identifier]],Tableau3[#All],4,FALSE)","v":"Agence Francaise de Developpement"},"French","Rapport annuel 2018","https://www.afd.fr/sites/afd/files/2018-08-04-27-18/panorama-2018-afd.pdf","B01 - Annual report\nB02 - Institutional Strategy paper\n","French",2018,null,{"$f":"IF(Tableau2[[#This Row],[TB-Period-start]]=\"\",\"N/A\",IF(Tableau2[[#This Row],[TB-Period-end]]=\"\",\"N/A\",IF(Tableau2[[#This Row],[TB-value]]=\"\",\"N/A\",IF(Tableau2[[#This Row],[TB-value-date]]=\"\",\"N/A\",\"Yes\"))))","v":"N/A"},null,null,null,null,null,null,null,null,null,null,{"$f":"IF(Tableau2[[#This Row],[TE-Period-start]]=\"\",\"N/A\",IF(Tableau2[[#This Row],[TE-Period-end]]=\"\",\"N/A\",IF(Tableau2[[#This Row],[TE-value]]=\"\",\"N/A\",IF(Tableau2[[#This Row],[TE-value-date]]=\"\",\"N/A\",\"Yes\"))))","v":"N/A"}]
[{"$f":"VLOOKUP(Tableau2[[#This Row],[Organisation identifier]],Tableau3[#All],4,FALSE)","v":"Agence Francaise de Developpement"},"FR-03",{"$f":"VLOOKUP(Tableau2[[#This Row],[Organisation identifier]],Tableau3[#All],4,FALSE)","v":"Agence Francaise de Developpement"},"French","Politique de Transparence","https://www.afd.fr/sites/afd/files/2018-03-10-04-11/politique-transparence-afd.pdf","B02 - Institutional Strategy paper","French",2007,null,{"$f":"IF(Tableau2[[#This Row],[TB-Period-start]]=\"\",\"N/A\",IF(Tableau2[[#This Row],[TB-Period-end]]=\"\",\"N/A\",IF(Tableau2[[#This Row],[TB-value]]=\"\",\"N/A\",IF(Tableau2[[#This Row],[TB-value-date]]=\"\",\"N/A\",\"Yes\"))))","v":"N/A"},null,null,null,null,null,null,null,null,null,null,{"$f":"IF(Tableau2[[#This Row],[TE-Period-start]]=\"\",\"N/A\",IF(Tableau2[[#This Row],[TE-Period-end]]=\"\",\"N/A\",IF(Tableau2[[#This Row],[TE-value]]=\"\",\"N/A\",IF(Tableau2[[#This Row],[TE-value-date]]=\"\",\"N/A\",\"Yes\"))))","v":"N/A"}]
[{"$f":"VLOOKUP(Tableau2[[#This Row],[Organisation identifier]],Tableau3[#All],4,FALSE)","v":"Agence Francaise de Developpement"},"FR-03",{"$f":"VLOOKUP(Tableau2[[#This Row],[Organisation identifier]],Tableau3[#All],4,FALSE)","v":"Agence Francaise de Developpement"},"French","Politique generale de l’AFD et de PROPARCO en matiere de lutte contre la corruption la fraude les pratiques anticoncurrentielles le blanchiment de capitaux et le financement du terrorisme","https://www.afd.fr/sites/afd/files/2017-12/politique-groupe-afd-lutte-contre-corruption.pdf","B02 - Institutional Strategy paper","French",2013,null,{"$f":"IF(Tableau2[[#This Row],[TB-Period-start]]=\"\",\"N/A\",IF(Tableau2[[#This Row],[TB-Period-end]]=\"\",\"N/A\",IF(Tableau2[[#This Row],[TB-value]]=\"\",\"N/A\",IF(Tableau2[[#This Row],[TB-value-date]]=\"\",\"N/A\",\"Yes\"))))","v":"N/A"},null,null,null,null,null,null,null,null,null,null,{"$f":"IF(Tableau2[[#This Row],[TE-Period-start]]=\"\",\"N/A\",IF(Tableau2[[#This Row],[TE-Period-end]]=\"\",\"N/A\",IF(Tableau2[[#This Row],[TE-value]]=\"\",\"N/A\",IF(Tableau2[[#This Row],[TE-value-date]]=\"\",\"N/A\",\"Yes\"))))","v":"N/A"}]
["Agence Francaise de Developpement","FR-03",{"$f":"VLOOKUP(Tableau2[[#This Row],[Organisation identifier]],Tableau3[#All],4,FALSE)","v":"Agence Francaise de Developpement"},"French","Code de conduite du Groupe AFD","https://www.afd.fr/sites/afd/files/2018-12-05-42-35/code-conduite-anti-corruption-groupe-afd.pdf","B02 - Institutional Strategy paper",null,2018,null,{"$f":"IF(Tableau2[[#This Row],[TB-Period-start]]=\"\",\"N/A\",IF(Tableau2[[#This Row],[TB-Period-end]]=\"\",\"N/A\",IF(Tableau2[[#This Row],[TB-value]]=\"\",\"N/A\",IF(Tableau2[[#This Row],[TB-value-date]]=\"\",\"N/A\",\"Yes\"))))","v":"N/A"},null,null,null,null,null,null,null,null,null,null,{"$f":"IF(Tableau2[[#This Row],[TE-Period-start]]=\"\",\"N/A\",IF(Tableau2[[#This Row],[TE-Period-end]]=\"\",\"N/A\",IF(Tableau2[[#This Row],[TE-value]]=\"\",\"N/A\",IF(Tableau2[[#This Row],[TE-value-date]]=\"\",\"N/A\",\"Yes\"))))","v":"N/A"}]
[{"$f":"VLOOKUP(Tableau2[[#This Row],[Organisation identifier]],Tableau3[#All],4,FALSE)","v":"Agence Francaise de Developpement"},"FR-03",{"$f":"VLOOKUP(Tableau2[[#This Row],[Organisation identifier]],Tableau3[#All],4,FALSE)","v":"Agence Francaise de Developpement"},"French","Code de conduite en matière d'achats appllicable à tout agent de la cellule achat","https://www.afd.fr/sites/afd/files/2017-12/code-de-conduite-achat-2012.pdf","B02 - Institutional Strategy paper","French",2012,null,{"$f":"IF(Tableau2[[#This Row],[TB-Period-start]]=\"\",\"N/A\",IF(Tableau2[[#This Row],[TB-Period-end]]=\"\",\"N/A\",IF(Tableau2[[#This Row],[TB-value]]=\"\",\"N/A\",IF(Tableau2[[#This Row],[TB-value-date]]=\"\",\"N/A\",\"Yes\"))))","v":"N/A"},null,null,null,null,null,null,null,null,null,null,{"$f":"IF(Tableau2[[#This Row],[TE-Period-start]]=\"\",\"N/A\",IF(Tableau2[[#This Row],[TE-Period-end]]=\"\",\"N/A\",IF(Tableau2[[#This Row],[TE-value]]=\"\",\"N/A\",IF(Tableau2[[#This Row],[TE-value-date]]=\"\",\"N/A\",\"Yes\"))))","v":"N/A"}]
[{"$f":"VLOOKUP(Tableau2[[#This Row],[Organisation identifier]],Tableau3[#All],4,FALSE)","v":"Agence Francaise de Developpement"},"FR-03",{"$f":"VLOOKUP(Tableau2[[#This Row],[Organisation identifier]],Tableau3[#All],4,FALSE)","v":"Agence Francaise de Developpement"},"French","Procédure d'achats de l'AFD","https://www.afd.fr/sites/afd/files/2017-12/procedure-achats-afd-2012.pdf","B02 - Institutional Strategy paper","French",2012,null,{"$f":"IF(Tableau2[[#This Row],[TB-Period-start]]=\"\",\"N/A\",IF(Tableau2[[#This Row],[TB-Period-end]]=\"\",\"N/A\",IF(Tableau2[[#This Row],[TB-value]]=\"\",\"N/A\",IF(Tableau2[[#This Row],[TB-value-date]]=\"\",\"N/A\",\"Yes\"))))","v":"N/A"},null,null,null,null,null,null,null,null,null,null,{"$f":"IF(Tableau2[[#This Row],[TE-Period-start]]=\"\",\"N/A\",IF(Tableau2[[#This Row],[TE-Period-end]]=\"\",\"N/A\",IF(Tableau2[[#This Row],[TE-value]]=\"\",\"N/A\",IF(Tableau2[[#This Row],[TE-value-date]]=\"\",\"N/A\",\"Yes\"))))","v":"N/A"}]
[{"$f":"VLOOKUP(Tableau2[[#This Row],[Organisation identifier]],Tableau3[#All],4,FALSE)","v":"Agence Francaise de Developpement"},"FR-03",{"$f":"VLOOKUP(Tableau2[[#This Row],[Organisation identifier]],Tableau3[#All],4,FALSE)","v":"Agence Francaise de Developpement"},"French","Charte Ethique professionnelle","https://www.afd.fr/sites/afd/files/2017-11/charte-ethique-afd.pdf","B02 - Institutional Strategy paper","French",2017,null,{"$f":"IF(Tableau2[[#This Row],[TB-Period-start]]=\"\",\"N/A\",IF(Tableau2[[#This Row],[TB-Period-end]]=\"\",\"N/A\",IF(Tableau2[[#This Row],[TB-value]]=\"\",\"N/A\",IF(Tableau2[[#This Row],[TB-value-date]]=\"\",\"N/A\",\"Yes\"))))","v":"N/A"},null,null,null,null,null,null,null,null,null,null,{"$f":"IF(Tableau2[[#This Row],[TE-Period-start]]=\"\",\"N/A\",IF(Tableau2[[#This Row],[TE-Period-end]]=\"\",\"N/A\",IF(Tableau2[[#This Row],[TE-value]]=\"\",\"N/A\",IF(Tableau2[[#This Row],[TE-value-date]]=\"\",\"N/A\",\"Yes\"))))","v":"N/A"}]
[{"$f":"VLOOKUP(Tableau2[[#This Row],[Organisation identifier]],Tableau3[#All],4,FALSE)","v":"Agence Francaise de Developpement"},"FR-03",{"$f":"VLOOKUP(Tableau2[[#This Row],[Organisation identifier]],Tableau3[#All],4,FALSE)","v":"Agence Francaise de Developpement"},"French","Directives pour la passation des marches finances par l AFD dans les Etats etrangers"," https://www.afd.fr/sites/afd/files/2017-07/Directives-Passation-Marches-Etats-Etrangers.pdf","B05 - Procurement Policy and Procedure","French",2017,null,{"$f":"IF(Tableau2[[#This Row],[TB-Period-start]]=\"\",\"N/A\",IF(Tableau2[[#This Row],[TB-Period-end]]=\"\",\"N/A\",IF(Tableau2[[#This Row],[TB-value]]=\"\",\"N/A\",IF(Tableau2[[#This Row],[TB-value-date]]=\"\",\"N/A\",\"Yes\"))))","v":"N/A"},null,null,null,null,null,null,null,null,null,null,{"$f":"IF(Tableau2[[#This Row],[TE-Period-start]]=\"\",\"N/A\",IF(Tableau2[[#This Row],[TE-Period-end]]=\"\",\"N/A\",IF(Tableau2[[#This Row],[TE-value]]=\"\",\"N/A\",IF(Tableau2[[#This Row],[TE-value-date]]=\"\",\"N/A\",\"Yes\"))))","v":"N/A"}]
[{"$f":"VLOOKUP(Tableau2[[#This Row],[Organisation identifier]],Tableau3[#All],4,FALSE)","v":"Agence Francaise de Developpement"},"FR-03",{"$f":"VLOOKUP(Tableau2[[#This Row],[Organisation identifier]],Tableau3[#All],4,FALSE)","v":"Agence Francaise de Developpement"},"French","Principes generaux de passation des marches","https://www.afd.fr/fr/appels-d-offres-passes-par-les-beneficiaires-de-lafd?prevId=8613","B05 - Procurement Policy and Procedure ","French",2017,null,{"$f":"IF(Tableau2[[#This Row],[TB-Period-start]]=\"\",\"N/A\",IF(Tableau2[[#This Row],[TB-Period-end]]=\"\",\"N/A\",IF(Tableau2[[#This Row],[TB-value]]=\"\",\"N/A\",IF(Tableau2[[#This Row],[TB-value-date]]=\"\",\"N/A\",\"Yes\"))))","v":"N/A"},null,null,null,null,null,null,null,null,null,null,{"$f":"IF(Tableau2[[#This Row],[TE-Period-start]]=\"\",\"N/A\",IF(Tableau2[[#This Row],[TE-Period-end]]=\"\",\"N/A\",IF(Tableau2[[#This Row],[TE-value]]=\"\",\"N/A\",IF(Tableau2[[#This Row],[TE-value-date]]=\"\",\"N/A\",\"Yes\"))))","v":"N/A"}]
[{"$f":"VLOOKUP(Tableau2[[#This Row],[Organisation identifier]],Tableau3[#All],4,FALSE)","v":"Agence Francaise de Developpement"},"FR-03",{"$f":"VLOOKUP(Tableau2[[#This Row],[Organisation identifier]],Tableau3[#All],4,FALSE)","v":"Agence Francaise de Developpement"},"French","Srategie Sahel 2015 2020","https://www.afd.fr/fr/cadre-intervention-sahel","B17 - Country/Region web page","French",2015,null,{"$f":"IF(Tableau2[[#This Row],[TB-Period-start]]=\"\",\"N/A\",IF(Tableau2[[#This Row],[TB-Period-end]]=\"\",\"N/A\",IF(Tableau2[[#This Row],[TB-value]]=\"\",\"N/A\",IF(Tableau2[[#This Row],[TB-value-date]]=\"\",\"N/A\",\"Yes\"))))","v":"N/A"},null,null,null,null,null,null,null,null,null,null,{"$f":"IF(Tableau2[[#This Row],[TE-Period-start]]=\"\",\"N/A\",IF(Tableau2[[#This Row],[TE-Period-end]]=\"\",\"N/A\",IF(Tableau2[[#This Row],[TE-value]]=\"\",\"N/A\",IF(Tableau2[[#This Row],[TE-value-date]]=\"\",\"N/A\",\"Yes\"))))","v":"N/A"}]
[{"$f":"VLOOKUP(Tableau2[[#This Row],[Organisation identifier]],Tableau3[#All],4,FALSE)","v":"Agence Francaise de Developpement"},"FR-03",{"$f":"VLOOKUP(Tableau2[[#This Row],[Organisation identifier]],Tableau3[#All],4,FALSE)","v":"Agence Francaise de Developpement"},"French","Stratégie Océan Indien 2019 2023","https://www.afd.fr/en/ressources/indian-ocean-regional-strategy-2019-2023","B17 - Country/Region web page","French",2019,null,{"$f":"IF(Tableau2[[#This Row],[TB-Period-start]]=\"\",\"N/A\",IF(Tableau2[[#This Row],[TB-Period-end]]=\"\",\"N/A\",IF(Tableau2[[#This Row],[TB-value]]=\"\",\"N/A\",IF(Tableau2[[#This Row],[TB-value-date]]=\"\",\"N/A\",\"Yes\"))))","v":"N/A"},null,null,null,null,null,null,null,null,null,null,{"$f":"IF(Tableau2[[#This Row],[TE-Period-start]]=\"\",\"N/A\",IF(Tableau2[[#This Row],[TE-Period-end]]=\"\",\"N/A\",IF(Tableau2[[#This Row],[TE-value]]=\"\",\"N/A\",IF(Tableau2[[#This Row],[TE-value-date]]=\"\",\"N/A\",\"Yes\"))))","v":"N/A"}]
[{"$f":"VLOOKUP(Tableau2[[#This Row],[Organisation identifier]],Tableau3[#All],4,FALSE)","v":"Agence Francaise de Developpement"},"FR-03",{"$f":"VLOOKUP(Tableau2[[#This Row],[Organisation identifier]],Tableau3[#All],4,FALSE)","v":"Agence Francaise de Developpement"},"French","Stratégie Colombie 2014 2018","https://www.afd.fr/fr/cadre-intervention-colombie","B03 - Country strategy paper ","French",2014,"CO - Colombia\n",{"$f":"IF(Tableau2[[#This Row],[TB-Period-start]]=\"\",\"N/A\",IF(Tableau2[[#This Row],[TB-Period-end]]=\"\",\"N/A\",IF(Tableau2[[#This Row],[TB-value]]=\"\",\"N/A\",IF(Tableau2[[#This Row],[TB-value-date]]=\"\",\"N/A\",\"Yes\"))))","v":"N/A"},null,null,null,null,null,null,null,null,null,null,{"$f":"IF(Tableau2[[#This Row],[TE-Period-start]]=\"\",\"N/A\",IF(Tableau2[[#This Row],[TE-Period-end]]=\"\",\"N/A\",IF(Tableau2[[#This Row],[TE-value]]=\"\",\"N/A\",IF(Tableau2[[#This Row],[TE-value-date]]=\"\",\"N/A\",\"Yes\"))))","v":"N/A"}]
[{"$f":"VLOOKUP(Tableau2[[#This Row],[Organisation identifier]],Tableau3[#All],4,FALSE)","v":"Agence Francaise de Developpement"},"FR-03",{"$f":"VLOOKUP(Tableau2[[#This Row],[Organisation identifier]],Tableau3[#All],4,FALSE)","v":"Agence Francaise de Developpement"},"French","Stratégie Polynésie Française  2015 2019","https://www.afd.fr/fr/cadre-intervention-polynesie-francaise","B17 - Country/Region web page","French",2015,null,{"$f":"IF(Tableau2[[#This Row],[TB-Period-start]]=\"\",\"N/A\",IF(Tableau2[[#This Row],[TB-Period-end]]=\"\",\"N/A\",IF(Tableau2[[#This Row],[TB-value]]=\"\",\"N/A\",IF(Tableau2[[#This Row],[TB-value-date]]=\"\",\"N/A\",\"Yes\"))))","v":"N/A"},null,null,null,null,null,null,null,null,null,null,{"$f":"IF(Tableau2[[#This Row],[TE-Period-start]]=\"\",\"N/A\",IF(Tableau2[[#This Row],[TE-Period-end]]=\"\",\"N/A\",IF(Tableau2[[#This Row],[TE-value]]=\"\",\"N/A\",IF(Tableau2[[#This Row],[TE-value-date]]=\"\",\"N/A\",\"Yes\"))))","v":"N/A"}]
[{"$f":"VLOOKUP(Tableau2[[#This Row],[Organisation identifier]],Tableau3[#All],4,FALSE)","v":"Agence Francaise de Developpement"},"FR-03",{"$f":"VLOOKUP(Tableau2[[#This Row],[Organisation identifier]],Tableau3[#All],4,FALSE)","v":"Agence Francaise de Developpement"},"French","Stratégie Territoires Palestiniens 2016 2020","https://www.afd.fr/fr/cadre-intervention-territoires-palestiniens","B03 - Country strategy paper ","French",2016,"PS-  PALESTINIAN TERRITORY",{"$f":"IF(Tableau2[[#This Row],[TB-Period-start]]=\"\",\"N/A\",IF(Tableau2[[#This Row],[TB-Period-end]]=\"\",\"N/A\",IF(Tableau2[[#This Row],[TB-value]]=\"\",\"N/A\",IF(Tableau2[[#This Row],[TB-value-date]]=\"\",\"N/A\",\"Yes\"))))","v":"N/A"},null,null,null,null,null,null,null,null,null,null,{"$f":"IF(Tableau2[[#This Row],[TE-Period-start]]=\"\",\"N/A\",IF(Tableau2[[#This Row],[TE-Period-end]]=\"\",\"N/A\",IF(Tableau2[[#This Row],[TE-value]]=\"\",\"N/A\",IF(Tableau2[[#This Row],[TE-value-date]]=\"\",\"N/A\",\"Yes\"))))","v":"N/A"}]
[{"$f":"VLOOKUP(Tableau2[[#This Row],[Organisation identifier]],Tableau3[#All],4,FALSE)","v":"Agence Francaise de Developpement"},"FR-03",{"$f":"VLOOKUP(Tableau2[[#This Row],[Organisation identifier]],Tableau3[#All],4,FALSE)","v":"Agence Francaise de Developpement"},"French","Stratégie Guadeloupe 2015 2019","https://www.afd.fr/fr/cadre-intervention-guadeloupe","B17 - Country/Region web page","French",2015,null,{"$f":"IF(Tableau2[[#This Row],[TB-Period-start]]=\"\",\"N/A\",IF(Tableau2[[#This Row],[TB-Period-end]]=\"\",\"N/A\",IF(Tableau2[[#This Row],[TB-value]]=\"\",\"N/A\",IF(Tableau2[[#This Row],[TB-value-date]]=\"\",\"N/A\",\"Yes\"))))","v":"N/A"},null,null,null,null,null,null,null,null,null,null,{"$f":"IF(Tableau2[[#This Row],[TE-Period-start]]=\"\",\"N/A\",IF(Tableau2[[#This Row],[TE-Period-end]]=\"\",\"N/A\",IF(Tableau2[[#This Row],[TE-value]]=\"\",\"N/A\",IF(Tableau2[[#This Row],[TE-value-date]]=\"\",\"N/A\",\"Yes\"))))","v":"N/A"}]
[{"$f":"VLOOKUP(Tableau2[[#This Row],[Organisation identifier]],Tableau3[#All],4,FALSE)","v":"Agence Francaise de Developpement"},"FR-03",{"$f":"VLOOKUP(Tableau2[[#This Row],[Organisation identifier]],Tableau3[#All],4,FALSE)","v":"Agence Francaise de Developpement"},"French","Stratégie Indonesie 2017 2021","https://www.afd.fr/fr/strategie-indonesie-2017-2021","B03 - Country strategy paper ","French",2017,"ID - INDONESIA",{"$f":"IF(Tableau2[[#This Row],[TB-Period-start]]=\"\",\"N/A\",IF(Tableau2[[#This Row],[TB-Period-end]]=\"\",\"N/A\",IF(Tableau2[[#This Row],[TB-value]]=\"\",\"N/A\",IF(Tableau2[[#This Row],[TB-value-date]]=\"\",\"N/A\",\"Yes\"))))","v":"N/A"},null,null,null,null,null,null,null,null,null,null,{"$f":"IF(Tableau2[[#This Row],[TE-Period-start]]=\"\",\"N/A\",IF(Tableau2[[#This Row],[TE-Period-end]]=\"\",\"N/A\",IF(Tableau2[[#This Row],[TE-value]]=\"\",\"N/A\",IF(Tableau2[[#This Row],[TE-value-date]]=\"\",\"N/A\",\"Yes\"))))","v":"N/A"}]
[{"$f":"VLOOKUP(Tableau2[[#This Row],[Organisation identifier]],Tableau3[#All],4,FALSE)","v":"Agence Francaise de Developpement"},"FR-03",{"$f":"VLOOKUP(Tableau2[[#This Row],[Organisation identifier]],Tableau3[#All],4,FALSE)","v":"Agence Francaise de Developpement"},"French","Stratégie Inde 2017 2021","https://www.afd.fr/en/strategy-india-2017-2021","B03 - Country strategy paper ","French",null,"IN - INDIA",{"$f":"IF(Tableau2[[#This Row],[TB-Period-start]]=\"\",\"N/A\",IF(Tableau2[[#This Row],[TB-Period-end]]=\"\",\"N/A\",IF(Tableau2[[#This Row],[TB-value]]=\"\",\"N/A\",IF(Tableau2[[#This Row],[TB-value-date]]=\"\",\"N/A\",\"Yes\"))))","v":"N/A"},null,null,null,null,null,null,null,null,null,null,{"$f":"IF(Tableau2[[#This Row],[TE-Period-start]]=\"\",\"N/A\",IF(Tableau2[[#This Row],[TE-Period-end]]=\"\",\"N/A\",IF(Tableau2[[#This Row],[TE-value]]=\"\",\"N/A\",IF(Tableau2[[#This Row],[TE-value-date]]=\"\",\"N/A\",\"Yes\"))))","v":"N/A"}]
[{"$f":"VLOOKUP(Tableau2[[#This Row],[Organisation identifier]],Tableau3[#All],4,FALSE)","v":"Agence Francaise de Developpement"},"FR-03",{"$f":"VLOOKUP(Tableau2[[#This Row],[Organisation identifier]],Tableau3[#All],4,FALSE)","v":"Agence Francaise de Developpement"},"French","Stratégie Mali 2015 2019","https://www.afd.fr/fr/cadre-intervention-mali","B03 - Country strategy paper ","French",2015,"ML - Mali\n",{"$f":"IF(Tableau2[[#This Row],[TB-Period-start]]=\"\",\"N/A\",IF(Tableau2[[#This Row],[TB-Period-end]]=\"\",\"N/A\",IF(Tableau2[[#This Row],[TB-value]]=\"\",\"N/A\",IF(Tableau2[[#This Row],[TB-value-date]]=\"\",\"N/A\",\"Yes\"))))","v":"N/A"},null,null,null,null,null,null,null,null,null,null,{"$f":"IF(Tableau2[[#This Row],[TE-Period-start]]=\"\",\"N/A\",IF(Tableau2[[#This Row],[TE-Period-end]]=\"\",\"N/A\",IF(Tableau2[[#This Row],[TE-value]]=\"\",\"N/A\",IF(Tableau2[[#This Row],[TE-value-date]]=\"\",\"N/A\",\"Yes\"))))","v":"N/A"}]
[{"$f":"VLOOKUP(Tableau2[[#This Row],[Organisation identifier]],Tableau3[#All],4,FALSE)","v":"Agence Francaise de Developpement"},"FR-03",{"$f":"VLOOKUP(Tableau2[[#This Row],[Organisation identifier]],Tableau3[#All],4,FALSE)","v":"Agence Francaise de Developpement"},"French","Stratégie Martinique 2016 2020","https://www.afd.fr/fr/cadre-intervention-martinique","B17 - Country/Region web page","French",2016,"MQ - Martinique\n",{"$f":"IF(Tableau2[[#This Row],[TB-Period-start]]=\"\",\"N/A\",IF(Tableau2[[#This Row],[TB-Period-end]]=\"\",\"N/A\",IF(Tableau2[[#This Row],[TB-value]]=\"\",\"N/A\",IF(Tableau2[[#This Row],[TB-value-date]]=\"\",\"N/A\",\"Yes\"))))","v":"N/A"},null,null,null,null,null,null,null,null,null,null,{"$f":"IF(Tableau2[[#This Row],[TE-Period-start]]=\"\",\"N/A\",IF(Tableau2[[#This Row],[TE-Period-end]]=\"\",\"N/A\",IF(Tableau2[[#This Row],[TE-value]]=\"\",\"N/A\",IF(Tableau2[[#This Row],[TE-value-date]]=\"\",\"N/A\",\"Yes\"))))","v":"N/A"}]
[{"$f":"VLOOKUP(Tableau2[[#This Row],[Organisation identifier]],Tableau3[#All],4,FALSE)","v":"Agence Francaise de Developpement"},"FR-03",{"$f":"VLOOKUP(Tableau2[[#This Row],[Organisation identifier]],Tableau3[#All],4,FALSE)","v":"Agence Francaise de Developpement"},"French","Stratégie République Démocratique du Congo 2015 2019","https://www.afd.fr/fr/cadre-intervention-republique-democratique-congo","B03 - Country strategy paper ","French",2015,"CD-THE DEMOCRATIC OF THE CONGO",{"$f":"IF(Tableau2[[#This Row],[TB-Period-start]]=\"\",\"N/A\",IF(Tableau2[[#This Row],[TB-Period-end]]=\"\",\"N/A\",IF(Tableau2[[#This Row],[TB-value]]=\"\",\"N/A\",IF(Tableau2[[#This Row],[TB-value-date]]=\"\",\"N/A\",\"Yes\"))))","v":"N/A"},null,null,null,null,null,null,null,null,null,null,{"$f":"IF(Tableau2[[#This Row],[TE-Period-start]]=\"\",\"N/A\",IF(Tableau2[[#This Row],[TE-Period-end]]=\"\",\"N/A\",IF(Tableau2[[#This Row],[TE-value]]=\"\",\"N/A\",IF(Tableau2[[#This Row],[TE-value-date]]=\"\",\"N/A\",\"Yes\"))))","v":"N/A"}]
["Agence Francaise de Developpement","FR-03",{"$f":"VLOOKUP(Tableau2[[#This Row],[Organisation identifier]],Tableau3[#All],4,FALSE)","v":"Agence Francaise de Developpement"},"French","Stratégie Mexique 2018 2022","https://www.afd.fr/fr/strategie-mexique-2018-2022","B03 - Country strategy paper ","French",2018,"MX - Mexico\n",{"$f":"IF(Tableau2[[#This Row],[TB-Period-start]]=\"\",\"N/A\",IF(Tableau2[[#This Row],[TB-Period-end]]=\"\",\"N/A\",IF(Tableau2[[#This Row],[TB-value]]=\"\",\"N/A\",IF(Tableau2[[#This Row],[TB-value-date]]=\"\",\"N/A\",\"Yes\"))))","v":"N/A"},null,null,null,null,null,null,null,null,null,null,{"$f":"IF(Tableau2[[#This Row],[TE-Period-start]]=\"\",\"N/A\",IF(Tableau2[[#This Row],[TE-Period-end]]=\"\",\"N/A\",IF(Tableau2[[#This Row],[TE-value]]=\"\",\"N/A\",IF(Tableau2[[#This Row],[TE-value-date]]=\"\",\"N/A\",\"Yes\"))))","v":"N/A"}]
[{"$f":"VLOOKUP(Tableau2[[#This Row],[Organisation identifier]],Tableau3[#All],4,FALSE)","v":"Agence Francaise de Developpement"},"FR-03",{"$f":"VLOOKUP(Tableau2[[#This Row],[Organisation identifier]],Tableau3[#All],4,FALSE)","v":"Agence Francaise de Developpement"},"French","Stratégie Turquie 2020 2023","https://www.afd.fr/fr/ressources/strategie-turquie-2020-2023?origin=/fr/rechercher?query=strat%C3%A9gie","B03 - Country strategy paper ","French",2020,"TR-  TURKEY",{"$f":"IF(Tableau2[[#This Row],[TB-Period-start]]=\"\",\"N/A\",IF(Tableau2[[#This Row],[TB-Period-end]]=\"\",\"N/A\",IF(Tableau2[[#This Row],[TB-value]]=\"\",\"N/A\",IF(Tableau2[[#This Row],[TB-value-date]]=\"\",\"N/A\",\"Yes\"))))","v":"N/A"},null,null,null,null,null,null,null,null,null,null,{"$f":"IF(Tableau2[[#This Row],[TE-Period-start]]=\"\",\"N/A\",IF(Tableau2[[#This Row],[TE-Period-end]]=\"\",\"N/A\",IF(Tableau2[[#This Row],[TE-value]]=\"\",\"N/A\",IF(Tableau2[[#This Row],[TE-value-date]]=\"\",\"N/A\",\"Yes\"))))","v":"N/A"}]
[{"$f":"VLOOKUP(Tableau2[[#This Row],[Organisation identifier]],Tableau3[#All],4,FALSE)","v":"Agence Francaise de Developpement"},"FR-03",{"$f":"VLOOKUP(Tableau2[[#This Row],[Organisation identifier]],Tableau3[#All],4,FALSE)","v":"Agence Francaise de Developpement"},"French","Stratégie Nouvelle Calédonie 2015 2018","https://www.afd.fr/fr/cadre-intervention-nouvelle-caledonie","B17 - Country/Region web page","French",2015,"NC - New Caledonia\n",{"$f":"IF(Tableau2[[#This Row],[TB-Period-start]]=\"\",\"N/A\",IF(Tableau2[[#This Row],[TB-Period-end]]=\"\",\"N/A\",IF(Tableau2[[#This Row],[TB-value]]=\"\",\"N/A\",IF(Tableau2[[#This Row],[TB-value-date]]=\"\",\"N/A\",\"Yes\"))))","v":"N/A"},null,null,null,null,null,null,null,null,null,null,{"$f":"IF(Tableau2[[#This Row],[TE-Period-start]]=\"\",\"N/A\",IF(Tableau2[[#This Row],[TE-Period-end]]=\"\",\"N/A\",IF(Tableau2[[#This Row],[TE-value]]=\"\",\"N/A\",IF(Tableau2[[#This Row],[TE-value-date]]=\"\",\"N/A\",\"Yes\"))))","v":"N/A"}]
[{"$f":"VLOOKUP(Tableau2[[#This Row],[Organisation identifier]],Tableau3[#All],4,FALSE)","v":"Agence Francaise de Developpement"},"FR-03",{"$f":"VLOOKUP(Tableau2[[#This Row],[Organisation identifier]],Tableau3[#All],4,FALSE)","v":"Agence Francaise de Developpement"},"French","Stratégie Mayotte 2016 2020","https://www.afd.fr/fr/cadre-intervention-mayotte","B17 - Country/Region web page","French",2016,"YT - Mayotte\n",{"$f":"IF(Tableau2[[#This Row],[TB-Period-start]]=\"\",\"N/A\",IF(Tableau2[[#This Row],[TB-Period-end]]=\"\",\"N/A\",IF(Tableau2[[#This Row],[TB-value]]=\"\",\"N/A\",IF(Tableau2[[#This Row],[TB-value-date]]=\"\",\"N/A\",\"Yes\"))))","v":"N/A"},null,null,null,null,null,null,null,null,null,null,{"$f":"IF(Tableau2[[#This Row],[TE-Period-start]]=\"\",\"N/A\",IF(Tableau2[[#This Row],[TE-Period-end]]=\"\",\"N/A\",IF(Tableau2[[#This Row],[TE-value]]=\"\",\"N/A\",IF(Tableau2[[#This Row],[TE-value-date]]=\"\",\"N/A\",\"Yes\"))))","v":"N/A"}]
[{"$f":"VLOOKUP(Tableau2[[#This Row],[Organisation identifier]],Tableau3[#All],4,FALSE)","v":"Agence Francaise de Developpement"},"FR-03",{"$f":"VLOOKUP(Tableau2[[#This Row],[Organisation identifier]],Tableau3[#All],4,FALSE)","v":"Agence Francaise de Developpement"},"French","Stratégie Guinée 2015 2020","https://www.afd.fr/fr/cadre-intervention-guinee","B03 - Country strategy paper ","French",2016,"GN-GUINEA ",{"$f":"IF(Tableau2[[#This Row],[TB-Period-start]]=\"\",\"N/A\",IF(Tableau2[[#This Row],[TB-Period-end]]=\"\",\"N/A\",IF(Tableau2[[#This Row],[TB-value]]=\"\",\"N/A\",IF(Tableau2[[#This Row],[TB-value-date]]=\"\",\"N/A\",\"Yes\"))))","v":"N/A"},null,null,null,null,null,null,null,null,null,null,{"$f":"IF(Tableau2[[#This Row],[TE-Period-start]]=\"\",\"N/A\",IF(Tableau2[[#This Row],[TE-Period-end]]=\"\",\"N/A\",IF(Tableau2[[#This Row],[TE-value]]=\"\",\"N/A\",IF(Tableau2[[#This Row],[TE-value-date]]=\"\",\"N/A\",\"Yes\"))))","v":"N/A"}]
[{"$f":"VLOOKUP(Tableau2[[#This Row],[Organisation identifier]],Tableau3[#All],4,FALSE)","v":"Agence Francaise de Developpement"},"FR-03",{"$f":"VLOOKUP(Tableau2[[#This Row],[Organisation identifier]],Tableau3[#All],4,FALSE)","v":"Agence Francaise de Developpement"},"French","Stratégie Maroc 2017 2021","https://www.afd.fr/fr/cadre-dintervention-maroc","B03 - Country strategy paper ","French",2017,"MA-MOROCCO",{"$f":"IF(Tableau2[[#This Row],[TB-Period-start]]=\"\",\"N/A\",IF(Tableau2[[#This Row],[TB-Period-end]]=\"\",\"N/A\",IF(Tableau2[[#This Row],[TB-value]]=\"\",\"N/A\",IF(Tableau2[[#This Row],[TB-value-date]]=\"\",\"N/A\",\"Yes\"))))","v":"N/A"},null,null,null,null,null,null,null,null,null,null,{"$f":"IF(Tableau2[[#This Row],[TE-Period-start]]=\"\",\"N/A\",IF(Tableau2[[#This Row],[TE-Period-end]]=\"\",\"N/A\",IF(Tableau2[[#This Row],[TE-value]]=\"\",\"N/A\",IF(Tableau2[[#This Row],[TE-value-date]]=\"\",\"N/A\",\"Yes\"))))","v":"N/A"}]
[{"$f":"VLOOKUP(Tableau2[[#This Row],[Organisation identifier]],Tableau3[#All],4,FALSE)","v":"Agence Francaise de Developpement"},"FR-03",{"$f":"VLOOKUP(Tableau2[[#This Row],[Organisation identifier]],Tableau3[#All],4,FALSE)","v":"Agence Francaise de Developpement"},"French","Stratégie République Dominicaine 2015-2019","https://www.afd.fr/sites/afd/files/2018-03-11-44-25/cadre-intervention-republique-dominicaine.PDF ","B17 - Country/Region web page","French",2018,"DO-DOMINICAN REPUBLIC",{"$f":"IF(Tableau2[[#This Row],[TB-Period-start]]=\"\",\"N/A\",IF(Tableau2[[#This Row],[TB-Period-end]]=\"\",\"N/A\",IF(Tableau2[[#This Row],[TB-value]]=\"\",\"N/A\",IF(Tableau2[[#This Row],[TB-value-date]]=\"\",\"N/A\",\"Yes\"))))","v":"N/A"},null,null,null,null,null,null,null,null,null,null,{"$f":"IF(Tableau2[[#This Row],[TE-Period-start]]=\"\",\"N/A\",IF(Tableau2[[#This Row],[TE-Period-end]]=\"\",\"N/A\",IF(Tableau2[[#This Row],[TE-value]]=\"\",\"N/A\",IF(Tableau2[[#This Row],[TE-value-date]]=\"\",\"N/A\",\"Yes\"))))","v":"N/A"}]
["Agence Francaise de Developpement","FR-03",{"$f":"VLOOKUP(Tableau2[[#This Row],[Organisation identifier]],Tableau3[#All],4,FALSE)","v":"Agence Francaise de Developpement"},"French","Stratégie Brésil 2018 2022","https://www.afd.fr/sites/afd/files/2019-05-01-54-53/strategie-bresil-2018-2022.pdf","B17 - Country/Region web page","French",2018,"BR - Brazil\n",{"$f":"IF(Tableau2[[#This Row],[TB-Period-start]]=\"\",\"N/A\",IF(Tableau2[[#This Row],[TB-Period-end]]=\"\",\"N/A\",IF(Tableau2[[#This Row],[TB-value]]=\"\",\"N/A\",IF(Tableau2[[#This Row],[TB-value-date]]=\"\",\"N/A\",\"Yes\"))))","v":"N/A"},null,null,null,null,null,null,null,null,null,null,{"$f":"IF(Tableau2[[#This Row],[TE-Period-start]]=\"\",\"N/A\",IF(Tableau2[[#This Row],[TE-Period-end]]=\"\",\"N/A\",IF(Tableau2[[#This Row],[TE-value]]=\"\",\"N/A\",IF(Tableau2[[#This Row],[TE-value-date]]=\"\",\"N/A\",\"Yes\"))))","v":"N/A"}]
["Agence Francaise de Developpement","FR-03",{"$f":"VLOOKUP(Tableau2[[#This Row],[Organisation identifier]],Tableau3[#All],4,FALSE)","v":"Agence Francaise de Developpement"},"French","Stratégie Tanzanie 2017 2021","https://www.afd.fr/fr/strategie-tanzanie-2017-2021","B17 - Country/Region web page","French",2017,"TZ - Tanzania, United Republic of\n",{"$f":"IF(Tableau2[[#This Row],[TB-Period-start]]=\"\",\"N/A\",IF(Tableau2[[#This Row],[TB-Period-end]]=\"\",\"N/A\",IF(Tableau2[[#This Row],[TB-value]]=\"\",\"N/A\",IF(Tableau2[[#This Row],[TB-value-date]]=\"\",\"N/A\",\"Yes\"))))","v":"N/A"},null,null,null,null,null,null,null,null,null,null,{"$f":"IF(Tableau2[[#This Row],[TE-Period-start]]=\"\",\"N/A\",IF(Tableau2[[#This Row],[TE-Period-end]]=\"\",\"N/A\",IF(Tableau2[[#This Row],[TE-value]]=\"\",\"N/A\",IF(Tableau2[[#This Row],[TE-value-date]]=\"\",\"N/A\",\"Yes\"))))","v":"N/A"}]
["Agence Francaise de Developpement","FR-03",{"$f":"VLOOKUP(Tableau2[[#This Row],[Organisation identifier]],Tableau3[#All],4,FALSE)","v":"Agence Francaise de Developpement"},"French","Stratégie Pakistan 2018 2022","https://www.afd.fr/fr/strategie-pakistan-2018-2022","B17 - Country/Region web page","French",2018,"PK - Pakistan\n",{"$f":"IF(Tableau2[[#This Row],[TB-Period-start]]=\"\",\"N/A\",IF(Tableau2[[#This Row],[TB-Period-end]]=\"\",\"N/A\",IF(Tableau2[[#This Row],[TB-value]]=\"\",\"N/A\",IF(Tableau2[[#This Row],[TB-value-date]]=\"\",\"N/A\",\"Yes\"))))","v":"N/A"},null,null,null,null,null,null,null,null,null,null,{"$f":"IF(Tableau2[[#This Row],[TE-Period-start]]=\"\",\"N/A\",IF(Tableau2[[#This Row],[TE-Period-end]]=\"\",\"N/A\",IF(Tableau2[[#This Row],[TE-value]]=\"\",\"N/A\",IF(Tableau2[[#This Row],[TE-value-date]]=\"\",\"N/A\",\"Yes\"))))","v":"N/A"}]
[{"$f":"VLOOKUP(Tableau2[[#This Row],[Organisation identifier]],Tableau3[#All],4,FALSE)","v":"Agence Francaise de Developpement"},"FR-03",{"$f":"VLOOKUP(Tableau2[[#This Row],[Organisation identifier]],Tableau3[#All],4,FALSE)","v":"Agence Francaise de Developpement"},"French","Cadre Intervention pays Vietnam 2016 2020","https://www.afd.fr/fr/cadre-dintervention-vietnam-2016-2020","B03 - Country strategy paper ","French",2016,"VN - VIET-NAM",{"$f":"IF(Tableau2[[#This Row],[TB-Period-start]]=\"\",\"N/A\",IF(Tableau2[[#This Row],[TB-Period-end]]=\"\",\"N/A\",IF(Tableau2[[#This Row],[TB-value]]=\"\",\"N/A\",IF(Tableau2[[#This Row],[TB-value-date]]=\"\",\"N/A\",\"Yes\"))))","v":"N/A"},null,null,null,null,null,null,null,null,null,null,{"$f":"IF(Tableau2[[#This Row],[TE-Period-start]]=\"\",\"N/A\",IF(Tableau2[[#This Row],[TE-Period-end]]=\"\",\"N/A\",IF(Tableau2[[#This Row],[TE-value]]=\"\",\"N/A\",IF(Tableau2[[#This Row],[TE-value-date]]=\"\",\"N/A\",\"Yes\"))))","v":"N/A"}]
[{"$f":"VLOOKUP(Tableau2[[#This Row],[Organisation identifier]],Tableau3[#All],4,FALSE)","v":"Agence Francaise de Developpement"},"FR-03",{"$f":"VLOOKUP(Tableau2[[#This Row],[Organisation identifier]],Tableau3[#All],4,FALSE)","v":"Agence Francaise de Developpement"},"French","Cadre d'intervention Kenya 2017-2021","https://www.afd.fr/sites/afd/files/2018-03-05-54-18/cadre-intervention-kenya-2017-2021.pdf ","B03 - Country strategy paper ","French",2017,"KE-  KENYA ",{"$f":"IF(Tableau2[[#This Row],[TB-Period-start]]=\"\",\"N/A\",IF(Tableau2[[#This Row],[TB-Period-end]]=\"\",\"N/A\",IF(Tableau2[[#This Row],[TB-value]]=\"\",\"N/A\",IF(Tableau2[[#This Row],[TB-value-date]]=\"\",\"N/A\",\"Yes\"))))","v":"N/A"},null,null,null,null,null,null,null,null,null,null,{"$f":"IF(Tableau2[[#This Row],[TE-Period-start]]=\"\",\"N/A\",IF(Tableau2[[#This Row],[TE-Period-end]]=\"\",\"N/A\",IF(Tableau2[[#This Row],[TE-value]]=\"\",\"N/A\",IF(Tableau2[[#This Row],[TE-value-date]]=\"\",\"N/A\",\"Yes\"))))","v":"N/A"}]
[{"$f":"VLOOKUP(Tableau2[[#This Row],[Organisation identifier]],Tableau3[#All],4,FALSE)","v":"Agence Francaise de Developpement"},"FR-03",{"$f":"VLOOKUP(Tableau2[[#This Row],[Organisation identifier]],Tableau3[#All],4,FALSE)","v":"Agence Francaise de Developpement"},"French","Strategie Climat 2017 2022","https://www.afd.fr/sites/afd/files/2017-12/cadre-intervention-climat-developpement-afd.pdf","B11 - Sector strategy","French",2017,null,{"$f":"IF(Tableau2[[#This Row],[TB-Period-start]]=\"\",\"N/A\",IF(Tableau2[[#This Row],[TB-Period-end]]=\"\",\"N/A\",IF(Tableau2[[#This Row],[TB-value]]=\"\",\"N/A\",IF(Tableau2[[#This Row],[TB-value-date]]=\"\",\"N/A\",\"Yes\"))))","v":"N/A"},null,null,null,null,null,null,null,null,null,null,{"$f":"IF(Tableau2[[#This Row],[TE-Period-start]]=\"\",\"N/A\",IF(Tableau2[[#This Row],[TE-Period-end]]=\"\",\"N/A\",IF(Tableau2[[#This Row],[TE-value]]=\"\",\"N/A\",IF(Tableau2[[#This Row],[TE-value-date]]=\"\",\"N/A\",\"Yes\"))))","v":"N/A"}]
[{"$f":"VLOOKUP(Tableau2[[#This Row],[Organisation identifier]],Tableau3[#All],4,FALSE)","v":"Agence Francaise de Developpement"},"FR-03",{"$f":"VLOOKUP(Tableau2[[#This Row],[Organisation identifier]],Tableau3[#All],4,FALSE)","v":"Agence Francaise de Developpement"},"French","Stratégie Vulnérabilités 2017 2021","https://www.afd.fr/fr/strategie-vulnerabilites-aux-crises-et-resilience-2017-2021-0","B11 - Sector strategy","French",2017,null,{"$f":"IF(Tableau2[[#This Row],[TB-Period-start]]=\"\",\"N/A\",IF(Tableau2[[#This Row],[TB-Period-end]]=\"\",\"N/A\",IF(Tableau2[[#This Row],[TB-value]]=\"\",\"N/A\",IF(Tableau2[[#This Row],[TB-value-date]]=\"\",\"N/A\",\"Yes\"))))","v":"N/A"},null,null,null,null,null,null,null,null,null,null,{"$f":"IF(Tableau2[[#This Row],[TE-Period-start]]=\"\",\"N/A\",IF(Tableau2[[#This Row],[TE-Period-end]]=\"\",\"N/A\",IF(Tableau2[[#This Row],[TE-value]]=\"\",\"N/A\",IF(Tableau2[[#This Row],[TE-value-date]]=\"\",\"N/A\",\"Yes\"))))","v":"N/A"}]
[{"$f":"VLOOKUP(Tableau2[[#This Row],[Organisation identifier]],Tableau3[#All],4,FALSE)","v":"Agence Francaise de Developpement"},"FR-03",{"$f":"VLOOKUP(Tableau2[[#This Row],[Organisation identifier]],Tableau3[#All],4,FALSE)","v":"Agence Francaise de Developpement"},"French","Strategie Sante et Protection Sociale 2015 2019","https://www.afd.fr/fr/cadre-intervention-sante-protection-sociale","B11 - Sector strategy","French",2015,null,{"$f":"IF(Tableau2[[#This Row],[TB-Period-start]]=\"\",\"N/A\",IF(Tableau2[[#This Row],[TB-Period-end]]=\"\",\"N/A\",IF(Tableau2[[#This Row],[TB-value]]=\"\",\"N/A\",IF(Tableau2[[#This Row],[TB-value-date]]=\"\",\"N/A\",\"Yes\"))))","v":"N/A"},null,null,null,null,null,null,null,null,null,null,{"$f":"IF(Tableau2[[#This Row],[TE-Period-start]]=\"\",\"N/A\",IF(Tableau2[[#This Row],[TE-Period-end]]=\"\",\"N/A\",IF(Tableau2[[#This Row],[TE-value]]=\"\",\"N/A\",IF(Tableau2[[#This Row],[TE-value-date]]=\"\",\"N/A\",\"Yes\"))))","v":"N/A"}]
[{"$f":"VLOOKUP(Tableau2[[#This Row],[Organisation identifier]],Tableau3[#All],4,FALSE)","v":"Agence Francaise de Developpement"},"FR-03",{"$f":"VLOOKUP(Tableau2[[#This Row],[Organisation identifier]],Tableau3[#All],4,FALSE)","v":"Agence Francaise de Developpement"},"French","Stratégie Education Formation Emploi 2016 2020"," https://www.afd.fr/fr/strategie-education-formation-emploi-2016-2020","B11 - Sector strategy","French",2016,null,{"$f":"IF(Tableau2[[#This Row],[TB-Period-start]]=\"\",\"N/A\",IF(Tableau2[[#This Row],[TB-Period-end]]=\"\",\"N/A\",IF(Tableau2[[#This Row],[TB-value]]=\"\",\"N/A\",IF(Tableau2[[#This Row],[TB-value-date]]=\"\",\"N/A\",\"Yes\"))))","v":"N/A"},null,null,null,null,null,null,null,null,null,null,{"$f":"IF(Tableau2[[#This Row],[TE-Period-start]]=\"\",\"N/A\",IF(Tableau2[[#This Row],[TE-Period-end]]=\"\",\"N/A\",IF(Tableau2[[#This Row],[TE-value]]=\"\",\"N/A\",IF(Tableau2[[#This Row],[TE-value-date]]=\"\",\"N/A\",\"Yes\"))))","v":"N/A"}]
[{"$f":"VLOOKUP(Tableau2[[#This Row],[Organisation identifier]],Tableau3[#All],4,FALSE)","v":"Agence Francaise de Developpement"},"FR-03",{"$f":"VLOOKUP(Tableau2[[#This Row],[Organisation identifier]],Tableau3[#All],4,FALSE)","v":"Agence Francaise de Developpement"},"French","Stratégie Systèmes Financiers 2018 2022"," https://issuu.com/objectif-developpement/docs/strategie-systemes-financiers-2018-","B11 - Sector strategy","French",2018,null,{"$f":"IF(Tableau2[[#This Row],[TB-Period-start]]=\"\",\"N/A\",IF(Tableau2[[#This Row],[TB-Period-end]]=\"\",\"N/A\",IF(Tableau2[[#This Row],[TB-value]]=\"\",\"N/A\",IF(Tableau2[[#This Row],[TB-value-date]]=\"\",\"N/A\",\"Yes\"))))","v":"N/A"},null,null,null,null,null,null,null,null,null,null,{"$f":"IF(Tableau2[[#This Row],[TE-Period-start]]=\"\",\"N/A\",IF(Tableau2[[#This Row],[TE-Period-end]]=\"\",\"N/A\",IF(Tableau2[[#This Row],[TE-value]]=\"\",\"N/A\",IF(Tableau2[[#This Row],[TE-value-date]]=\"\",\"N/A\",\"Yes\"))))","v":"N/A"}]
[{"$f":"VLOOKUP(Tableau2[[#This Row],[Organisation identifier]],Tableau3[#All],4,FALSE)","v":"Agence Francaise de Developpement"},"FR-03",{"$f":"VLOOKUP(Tableau2[[#This Row],[Organisation identifier]],Tableau3[#All],4,FALSE)","v":"Agence Francaise de Developpement"},"French","Cadre Intervention transversal Soutenir le renforcement de capacite","https://www.afd.fr/sites/afd/files/2017-12/cadre-intervention-transversal-renforcement-des-capacites.pdf","B12 - Thematic strategy ","French",2013,null,{"$f":"IF(Tableau2[[#This Row],[TB-Period-start]]=\"\",\"N/A\",IF(Tableau2[[#This Row],[TB-Period-end]]=\"\",\"N/A\",IF(Tableau2[[#This Row],[TB-value]]=\"\",\"N/A\",IF(Tableau2[[#This Row],[TB-value-date]]=\"\",\"N/A\",\"Yes\"))))","v":"N/A"},null,null,null,null,null,null,null,null,null,null,{"$f":"IF(Tableau2[[#This Row],[TE-Period-start]]=\"\",\"N/A\",IF(Tableau2[[#This Row],[TE-Period-end]]=\"\",\"N/A\",IF(Tableau2[[#This Row],[TE-value]]=\"\",\"N/A\",IF(Tableau2[[#This Row],[TE-value-date]]=\"\",\"N/A\",\"Yes\"))))","v":"N/A"}]
[{"$f":"VLOOKUP(Tableau2[[#This Row],[Organisation identifier]],Tableau3[#All],4,FALSE)","v":"Agence Francaise de Developpement"},"FR-03",{"$f":"VLOOKUP(Tableau2[[#This Row],[Organisation identifier]],Tableau3[#All],4,FALSE)","v":"Agence Francaise de Developpement"},"French","Strategie Villes Durables 2014 2017","https://www.afd.fr/fr/cadre-intervention-villes-durables","B12 - Thematic strategy ","French",2014,null,{"$f":"IF(Tableau2[[#This Row],[TB-Period-start]]=\"\",\"N/A\",IF(Tableau2[[#This Row],[TB-Period-end]]=\"\",\"N/A\",IF(Tableau2[[#This Row],[TB-value]]=\"\",\"N/A\",IF(Tableau2[[#This Row],[TB-value-date]]=\"\",\"N/A\",\"Yes\"))))","v":"N/A"},null,null,null,null,null,null,null,null,null,null,{"$f":"IF(Tableau2[[#This Row],[TE-Period-start]]=\"\",\"N/A\",IF(Tableau2[[#This Row],[TE-Period-end]]=\"\",\"N/A\",IF(Tableau2[[#This Row],[TE-value]]=\"\",\"N/A\",IF(Tableau2[[#This Row],[TE-value-date]]=\"\",\"N/A\",\"Yes\"))))","v":"N/A"}]
["Agence Francaise de Developpement","FR-03",{"$f":"VLOOKUP(Tableau2[[#This Row],[Organisation identifier]],Tableau3[#All],4,FALSE)","v":"Agence Francaise de Developpement"},"French","Statégie 3 océans 2019 2023"," https://www.afd.fr/fr/strategie-trois-oceans","B03 - Country strategy paper\n","French",2019,null,{"$f":"IF(Tableau2[[#This Row],[TB-Period-start]]=\"\",\"N/A\",IF(Tableau2[[#This Row],[TB-Period-end]]=\"\",\"N/A\",IF(Tableau2[[#This Row],[TB-value]]=\"\",\"N/A\",IF(Tableau2[[#This Row],[TB-value-date]]=\"\",\"N/A\",\"Yes\"))))","v":"N/A"},null,null,null,null,null,null,null,null,null,null,{"$f":"IF(Tableau2[[#This Row],[TE-Period-start]]=\"\",\"N/A\",IF(Tableau2[[#This Row],[TE-Period-end]]=\"\",\"N/A\",IF(Tableau2[[#This Row],[TE-value]]=\"\",\"N/A\",IF(Tableau2[[#This Row],[TE-value-date]]=\"\",\"N/A\",\"Yes\"))))","v":"N/A"}]
[{"$f":"VLOOKUP(Tableau2[[#This Row],[Organisation identifier]],Tableau3[#All],4,FALSE)","v":"Agence Francaise de Developpement"},"FR-03",{"$f":"VLOOKUP(Tableau2[[#This Row],[Organisation identifier]],Tableau3[#All],4,FALSE)","v":"Agence Francaise de Developpement"},"French","Strategie appui aux Organisations de la Societe Civile 2018 2023","https://www.afd.fr/sites/afd/files/2018-06-04-17-28/Strat%C3%A9gie-OSC-VF-version-finale.pdf","B12 - Thematic strategy ","French",2018,null,{"$f":"IF(Tableau2[[#This Row],[TB-Period-start]]=\"\",\"N/A\",IF(Tableau2[[#This Row],[TB-Period-end]]=\"\",\"N/A\",IF(Tableau2[[#This Row],[TB-value]]=\"\",\"N/A\",IF(Tableau2[[#This Row],[TB-value-date]]=\"\",\"N/A\",\"Yes\"))))","v":"N/A"},null,null,null,null,null,null,null,null,null,null,{"$f":"IF(Tableau2[[#This Row],[TE-Period-start]]=\"\",\"N/A\",IF(Tableau2[[#This Row],[TE-Period-end]]=\"\",\"N/A\",IF(Tableau2[[#This Row],[TE-value]]=\"\",\"N/A\",IF(Tableau2[[#This Row],[TE-value-date]]=\"\",\"N/A\",\"Yes\"))))","v":"N/A"}]
[{"$f":"VLOOKUP(Tableau2[[#This Row],[Organisation identifier]],Tableau3[#All],4,FALSE)","v":"Agence Francaise de Developpement"},"FR-03",{"$f":"VLOOKUP(Tableau2[[#This Row],[Organisation identifier]],Tableau3[#All],4,FALSE)","v":"Agence Francaise de Developpement"},"French","Strategie Genre 2014 2017","https://www.afd.fr/fr/cadre-intervention-genre-reduction-inegalites","B12 - Thematic strategy ","French",2014,null,{"$f":"IF(Tableau2[[#This Row],[TB-Period-start]]=\"\",\"N/A\",IF(Tableau2[[#This Row],[TB-Period-end]]=\"\",\"N/A\",IF(Tableau2[[#This Row],[TB-value]]=\"\",\"N/A\",IF(Tableau2[[#This Row],[TB-value-date]]=\"\",\"N/A\",\"Yes\"))))","v":"N/A"},null,null,null,null,null,null,null,null,null,null,{"$f":"IF(Tableau2[[#This Row],[TE-Period-start]]=\"\",\"N/A\",IF(Tableau2[[#This Row],[TE-Period-end]]=\"\",\"N/A\",IF(Tableau2[[#This Row],[TE-value]]=\"\",\"N/A\",IF(Tableau2[[#This Row],[TE-value-date]]=\"\",\"N/A\",\"Yes\"))))","v":"N/A"}]
[{"$f":"VLOOKUP(Tableau2[[#This Row],[Organisation identifier]],Tableau3[#All],4,FALSE)","v":"Agence Francaise de Developpement"},"FR-03",{"$f":"VLOOKUP(Tableau2[[#This Row],[Organisation identifier]],Tableau3[#All],4,FALSE)","v":"Agence Francaise de Developpement"},"French","Site Open Data AFD avec outils de datavisualisation","http://opendata.afd.fr/page/accueil/","A12 - Activity web page","French",2017,null,{"$f":"IF(Tableau2[[#This Row],[TB-Period-start]]=\"\",\"N/A\",IF(Tableau2[[#This Row],[TB-Period-end]]=\"\",\"N/A\",IF(Tableau2[[#This Row],[TB-value]]=\"\",\"N/A\",IF(Tableau2[[#This Row],[TB-value-date]]=\"\",\"N/A\",\"Yes\"))))","v":"N/A"},null,null,null,null,null,null,null,null,null,null,{"$f":"IF(Tableau2[[#This Row],[TE-Period-start]]=\"\",\"N/A\",IF(Tableau2[[#This Row],[TE-Period-end]]=\"\",\"N/A\",IF(Tableau2[[#This Row],[TE-value]]=\"\",\"N/A\",IF(Tableau2[[#This Row],[TE-value-date]]=\"\",\"N/A\",\"Yes\"))))","v":"N/A"}]
[{"$f":"VLOOKUP(Tableau2[[#This Row],[Organisation identifier]],Tableau3[#All],4,FALSE)","v":"Agence Francaise de Developpement"},"FR-03",{"$f":"VLOOKUP(Tableau2[[#This Row],[Organisation identifier]],Tableau3[#All],4,FALSE)","v":"Agence Francaise de Developpement"},"French","Rapport sur les données de l'AFD","https://www.afd.fr/fr/rapport-sur-les-donnees-de-lafd","A05 - Budget\nA08 - Results, outcomes and outputs\n","French",2017,null,{"$f":"IF(Tableau2[[#This Row],[TB-Period-start]]=\"\",\"N/A\",IF(Tableau2[[#This Row],[TB-Period-end]]=\"\",\"N/A\",IF(Tableau2[[#This Row],[TB-value]]=\"\",\"N/A\",IF(Tableau2[[#This Row],[TB-value-date]]=\"\",\"N/A\",\"Yes\"))))","v":"N/A"},null,null,null,null,null,null,null,null,null,null,{"$f":"IF(Tableau2[[#This Row],[TE-Period-start]]=\"\",\"N/A\",IF(Tableau2[[#This Row],[TE-Period-end]]=\"\",\"N/A\",IF(Tableau2[[#This Row],[TE-value]]=\"\",\"N/A\",IF(Tableau2[[#This Row],[TE-value-date]]=\"\",\"N/A\",\"Yes\"))))","v":"N/A"}]
[{"$f":"VLOOKUP(Tableau2[[#This Row],[Organisation identifier]],Tableau3[#All],4,FALSE)","v":"Agence Francaise de Developpement"},"FR-03",{"$f":"VLOOKUP(Tableau2[[#This Row],[Organisation identifier]],Tableau3[#All],4,FALSE)","v":"Agence Francaise de Developpement"},"French","Document de reference","https://www.afd.fr/sites/afd/files/2018-04-01-23-09/document-reference-2017-afd.pdf","A03 - Intended ultimate beneficiaries\nA05 - Budget\nB06 - Institutional Audit Report\nB09 - Institutional Evaluation Report\n","French",2017,null,{"$f":"IF(Tableau2[[#This Row],[TB-Period-start]]=\"\",\"N/A\",IF(Tableau2[[#This Row],[TB-Period-end]]=\"\",\"N/A\",IF(Tableau2[[#This Row],[TB-value]]=\"\",\"N/A\",IF(Tableau2[[#This Row],[TB-value-date]]=\"\",\"N/A\",\"Yes\"))))","v":"N/A"},null,null,null,null,null,null,null,null,null,null,{"$f":"IF(Tableau2[[#This Row],[TE-Period-start]]=\"\",\"N/A\",IF(Tableau2[[#This Row],[TE-Period-end]]=\"\",\"N/A\",IF(Tableau2[[#This Row],[TE-value]]=\"\",\"N/A\",IF(Tableau2[[#This Row],[TE-value-date]]=\"\",\"N/A\",\"Yes\"))))","v":"N/A"}]
[{"$f":"VLOOKUP(Tableau2[[#This Row],[Organisation identifier]],Tableau3[#All],4,FALSE)","v":"Agence Francaise de Developpement"},"FR-03",{"$f":"VLOOKUP(Tableau2[[#This Row],[Organisation identifier]],Tableau3[#All],4,FALSE)","v":"Agence Francaise de Developpement"},"English","Base prospectus","https://www.afd.fr/sites/afd/files/2017-07/AFD-Base-Prospectus-2017.pdf","B06 - Institutional Audit Report",null,null,null,{"$f":"IF(Tableau2[[#This Row],[TB-Period-start]]=\"\",\"N/A\",IF(Tableau2[[#This Row],[TB-Period-end]]=\"\",\"N/A\",IF(Tableau2[[#This Row],[TB-value]]=\"\",\"N/A\",IF(Tableau2[[#This Row],[TB-value-date]]=\"\",\"N/A\",\"Yes\"))))","v":"N/A"},null,null,null,null,null,null,null,null,null,null,{"$f":"IF(Tableau2[[#This Row],[TE-Period-start]]=\"\",\"N/A\",IF(Tableau2[[#This Row],[TE-Period-end]]=\"\",\"N/A\",IF(Tableau2[[#This Row],[TE-value]]=\"\",\"N/A\",IF(Tableau2[[#This Row],[TE-value-date]]=\"\",\"N/A\",\"Yes\"))))","v":"N/A"}]
[{"$f":"VLOOKUP(Tableau2[[#This Row],[Organisation identifier]],Tableau3[#All],4,FALSE)","v":"Agence Francaise de Developpement"},"FR-03",{"$f":"VLOOKUP(Tableau2[[#This Row],[Organisation identifier]],Tableau3[#All],4,FALSE)","v":"Agence Francaise de Developpement"},"French","Rapport financier semestriel","https://www.afd.fr/fr/media/download/7773","A05 - Budget\nA08 - Results, outcomes and outputs\n","French",2017,null,{"$f":"IF(Tableau2[[#This Row],[TB-Period-start]]=\"\",\"N/A\",IF(Tableau2[[#This Row],[TB-Period-end]]=\"\",\"N/A\",IF(Tableau2[[#This Row],[TB-value]]=\"\",\"N/A\",IF(Tableau2[[#This Row],[TB-value-date]]=\"\",\"N/A\",\"Yes\"))))","v":"N/A"},null,null,null,null,null,null,null,null,null,null,{"$f":"IF(Tableau2[[#This Row],[TE-Period-start]]=\"\",\"N/A\",IF(Tableau2[[#This Row],[TE-Period-end]]=\"\",\"N/A\",IF(Tableau2[[#This Row],[TE-value]]=\"\",\"N/A\",IF(Tableau2[[#This Row],[TE-value-date]]=\"\",\"N/A\",\"Yes\"))))","v":"N/A"}]
[{"$f":"VLOOKUP(Tableau2[[#This Row],[Organisation identifier]],Tableau3[#All],4,FALSE)","v":"Agence Francaise de Developpement"},"FR-03",{"$f":"VLOOKUP(Tableau2[[#This Row],[Organisation identifier]],Tableau3[#All],4,FALSE)","v":"Agence Francaise de Developpement"},"French","Programme des titres négociables à court terme","https://www.afd.fr/fr/media/download/7765","B06 - Institutional Audit Report","French",2017,null,{"$f":"IF(Tableau2[[#This Row],[TB-Period-start]]=\"\",\"N/A\",IF(Tableau2[[#This Row],[TB-Period-end]]=\"\",\"N/A\",IF(Tableau2[[#This Row],[TB-value]]=\"\",\"N/A\",IF(Tableau2[[#This Row],[TB-value-date]]=\"\",\"N/A\",\"Yes\"))))","v":"N/A"},null,null,null,null,null,null,null,null,null,null,{"$f":"IF(Tableau2[[#This Row],[TE-Period-start]]=\"\",\"N/A\",IF(Tableau2[[#This Row],[TE-Period-end]]=\"\",\"N/A\",IF(Tableau2[[#This Row],[TE-value]]=\"\",\"N/A\",IF(Tableau2[[#This Row],[TE-value-date]]=\"\",\"N/A\",\"Yes\"))))","v":"N/A"}]
[{"$f":"VLOOKUP(Tableau2[[#This Row],[Organisation identifier]],Tableau3[#All],4,FALSE)","v":"Agence Francaise de Developpement"},"FR-03",{"$f":"VLOOKUP(Tableau2[[#This Row],[Organisation identifier]],Tableau3[#All],4,FALSE)","v":"Agence Francaise de Developpement"},"French","Rapport GRI G4 2017","https://www.afd.fr/sites/afd/files/2017-09/Index-GRI-2017_0.pdf","B06 - Institutional Audit Report","French",2015,null,{"$f":"IF(Tableau2[[#This Row],[TB-Period-start]]=\"\",\"N/A\",IF(Tableau2[[#This Row],[TB-Period-end]]=\"\",\"N/A\",IF(Tableau2[[#This Row],[TB-value]]=\"\",\"N/A\",IF(Tableau2[[#This Row],[TB-value-date]]=\"\",\"N/A\",\"Yes\"))))","v":"N/A"},null,null,null,null,null,null,null,null,null,null,{"$f":"IF(Tableau2[[#This Row],[TE-Period-start]]=\"\",\"N/A\",IF(Tableau2[[#This Row],[TE-Period-end]]=\"\",\"N/A\",IF(Tableau2[[#This Row],[TE-value]]=\"\",\"N/A\",IF(Tableau2[[#This Row],[TE-value-date]]=\"\",\"N/A\",\"Yes\"))))","v":"N/A"}]
[{"$f":"VLOOKUP(Tableau2[[#This Row],[Organisation identifier]],Tableau3[#All],4,FALSE)","v":"Agence Francaise de Developpement"},"FR-03",{"$f":"VLOOKUP(Tableau2[[#This Row],[Organisation identifier]],Tableau3[#All],4,FALSE)","v":"Agence Francaise de Developpement"},"French","Données de l'aide au développement de Proparco","https://opendata.afd.fr/explore/dataset/donnees-de-laide-au-developpement-de-proparco/","A05 - Budget\nA08 - Results, outcomes and outputs\n",null,null,null,{"$f":"IF(Tableau2[[#This Row],[TB-Period-start]]=\"\",\"N/A\",IF(Tableau2[[#This Row],[TB-Period-end]]=\"\",\"N/A\",IF(Tableau2[[#This Row],[TB-value]]=\"\",\"N/A\",IF(Tableau2[[#This Row],[TB-value-date]]=\"\",\"N/A\",\"Yes\"))))","v":"N/A"},null,null,null,null,null,null,null,null,null,null,{"$f":"IF(Tableau2[[#This Row],[TE-Period-start]]=\"\",\"N/A\",IF(Tableau2[[#This Row],[TE-Period-end]]=\"\",\"N/A\",IF(Tableau2[[#This Row],[TE-value]]=\"\",\"N/A\",IF(Tableau2[[#This Row],[TE-value-date]]=\"\",\"N/A\",\"Yes\"))))","v":"N/A"}]
[{"$f":"VLOOKUP(Tableau2[[#This Row],[Organisation identifier]],Tableau3[#All],4,FALSE)","v":"Agence Francaise de Developpement"},"FR-03",{"$f":"VLOOKUP(Tableau2[[#This Row],[Organisation identifier]],Tableau3[#All],4,FALSE)","v":"Agence Francaise de Developpement"},"French","Dispositif de gestion des réclamations environnementales et sociales","https://www.afd.fr/fr/dispositif-de-gestion-des-reclamations-environnementales-et-sociales","A01 - Pre- and post-project impact appraisal","French",null,null,{"$f":"IF(Tableau2[[#This Row],[TB-Period-start]]=\"\",\"N/A\",IF(Tableau2[[#This Row],[TB-Period-end]]=\"\",\"N/A\",IF(Tableau2[[#This Row],[TB-value]]=\"\",\"N/A\",IF(Tableau2[[#This Row],[TB-value-date]]=\"\",\"N/A\",\"Yes\"))))","v":"N/A"},null,null,null,null,null,null,null,null,null,null,{"$f":"IF(Tableau2[[#This Row],[TE-Period-start]]=\"\",\"N/A\",IF(Tableau2[[#This Row],[TE-Period-end]]=\"\",\"N/A\",IF(Tableau2[[#This Row],[TE-value]]=\"\",\"N/A\",IF(Tableau2[[#This Row],[TE-value-date]]=\"\",\"N/A\",\"Yes\"))))","v":"N/A"}]
["Agence Francaise de Developpement","FR-03",{"$f":"VLOOKUP(Tableau2[[#This Row],[Organisation identifier]],Tableau3[#All],4,FALSE)","v":"Agence Francaise de Developpement"},"French","Evaluation HYDR. PROXIMITE-Progr.applicat. réforme gestion équipts eau potable en milieu rural et semi urbain","https://www.afd.fr/sites/afd/files/2019-04-04-35-27/CBF1140-1170-resume-evaluation-burkina-faso.pdf ","A07 - Review of project performance and evaluation\n","French",null,"BF - Burkina Faso\n",{"$f":"IF(Tableau2[[#This Row],[TB-Period-start]]=\"\",\"N/A\",IF(Tableau2[[#This Row],[TB-Period-end]]=\"\",\"N/A\",IF(Tableau2[[#This Row],[TB-value]]=\"\",\"N/A\",IF(Tableau2[[#This Row],[TB-value-date]]=\"\",\"N/A\",\"Yes\"))))","v":"N/A"},null,null,null,null,null,null,null,null,null,null,{"$f":"IF(Tableau2[[#This Row],[TE-Period-start]]=\"\",\"N/A\",IF(Tableau2[[#This Row],[TE-Period-end]]=\"\",\"N/A\",IF(Tableau2[[#This Row],[TE-value]]=\"\",\"N/A\",IF(Tableau2[[#This Row],[TE-value-date]]=\"\",\"N/A\",\"Yes\"))))","v":"N/A"}]
["Agence Francaise de Developpement","FR-03",{"$f":"VLOOKUP(Tableau2[[#This Row],[Organisation identifier]],Tableau3[#All],4,FALSE)","v":"Agence Francaise de Developpement"},"French","Evaluation Politique de transports collectifs de l'Etat de Rio de Janeiro","https://www.afd.fr/sites/afd/files/2019-04-04-36-41/CBR1042-resume-evaluation-bresil-transport-urbain.pdf ","A07 - Review of project performance and evaluation\n","French",null,"BR - Brazil\n",{"$f":"IF(Tableau2[[#This Row],[TB-Period-start]]=\"\",\"N/A\",IF(Tableau2[[#This Row],[TB-Period-end]]=\"\",\"N/A\",IF(Tableau2[[#This Row],[TB-value]]=\"\",\"N/A\",IF(Tableau2[[#This Row],[TB-value-date]]=\"\",\"N/A\",\"Yes\"))))","v":"N/A"},null,null,null,null,null,null,null,null,null,null,{"$f":"IF(Tableau2[[#This Row],[TE-Period-start]]=\"\",\"N/A\",IF(Tableau2[[#This Row],[TE-Period-end]]=\"\",\"N/A\",IF(Tableau2[[#This Row],[TE-value]]=\"\",\"N/A\",IF(Tableau2[[#This Row],[TE-value-date]]=\"\",\"N/A\",\"Yes\"))))","v":"N/A"}]
["Agence Francaise de Developpement","FR-03",{"$f":"VLOOKUP(Tableau2[[#This Row],[Organisation identifier]],Tableau3[#All],4,FALSE)","v":"Agence Francaise de Developpement"},"French","Evaluation Programme «gestion pour la citoyenneté» de l'Etat du Minas Gerais pour la réduction des inégalités et la résilience aux changements climatiques","https://www.afd.fr/sites/afd/files/2019-04-04-37-38/CBR1046-resume-evaluation-bresil-aide-plurisectorielle-services-sociaux-base.pdf ","A07 - Review of project performance and evaluation\n","French",null,"BR - Brazil\n",{"$f":"IF(Tableau2[[#This Row],[TB-Period-start]]=\"\",\"N/A\",IF(Tableau2[[#This Row],[TB-Period-end]]=\"\",\"N/A\",IF(Tableau2[[#This Row],[TB-value]]=\"\",\"N/A\",IF(Tableau2[[#This Row],[TB-value-date]]=\"\",\"N/A\",\"Yes\"))))","v":"N/A"},null,null,null,null,null,null,null,null,null,null,{"$f":"IF(Tableau2[[#This Row],[TE-Period-start]]=\"\",\"N/A\",IF(Tableau2[[#This Row],[TE-Period-end]]=\"\",\"N/A\",IF(Tableau2[[#This Row],[TE-value]]=\"\",\"N/A\",IF(Tableau2[[#This Row],[TE-value-date]]=\"\",\"N/A\",\"Yes\"))))","v":"N/A"}]
["Agence Francaise de Developpement","FR-03",{"$f":"VLOOKUP(Tableau2[[#This Row],[Organisation identifier]],Tableau3[#All],4,FALSE)","v":"Agence Francaise de Developpement"},"French","Evaluation Projet sectoriel d'irrigation du Nord Ouest","https://www.afd.fr/sites/afd/files/2020-01-04-57-08/resume-evaluation-projet-sectoriel-irrigation-nord-ouest-cambodge-CKH3003.pdf","A07 - Review of project performance and evaluation\n","French",null,"KH - Cambodia\n",{"$f":"IF(Tableau2[[#This Row],[TB-Period-start]]=\"\",\"N/A\",IF(Tableau2[[#This Row],[TB-Period-end]]=\"\",\"N/A\",IF(Tableau2[[#This Row],[TB-value]]=\"\",\"N/A\",IF(Tableau2[[#This Row],[TB-value-date]]=\"\",\"N/A\",\"Yes\"))))","v":"N/A"},null,null,null,null,null,null,null,null,null,null,{"$f":"IF(Tableau2[[#This Row],[TE-Period-start]]=\"\",\"N/A\",IF(Tableau2[[#This Row],[TE-Period-end]]=\"\",\"N/A\",IF(Tableau2[[#This Row],[TE-value]]=\"\",\"N/A\",IF(Tableau2[[#This Row],[TE-value-date]]=\"\",\"N/A\",\"Yes\"))))","v":"N/A"}]
["Agence Francaise de Developpement","FR-03",{"$f":"VLOOKUP(Tableau2[[#This Row],[Organisation identifier]],Tableau3[#All],4,FALSE)","v":"Agence Francaise de Developpement"},"French","Evaluation Aménagement urbain de Siem Reap / Angkor","https://www.afd.fr/sites/afd/files/2018-03-12-49-25/fiche-performance-cambodge-siem-reap-afd-urbain.pdf","A07 - Review of project performance and evaluation\n","French",null,"KH - Cambodia\n",{"$f":"IF(Tableau2[[#This Row],[TB-Period-start]]=\"\",\"N/A\",IF(Tableau2[[#This Row],[TB-Period-end]]=\"\",\"N/A\",IF(Tableau2[[#This Row],[TB-value]]=\"\",\"N/A\",IF(Tableau2[[#This Row],[TB-value-date]]=\"\",\"N/A\",\"Yes\"))))","v":"N/A"},null,null,null,null,null,null,null,null,null,null,{"$f":"IF(Tableau2[[#This Row],[TE-Period-start]]=\"\",\"N/A\",IF(Tableau2[[#This Row],[TE-Period-end]]=\"\",\"N/A\",IF(Tableau2[[#This Row],[TE-value]]=\"\",\"N/A\",IF(Tableau2[[#This Row],[TE-value-date]]=\"\",\"N/A\",\"Yes\"))))","v":"N/A"}]
["Agence Francaise de Developpement","FR-03",{"$f":"VLOOKUP(Tableau2[[#This Row],[Organisation identifier]],Tableau3[#All],4,FALSE)","v":"Agence Francaise de Developpement"},"French","Evaluation Projet de renforcement du système de santé","https://ec.europa.eu/echo/sites/echo-site/files/2._health_evaluation_annexes.pdf","A07 - Review of project performance and evaluation\n","French",null,"CI - Côte d’Ivoire\n",{"$f":"IF(Tableau2[[#This Row],[TB-Period-start]]=\"\",\"N/A\",IF(Tableau2[[#This Row],[TB-Period-end]]=\"\",\"N/A\",IF(Tableau2[[#This Row],[TB-value]]=\"\",\"N/A\",IF(Tableau2[[#This Row],[TB-value-date]]=\"\",\"N/A\",\"Yes\"))))","v":"N/A"},null,null,null,null,null,null,null,null,null,null,{"$f":"IF(Tableau2[[#This Row],[TE-Period-start]]=\"\",\"N/A\",IF(Tableau2[[#This Row],[TE-Period-end]]=\"\",\"N/A\",IF(Tableau2[[#This Row],[TE-value]]=\"\",\"N/A\",IF(Tableau2[[#This Row],[TE-value-date]]=\"\",\"N/A\",\"Yes\"))))","v":"N/A"}]
["Agence Francaise de Developpement","FR-03",{"$f":"VLOOKUP(Tableau2[[#This Row],[Organisation identifier]],Tableau3[#All],4,FALSE)","v":"Agence Francaise de Developpement"},"French","Evaluation Initiative PPTE dans le domaine de l'éducation au Cameroun","https://www.afd.fr/sites/afd/files/2019-05-10-57-57/fiche-performance-CCM1159-c2d-education-cameroun.pdf","A07 - Review of project performance and evaluation\n","French",null,"CM - Cameroon\n",{"$f":"IF(Tableau2[[#This Row],[TB-Period-start]]=\"\",\"N/A\",IF(Tableau2[[#This Row],[TB-Period-end]]=\"\",\"N/A\",IF(Tableau2[[#This Row],[TB-value]]=\"\",\"N/A\",IF(Tableau2[[#This Row],[TB-value-date]]=\"\",\"N/A\",\"Yes\"))))","v":"N/A"},null,null,null,null,null,null,null,null,null,null,{"$f":"IF(Tableau2[[#This Row],[TE-Period-start]]=\"\",\"N/A\",IF(Tableau2[[#This Row],[TE-Period-end]]=\"\",\"N/A\",IF(Tableau2[[#This Row],[TE-value]]=\"\",\"N/A\",IF(Tableau2[[#This Row],[TE-value-date]]=\"\",\"N/A\",\"Yes\"))))","v":"N/A"}]
["Agence Francaise de Developpement","FR-03",{"$f":"VLOOKUP(Tableau2[[#This Row],[Organisation identifier]],Tableau3[#All],4,FALSE)","v":"Agence Francaise de Developpement"},"French","Evaluation Réduire la pauvreté en milieu rural et appuyer le processus de décentralisation"," https://www.afd.fr/sites/afd/files/2019-12-10-14-27/resume-evaluation-cameroun-programme-national-developpement-participatif-CCM3005-CCM1253.pdf ","A07 - Review of project performance and evaluation\n","French",null,"CM - Cameroon\n",{"$f":"IF(Tableau2[[#This Row],[TB-Period-start]]=\"\",\"N/A\",IF(Tableau2[[#This Row],[TB-Period-end]]=\"\",\"N/A\",IF(Tableau2[[#This Row],[TB-value]]=\"\",\"N/A\",IF(Tableau2[[#This Row],[TB-value-date]]=\"\",\"N/A\",\"Yes\"))))","v":"N/A"},null,null,null,null,null,null,null,null,null,null,{"$f":"IF(Tableau2[[#This Row],[TE-Period-start]]=\"\",\"N/A\",IF(Tableau2[[#This Row],[TE-Period-end]]=\"\",\"N/A\",IF(Tableau2[[#This Row],[TE-value]]=\"\",\"N/A\",IF(Tableau2[[#This Row],[TE-value-date]]=\"\",\"N/A\",\"Yes\"))))","v":"N/A"}]
["Agence Francaise de Developpement","FR-03",{"$f":"VLOOKUP(Tableau2[[#This Row],[Organisation identifier]],Tableau3[#All],4,FALSE)","v":"Agence Francaise de Developpement"},"French","Evaluation Programme d'amélioration de la compétitivité des exploitations familiales agropastorales","https://www.afd.fr/sites/afd/files/2019-12-10-30-58/resume-evaluation-programme-amelioration-competitivite-exploitations-familiales-agropastorales-acefa-c2d-cameroun-CCM6013.pdf","A07 - Review of project performance and evaluation\n","French",null,"CM - Cameroon\n",{"$f":"IF(Tableau2[[#This Row],[TB-Period-start]]=\"\",\"N/A\",IF(Tableau2[[#This Row],[TB-Period-end]]=\"\",\"N/A\",IF(Tableau2[[#This Row],[TB-value]]=\"\",\"N/A\",IF(Tableau2[[#This Row],[TB-value-date]]=\"\",\"N/A\",\"Yes\"))))","v":"N/A"},null,null,null,null,null,null,null,null,null,null,{"$f":"IF(Tableau2[[#This Row],[TE-Period-start]]=\"\",\"N/A\",IF(Tableau2[[#This Row],[TE-Period-end]]=\"\",\"N/A\",IF(Tableau2[[#This Row],[TE-value]]=\"\",\"N/A\",IF(Tableau2[[#This Row],[TE-value-date]]=\"\",\"N/A\",\"Yes\"))))","v":"N/A"}]
["Agence Francaise de Developpement","FR-03",{"$f":"VLOOKUP(Tableau2[[#This Row],[Organisation identifier]],Tableau3[#All],4,FALSE)","v":"Agence Francaise de Developpement"},"French","Evaluation Programme d'appui à la maitrise d'ouvrage des administrations du secteur rural","https://www.afd.fr/sites/afd/files/2019-12-10-34-03/resume-evaluation-programme-appui-maitrise-ouvrage-administrations-secteur-rural-amo-CCM6014.pdf","A07 - Review of project performance and evaluation\n","French",null,"CM - Cameroon\n",{"$f":"IF(Tableau2[[#This Row],[TB-Period-start]]=\"\",\"N/A\",IF(Tableau2[[#This Row],[TB-Period-end]]=\"\",\"N/A\",IF(Tableau2[[#This Row],[TB-value]]=\"\",\"N/A\",IF(Tableau2[[#This Row],[TB-value-date]]=\"\",\"N/A\",\"Yes\"))))","v":"N/A"},null,null,null,null,null,null,null,null,null,null,{"$f":"IF(Tableau2[[#This Row],[TE-Period-start]]=\"\",\"N/A\",IF(Tableau2[[#This Row],[TE-Period-end]]=\"\",\"N/A\",IF(Tableau2[[#This Row],[TE-value]]=\"\",\"N/A\",IF(Tableau2[[#This Row],[TE-value-date]]=\"\",\"N/A\",\"Yes\"))))","v":"N/A"}]
["Agence Francaise de Developpement","FR-03",{"$f":"VLOOKUP(Tableau2[[#This Row],[Organisation identifier]],Tableau3[#All],4,FALSE)","v":"Agence Francaise de Developpement"},"French","Evaluation Programme d'appui à la rénovation et au développement de la formation professionnelle dans les secteurs de l'agriculture, de l'élevage et de la pêche","https://www.afd.fr/sites/afd/files/2019-12-10-40-40/resume-evaluation-programme-appui-renovation-et-developpement-formation-professionnelle-agriculture-elevage-peche-afop-c2d-cameroun-CCM6015.pdf","A07 - Review of project performance and evaluation\n","French",null,"CM - Cameroon\n",{"$f":"IF(Tableau2[[#This Row],[TB-Period-start]]=\"\",\"N/A\",IF(Tableau2[[#This Row],[TB-Period-end]]=\"\",\"N/A\",IF(Tableau2[[#This Row],[TB-value]]=\"\",\"N/A\",IF(Tableau2[[#This Row],[TB-value-date]]=\"\",\"N/A\",\"Yes\"))))","v":"N/A"},null,null,null,null,null,null,null,null,null,null,{"$f":"IF(Tableau2[[#This Row],[TE-Period-start]]=\"\",\"N/A\",IF(Tableau2[[#This Row],[TE-Period-end]]=\"\",\"N/A\",IF(Tableau2[[#This Row],[TE-value]]=\"\",\"N/A\",IF(Tableau2[[#This Row],[TE-value-date]]=\"\",\"N/A\",\"Yes\"))))","v":"N/A"}]
["Agence Francaise de Developpement","FR-03",{"$f":"VLOOKUP(Tableau2[[#This Row],[Organisation identifier]],Tableau3[#All],4,FALSE)","v":"Agence Francaise de Developpement"},"French","Evaluation Programme de reconstruction post-séisme Sichuan","https://www.afd.fr/sites/afd/files/2019-12-11-19-11/evaluation-summary-post-earthquake-reconstruction-program-sichuan-province-CCN1024.pdf","A07 - Review of project performance and evaluation\n","French",null,"CN - China\n",{"$f":"IF(Tableau2[[#This Row],[TB-Period-start]]=\"\",\"N/A\",IF(Tableau2[[#This Row],[TB-Period-end]]=\"\",\"N/A\",IF(Tableau2[[#This Row],[TB-value]]=\"\",\"N/A\",IF(Tableau2[[#This Row],[TB-value-date]]=\"\",\"N/A\",\"Yes\"))))","v":"N/A"},null,null,null,null,null,null,null,null,null,null,{"$f":"IF(Tableau2[[#This Row],[TE-Period-start]]=\"\",\"N/A\",IF(Tableau2[[#This Row],[TE-Period-end]]=\"\",\"N/A\",IF(Tableau2[[#This Row],[TE-value]]=\"\",\"N/A\",IF(Tableau2[[#This Row],[TE-value-date]]=\"\",\"N/A\",\"Yes\"))))","v":"N/A"}]
["Agence Francaise de Developpement","FR-03",{"$f":"VLOOKUP(Tableau2[[#This Row],[Organisation identifier]],Tableau3[#All],4,FALSE)","v":"Agence Francaise de Developpement"},"French","Evaluation instances Programme de petite hydroélectricité à Yichang ","https://www.afd.fr/sites/afd/files/2019-12-11-26-13/evaluation-summary-yichang-small-hydraulic-project-china-CCN3017.pdf","A07 - Review of project performance and evaluation\n","French",null,"CN - China\n",{"$f":"IF(Tableau2[[#This Row],[TB-Period-start]]=\"\",\"N/A\",IF(Tableau2[[#This Row],[TB-Period-end]]=\"\",\"N/A\",IF(Tableau2[[#This Row],[TB-value]]=\"\",\"N/A\",IF(Tableau2[[#This Row],[TB-value-date]]=\"\",\"N/A\",\"Yes\"))))","v":"N/A"},null,null,null,null,null,null,null,null,null,null,{"$f":"IF(Tableau2[[#This Row],[TE-Period-start]]=\"\",\"N/A\",IF(Tableau2[[#This Row],[TE-Period-end]]=\"\",\"N/A\",IF(Tableau2[[#This Row],[TE-value]]=\"\",\"N/A\",IF(Tableau2[[#This Row],[TE-value-date]]=\"\",\"N/A\",\"Yes\"))))","v":"N/A"}]
["Agence Francaise de Developpement","FR-03",{"$f":"VLOOKUP(Tableau2[[#This Row],[Organisation identifier]],Tableau3[#All],4,FALSE)","v":"Agence Francaise de Developpement"},"French","Evaluation Réseau de chauffage urbain à Taiyuan","https://www.afd.fr/sites/afd/files/2019-04-04-39-06/CCN1028-evaluation-summary-china-environmental-policy-administrative-management.pdf ","A07 - Review of project performance and evaluation\n","French",null,"CN - China\n",{"$f":"IF(Tableau2[[#This Row],[TB-Period-start]]=\"\",\"N/A\",IF(Tableau2[[#This Row],[TB-Period-end]]=\"\",\"N/A\",IF(Tableau2[[#This Row],[TB-value]]=\"\",\"N/A\",IF(Tableau2[[#This Row],[TB-value-date]]=\"\",\"N/A\",\"Yes\"))))","v":"N/A"},null,null,null,null,null,null,null,null,null,null,{"$f":"IF(Tableau2[[#This Row],[TE-Period-start]]=\"\",\"N/A\",IF(Tableau2[[#This Row],[TE-Period-end]]=\"\",\"N/A\",IF(Tableau2[[#This Row],[TE-value]]=\"\",\"N/A\",IF(Tableau2[[#This Row],[TE-value-date]]=\"\",\"N/A\",\"Yes\"))))","v":"N/A"}]
["Agence Francaise de Developpement","FR-03",{"$f":"VLOOKUP(Tableau2[[#This Row],[Organisation identifier]],Tableau3[#All],4,FALSE)","v":"Agence Francaise de Developpement"},"French","Evaluation Prêt souverain en appui à la réforme de la politique de protection sociale de l'Etat Colombien ","https://www.afd.fr/sites/afd/files/2019-07-03-43-11/CCO1027-resumen-evalucacion-colombia-salud.pdf","A07 - Review of project performance and evaluation\n","French",null,"CO - Colombia\n",{"$f":"IF(Tableau2[[#This Row],[TB-Period-start]]=\"\",\"N/A\",IF(Tableau2[[#This Row],[TB-Period-end]]=\"\",\"N/A\",IF(Tableau2[[#This Row],[TB-value]]=\"\",\"N/A\",IF(Tableau2[[#This Row],[TB-value-date]]=\"\",\"N/A\",\"Yes\"))))","v":"N/A"},null,null,null,null,null,null,null,null,null,null,{"$f":"IF(Tableau2[[#This Row],[TE-Period-start]]=\"\",\"N/A\",IF(Tableau2[[#This Row],[TE-Period-end]]=\"\",\"N/A\",IF(Tableau2[[#This Row],[TE-value]]=\"\",\"N/A\",IF(Tableau2[[#This Row],[TE-value-date]]=\"\",\"N/A\",\"Yes\"))))","v":"N/A"}]
["Agence Francaise de Developpement","FR-03",{"$f":"VLOOKUP(Tableau2[[#This Row],[Organisation identifier]],Tableau3[#All],4,FALSE)","v":"Agence Francaise de Developpement"},"French","Evaluation Amélioration durable du service de l'eau et de l'assainissement à Santa Catarina","https://www.afd.fr/sites/afd/files/2019-04-09-28-47/CCV3002-resume-evaluation-cap-vert-eau-et-assainissement.pdf ","A07 - Review of project performance and evaluation\n","French",null,"CV - Cabo Verde\n",{"$f":"IF(Tableau2[[#This Row],[TB-Period-start]]=\"\",\"N/A\",IF(Tableau2[[#This Row],[TB-Period-end]]=\"\",\"N/A\",IF(Tableau2[[#This Row],[TB-value]]=\"\",\"N/A\",IF(Tableau2[[#This Row],[TB-value-date]]=\"\",\"N/A\",\"Yes\"))))","v":"N/A"},null,null,null,null,null,null,null,null,null,null,{"$f":"IF(Tableau2[[#This Row],[TE-Period-start]]=\"\",\"N/A\",IF(Tableau2[[#This Row],[TE-Period-end]]=\"\",\"N/A\",IF(Tableau2[[#This Row],[TE-value]]=\"\",\"N/A\",IF(Tableau2[[#This Row],[TE-value-date]]=\"\",\"N/A\",\"Yes\"))))","v":"N/A"}]
["Agence Francaise de Developpement","FR-03",{"$f":"VLOOKUP(Tableau2[[#This Row],[Organisation identifier]],Tableau3[#All],4,FALSE)","v":"Agence Francaise de Developpement"},"French","Evaluation Projet De renforcement des Services de l'Eau de l'UCEA et de l'UCEM","https://www.afd.fr/sites/afd/files/2020-01-03-48-24/resume-evaluation-projet-renforcement-services-eau-ReSEAU-anjouan-moheli-CKM1067.pdf","A07 - Review of project performance and evaluation\n","French",null,"KM - Comoros (the)\n",{"$f":"IF(Tableau2[[#This Row],[TB-Period-start]]=\"\",\"N/A\",IF(Tableau2[[#This Row],[TB-Period-end]]=\"\",\"N/A\",IF(Tableau2[[#This Row],[TB-value]]=\"\",\"N/A\",IF(Tableau2[[#This Row],[TB-value-date]]=\"\",\"N/A\",\"Yes\"))))","v":"N/A"},null,null,null,null,null,null,null,null,null,null,{"$f":"IF(Tableau2[[#This Row],[TE-Period-start]]=\"\",\"N/A\",IF(Tableau2[[#This Row],[TE-Period-end]]=\"\",\"N/A\",IF(Tableau2[[#This Row],[TE-value]]=\"\",\"N/A\",IF(Tableau2[[#This Row],[TE-value-date]]=\"\",\"N/A\",\"Yes\"))))","v":"N/A"}]
["Agence Francaise de Developpement","FR-03",{"$f":"VLOOKUP(Tableau2[[#This Row],[Organisation identifier]],Tableau3[#All],4,FALSE)","v":"Agence Francaise de Developpement"},"French","Evaluation Projet d'appui à l'amélioration de la qualité des soins et au renforcement des capacités de Caritas Comores","https://www.afd.fr/sites/afd/files/2019-04-09-36-09/CKM1072-resume-evaluation-comores-sante.pdf ","A07 - Review of project performance and evaluation\n","French",null,"KM - Comoros (the)\n",{"$f":"IF(Tableau2[[#This Row],[TB-Period-start]]=\"\",\"N/A\",IF(Tableau2[[#This Row],[TB-Period-end]]=\"\",\"N/A\",IF(Tableau2[[#This Row],[TB-value]]=\"\",\"N/A\",IF(Tableau2[[#This Row],[TB-value-date]]=\"\",\"N/A\",\"Yes\"))))","v":"N/A"},null,null,null,null,null,null,null,null,null,null,{"$f":"IF(Tableau2[[#This Row],[TE-Period-start]]=\"\",\"N/A\",IF(Tableau2[[#This Row],[TE-Period-end]]=\"\",\"N/A\",IF(Tableau2[[#This Row],[TE-value]]=\"\",\"N/A\",IF(Tableau2[[#This Row],[TE-value-date]]=\"\",\"N/A\",\"Yes\"))))","v":"N/A"}]
["Agence Francaise de Developpement","FR-03",{"$f":"VLOOKUP(Tableau2[[#This Row],[Organisation identifier]],Tableau3[#All],4,FALSE)","v":"Agence Francaise de Developpement"},"French","Evaluation Adduction d'eau potable rurale aux Comores","https://www.afd.fr/sites/afd/files/2020-01-03-52-33/resume-evaluation-projet-appui-gestion-eau-communautaire-PAGEC-anjouan-moheli-CKM3000.pdf","A07 - Review of project performance and evaluation\n","French",null,"KM - Comoros (the)\n",{"$f":"IF(Tableau2[[#This Row],[TB-Period-start]]=\"\",\"N/A\",IF(Tableau2[[#This Row],[TB-Period-end]]=\"\",\"N/A\",IF(Tableau2[[#This Row],[TB-value]]=\"\",\"N/A\",IF(Tableau2[[#This Row],[TB-value-date]]=\"\",\"N/A\",\"Yes\"))))","v":"N/A"},null,null,null,null,null,null,null,null,null,null,{"$f":"IF(Tableau2[[#This Row],[TE-Period-start]]=\"\",\"N/A\",IF(Tableau2[[#This Row],[TE-Period-end]]=\"\",\"N/A\",IF(Tableau2[[#This Row],[TE-value]]=\"\",\"N/A\",IF(Tableau2[[#This Row],[TE-value-date]]=\"\",\"N/A\",\"Yes\"))))","v":"N/A"}]
["Agence Francaise de Developpement","FR-03",{"$f":"VLOOKUP(Tableau2[[#This Row],[Organisation identifier]],Tableau3[#All],4,FALSE)","v":"Agence Francaise de Developpement"},"French","Evaluation Ferme éolienne d'Ashegoda dans la région du Tigray en Ethiopie","https://www.afd.fr/sites/afd/files/2019-04-09-30-11/CET1029-evaluation-summary-ethiopia-wind-power.pdf ","A07 - Review of project performance and evaluation\n","French",null,"ET - Ethiopia\n",{"$f":"IF(Tableau2[[#This Row],[TB-Period-start]]=\"\",\"N/A\",IF(Tableau2[[#This Row],[TB-Period-end]]=\"\",\"N/A\",IF(Tableau2[[#This Row],[TB-value]]=\"\",\"N/A\",IF(Tableau2[[#This Row],[TB-value-date]]=\"\",\"N/A\",\"Yes\"))))","v":"N/A"},null,null,null,null,null,null,null,null,null,null,{"$f":"IF(Tableau2[[#This Row],[TE-Period-start]]=\"\",\"N/A\",IF(Tableau2[[#This Row],[TE-Period-end]]=\"\",\"N/A\",IF(Tableau2[[#This Row],[TE-value]]=\"\",\"N/A\",IF(Tableau2[[#This Row],[TE-value-date]]=\"\",\"N/A\",\"Yes\"))))","v":"N/A"}]
["Agence Francaise de Developpement","FR-03",{"$f":"VLOOKUP(Tableau2[[#This Row],[Organisation identifier]],Tableau3[#All],4,FALSE)","v":"Agence Francaise de Developpement"},"French","Evaluation Procredit upscaling to mesofinance","https://www.afd.fr/sites/afd/files/2019-04-09-31-30/CGH1087-evaluation-summary-ghana-finance.pdf  ","A07 - Review of project performance and evaluation\n","French",null,"GH - Ghana\n",{"$f":"IF(Tableau2[[#This Row],[TB-Period-start]]=\"\",\"N/A\",IF(Tableau2[[#This Row],[TB-Period-end]]=\"\",\"N/A\",IF(Tableau2[[#This Row],[TB-value]]=\"\",\"N/A\",IF(Tableau2[[#This Row],[TB-value-date]]=\"\",\"N/A\",\"Yes\"))))","v":"N/A"},null,null,null,null,null,null,null,null,null,null,{"$f":"IF(Tableau2[[#This Row],[TE-Period-start]]=\"\",\"N/A\",IF(Tableau2[[#This Row],[TE-Period-end]]=\"\",\"N/A\",IF(Tableau2[[#This Row],[TE-value]]=\"\",\"N/A\",IF(Tableau2[[#This Row],[TE-value-date]]=\"\",\"N/A\",\"Yes\"))))","v":"N/A"}]
["Agence Francaise de Developpement","FR-03",{"$f":"VLOOKUP(Tableau2[[#This Row],[Organisation identifier]],Tableau3[#All],4,FALSE)","v":"Agence Francaise de Developpement"},"French","Evaluation Subvention d'assistance technique à Advans Ghana pour favoriser le développement du segment des PME","https://www.afd.fr/sites/afd/files/2019-04-09-32-39/CGH1125-evaluation-summary-ghana-finance.pdf ","A07 - Review of project performance and evaluation\n","French",null,"GH - Ghana\n",{"$f":"IF(Tableau2[[#This Row],[TB-Period-start]]=\"\",\"N/A\",IF(Tableau2[[#This Row],[TB-Period-end]]=\"\",\"N/A\",IF(Tableau2[[#This Row],[TB-value]]=\"\",\"N/A\",IF(Tableau2[[#This Row],[TB-value-date]]=\"\",\"N/A\",\"Yes\"))))","v":"N/A"},null,null,null,null,null,null,null,null,null,null,{"$f":"IF(Tableau2[[#This Row],[TE-Period-start]]=\"\",\"N/A\",IF(Tableau2[[#This Row],[TE-Period-end]]=\"\",\"N/A\",IF(Tableau2[[#This Row],[TE-value]]=\"\",\"N/A\",IF(Tableau2[[#This Row],[TE-value-date]]=\"\",\"N/A\",\"Yes\"))))","v":"N/A"}]
["Agence Francaise de Developpement","FR-03",{"$f":"VLOOKUP(Tableau2[[#This Row],[Organisation identifier]],Tableau3[#All],4,FALSE)","v":"Agence Francaise de Developpement"},"French","Evaluation réhabilitation des infrastructures de drainage de Banda Aceh","https://www.afd.fr/sites/afd/files/2019-04-04-53-23/CID3004-evaluation-summary-indonesia-sanitation.pdf  ","A07 - Review of project performance and evaluation\n","French",null,"ID - Indonesia\n",{"$f":"IF(Tableau2[[#This Row],[TB-Period-start]]=\"\",\"N/A\",IF(Tableau2[[#This Row],[TB-Period-end]]=\"\",\"N/A\",IF(Tableau2[[#This Row],[TB-value]]=\"\",\"N/A\",IF(Tableau2[[#This Row],[TB-value-date]]=\"\",\"N/A\",\"Yes\"))))","v":"N/A"},null,null,null,null,null,null,null,null,null,null,{"$f":"IF(Tableau2[[#This Row],[TE-Period-start]]=\"\",\"N/A\",IF(Tableau2[[#This Row],[TE-Period-end]]=\"\",\"N/A\",IF(Tableau2[[#This Row],[TE-value]]=\"\",\"N/A\",IF(Tableau2[[#This Row],[TE-value-date]]=\"\",\"N/A\",\"Yes\"))))","v":"N/A"}]
["Agence Francaise de Developpement","FR-03",{"$f":"VLOOKUP(Tableau2[[#This Row],[Organisation identifier]],Tableau3[#All],4,FALSE)","v":"Agence Francaise de Developpement"},"French","Evaluation Développement d'insfrastructures de surveillance océanographique","https://www.afd.fr/sites/afd/files/2019-04-09-33-47/CID1025-evaluation-summary-indonesia-natural-resources-environment.pdf ","A07 - Review of project performance and evaluation\n","French",null,"ID - Indonesia\n",{"$f":"IF(Tableau2[[#This Row],[TB-Period-start]]=\"\",\"N/A\",IF(Tableau2[[#This Row],[TB-Period-end]]=\"\",\"N/A\",IF(Tableau2[[#This Row],[TB-value]]=\"\",\"N/A\",IF(Tableau2[[#This Row],[TB-value-date]]=\"\",\"N/A\",\"Yes\"))))","v":"N/A"},null,null,null,null,null,null,null,null,null,null,{"$f":"IF(Tableau2[[#This Row],[TE-Period-start]]=\"\",\"N/A\",IF(Tableau2[[#This Row],[TE-Period-end]]=\"\",\"N/A\",IF(Tableau2[[#This Row],[TE-value]]=\"\",\"N/A\",IF(Tableau2[[#This Row],[TE-value-date]]=\"\",\"N/A\",\"Yes\"))))","v":"N/A"}]
["Agence Francaise de Developpement","FR-03",{"$f":"VLOOKUP(Tableau2[[#This Row],[Organisation identifier]],Tableau3[#All],4,FALSE)","v":"Agence Francaise de Developpement"},"French","Evaluation Extension de l'optimisation de l'irrigation dans la vallée du Jourdain ","https://www.afd.fr/sites/afd/files/2019-12-11-39-14/evaluation-summary-irrigation-optimization-jordan-valley-project-iojov-CJO3008.pdf","A07 - Review of project performance and evaluation\n","French",null,"JO - Jordan\n",{"$f":"IF(Tableau2[[#This Row],[TB-Period-start]]=\"\",\"N/A\",IF(Tableau2[[#This Row],[TB-Period-end]]=\"\",\"N/A\",IF(Tableau2[[#This Row],[TB-value]]=\"\",\"N/A\",IF(Tableau2[[#This Row],[TB-value-date]]=\"\",\"N/A\",\"Yes\"))))","v":"N/A"},null,null,null,null,null,null,null,null,null,null,{"$f":"IF(Tableau2[[#This Row],[TE-Period-start]]=\"\",\"N/A\",IF(Tableau2[[#This Row],[TE-Period-end]]=\"\",\"N/A\",IF(Tableau2[[#This Row],[TE-value]]=\"\",\"N/A\",IF(Tableau2[[#This Row],[TE-value-date]]=\"\",\"N/A\",\"Yes\"))))","v":"N/A"}]
["Agence Francaise de Developpement","FR-03",{"$f":"VLOOKUP(Tableau2[[#This Row],[Organisation identifier]],Tableau3[#All],4,FALSE)","v":"Agence Francaise de Developpement"},"French","Evaluation Rural road 2000 phase 1","Rural road 2000 phase 1","A07 - Review of project performance and evaluation\n","French",null,"KE - Kenya\n",{"$f":"IF(Tableau2[[#This Row],[TB-Period-start]]=\"\",\"N/A\",IF(Tableau2[[#This Row],[TB-Period-end]]=\"\",\"N/A\",IF(Tableau2[[#This Row],[TB-value]]=\"\",\"N/A\",IF(Tableau2[[#This Row],[TB-value-date]]=\"\",\"N/A\",\"Yes\"))))","v":"N/A"},null,null,null,null,null,null,null,null,null,null,{"$f":"IF(Tableau2[[#This Row],[TE-Period-start]]=\"\",\"N/A\",IF(Tableau2[[#This Row],[TE-Period-end]]=\"\",\"N/A\",IF(Tableau2[[#This Row],[TE-value]]=\"\",\"N/A\",IF(Tableau2[[#This Row],[TE-value-date]]=\"\",\"N/A\",\"Yes\"))))","v":"N/A"}]
["Agence Francaise de Developpement","FR-03",{"$f":"VLOOKUP(Tableau2[[#This Row],[Organisation identifier]],Tableau3[#All],4,FALSE)","v":"Agence Francaise de Developpement"},"French","Evaluation Ligne de crédit concessionnelle investissements efficacité énergétique et énergie renouvelable","https://www.afd.fr/sites/afd/files/2019-04-09-35-01/CKE1032-evaluation-summary-kenya-productive-financial-sector.pdf ","A07 - Review of project performance and evaluation\n","French",null,"KE - Kenya\n",{"$f":"IF(Tableau2[[#This Row],[TB-Period-start]]=\"\",\"N/A\",IF(Tableau2[[#This Row],[TB-Period-end]]=\"\",\"N/A\",IF(Tableau2[[#This Row],[TB-value]]=\"\",\"N/A\",IF(Tableau2[[#This Row],[TB-value-date]]=\"\",\"N/A\",\"Yes\"))))","v":"N/A"},null,null,null,null,null,null,null,null,null,null,{"$f":"IF(Tableau2[[#This Row],[TE-Period-start]]=\"\",\"N/A\",IF(Tableau2[[#This Row],[TE-Period-end]]=\"\",\"N/A\",IF(Tableau2[[#This Row],[TE-value]]=\"\",\"N/A\",IF(Tableau2[[#This Row],[TE-value-date]]=\"\",\"N/A\",\"Yes\"))))","v":"N/A"}]
["Agence Francaise de Developpement","FR-03",{"$f":"VLOOKUP(Tableau2[[#This Row],[Organisation identifier]],Tableau3[#All],4,FALSE)","v":"Agence Francaise de Developpement"},"French","Evaluation Projet AEP Liban Sud","https://www.afd.fr/sites/afd/files/2020-01-04-05-34/resume-evaluation-projet-adduction-eau-potable-liban-sud-CLB1021.pdf","A07 - Review of project performance and evaluation\n","French",null,"LB - Lebanon\n",{"$f":"IF(Tableau2[[#This Row],[TB-Period-start]]=\"\",\"N/A\",IF(Tableau2[[#This Row],[TB-Period-end]]=\"\",\"N/A\",IF(Tableau2[[#This Row],[TB-value]]=\"\",\"N/A\",IF(Tableau2[[#This Row],[TB-value-date]]=\"\",\"N/A\",\"Yes\"))))","v":"N/A"},null,null,null,null,null,null,null,null,null,null,{"$f":"IF(Tableau2[[#This Row],[TE-Period-start]]=\"\",\"N/A\",IF(Tableau2[[#This Row],[TE-Period-end]]=\"\",\"N/A\",IF(Tableau2[[#This Row],[TE-value]]=\"\",\"N/A\",IF(Tableau2[[#This Row],[TE-value-date]]=\"\",\"N/A\",\"Yes\"))))","v":"N/A"}]
["Agence Francaise de Developpement","FR-03",{"$f":"VLOOKUP(Tableau2[[#This Row],[Organisation identifier]],Tableau3[#All],4,FALSE)","v":"Agence Francaise de Developpement"},"French","Evalaution Villes de Tripoli et de Tyr : CHUD (Cultural Heritage and Urban Development) phase I ","https://www.afd.fr/sites/afd/files/2020-01-04-12-00/resume-evaluation-programme-valorisation-patrimoine-developpement-urbain-tyr-et-tripoli-CLB1023-3002.pdf","A07 - Review of project performance and evaluation\n","French",null,"LB - Lebanon\n",{"$f":"IF(Tableau2[[#This Row],[TB-Period-start]]=\"\",\"N/A\",IF(Tableau2[[#This Row],[TB-Period-end]]=\"\",\"N/A\",IF(Tableau2[[#This Row],[TB-value]]=\"\",\"N/A\",IF(Tableau2[[#This Row],[TB-value-date]]=\"\",\"N/A\",\"Yes\"))))","v":"N/A"},null,null,null,null,null,null,null,null,null,null,{"$f":"IF(Tableau2[[#This Row],[TE-Period-start]]=\"\",\"N/A\",IF(Tableau2[[#This Row],[TE-Period-end]]=\"\",\"N/A\",IF(Tableau2[[#This Row],[TE-value]]=\"\",\"N/A\",IF(Tableau2[[#This Row],[TE-value-date]]=\"\",\"N/A\",\"Yes\"))))","v":"N/A"}]
["Agence Francaise de Developpement","FR-03",{"$f":"VLOOKUP(Tableau2[[#This Row],[Organisation identifier]],Tableau3[#All],4,FALSE)","v":"Agence Francaise de Developpement"},"French","Evaluation Projet AEP et assainissement au Liban Nord","https://www.afd.fr/sites/afd/files/2020-01-04-23-52/resume-evaluation-projection-adduction-eau-potable-assainissement-liban-nord-CLB3000.pdf","A07 - Review of project performance and evaluation\n","French",null,"LB - Lebanon\n",{"$f":"IF(Tableau2[[#This Row],[TB-Period-start]]=\"\",\"N/A\",IF(Tableau2[[#This Row],[TB-Period-end]]=\"\",\"N/A\",IF(Tableau2[[#This Row],[TB-value]]=\"\",\"N/A\",IF(Tableau2[[#This Row],[TB-value-date]]=\"\",\"N/A\",\"Yes\"))))","v":"N/A"},null,null,null,null,null,null,null,null,null,null,{"$f":"IF(Tableau2[[#This Row],[TE-Period-start]]=\"\",\"N/A\",IF(Tableau2[[#This Row],[TE-Period-end]]=\"\",\"N/A\",IF(Tableau2[[#This Row],[TE-value]]=\"\",\"N/A\",IF(Tableau2[[#This Row],[TE-value-date]]=\"\",\"N/A\",\"Yes\"))))","v":"N/A"}]
["Agence Francaise de Developpement","FR-03",{"$f":"VLOOKUP(Tableau2[[#This Row],[Organisation identifier]],Tableau3[#All],4,FALSE)","v":"Agence Francaise de Developpement"},"French","Evaluation Second phase water supply distribution extension in Vientiane project (AEP2)","https://www.afd.fr/sites/afd/files/2018-03-09-34-46/fiche-performance%20-water-supply-distribution-extension-vientiane-laos.pdf","A07 - Review of project performance and evaluation\n","French",null,"LA - Lao People’s Democratic Republic (the)\n",{"$f":"IF(Tableau2[[#This Row],[TB-Period-start]]=\"\",\"N/A\",IF(Tableau2[[#This Row],[TB-Period-end]]=\"\",\"N/A\",IF(Tableau2[[#This Row],[TB-value]]=\"\",\"N/A\",IF(Tableau2[[#This Row],[TB-value-date]]=\"\",\"N/A\",\"Yes\"))))","v":"N/A"},null,null,null,null,null,null,null,null,null,null,{"$f":"IF(Tableau2[[#This Row],[TE-Period-start]]=\"\",\"N/A\",IF(Tableau2[[#This Row],[TE-Period-end]]=\"\",\"N/A\",IF(Tableau2[[#This Row],[TE-value]]=\"\",\"N/A\",IF(Tableau2[[#This Row],[TE-value-date]]=\"\",\"N/A\",\"Yes\"))))","v":"N/A"}]
["Agence Francaise de Developpement","FR-03",{"$f":"VLOOKUP(Tableau2[[#This Row],[Organisation identifier]],Tableau3[#All],4,FALSE)","v":"Agence Francaise de Developpement"},"French","Evaluation Programme Patrimoine et développement urbain Luang Prabang","https://www.afd.fr/sites/afd/files/2019-04-09-36-54/CLA3010-evaluation-summary-lao-pdr-urban-development.pdf ","A07 - Review of project performance and evaluation\n","French",null,"LA - Lao People’s Democratic Republic (the)\n",{"$f":"IF(Tableau2[[#This Row],[TB-Period-start]]=\"\",\"N/A\",IF(Tableau2[[#This Row],[TB-Period-end]]=\"\",\"N/A\",IF(Tableau2[[#This Row],[TB-value]]=\"\",\"N/A\",IF(Tableau2[[#This Row],[TB-value-date]]=\"\",\"N/A\",\"Yes\"))))","v":"N/A"},null,null,null,null,null,null,null,null,null,null,{"$f":"IF(Tableau2[[#This Row],[TE-Period-start]]=\"\",\"N/A\",IF(Tableau2[[#This Row],[TE-Period-end]]=\"\",\"N/A\",IF(Tableau2[[#This Row],[TE-value]]=\"\",\"N/A\",IF(Tableau2[[#This Row],[TE-value-date]]=\"\",\"N/A\",\"Yes\"))))","v":"N/A"}]
["Agence Francaise de Developpement","FR-03",{"$f":"VLOOKUP(Tableau2[[#This Row],[Organisation identifier]],Tableau3[#All],4,FALSE)","v":"Agence Francaise de Developpement"},"French","Evaluation Gestion durable de la ressource crevettière malgache","https://www.afd.fr/sites/afd/files/2018-03-12-52-48/fiche-performance-peche-madagascar-afd.pdf","A07 - Review of project performance and evaluation\n","French",null,"MG - Madagascar\n",{"$f":"IF(Tableau2[[#This Row],[TB-Period-start]]=\"\",\"N/A\",IF(Tableau2[[#This Row],[TB-Period-end]]=\"\",\"N/A\",IF(Tableau2[[#This Row],[TB-value]]=\"\",\"N/A\",IF(Tableau2[[#This Row],[TB-value-date]]=\"\",\"N/A\",\"Yes\"))))","v":"N/A"},null,null,null,null,null,null,null,null,null,null,{"$f":"IF(Tableau2[[#This Row],[TE-Period-start]]=\"\",\"N/A\",IF(Tableau2[[#This Row],[TE-Period-end]]=\"\",\"N/A\",IF(Tableau2[[#This Row],[TE-value]]=\"\",\"N/A\",IF(Tableau2[[#This Row],[TE-value-date]]=\"\",\"N/A\",\"Yes\"))))","v":"N/A"}]
["Agence Francaise de Developpement","FR-03",{"$f":"VLOOKUP(Tableau2[[#This Row],[Organisation identifier]],Tableau3[#All],4,FALSE)","v":"Agence Francaise de Developpement"},"French","Evaluation Appui au redressement de la JIRAMA","https://www.afd.fr/sites/afd/files/2019-04-09-37-55/CMG6004-resume-evaluation-madagascar-energie.pdf ","A07 - Review of project performance and evaluation\n","French",null,"MG - Madagascar\n",{"$f":"IF(Tableau2[[#This Row],[TB-Period-start]]=\"\",\"N/A\",IF(Tableau2[[#This Row],[TB-Period-end]]=\"\",\"N/A\",IF(Tableau2[[#This Row],[TB-value]]=\"\",\"N/A\",IF(Tableau2[[#This Row],[TB-value-date]]=\"\",\"N/A\",\"Yes\"))))","v":"N/A"},null,null,null,null,null,null,null,null,null,null,{"$f":"IF(Tableau2[[#This Row],[TE-Period-start]]=\"\",\"N/A\",IF(Tableau2[[#This Row],[TE-Period-end]]=\"\",\"N/A\",IF(Tableau2[[#This Row],[TE-value]]=\"\",\"N/A\",IF(Tableau2[[#This Row],[TE-value-date]]=\"\",\"N/A\",\"Yes\"))))","v":"N/A"}]
["Agence Francaise de Developpement","FR-03",{"$f":"VLOOKUP(Tableau2[[#This Row],[Organisation identifier]],Tableau3[#All],4,FALSE)","v":"Agence Francaise de Developpement"},"French","Evaluation Financement du Programme de mise en valeur et de protection des bassins-versants et périmètres irrigués au lac Alaotra et d'appui au dispositif national d'agroécologie","https://www.afd.fr/sites/afd/files/2019-04-09-39-24/CMG6011-resume-evaluation-madagascar-agriculture-securite-alimentaire.pdf ","A07 - Review of project performance and evaluation\n","French",null,"MG - Madagascar\n",{"$f":"IF(Tableau2[[#This Row],[TB-Period-start]]=\"\",\"N/A\",IF(Tableau2[[#This Row],[TB-Period-end]]=\"\",\"N/A\",IF(Tableau2[[#This Row],[TB-value]]=\"\",\"N/A\",IF(Tableau2[[#This Row],[TB-value-date]]=\"\",\"N/A\",\"Yes\"))))","v":"N/A"},null,null,null,null,null,null,null,null,null,null,{"$f":"IF(Tableau2[[#This Row],[TE-Period-start]]=\"\",\"N/A\",IF(Tableau2[[#This Row],[TE-Period-end]]=\"\",\"N/A\",IF(Tableau2[[#This Row],[TE-value]]=\"\",\"N/A\",IF(Tableau2[[#This Row],[TE-value-date]]=\"\",\"N/A\",\"Yes\"))))","v":"N/A"}]
["Agence Francaise de Developpement","FR-03",{"$f":"VLOOKUP(Tableau2[[#This Row],[Organisation identifier]],Tableau3[#All],4,FALSE)","v":"Agence Francaise de Developpement"},"French","Evaluation Projet d'alimentation en eau potable et d'assainissement de centres semi-urbains du sud Mali","https://www.afd.fr/sites/afd/files/2019-12-03-05-09/resume-evaluation-projet-alimentation-eau-potable-assainissement-centres-semi-urbains-sud-mali-phase-1-CML1199.pdf","A07 - Review of project performance and evaluation\n","French",null,"ML - Mali\n",{"$f":"IF(Tableau2[[#This Row],[TB-Period-start]]=\"\",\"N/A\",IF(Tableau2[[#This Row],[TB-Period-end]]=\"\",\"N/A\",IF(Tableau2[[#This Row],[TB-value]]=\"\",\"N/A\",IF(Tableau2[[#This Row],[TB-value-date]]=\"\",\"N/A\",\"Yes\"))))","v":"N/A"},null,null,null,null,null,null,null,null,null,null,{"$f":"IF(Tableau2[[#This Row],[TE-Period-start]]=\"\",\"N/A\",IF(Tableau2[[#This Row],[TE-Period-end]]=\"\",\"N/A\",IF(Tableau2[[#This Row],[TE-value]]=\"\",\"N/A\",IF(Tableau2[[#This Row],[TE-value-date]]=\"\",\"N/A\",\"Yes\"))))","v":"N/A"}]
["Agence Francaise de Developpement","FR-03",{"$f":"VLOOKUP(Tableau2[[#This Row],[Organisation identifier]],Tableau3[#All],4,FALSE)","v":"Agence Francaise de Developpement"},"French","Evaluation Projet d'alimentation en eau potable de 21 centres ruraux et semi-urbains des cercles de Nioro","https://www.afd.fr/sites/afd/files/2019-12-03-20-06/resume-evaluation-projet-alimentation-eau-potable-centres%20ruraux-semi-urbains-nioro-diema-mali-CML1202.pdf","A07 - Review of project performance and evaluation\n","French",null,"ML - Mali\n",{"$f":"IF(Tableau2[[#This Row],[TB-Period-start]]=\"\",\"N/A\",IF(Tableau2[[#This Row],[TB-Period-end]]=\"\",\"N/A\",IF(Tableau2[[#This Row],[TB-value]]=\"\",\"N/A\",IF(Tableau2[[#This Row],[TB-value-date]]=\"\",\"N/A\",\"Yes\"))))","v":"N/A"},null,null,null,null,null,null,null,null,null,null,{"$f":"IF(Tableau2[[#This Row],[TE-Period-start]]=\"\",\"N/A\",IF(Tableau2[[#This Row],[TE-Period-end]]=\"\",\"N/A\",IF(Tableau2[[#This Row],[TE-value]]=\"\",\"N/A\",IF(Tableau2[[#This Row],[TE-value-date]]=\"\",\"N/A\",\"Yes\"))))","v":"N/A"}]
["Agence Francaise de Developpement","FR-03",{"$f":"VLOOKUP(Tableau2[[#This Row],[Organisation identifier]],Tableau3[#All],4,FALSE)","v":"Agence Francaise de Developpement"},"French","Evaluation  Projet d'appui au développement social et sanitaires de la 5ème région du Mali (PADSS)","https://www.afd.fr/sites/afd/files/2019-12-03-45-57/resume-evaluation-projet-appui-developpement-social-sanitaire-5e-region-mali-PADSS-CML1210.pdf","A07 - Review of project performance and evaluation\n","French",null,"ML - Mali\n",{"$f":"IF(Tableau2[[#This Row],[TB-Period-start]]=\"\",\"N/A\",IF(Tableau2[[#This Row],[TB-Period-end]]=\"\",\"N/A\",IF(Tableau2[[#This Row],[TB-value]]=\"\",\"N/A\",IF(Tableau2[[#This Row],[TB-value-date]]=\"\",\"N/A\",\"Yes\"))))","v":"N/A"},null,null,null,null,null,null,null,null,null,null,{"$f":"IF(Tableau2[[#This Row],[TE-Period-start]]=\"\",\"N/A\",IF(Tableau2[[#This Row],[TE-Period-end]]=\"\",\"N/A\",IF(Tableau2[[#This Row],[TE-value]]=\"\",\"N/A\",IF(Tableau2[[#This Row],[TE-value-date]]=\"\",\"N/A\",\"Yes\"))))","v":"N/A"}]
["Agence Francaise de Developpement","FR-03",{"$f":"VLOOKUP(Tableau2[[#This Row],[Organisation identifier]],Tableau3[#All],4,FALSE)","v":"Agence Francaise de Developpement"},"French","Evaluation Projet d’alimentation en eau potable et d’assainissement de centres semi-urbains du sud Mali – Phase 2","https://www.afd.fr/sites/afd/files/2019-12-03-27-34/resume-evaluation-projet-alimentation-eau-potable%20-assainissement-centres-semi-urbains-sud-mali-phase-2-CML6006.pdf","A07 - Review of project performance and evaluation\n","French",null,"ML - Mali\n",{"$f":"IF(Tableau2[[#This Row],[TB-Period-start]]=\"\",\"N/A\",IF(Tableau2[[#This Row],[TB-Period-end]]=\"\",\"N/A\",IF(Tableau2[[#This Row],[TB-value]]=\"\",\"N/A\",IF(Tableau2[[#This Row],[TB-value-date]]=\"\",\"N/A\",\"Yes\"))))","v":"N/A"},null,null,null,null,null,null,null,null,null,null,{"$f":"IF(Tableau2[[#This Row],[TE-Period-start]]=\"\",\"N/A\",IF(Tableau2[[#This Row],[TE-Period-end]]=\"\",\"N/A\",IF(Tableau2[[#This Row],[TE-value]]=\"\",\"N/A\",IF(Tableau2[[#This Row],[TE-value-date]]=\"\",\"N/A\",\"Yes\"))))","v":"N/A"}]
["Agence Francaise de Developpement","FR-03",{"$f":"VLOOKUP(Tableau2[[#This Row],[Organisation identifier]],Tableau3[#All],4,FALSE)","v":"Agence Francaise de Developpement"},"French","Evaluation Tramway Casablanca","https://www.tresor.economie.gouv.fr/Articles/2018/02/27/financement-du-tramway-de-casablanca","A07 - Review of project performance and evaluation\n","French",null,"MA - Morocco\n",{"$f":"IF(Tableau2[[#This Row],[TB-Period-start]]=\"\",\"N/A\",IF(Tableau2[[#This Row],[TB-Period-end]]=\"\",\"N/A\",IF(Tableau2[[#This Row],[TB-value]]=\"\",\"N/A\",IF(Tableau2[[#This Row],[TB-value-date]]=\"\",\"N/A\",\"Yes\"))))","v":"N/A"},null,null,null,null,null,null,null,null,null,null,{"$f":"IF(Tableau2[[#This Row],[TE-Period-start]]=\"\",\"N/A\",IF(Tableau2[[#This Row],[TE-Period-end]]=\"\",\"N/A\",IF(Tableau2[[#This Row],[TE-value]]=\"\",\"N/A\",IF(Tableau2[[#This Row],[TE-value-date]]=\"\",\"N/A\",\"Yes\"))))","v":"N/A"}]
["Agence Francaise de Developpement","FR-03",{"$f":"VLOOKUP(Tableau2[[#This Row],[Organisation identifier]],Tableau3[#All],4,FALSE)","v":"Agence Francaise de Developpement"},"French","Evaluation instances Aide programme environnement - Maurice, Ile Durable","https://www.afd.fr/sites/afd/files/2019-04-04-40-50/CMU1021-resume-evaluation-maurice-environnement-gestion-administrative.pdf ","A07 - Review of project performance and evaluation\n","French",null,"MU - Mauritius\n",{"$f":"IF(Tableau2[[#This Row],[TB-Period-start]]=\"\",\"N/A\",IF(Tableau2[[#This Row],[TB-Period-end]]=\"\",\"N/A\",IF(Tableau2[[#This Row],[TB-value]]=\"\",\"N/A\",IF(Tableau2[[#This Row],[TB-value-date]]=\"\",\"N/A\",\"Yes\"))))","v":"N/A"},null,null,null,null,null,null,null,null,null,null,{"$f":"IF(Tableau2[[#This Row],[TE-Period-start]]=\"\",\"N/A\",IF(Tableau2[[#This Row],[TE-Period-end]]=\"\",\"N/A\",IF(Tableau2[[#This Row],[TE-value]]=\"\",\"N/A\",IF(Tableau2[[#This Row],[TE-value-date]]=\"\",\"N/A\",\"Yes\"))))","v":"N/A"}]
["Agence Francaise de Developpement","FR-03",{"$f":"VLOOKUP(Tableau2[[#This Row],[Organisation identifier]],Tableau3[#All],4,FALSE)","v":"Agence Francaise de Developpement"},"French","Evaluation Appui budgétaire énergie verte","https://www.afd.fr/sites/afd/files/2019-04-04-42-00/CMU1062-resume-evaluation-maurice-environnement-gestion-administrative.pdf ","A07 - Review of project performance and evaluation\n","French",null,"MU - Mauritius\n",{"$f":"IF(Tableau2[[#This Row],[TB-Period-start]]=\"\",\"N/A\",IF(Tableau2[[#This Row],[TB-Period-end]]=\"\",\"N/A\",IF(Tableau2[[#This Row],[TB-value]]=\"\",\"N/A\",IF(Tableau2[[#This Row],[TB-value-date]]=\"\",\"N/A\",\"Yes\"))))","v":"N/A"},null,null,null,null,null,null,null,null,null,null,{"$f":"IF(Tableau2[[#This Row],[TE-Period-start]]=\"\",\"N/A\",IF(Tableau2[[#This Row],[TE-Period-end]]=\"\",\"N/A\",IF(Tableau2[[#This Row],[TE-value]]=\"\",\"N/A\",IF(Tableau2[[#This Row],[TE-value-date]]=\"\",\"N/A\",\"Yes\"))))","v":"N/A"}]
["Agence Francaise de Developpement","FR-03","Agence Francaise de Developpement","French","Evaluation Programme de lutte contre le changement climatique au Mexique","https://www.afd.fr/sites/afd/files/2019-04-09-42-03/CMX1005-resumen-evaluacion-estados-unidos-mexicanos-clima.pdf ","A07 - Review of project performance and evaluation\n","French",null,"MX - Mexico\n",{"$f":"IF(Tableau2[[#This Row],[TB-Period-start]]=\"\",\"N/A\",IF(Tableau2[[#This Row],[TB-Period-end]]=\"\",\"N/A\",IF(Tableau2[[#This Row],[TB-value]]=\"\",\"N/A\",IF(Tableau2[[#This Row],[TB-value-date]]=\"\",\"N/A\",\"Yes\"))))","v":"N/A"},null,null,null,null,null,null,null,null,null,null,{"$f":"IF(Tableau2[[#This Row],[TE-Period-start]]=\"\",\"N/A\",IF(Tableau2[[#This Row],[TE-Period-end]]=\"\",\"N/A\",IF(Tableau2[[#This Row],[TE-value]]=\"\",\"N/A\",IF(Tableau2[[#This Row],[TE-value-date]]=\"\",\"N/A\",\"Yes\"))))","v":"N/A"}]
["Agence Francaise de Developpement","FR-03",{"$f":"VLOOKUP(Tableau2[[#This Row],[Organisation identifier]],Tableau3[#All],4,FALSE)","v":"Agence Francaise de Developpement"},"French","Evaluation Deuxième appui au programme mexicain de lutte contre le rechauffement climatique (PECC)","https://www.afd.fr/sites/afd/files/2019-04-01-41-49/CMX1013-resumen-evaluacion-estados-unidos-mexicanos-clima.pdf ","A07 - Review of project performance and evaluation\n","French",null,"MX - Mexico\n",{"$f":"IF(Tableau2[[#This Row],[TB-Period-start]]=\"\",\"N/A\",IF(Tableau2[[#This Row],[TB-Period-end]]=\"\",\"N/A\",IF(Tableau2[[#This Row],[TB-value]]=\"\",\"N/A\",IF(Tableau2[[#This Row],[TB-value-date]]=\"\",\"N/A\",\"Yes\"))))","v":"N/A"},null,null,null,null,null,null,null,null,null,null,{"$f":"IF(Tableau2[[#This Row],[TE-Period-start]]=\"\",\"N/A\",IF(Tableau2[[#This Row],[TE-Period-end]]=\"\",\"N/A\",IF(Tableau2[[#This Row],[TE-value]]=\"\",\"N/A\",IF(Tableau2[[#This Row],[TE-value-date]]=\"\",\"N/A\",\"Yes\"))))","v":"N/A"}]
["Agence Francaise de Developpement","FR-03",{"$f":"VLOOKUP(Tableau2[[#This Row],[Organisation identifier]],Tableau3[#All],4,FALSE)","v":"Agence Francaise de Developpement"},"French","Evaluation projet d'appui à l'élevage dans le département de Zinder ","https://www.afd.fr/sites/afd/files/2020-01-03-37-32/resume-evaluation-projet-securisation-systemes-pastoraux-PSSP-region-zinder-CNE-1105.pdf","A07 - Review of project performance and evaluation\n","French",null,"NE - Niger (the)\n",{"$f":"IF(Tableau2[[#This Row],[TB-Period-start]]=\"\",\"N/A\",IF(Tableau2[[#This Row],[TB-Period-end]]=\"\",\"N/A\",IF(Tableau2[[#This Row],[TB-value]]=\"\",\"N/A\",IF(Tableau2[[#This Row],[TB-value-date]]=\"\",\"N/A\",\"Yes\"))))","v":"N/A"},null,null,null,null,null,null,null,null,null,null,{"$f":"IF(Tableau2[[#This Row],[TE-Period-start]]=\"\",\"N/A\",IF(Tableau2[[#This Row],[TE-Period-end]]=\"\",\"N/A\",IF(Tableau2[[#This Row],[TE-value]]=\"\",\"N/A\",IF(Tableau2[[#This Row],[TE-value-date]]=\"\",\"N/A\",\"Yes\"))))","v":"N/A"}]
["Agence Francaise de Developpement","FR-03",{"$f":"VLOOKUP(Tableau2[[#This Row],[Organisation identifier]],Tableau3[#All],4,FALSE)","v":"Agence Francaise de Developpement"},"French","Evaluation Projet d'appui au secteur de la santé au Niger","https://www.afd.fr/sites/afd/files/2020-01-03-44-37/resume-evaluation-appui-plan-developpement-sanitaire-PDS-fonds-commun%20sant%C3%A9-CNE3006-1127.pdf","A07 - Review of project performance and evaluation\n","French",null,"NE - Niger (the)\n",{"$f":"IF(Tableau2[[#This Row],[TB-Period-start]]=\"\",\"N/A\",IF(Tableau2[[#This Row],[TB-Period-end]]=\"\",\"N/A\",IF(Tableau2[[#This Row],[TB-value]]=\"\",\"N/A\",IF(Tableau2[[#This Row],[TB-value-date]]=\"\",\"N/A\",\"Yes\"))))","v":"N/A"},null,null,null,null,null,null,null,null,null,null,{"$f":"IF(Tableau2[[#This Row],[TE-Period-start]]=\"\",\"N/A\",IF(Tableau2[[#This Row],[TE-Period-end]]=\"\",\"N/A\",IF(Tableau2[[#This Row],[TE-value]]=\"\",\"N/A\",IF(Tableau2[[#This Row],[TE-value-date]]=\"\",\"N/A\",\"Yes\"))))","v":"N/A"}]
["Agence Francaise de Developpement","FR-03",{"$f":"VLOOKUP(Tableau2[[#This Row],[Organisation identifier]],Tableau3[#All],4,FALSE)","v":"Agence Francaise de Developpement"},"French","Evaluation Appui à la sécurité alimentaire au Niger","https://www.afd.fr/sites/afd/files/2019-04-09-43-19/CNE1138-resume-evaluation-niger-securite-alimentaire.pdf ","A07 - Review of project performance and evaluation\n","French",null,"NE - Niger (the)\n",{"$f":"IF(Tableau2[[#This Row],[TB-Period-start]]=\"\",\"N/A\",IF(Tableau2[[#This Row],[TB-Period-end]]=\"\",\"N/A\",IF(Tableau2[[#This Row],[TB-value]]=\"\",\"N/A\",IF(Tableau2[[#This Row],[TB-value-date]]=\"\",\"N/A\",\"Yes\"))))","v":"N/A"},null,null,null,null,null,null,null,null,null,null,{"$f":"IF(Tableau2[[#This Row],[TE-Period-start]]=\"\",\"N/A\",IF(Tableau2[[#This Row],[TE-Period-end]]=\"\",\"N/A\",IF(Tableau2[[#This Row],[TE-value]]=\"\",\"N/A\",IF(Tableau2[[#This Row],[TE-value-date]]=\"\",\"N/A\",\"Yes\"))))","v":"N/A"}]
["Agence Francaise de Developpement","FR-03",{"$f":"VLOOKUP(Tableau2[[#This Row],[Organisation identifier]],Tableau3[#All],4,FALSE)","v":"Agence Francaise de Developpement"},"French","Evaluation Hydraulique villageoise dans la région de Tahoua","https://www.afd.fr/sites/afd/files/2019-04-09-44-18/CNE3005-resume-evaluation-niger-eau-et-assainissement.pdf ","A07 - Review of project performance and evaluation\n","French",null,"NE - Niger (the)\n",{"$f":"IF(Tableau2[[#This Row],[TB-Period-start]]=\"\",\"N/A\",IF(Tableau2[[#This Row],[TB-Period-end]]=\"\",\"N/A\",IF(Tableau2[[#This Row],[TB-value]]=\"\",\"N/A\",IF(Tableau2[[#This Row],[TB-value-date]]=\"\",\"N/A\",\"Yes\"))))","v":"N/A"},null,null,null,null,null,null,null,null,null,null,{"$f":"IF(Tableau2[[#This Row],[TE-Period-start]]=\"\",\"N/A\",IF(Tableau2[[#This Row],[TE-Period-end]]=\"\",\"N/A\",IF(Tableau2[[#This Row],[TE-value]]=\"\",\"N/A\",IF(Tableau2[[#This Row],[TE-value-date]]=\"\",\"N/A\",\"Yes\"))))","v":"N/A"}]
["Agence Francaise de Developpement","FR-03",{"$f":"VLOOKUP(Tableau2[[#This Row],[Organisation identifier]],Tableau3[#All],4,FALSE)","v":"Agence Francaise de Developpement"},"French","Evaluation Alimentation en eau potable de communes de la banlieue de Kinshasa et de communes du Bas-Congo","https://www.afd.fr/sites/afd/files/2019-04-09-26-02/CCD3006-resume-evaluation-rdc-eau-et-assainissement.pdf ","A07 - Review of project performance and evaluation\n","French",null,"CD - Congo (the Democratic Republic of the)\n",{"$f":"IF(Tableau2[[#This Row],[TB-Period-start]]=\"\",\"N/A\",IF(Tableau2[[#This Row],[TB-Period-end]]=\"\",\"N/A\",IF(Tableau2[[#This Row],[TB-value]]=\"\",\"N/A\",IF(Tableau2[[#This Row],[TB-value-date]]=\"\",\"N/A\",\"Yes\"))))","v":"N/A"},null,null,null,null,null,null,null,null,null,null,{"$f":"IF(Tableau2[[#This Row],[TE-Period-start]]=\"\",\"N/A\",IF(Tableau2[[#This Row],[TE-Period-end]]=\"\",\"N/A\",IF(Tableau2[[#This Row],[TE-value]]=\"\",\"N/A\",IF(Tableau2[[#This Row],[TE-value-date]]=\"\",\"N/A\",\"Yes\"))))","v":"N/A"}]
["Agence Francaise de Developpement","FR-03",{"$f":"VLOOKUP(Tableau2[[#This Row],[Organisation identifier]],Tableau3[#All],4,FALSE)","v":"Agence Francaise de Developpement"},"French","Evaluation Projet d'appui à l'éducation primaire dans les trois provinces de Bas-Congo, de Kinshasa et du Bandundu","https://www.afd.fr/sites/afd/files/2019-04-09-25-00/CCD1061-resume-evaluation-RDC-education-de-base.pdf ","A07 - Review of project performance and evaluation\n","French",null,"CD - Congo (the Democratic Republic of the)\n",{"$f":"IF(Tableau2[[#This Row],[TB-Period-start]]=\"\",\"N/A\",IF(Tableau2[[#This Row],[TB-Period-end]]=\"\",\"N/A\",IF(Tableau2[[#This Row],[TB-value]]=\"\",\"N/A\",IF(Tableau2[[#This Row],[TB-value-date]]=\"\",\"N/A\",\"Yes\"))))","v":"N/A"},null,null,null,null,null,null,null,null,null,null,{"$f":"IF(Tableau2[[#This Row],[TE-Period-start]]=\"\",\"N/A\",IF(Tableau2[[#This Row],[TE-Period-end]]=\"\",\"N/A\",IF(Tableau2[[#This Row],[TE-value]]=\"\",\"N/A\",IF(Tableau2[[#This Row],[TE-value-date]]=\"\",\"N/A\",\"Yes\"))))","v":"N/A"}]
["Agence Francaise de Developpement","FR-03",{"$f":"VLOOKUP(Tableau2[[#This Row],[Organisation identifier]],Tableau3[#All],4,FALSE)","v":"Agence Francaise de Developpement"},"French","Evaluation Réhabilitation du Pont Faidherbe de Saint-Louis ","https://www.afd.fr/sites/afd/files/2020-01-03-51-14/resume-evaluation-rehabilitation-pont-faidherbe-saint-louis-senegal-CSN6010.pdf","A07 - Review of project performance and evaluation\n","French",null,"SN - Senegal\n",{"$f":"IF(Tableau2[[#This Row],[TB-Period-start]]=\"\",\"N/A\",IF(Tableau2[[#This Row],[TB-Period-end]]=\"\",\"N/A\",IF(Tableau2[[#This Row],[TB-value]]=\"\",\"N/A\",IF(Tableau2[[#This Row],[TB-value-date]]=\"\",\"N/A\",\"Yes\"))))","v":"N/A"},null,null,null,null,null,null,null,null,null,null,{"$f":"IF(Tableau2[[#This Row],[TE-Period-start]]=\"\",\"N/A\",IF(Tableau2[[#This Row],[TE-Period-end]]=\"\",\"N/A\",IF(Tableau2[[#This Row],[TE-value]]=\"\",\"N/A\",IF(Tableau2[[#This Row],[TE-value-date]]=\"\",\"N/A\",\"Yes\"))))","v":"N/A"}]
["Agence Francaise de Developpement","FR-03",{"$f":"VLOOKUP(Tableau2[[#This Row],[Organisation identifier]],Tableau3[#All],4,FALSE)","v":"Agence Francaise de Developpement"},"French","Evaluation Programme d'appui aux communautés rurales de la vallée du fleuve Sénégal pour favoriser l'investissement et le partenariat public/privé","https://www.afd.fr/sites/afd/files/2019-04-04-43-11/CSN6007-resume-evaluation-senegal-developpement-agricole.pdf ","A07 - Review of project performance and evaluation\n","French",null,"SN - Senegal\n",{"$f":"IF(Tableau2[[#This Row],[TB-Period-start]]=\"\",\"N/A\",IF(Tableau2[[#This Row],[TB-Period-end]]=\"\",\"N/A\",IF(Tableau2[[#This Row],[TB-value]]=\"\",\"N/A\",IF(Tableau2[[#This Row],[TB-value-date]]=\"\",\"N/A\",\"Yes\"))))","v":"N/A"},null,null,null,null,null,null,null,null,null,null,{"$f":"IF(Tableau2[[#This Row],[TE-Period-start]]=\"\",\"N/A\",IF(Tableau2[[#This Row],[TE-Period-end]]=\"\",\"N/A\",IF(Tableau2[[#This Row],[TE-value]]=\"\",\"N/A\",IF(Tableau2[[#This Row],[TE-value-date]]=\"\",\"N/A\",\"Yes\"))))","v":"N/A"}]
["Agence Francaise de Developpement","FR-03",{"$f":"VLOOKUP(Tableau2[[#This Row],[Organisation identifier]],Tableau3[#All],4,FALSE)","v":"Agence Francaise de Developpement"},"French","Evaluation Small Towns Water Supply and Sanitation Project","https://www.afd.fr/sites/afd/files/2019-12-02-33-47/evaluation-summary-small-towns-water%20supply-sanitation-project-STWSSP-tanzania-CTZ1006.pdf","A07 - Review of project performance and evaluation\n","French",null,"TZ - Tanzania, United Republic of\n",{"$f":"IF(Tableau2[[#This Row],[TB-Period-start]]=\"\",\"N/A\",IF(Tableau2[[#This Row],[TB-Period-end]]=\"\",\"N/A\",IF(Tableau2[[#This Row],[TB-value]]=\"\",\"N/A\",IF(Tableau2[[#This Row],[TB-value-date]]=\"\",\"N/A\",\"Yes\"))))","v":"N/A"},null,null,null,null,null,null,null,null,null,null,{"$f":"IF(Tableau2[[#This Row],[TE-Period-start]]=\"\",\"N/A\",IF(Tableau2[[#This Row],[TE-Period-end]]=\"\",\"N/A\",IF(Tableau2[[#This Row],[TE-value]]=\"\",\"N/A\",IF(Tableau2[[#This Row],[TE-value-date]]=\"\",\"N/A\",\"Yes\"))))","v":"N/A"}]
["Agence Francaise de Developpement","FR-03",{"$f":"VLOOKUP(Tableau2[[#This Row],[Organisation identifier]],Tableau3[#All],4,FALSE)","v":"Agence Francaise de Developpement"},"French","Evaluation Municipal Development Program (MDP) Phase 1","https://www.afd.fr/sites/afd/files/2019-12-02-40-04/evaluation-summary-first-phase-municipal-development-program-mdp-palestine-CPS1024-1022.pdf","A07 - Review of project performance and evaluation\n","French",null,"PS - Palestine, State of\n",{"$f":"IF(Tableau2[[#This Row],[TB-Period-start]]=\"\",\"N/A\",IF(Tableau2[[#This Row],[TB-Period-end]]=\"\",\"N/A\",IF(Tableau2[[#This Row],[TB-value]]=\"\",\"N/A\",IF(Tableau2[[#This Row],[TB-value-date]]=\"\",\"N/A\",\"Yes\"))))","v":"N/A"},null,null,null,null,null,null,null,null,null,null,{"$f":"IF(Tableau2[[#This Row],[TE-Period-start]]=\"\",\"N/A\",IF(Tableau2[[#This Row],[TE-Period-end]]=\"\",\"N/A\",IF(Tableau2[[#This Row],[TE-value]]=\"\",\"N/A\",IF(Tableau2[[#This Row],[TE-value-date]]=\"\",\"N/A\",\"Yes\"))))","v":"N/A"}]
["Agence Francaise de Developpement","FR-03",{"$f":"VLOOKUP(Tableau2[[#This Row],[Organisation identifier]],Tableau3[#All],4,FALSE)","v":"Agence Francaise de Developpement"},"French","Evaluation Aménagement et réfection d'infrastructures hydrauliques dans la région des plateaux","https://www.afd.fr/fr/ressources/resume-d-evaluation-projet-hydraulique-villageoise-region-des-plateaux-phvrp-togo","A07 - Review of project performance and evaluation\n","French",null,"TG - Togo\n",{"$f":"IF(Tableau2[[#This Row],[TB-Period-start]]=\"\",\"N/A\",IF(Tableau2[[#This Row],[TB-Period-end]]=\"\",\"N/A\",IF(Tableau2[[#This Row],[TB-value]]=\"\",\"N/A\",IF(Tableau2[[#This Row],[TB-value-date]]=\"\",\"N/A\",\"Yes\"))))","v":"N/A"},null,null,null,null,null,null,null,null,null,null,{"$f":"IF(Tableau2[[#This Row],[TE-Period-start]]=\"\",\"N/A\",IF(Tableau2[[#This Row],[TE-Period-end]]=\"\",\"N/A\",IF(Tableau2[[#This Row],[TE-value]]=\"\",\"N/A\",IF(Tableau2[[#This Row],[TE-value-date]]=\"\",\"N/A\",\"Yes\"))))","v":"N/A"}]
["Agence Francaise de Developpement","FR-03",{"$f":"VLOOKUP(Tableau2[[#This Row],[Organisation identifier]],Tableau3[#All],4,FALSE)","v":"Agence Francaise de Developpement"},"French","Evaluation Projet d’appui à la sécurité transfusionnelle et de lutte contre le VIH /sida","https://www.afd.fr/sites/afd/files/2020-01-03-03-01/resume-evaluation-projet-appui-securite-transfusionnelle-et-lutte-contre-VIH-sida-togo-CTG%203004.pdf","A07 - Review of project performance and evaluation\n","French",null,"TG - Togo\n",{"$f":"IF(Tableau2[[#This Row],[TB-Period-start]]=\"\",\"N/A\",IF(Tableau2[[#This Row],[TB-Period-end]]=\"\",\"N/A\",IF(Tableau2[[#This Row],[TB-value]]=\"\",\"N/A\",IF(Tableau2[[#This Row],[TB-value-date]]=\"\",\"N/A\",\"Yes\"))))","v":"N/A"},null,null,null,null,null,null,null,null,null,null,{"$f":"IF(Tableau2[[#This Row],[TE-Period-start]]=\"\",\"N/A\",IF(Tableau2[[#This Row],[TE-Period-end]]=\"\",\"N/A\",IF(Tableau2[[#This Row],[TE-value]]=\"\",\"N/A\",IF(Tableau2[[#This Row],[TE-value-date]]=\"\",\"N/A\",\"Yes\"))))","v":"N/A"}]
["Agence Francaise de Developpement","FR-03",{"$f":"VLOOKUP(Tableau2[[#This Row],[Organisation identifier]],Tableau3[#All],4,FALSE)","v":"Agence Francaise de Developpement"},"French","Evaluation Programme environnement urbain à Lomé","https://www.afd.fr/sites/afd/files/2019-04-09-45-55/CTG3002-resume-evaluation-togo-assainissement-solide-et-pluvial.pdf ","A07 - Review of project performance and evaluation\n","French",null,"TG - Togo\n",{"$f":"IF(Tableau2[[#This Row],[TB-Period-start]]=\"\",\"N/A\",IF(Tableau2[[#This Row],[TB-Period-end]]=\"\",\"N/A\",IF(Tableau2[[#This Row],[TB-value]]=\"\",\"N/A\",IF(Tableau2[[#This Row],[TB-value-date]]=\"\",\"N/A\",\"Yes\"))))","v":"N/A"},null,null,null,null,null,null,null,null,null,null,{"$f":"IF(Tableau2[[#This Row],[TE-Period-start]]=\"\",\"N/A\",IF(Tableau2[[#This Row],[TE-Period-end]]=\"\",\"N/A\",IF(Tableau2[[#This Row],[TE-value]]=\"\",\"N/A\",IF(Tableau2[[#This Row],[TE-value-date]]=\"\",\"N/A\",\"Yes\"))))","v":"N/A"}]
["agence Francaise de Developpement","FR-03",{"$f":"VLOOKUP(Tableau2[[#This Row],[Organisation identifier]],Tableau3[#All],4,FALSE)","v":"Agence Francaise de Developpement"},"French","Evaluation Éducation pour tous","https://www.afd.fr/sites/afd/files/2019-04-09-46-36/CTG3009-resume-evaluation-togo-education.pdf ","A07 - Review of project performance and evaluation\n","French",null,"TG - Togo\n",{"$f":"IF(Tableau2[[#This Row],[TB-Period-start]]=\"\",\"N/A\",IF(Tableau2[[#This Row],[TB-Period-end]]=\"\",\"N/A\",IF(Tableau2[[#This Row],[TB-value]]=\"\",\"N/A\",IF(Tableau2[[#This Row],[TB-value-date]]=\"\",\"N/A\",\"Yes\"))))","v":"N/A"},null,null,null,null,null,null,null,null,null,null,{"$f":"IF(Tableau2[[#This Row],[TE-Period-start]]=\"\",\"N/A\",IF(Tableau2[[#This Row],[TE-Period-end]]=\"\",\"N/A\",IF(Tableau2[[#This Row],[TE-value]]=\"\",\"N/A\",IF(Tableau2[[#This Row],[TE-value-date]]=\"\",\"N/A\",\"Yes\"))))","v":"N/A"}]
["Agence Francaise de Developpement","FR-03",{"$f":"VLOOKUP(Tableau2[[#This Row],[Organisation identifier]],Tableau3[#All],4,FALSE)","v":"Agence Francaise de Developpement"},"French","Evaluation Programme d’alimentation en eau potable du milieu rural","https://www.afd.fr/sites/afd/files/2020-01-03-13-09/resume-evaluation-programme-alimentation-eau-potable-milieu%20rural-AEP2-tunisie-CTN%206001.pdf","A07 - Review of project performance and evaluation\n","French",null,"TN - Tunisia\n",{"$f":"IF(Tableau2[[#This Row],[TB-Period-start]]=\"\",\"N/A\",IF(Tableau2[[#This Row],[TB-Period-end]]=\"\",\"N/A\",IF(Tableau2[[#This Row],[TB-value]]=\"\",\"N/A\",IF(Tableau2[[#This Row],[TB-value-date]]=\"\",\"N/A\",\"Yes\"))))","v":"N/A"},null,null,null,null,null,null,null,null,null,null,{"$f":"IF(Tableau2[[#This Row],[TE-Period-start]]=\"\",\"N/A\",IF(Tableau2[[#This Row],[TE-Period-end]]=\"\",\"N/A\",IF(Tableau2[[#This Row],[TE-value]]=\"\",\"N/A\",IF(Tableau2[[#This Row],[TE-value-date]]=\"\",\"N/A\",\"Yes\"))))","v":"N/A"}]
["Agence Francaise de Developpement","FR-03",{"$f":"VLOOKUP(Tableau2[[#This Row],[Organisation identifier]],Tableau3[#All],4,FALSE)","v":"Agence Francaise de Developpement"},"French","Evaluation Programme national de réhabilitation des quartiers populaires (PRNQP 3)","https://www.afd.fr/sites/afd/files/2018-04-04-00-17/fiche-performance-programme-national-rehabilitation-quartiers-populaires-tunisie.pdf","A07 - Review of project performance and evaluation\n","French",null,"TN - Tunisia\n",{"$f":"IF(Tableau2[[#This Row],[TB-Period-start]]=\"\",\"N/A\",IF(Tableau2[[#This Row],[TB-Period-end]]=\"\",\"N/A\",IF(Tableau2[[#This Row],[TB-value]]=\"\",\"N/A\",IF(Tableau2[[#This Row],[TB-value-date]]=\"\",\"N/A\",\"Yes\"))))","v":"N/A"},null,null,null,null,null,null,null,null,null,null,{"$f":"IF(Tableau2[[#This Row],[TE-Period-start]]=\"\",\"N/A\",IF(Tableau2[[#This Row],[TE-Period-end]]=\"\",\"N/A\",IF(Tableau2[[#This Row],[TE-value]]=\"\",\"N/A\",IF(Tableau2[[#This Row],[TE-value-date]]=\"\",\"N/A\",\"Yes\"))))","v":"N/A"}]
["Agence Francaise de Developpement","FR-03",{"$f":"VLOOKUP(Tableau2[[#This Row],[Organisation identifier]],Tableau3[#All],4,FALSE)","v":"Agence Francaise de Developpement"},"French","Evaluation Soutien au développement social dans les quartiers défavorisés de Tunis, Sfax, Sousse et Kairouan","https://www.afd.fr/sites/afd/files/2019-04-09-47-52/CTN6016-resume-evaluation-tunisie-developpement-et-gestion-urbaine.pdf ","A07 - Review of project performance and evaluation\n","French",null,"TN - Tunisia\n",{"$f":"IF(Tableau2[[#This Row],[TB-Period-start]]=\"\",\"N/A\",IF(Tableau2[[#This Row],[TB-Period-end]]=\"\",\"N/A\",IF(Tableau2[[#This Row],[TB-value]]=\"\",\"N/A\",IF(Tableau2[[#This Row],[TB-value-date]]=\"\",\"N/A\",\"Yes\"))))","v":"N/A"},null,null,null,null,null,null,null,null,null,null,{"$f":"IF(Tableau2[[#This Row],[TE-Period-start]]=\"\",\"N/A\",IF(Tableau2[[#This Row],[TE-Period-end]]=\"\",\"N/A\",IF(Tableau2[[#This Row],[TE-value]]=\"\",\"N/A\",IF(Tableau2[[#This Row],[TE-value-date]]=\"\",\"N/A\",\"Yes\"))))","v":"N/A"}]
["Agence Francaise de Developpement","FR-03",{"$f":"VLOOKUP(Tableau2[[#This Row],[Organisation identifier]],Tableau3[#All],4,FALSE)","v":"Agence Francaise de Developpement"},"French","Evaluation Soutien au développement durable dans le secteur forestier","https://www.afd.fr/sites/afd/files/2019-04-09-49-04/CTR1026-1045-1057-evaluation-summary-turkey-forestry.pdf ","A07 - Review of project performance and evaluation\n","French",null,"TR - Turkey\n",{"$f":"IF(Tableau2[[#This Row],[TB-Period-start]]=\"\",\"N/A\",IF(Tableau2[[#This Row],[TB-Period-end]]=\"\",\"N/A\",IF(Tableau2[[#This Row],[TB-value]]=\"\",\"N/A\",IF(Tableau2[[#This Row],[TB-value-date]]=\"\",\"N/A\",\"Yes\"))))","v":"N/A"},null,null,null,null,null,null,null,null,null,null,{"$f":"IF(Tableau2[[#This Row],[TE-Period-start]]=\"\",\"N/A\",IF(Tableau2[[#This Row],[TE-Period-end]]=\"\",\"N/A\",IF(Tableau2[[#This Row],[TE-value]]=\"\",\"N/A\",IF(Tableau2[[#This Row],[TE-value-date]]=\"\",\"N/A\",\"Yes\"))))","v":"N/A"}]
["Agence Francaise de Developpement","FR-03",{"$f":"VLOOKUP(Tableau2[[#This Row],[Organisation identifier]],Tableau3[#All],4,FALSE)","v":"Agence Francaise de Developpement"},"French","Evaluation Développement du système d’infrastructures hydrauliques de la province de Son La ","https://www.afd.fr/sites/afd/files/2018-12-05-50-53/fiche-performance-projet-irrigation-province-son-la-vietnam.pdf","A07 - Review of project performance and evaluation\n","French",null,"VN - Viet Nam\n",{"$f":"IF(Tableau2[[#This Row],[TB-Period-start]]=\"\",\"N/A\",IF(Tableau2[[#This Row],[TB-Period-end]]=\"\",\"N/A\",IF(Tableau2[[#This Row],[TB-value]]=\"\",\"N/A\",IF(Tableau2[[#This Row],[TB-value-date]]=\"\",\"N/A\",\"Yes\"))))","v":"N/A"},null,null,null,null,null,null,null,null,null,null,{"$f":"IF(Tableau2[[#This Row],[TE-Period-start]]=\"\",\"N/A\",IF(Tableau2[[#This Row],[TE-Period-end]]=\"\",\"N/A\",IF(Tableau2[[#This Row],[TE-value]]=\"\",\"N/A\",IF(Tableau2[[#This Row],[TE-value-date]]=\"\",\"N/A\",\"Yes\"))))","v":"N/A"}]
["Agence Francaise de Developpement","FR-03",{"$f":"VLOOKUP(Tableau2[[#This Row],[Organisation identifier]],Tableau3[#All],4,FALSE)","v":"Agence Francaise de Developpement"},"French","Evaluation Infrastructures hydroagricoles de la province de Ninh Thuan","https://www.afd.fr/sites/afd/files/2019-04-04-45-12/CVN1073-1128-evaluation-summary-vietnam-irrigation.pdf ","A07 - Review of project performance and evaluation\n","French",null,"VN - Viet Nam\n",{"$f":"IF(Tableau2[[#This Row],[TB-Period-start]]=\"\",\"N/A\",IF(Tableau2[[#This Row],[TB-Period-end]]=\"\",\"N/A\",IF(Tableau2[[#This Row],[TB-value]]=\"\",\"N/A\",IF(Tableau2[[#This Row],[TB-value-date]]=\"\",\"N/A\",\"Yes\"))))","v":"N/A"},null,null,null,null,null,null,null,null,null,null,{"$f":"IF(Tableau2[[#This Row],[TE-Period-start]]=\"\",\"N/A\",IF(Tableau2[[#This Row],[TE-Period-end]]=\"\",\"N/A\",IF(Tableau2[[#This Row],[TE-value]]=\"\",\"N/A\",IF(Tableau2[[#This Row],[TE-value-date]]=\"\",\"N/A\",\"Yes\"))))","v":"N/A"}]
["Agence Francaise de Developpement","FR-03",{"$f":"VLOOKUP(Tableau2[[#This Row],[Organisation identifier]],Tableau3[#All],4,FALSE)","v":"Agence Francaise de Developpement"},"French","Evaluation Financement des programmes prioritaires d'infrastructures et d'équipements urbains des villes de Da Nang et Can Tho ","https://www.afd.fr/sites/afd/files/2019-04-04-46-28/CVN1125-01-evaluation-summary-vietnam-financial-intermediaries.pdf ","A07 - Review of project performance and evaluation\n","French",null,"VN - Viet Nam\n",{"$f":"IF(Tableau2[[#This Row],[TB-Period-start]]=\"\",\"N/A\",IF(Tableau2[[#This Row],[TB-Period-end]]=\"\",\"N/A\",IF(Tableau2[[#This Row],[TB-value]]=\"\",\"N/A\",IF(Tableau2[[#This Row],[TB-value-date]]=\"\",\"N/A\",\"Yes\"))))","v":"N/A"},null,null,null,null,null,null,null,null,null,null,{"$f":"IF(Tableau2[[#This Row],[TE-Period-start]]=\"\",\"N/A\",IF(Tableau2[[#This Row],[TE-Period-end]]=\"\",\"N/A\",IF(Tableau2[[#This Row],[TE-value]]=\"\",\"N/A\",IF(Tableau2[[#This Row],[TE-value-date]]=\"\",\"N/A\",\"Yes\"))))","v":"N/A"}]
["Agence Francaise de Developpement","FR-03","Agence Francaise de Developpement","French","Evaluation Financement des programmes prioritaires d'infrastructures et d'équipements urbains des villes de Da Nang et Can Tho ","https://www.afd.fr/sites/afd/files/2019-04-04-47-38/CVN1125-02-evaluation-summary-vietnam-financial-intermediaries.pdf","A07 - Review of project performance and evaluation\n","French",null,"VN - Viet Nam\n",{"$f":"IF(Tableau2[[#This Row],[TB-Period-start]]=\"\",\"N/A\",IF(Tableau2[[#This Row],[TB-Period-end]]=\"\",\"N/A\",IF(Tableau2[[#This Row],[TB-value]]=\"\",\"N/A\",IF(Tableau2[[#This Row],[TB-value-date]]=\"\",\"N/A\",\"Yes\"))))","v":"N/A"},null,null,null,null,null,null,null,null,null,null,{"$f":"IF(Tableau2[[#This Row],[TE-Period-start]]=\"\",\"N/A\",IF(Tableau2[[#This Row],[TE-Period-end]]=\"\",\"N/A\",IF(Tableau2[[#This Row],[TE-value]]=\"\",\"N/A\",IF(Tableau2[[#This Row],[TE-value-date]]=\"\",\"N/A\",\"Yes\"))))","v":"N/A"}]
["Agence Francaise de Developpement","FR-03",{"$f":"VLOOKUP(Tableau2[[#This Row],[Organisation identifier]],Tableau3[#All],4,FALSE)","v":"Agence Francaise de Developpement"},"French","Evaluation Fin. Invest. fds municipal HCMV","https://www.afd.fr/sites/afd/files/2019-04-04-48-51/CVN1126-evaluation-summary-vietnam-financial-intermediaries.pdf ","A07 - Review of project performance and evaluation\n","French",null,"VN - Viet Nam\n",{"$f":"IF(Tableau2[[#This Row],[TB-Period-start]]=\"\",\"N/A\",IF(Tableau2[[#This Row],[TB-Period-end]]=\"\",\"N/A\",IF(Tableau2[[#This Row],[TB-value]]=\"\",\"N/A\",IF(Tableau2[[#This Row],[TB-value-date]]=\"\",\"N/A\",\"Yes\"))))","v":"N/A"},null,null,null,null,null,null,null,null,null,null,{"$f":"IF(Tableau2[[#This Row],[TE-Period-start]]=\"\",\"N/A\",IF(Tableau2[[#This Row],[TE-Period-end]]=\"\",\"N/A\",IF(Tableau2[[#This Row],[TE-value]]=\"\",\"N/A\",IF(Tableau2[[#This Row],[TE-value-date]]=\"\",\"N/A\",\"Yes\"))))","v":"N/A"}]
["Agence Francaise de Developpement","FR-03",{"$f":"VLOOKUP(Tableau2[[#This Row],[Organisation identifier]],Tableau3[#All],4,FALSE)","v":"Agence Francaise de Developpement"},"French","Evaluation Aide budgétaire Changement climatique ","https://www.afd.fr/sites/afd/files/2019-04-09-50-31/CVN1163-1180-1195-evaluation-summary-vietnam-environmental-policy-administrative-management.pdf ","A07 - Review of project performance and evaluation\n","French",null,"VN - Viet Nam\n",{"$f":"IF(Tableau2[[#This Row],[TB-Period-start]]=\"\",\"N/A\",IF(Tableau2[[#This Row],[TB-Period-end]]=\"\",\"N/A\",IF(Tableau2[[#This Row],[TB-value]]=\"\",\"N/A\",IF(Tableau2[[#This Row],[TB-value-date]]=\"\",\"N/A\",\"Yes\"))))","v":"N/A"},null,null,null,null,null,null,null,null,null,null,{"$f":"IF(Tableau2[[#This Row],[TE-Period-start]]=\"\",\"N/A\",IF(Tableau2[[#This Row],[TE-Period-end]]=\"\",\"N/A\",IF(Tableau2[[#This Row],[TE-value]]=\"\",\"N/A\",IF(Tableau2[[#This Row],[TE-value-date]]=\"\",\"N/A\",\"Yes\"))))","v":"N/A"}]
["Agence Francaise de Developpement","FR-03",{"$f":"VLOOKUP(Tableau2[[#This Row],[Organisation identifier]],Tableau3[#All],4,FALSE)","v":"Agence Francaise de Developpement"},"French","Evaluation Programme d'alimentation en eau potable villes secondaires Delta du Mekong","https://www.afd.fr/sites/afd/files/2019-04-04-56-24/CVN3013-resume-evaluation-vietnam-eau-et-assainissement.pdf ","A07 - Review of project performance and evaluation\n","French",null,"VN - Viet Nam\n",{"$f":"IF(Tableau2[[#This Row],[TB-Period-start]]=\"\",\"N/A\",IF(Tableau2[[#This Row],[TB-Period-end]]=\"\",\"N/A\",IF(Tableau2[[#This Row],[TB-value]]=\"\",\"N/A\",IF(Tableau2[[#This Row],[TB-value-date]]=\"\",\"N/A\",\"Yes\"))))","v":"N/A"},null,null,null,null,null,null,null,null,null,null,{"$f":"IF(Tableau2[[#This Row],[TE-Period-start]]=\"\",\"N/A\",IF(Tableau2[[#This Row],[TE-Period-end]]=\"\",\"N/A\",IF(Tableau2[[#This Row],[TE-value]]=\"\",\"N/A\",IF(Tableau2[[#This Row],[TE-value-date]]=\"\",\"N/A\",\"Yes\"))))","v":"N/A"}]
["Agence Francaise de Developpement","FR-03",{"$f":"VLOOKUP(Tableau2[[#This Row],[Organisation identifier]],Tableau3[#All],4,FALSE)","v":"Agence Francaise de Developpement"},"French","Evaluation Renforcement des capacités de HIFU et de ses partenaires stratégiques","https://www.afd.fr/sites/afd/files/2019-04-09-52-26/CVN6009-evaluation-summary-vietnam-financial-intermediaries.pdf ","A07 - Review of project performance and evaluation\n","French",null,"VN - Viet Nam\n",{"$f":"IF(Tableau2[[#This Row],[TB-Period-start]]=\"\",\"N/A\",IF(Tableau2[[#This Row],[TB-Period-end]]=\"\",\"N/A\",IF(Tableau2[[#This Row],[TB-value]]=\"\",\"N/A\",IF(Tableau2[[#This Row],[TB-value-date]]=\"\",\"N/A\",\"Yes\"))))","v":"N/A"},null,null,null,null,null,null,null,null,null,null,{"$f":"IF(Tableau2[[#This Row],[TE-Period-start]]=\"\",\"N/A\",IF(Tableau2[[#This Row],[TE-Period-end]]=\"\",\"N/A\",IF(Tableau2[[#This Row],[TE-value]]=\"\",\"N/A\",IF(Tableau2[[#This Row],[TE-value-date]]=\"\",\"N/A\",\"Yes\"))))","v":"N/A"}]
["Agence Francaise de Developpement","FR-03","Agence Francaise de Developpement","French","Evaluation Financement partiel du budget d'investissement de la ville du Cap","https://www.afd.fr/sites/afd/files/2019-04-10-31-38/CZA1101-1125-evaluation-summary-south-africa-urban-development.pdf ","A07 - Review of project performance and evaluation\n","French",null,"ZA - South Africa\n",{"$f":"IF(Tableau2[[#This Row],[TB-Period-start]]=\"\",\"N/A\",IF(Tableau2[[#This Row],[TB-Period-end]]=\"\",\"N/A\",IF(Tableau2[[#This Row],[TB-value]]=\"\",\"N/A\",IF(Tableau2[[#This Row],[TB-value-date]]=\"\",\"N/A\",\"Yes\"))))","v":"N/A"},null,null,null,null,null,null,null,null,null,null,{"$f":"IF(Tableau2[[#This Row],[TE-Period-start]]=\"\",\"N/A\",IF(Tableau2[[#This Row],[TE-Period-end]]=\"\",\"N/A\",IF(Tableau2[[#This Row],[TE-value]]=\"\",\"N/A\",IF(Tableau2[[#This Row],[TE-value-date]]=\"\",\"N/A\",\"Yes\"))))","v":"N/A"}]
["Agence Francaise de Developpement","FR-03",{"$f":"VLOOKUP(Tableau2[[#This Row],[Organisation identifier]],Tableau3[#All],4,FALSE)","v":"Agence Francaise de Developpement"},"French","Evaluation Financement de la politique de transformation spatiale de Johannesbourg","https://www.afd.fr/sites/afd/files/2019-04-09-54-42/CZA1114-evaluation-summary-south-africa-urban-development.pdf \n","A07 - Review of project performance and evaluation\n","French",null,"ZA - South Africa\n",{"$f":"IF(Tableau2[[#This Row],[TB-Period-start]]=\"\",\"N/A\",IF(Tableau2[[#This Row],[TB-Period-end]]=\"\",\"N/A\",IF(Tableau2[[#This Row],[TB-value]]=\"\",\"N/A\",IF(Tableau2[[#This Row],[TB-value-date]]=\"\",\"N/A\",\"Yes\"))))","v":"N/A"},null,null,null,null,null,null,null,null,null,null,{"$f":"IF(Tableau2[[#This Row],[TE-Period-start]]=\"\",\"N/A\",IF(Tableau2[[#This Row],[TE-Period-end]]=\"\",\"N/A\",IF(Tableau2[[#This Row],[TE-value]]=\"\",\"N/A\",IF(Tableau2[[#This Row],[TE-value-date]]=\"\",\"N/A\",\"Yes\"))))","v":"N/A"}]
["Agence Francaise de Developpement","FR-03",{"$f":"VLOOKUP(Tableau2[[#This Row],[Organisation identifier]],Tableau3[#All],4,FALSE)","v":"Agence Francaise de Developpement"},"French","Evaluation Prêt de 40 M Euros à la RMB pour contribuer aux programmes de logement accessibles","https://www.afd.fr/sites/afd/files/2019-04-10-11-42/CZA3010-6007-6009-evaluation-summary-south-africa-low-cost-housing.pdf ","A07 - Review of project performance and evaluation\n","French",null,"ZA - South Africa\n",{"$f":"IF(Tableau2[[#This Row],[TB-Period-start]]=\"\",\"N/A\",IF(Tableau2[[#This Row],[TB-Period-end]]=\"\",\"N/A\",IF(Tableau2[[#This Row],[TB-value]]=\"\",\"N/A\",IF(Tableau2[[#This Row],[TB-value-date]]=\"\",\"N/A\",\"Yes\"))))","v":"N/A"},null,null,null,null,null,null,null,null,null,null,{"$f":"IF(Tableau2[[#This Row],[TE-Period-start]]=\"\",\"N/A\",IF(Tableau2[[#This Row],[TE-Period-end]]=\"\",\"N/A\",IF(Tableau2[[#This Row],[TE-value]]=\"\",\"N/A\",IF(Tableau2[[#This Row],[TE-value-date]]=\"\",\"N/A\",\"Yes\"))))","v":"N/A"}]
["Agence Francaise de Developpement","FR-03",{"$f":"VLOOKUP(Tableau2[[#This Row],[Organisation identifier]],Tableau3[#All],4,FALSE)","v":"Agence Francaise de Developpement"},"French","Evaluation Ferme éolienne de SERE (100MW) ESKOM - Afrique du Sud","https://www.afd.fr/sites/afd/files/2019-04-09-56-11/CZA6012-evaluation-summary-south-africa-wind-power.pdf ","A07 - Review of project performance and evaluation\n","French",null,"ZA - South Africa\n",{"$f":"IF(Tableau2[[#This Row],[TB-Period-start]]=\"\",\"N/A\",IF(Tableau2[[#This Row],[TB-Period-end]]=\"\",\"N/A\",IF(Tableau2[[#This Row],[TB-value]]=\"\",\"N/A\",IF(Tableau2[[#This Row],[TB-value-date]]=\"\",\"N/A\",\"Yes\"))))","v":"N/A"},null,null,null,null,null,null,null,null,null,null,{"$f":"IF(Tableau2[[#This Row],[TE-Period-start]]=\"\",\"N/A\",IF(Tableau2[[#This Row],[TE-Period-end]]=\"\",\"N/A\",IF(Tableau2[[#This Row],[TE-value]]=\"\",\"N/A\",IF(Tableau2[[#This Row],[TE-value-date]]=\"\",\"N/A\",\"Yes\"))))","v":"N/A"}]
["Agence Francaise de Developpement","FR-03",{"$f":"VLOOKUP(Tableau2[[#This Row],[Organisation identifier]],Tableau3[#All],4,FALSE)","v":"Agence Francaise de Developpement"},"French","Evaluation Programme d'appui à la sécurité alimentaire et nutritionnelle en Afrique de l'Ouest","https://www.afd.fr/sites/afd/files/2019-04-09-58-24/CZZ1431-resume-evaluation-multi-pays-afrique-ouest-securite-alimentaire.pdf ","A07 - Review of project performance and evaluation\n","French",null,null,{"$f":"IF(Tableau2[[#This Row],[TB-Period-start]]=\"\",\"N/A\",IF(Tableau2[[#This Row],[TB-Period-end]]=\"\",\"N/A\",IF(Tableau2[[#This Row],[TB-value]]=\"\",\"N/A\",IF(Tableau2[[#This Row],[TB-value-date]]=\"\",\"N/A\",\"Yes\"))))","v":"N/A"},null,null,null,null,null,null,null,null,null,null,{"$f":"IF(Tableau2[[#This Row],[TE-Period-start]]=\"\",\"N/A\",IF(Tableau2[[#This Row],[TE-Period-end]]=\"\",\"N/A\",IF(Tableau2[[#This Row],[TE-value]]=\"\",\"N/A\",IF(Tableau2[[#This Row],[TE-value-date]]=\"\",\"N/A\",\"Yes\"))))","v":"N/A"}]
["Agence Francaise de Developpement","FR-03",{"$f":"VLOOKUP(Tableau2[[#This Row],[Organisation identifier]],Tableau3[#All],4,FALSE)","v":"Agence Francaise de Developpement"},"French","Evaluation Initiative régionale pour la gestion des déchets solides dans le Pacifique","https://www.afd.fr/sites/afd/files/2019-04-04-52-04/CZZ3054-evaluation-summary-south-pacific-region-waste-management-disposal.pdf ","A07 - Review of project performance and evaluation\n","French",null,null,{"$f":"IF(Tableau2[[#This Row],[TB-Period-start]]=\"\",\"N/A\",IF(Tableau2[[#This Row],[TB-Period-end]]=\"\",\"N/A\",IF(Tableau2[[#This Row],[TB-value]]=\"\",\"N/A\",IF(Tableau2[[#This Row],[TB-value-date]]=\"\",\"N/A\",\"Yes\"))))","v":"N/A"},null,null,null,null,null,null,null,null,null,null,{"$f":"IF(Tableau2[[#This Row],[TE-Period-start]]=\"\",\"N/A\",IF(Tableau2[[#This Row],[TE-Period-end]]=\"\",\"N/A\",IF(Tableau2[[#This Row],[TE-value]]=\"\",\"N/A\",IF(Tableau2[[#This Row],[TE-value-date]]=\"\",\"N/A\",\"Yes\"))))","v":"N/A"}]
["Agence Francaise de Developpement","FR-03",{"$f":"VLOOKUP(Tableau2[[#This Row],[Organisation identifier]],Tableau3[#All],4,FALSE)","v":"Agence Francaise de Developpement"},"French","Evaluation Poursuite du soutien à l'ABN projet GIRE","https://www.afd.fr/sites/afd/files/2019-04-09-57-17/CZZ1369-resume-evaluation-multi-pays-bassin-transfrontalier.pdf ","A07 - Review of project performance and evaluation\n","French",null,null,{"$f":"IF(Tableau2[[#This Row],[TB-Period-start]]=\"\",\"N/A\",IF(Tableau2[[#This Row],[TB-Period-end]]=\"\",\"N/A\",IF(Tableau2[[#This Row],[TB-value]]=\"\",\"N/A\",IF(Tableau2[[#This Row],[TB-value-date]]=\"\",\"N/A\",\"Yes\"))))","v":"N/A"},null,null,null,null,null,null,null,null,null,null,{"$f":"IF(Tableau2[[#This Row],[TE-Period-start]]=\"\",\"N/A\",IF(Tableau2[[#This Row],[TE-Period-end]]=\"\",\"N/A\",IF(Tableau2[[#This Row],[TE-value]]=\"\",\"N/A\",IF(Tableau2[[#This Row],[TE-value-date]]=\"\",\"N/A\",\"Yes\"))))","v":"N/A"}]
["Agence Francaise de Developpement","FR-03",{"$f":"VLOOKUP(Tableau2[[#This Row],[Organisation identifier]],Tableau3[#All],4,FALSE)","v":"Agence Francaise de Developpement"},"French","Evaluation Appui au Pôle de Dakar en vue d'accompagner l'amélioration de l'éducation en Afrique","http://www.iiep.unesco.org/sites/default/files/pdk_2018_eval_rapport_final_forwebsite.pdf  ","A07 - Review of project performance and evaluation\n","French",null,"SN - Senegal\n",{"$f":"IF(Tableau2[[#This Row],[TB-Period-start]]=\"\",\"N/A\",IF(Tableau2[[#This Row],[TB-Period-end]]=\"\",\"N/A\",IF(Tableau2[[#This Row],[TB-value]]=\"\",\"N/A\",IF(Tableau2[[#This Row],[TB-value-date]]=\"\",\"N/A\",\"Yes\"))))","v":"N/A"},null,null,null,null,null,null,null,null,null,null,{"$f":"IF(Tableau2[[#This Row],[TE-Period-start]]=\"\",\"N/A\",IF(Tableau2[[#This Row],[TE-Period-end]]=\"\",\"N/A\",IF(Tableau2[[#This Row],[TE-value]]=\"\",\"N/A\",IF(Tableau2[[#This Row],[TE-value-date]]=\"\",\"N/A\",\"Yes\"))))","v":"N/A"}]
["Agence Francaise de Developpement","FR-03",{"$f":"VLOOKUP(Tableau2[[#This Row],[Organisation identifier]],Tableau3[#All],4,FALSE)","v":"Agence Francaise de Developpement"},"French","Evaluation MAD de l'OIE d'une expertise technique pour l'amélioration de la gouvernance vétérinaire","https://www.afd.fr/sites/afd/files/2019-04-09-59-26/CZZ1570-1847-multi-pays-agriculture-securite-alimentaire.pdf ","A07 - Review of project performance and evaluation\n","French",null,null,{"$f":"IF(Tableau2[[#This Row],[TB-Period-start]]=\"\",\"N/A\",IF(Tableau2[[#This Row],[TB-Period-end]]=\"\",\"N/A\",IF(Tableau2[[#This Row],[TB-value]]=\"\",\"N/A\",IF(Tableau2[[#This Row],[TB-value-date]]=\"\",\"N/A\",\"Yes\"))))","v":"N/A"},null,null,null,null,null,null,null,null,null,null,{"$f":"IF(Tableau2[[#This Row],[TE-Period-start]]=\"\",\"N/A\",IF(Tableau2[[#This Row],[TE-Period-end]]=\"\",\"N/A\",IF(Tableau2[[#This Row],[TE-value]]=\"\",\"N/A\",IF(Tableau2[[#This Row],[TE-value-date]]=\"\",\"N/A\",\"Yes\"))))","v":"N/A"}]
["Agence Francaise de Developpement","FR-03",{"$f":"VLOOKUP(Tableau2[[#This Row],[Organisation identifier]],Tableau3[#All],4,FALSE)","v":"Agence Francaise de Developpement"},"French","Evaluation Ecole et langue nationale en Afrique","https://www.afd.fr/sites/afd/files/2019-04-05-23-04/CZZ1579-evaluation-initiative-elan-afrique.pdf ","A07 - Review of project performance and evaluation\n","French",null,null,{"$f":"IF(Tableau2[[#This Row],[TB-Period-start]]=\"\",\"N/A\",IF(Tableau2[[#This Row],[TB-Period-end]]=\"\",\"N/A\",IF(Tableau2[[#This Row],[TB-value]]=\"\",\"N/A\",IF(Tableau2[[#This Row],[TB-value-date]]=\"\",\"N/A\",\"Yes\"))))","v":"N/A"},null,null,null,null,null,null,null,null,null,null,{"$f":"IF(Tableau2[[#This Row],[TE-Period-start]]=\"\",\"N/A\",IF(Tableau2[[#This Row],[TE-Period-end]]=\"\",\"N/A\",IF(Tableau2[[#This Row],[TE-value]]=\"\",\"N/A\",IF(Tableau2[[#This Row],[TE-value-date]]=\"\",\"N/A\",\"Yes\"))))","v":"N/A"}]
["Agence Francaise de Developpement","FR-03",{"$f":"VLOOKUP(Tableau2[[#This Row],[Organisation identifier]],Tableau3[#All],4,FALSE)","v":"Agence Francaise de Developpement"},"French","Evaluation Renforcement des performances techniques et financières du secteur de l'eau en Jordanie","https://www.afd.fr/sites/afd/files/2019-07-09-53-49/wspl-jordan-afd-kfw-joint-interim-evaluation.pdf","A07 - Review of project performance and evaluation\n","French",null,"JO - Jordan\n",{"$f":"IF(Tableau2[[#This Row],[TB-Period-start]]=\"\",\"N/A\",IF(Tableau2[[#This Row],[TB-Period-end]]=\"\",\"N/A\",IF(Tableau2[[#This Row],[TB-value]]=\"\",\"N/A\",IF(Tableau2[[#This Row],[TB-value-date]]=\"\",\"N/A\",\"Yes\"))))","v":"N/A"},null,null,null,null,null,null,null,null,null,null,{"$f":"IF(Tableau2[[#This Row],[TE-Period-start]]=\"\",\"N/A\",IF(Tableau2[[#This Row],[TE-Period-end]]=\"\",\"N/A\",IF(Tableau2[[#This Row],[TE-value]]=\"\",\"N/A\",IF(Tableau2[[#This Row],[TE-value-date]]=\"\",\"N/A\",\"Yes\"))))","v":"N/A"}]
["Agence Francaise de Developpement","FR-03",{"$f":"VLOOKUP(Tableau2[[#This Row],[Organisation identifier]],Tableau3[#All],4,FALSE)","v":"Agence Francaise de Developpement"},"French","Evaluation Prêt de 150 millions d'euros de politique publique sectorielle en appui au renforcement des performances techniques et financières du secteur de l'eau en Jordanie ","https://www.afd.fr/sites/afd/files/2019-07-09-53-49/wspl-jordan-afd-kfw-joint-interim-evaluation.pdf","A07 - Review of project performance and evaluation\n","French",null,"JO - Jordan\n",{"$f":"IF(Tableau2[[#This Row],[TB-Period-start]]=\"\",\"N/A\",IF(Tableau2[[#This Row],[TB-Period-end]]=\"\",\"N/A\",IF(Tableau2[[#This Row],[TB-value]]=\"\",\"N/A\",IF(Tableau2[[#This Row],[TB-value-date]]=\"\",\"N/A\",\"Yes\"))))","v":"N/A"},null,null,null,null,null,null,null,null,null,null,{"$f":"IF(Tableau2[[#This Row],[TE-Period-start]]=\"\",\"N/A\",IF(Tableau2[[#This Row],[TE-Period-end]]=\"\",\"N/A\",IF(Tableau2[[#This Row],[TE-value]]=\"\",\"N/A\",IF(Tableau2[[#This Row],[TE-value-date]]=\"\",\"N/A\",\"Yes\"))))","v":"N/A"}]
["Agence Francaise de Developpement","FR-03",{"$f":"VLOOKUP(Tableau2[[#This Row],[Organisation identifier]],Tableau3[#All],4,FALSE)","v":"Agence Francaise de Developpement"},"French","Evaluation Programme d’assainissement prioritaire de Libreville (APRIL)","https://www.afd.fr/sites/afd/files/2020-01-03-17-59/resume-evaluation-programme-assainissement-prioritaire-libreville-APRIL-gabon-CGA1134-6000-6011.pdf","A07 - Review of project performance and evaluation\n","French",null,"GA - Gabon\n",{"$f":"IF(Tableau2[[#This Row],[TB-Period-start]]=\"\",\"N/A\",IF(Tableau2[[#This Row],[TB-Period-end]]=\"\",\"N/A\",IF(Tableau2[[#This Row],[TB-value]]=\"\",\"N/A\",IF(Tableau2[[#This Row],[TB-value-date]]=\"\",\"N/A\",\"Yes\"))))","v":"N/A"},null,null,null,null,null,null,null,null,null,null,{"$f":"IF(Tableau2[[#This Row],[TE-Period-start]]=\"\",\"N/A\",IF(Tableau2[[#This Row],[TE-Period-end]]=\"\",\"N/A\",IF(Tableau2[[#This Row],[TE-value]]=\"\",\"N/A\",IF(Tableau2[[#This Row],[TE-value-date]]=\"\",\"N/A\",\"Yes\"))))","v":"N/A"}]
["Agence Francaise de Developpement","FR-03",{"$f":"VLOOKUP(Tableau2[[#This Row],[Organisation identifier]],Tableau3[#All],4,FALSE)","v":"Agence Francaise de Developpement"},"French","Evaluation District Development Facility","https://www.afd.fr/sites/afd/files/2019-12-02-13-42/evaluation-summary-district-development-facility-ddf-ghana-CGH1088.pdf","A07 - Review of project performance and evaluation\n","French",null,"GH - Ghana\n",{"$f":"IF(Tableau2[[#This Row],[TB-Period-start]]=\"\",\"N/A\",IF(Tableau2[[#This Row],[TB-Period-end]]=\"\",\"N/A\",IF(Tableau2[[#This Row],[TB-value]]=\"\",\"N/A\",IF(Tableau2[[#This Row],[TB-value-date]]=\"\",\"N/A\",\"Yes\"))))","v":"N/A"},null,null,null,null,null,null,null,null,null,null,{"$f":"IF(Tableau2[[#This Row],[TE-Period-start]]=\"\",\"N/A\",IF(Tableau2[[#This Row],[TE-Period-end]]=\"\",\"N/A\",IF(Tableau2[[#This Row],[TE-value]]=\"\",\"N/A\",IF(Tableau2[[#This Row],[TE-value-date]]=\"\",\"N/A\",\"Yes\"))))","v":"N/A"}]
["Agence Francaise de Developpement","FR-03",{"$f":"VLOOKUP(Tableau2[[#This Row],[Organisation identifier]],Tableau3[#All],4,FALSE)","v":"Agence Francaise de Developpement"},"French","Evaluation Nampower Caprivi","https://www.afd.fr/sites/afd/files/2019-12-11-34-46/evaluation-summary-nampower-caprivi-link-interconnector-project-namibia-CNA3001.pdf","A07 - Review of project performance and evaluation\n","French",null,"NA - Namibia\n",{"$f":"IF(Tableau2[[#This Row],[TB-Period-start]]=\"\",\"N/A\",IF(Tableau2[[#This Row],[TB-Period-end]]=\"\",\"N/A\",IF(Tableau2[[#This Row],[TB-value]]=\"\",\"N/A\",IF(Tableau2[[#This Row],[TB-value-date]]=\"\",\"N/A\",\"Yes\"))))","v":"N/A"},null,null,null,null,null,null,null,null,null,null,{"$f":"IF(Tableau2[[#This Row],[TE-Period-start]]=\"\",\"N/A\",IF(Tableau2[[#This Row],[TE-Period-end]]=\"\",\"N/A\",IF(Tableau2[[#This Row],[TE-value]]=\"\",\"N/A\",IF(Tableau2[[#This Row],[TE-value-date]]=\"\",\"N/A\",\"Yes\"))))","v":"N/A"}]
["Agence Francaise de Developpement","FR-03",{"$f":"VLOOKUP(Tableau2[[#This Row],[Organisation identifier]],Tableau3[#All],4,FALSE)","v":"Agence Francaise de Developpement"},"French","Evaluation AFD budget support for decentralization in the Philippines (2009-2015)","https://www.afd.fr/sites/afd/files/2019-12-02-26-20/evaluation-summary-budget-support-operation-decentralization-philippines-CPH1001-103.pdf","A07 - Review of project performance and evaluation\n","French",null,"PH - Philippines (the)\n",{"$f":"IF(Tableau2[[#This Row],[TB-Period-start]]=\"\",\"N/A\",IF(Tableau2[[#This Row],[TB-Period-end]]=\"\",\"N/A\",IF(Tableau2[[#This Row],[TB-value]]=\"\",\"N/A\",IF(Tableau2[[#This Row],[TB-value-date]]=\"\",\"N/A\",\"Yes\"))))","v":"N/A"},null,null,null,null,null,null,null,null,null,null,{"$f":"IF(Tableau2[[#This Row],[TE-Period-start]]=\"\",\"N/A\",IF(Tableau2[[#This Row],[TE-Period-end]]=\"\",\"N/A\",IF(Tableau2[[#This Row],[TE-value]]=\"\",\"N/A\",IF(Tableau2[[#This Row],[TE-value-date]]=\"\",\"N/A\",\"Yes\"))))","v":"N/A"}]
["Agence Francaise de Developpement","FR-03",{"$f":"VLOOKUP(Tableau2[[#This Row],[Organisation identifier]],Tableau3[#All],4,FALSE)","v":"Agence Francaise de Developpement"},"French","Evaluation d’une grappe de projets d’investissements hospitaliers privés à but non lucratif CEDIMAT","https://www.afd.fr/sites/afd/files/2020-01-03-32-19/resume-evaluation-cedimat-republique-dominicaine-CDO1027.pdf","A07 - Review of project performance and evaluation\n","French",null,"DO - Dominican Republic (the)\n",{"$f":"IF(Tableau2[[#This Row],[TB-Period-start]]=\"\",\"N/A\",IF(Tableau2[[#This Row],[TB-Period-end]]=\"\",\"N/A\",IF(Tableau2[[#This Row],[TB-value]]=\"\",\"N/A\",IF(Tableau2[[#This Row],[TB-value-date]]=\"\",\"N/A\",\"Yes\"))))","v":"N/A"},null,null,null,null,null,null,null,null,null,null,{"$f":"IF(Tableau2[[#This Row],[TE-Period-start]]=\"\",\"N/A\",IF(Tableau2[[#This Row],[TE-Period-end]]=\"\",\"N/A\",IF(Tableau2[[#This Row],[TE-value]]=\"\",\"N/A\",IF(Tableau2[[#This Row],[TE-value-date]]=\"\",\"N/A\",\"Yes\"))))","v":"N/A"}]
["Agence Francaise de Developpement","FR-03",{"$f":"VLOOKUP(Tableau2[[#This Row],[Organisation identifier]],Tableau3[#All],4,FALSE)","v":"Agence Francaise de Developpement"},"French","Evaluation d’une grappe de projets d’investissements hospitaliers privés à but non lucratif - PROMEKIN","https://www.afd.fr/sites/afd/files/2020-01-03-24-47/resume-evaluation-promekin-rdc-CCD1049.pdf","A07 - Review of project performance and evaluation\n","French",null,"CD - Congo (the Democratic Republic of the)\n",{"$f":"IF(Tableau2[[#This Row],[TB-Period-start]]=\"\",\"N/A\",IF(Tableau2[[#This Row],[TB-Period-end]]=\"\",\"N/A\",IF(Tableau2[[#This Row],[TB-value]]=\"\",\"N/A\",IF(Tableau2[[#This Row],[TB-value-date]]=\"\",\"N/A\",\"Yes\"))))","v":"N/A"},null,null,null,null,null,null,null,null,null,null,{"$f":"IF(Tableau2[[#This Row],[TE-Period-start]]=\"\",\"N/A\",IF(Tableau2[[#This Row],[TE-Period-end]]=\"\",\"N/A\",IF(Tableau2[[#This Row],[TE-value]]=\"\",\"N/A\",IF(Tableau2[[#This Row],[TE-value-date]]=\"\",\"N/A\",\"Yes\"))))","v":"N/A"}]
["Agence Francaise de Developpement","FR-03",{"$f":"VLOOKUP(Tableau2[[#This Row],[Organisation identifier]],Tableau3[#All],4,FALSE)","v":"Agence Francaise de Developpement"},"French","Evaluation d’une grappe de projets d’investissements hospitaliers privés à but non lucratif - Cameroon Baptist Convention (CBC)","https://www.afd.fr/sites/afd/files/2019-12-10-48-47/resume-evaluation-cameroon-baptist-convention-cbc-CCM1281.pdf","A07 - Review of project performance and evaluation\n","French",null,"CM - Cameroon\n",{"$f":"IF(Tableau2[[#This Row],[TB-Period-start]]=\"\",\"N/A\",IF(Tableau2[[#This Row],[TB-Period-end]]=\"\",\"N/A\",IF(Tableau2[[#This Row],[TB-value]]=\"\",\"N/A\",IF(Tableau2[[#This Row],[TB-value-date]]=\"\",\"N/A\",\"Yes\"))))","v":"N/A"},null,null,null,null,null,null,null,null,null,null,{"$f":"IF(Tableau2[[#This Row],[TE-Period-start]]=\"\",\"N/A\",IF(Tableau2[[#This Row],[TE-Period-end]]=\"\",\"N/A\",IF(Tableau2[[#This Row],[TE-value]]=\"\",\"N/A\",IF(Tableau2[[#This Row],[TE-value-date]]=\"\",\"N/A\",\"Yes\"))))","v":"N/A"}]
["Agence Francaise de Developpement","FR-03",{"$f":"VLOOKUP(Tableau2[[#This Row],[Organisation identifier]],Tableau3[#All],4,FALSE)","v":"Agence Francaise de Developpement"},"French","Evaluation Soutien à la restructuration financière et institutionnelle de la SENELEC","https://www.afd.fr/sites/afd/files/2020-01-04-03-36/resume-evaluation-soutien-restructuration-financiere-et-institutionnelle-SENELEC-CSN6031.pdf","A07 - Review of project performance and evaluation\n","French",null,"SN - Senegal\n",{"$f":"IF(Tableau2[[#This Row],[TB-Period-start]]=\"\",\"N/A\",IF(Tableau2[[#This Row],[TB-Period-end]]=\"\",\"N/A\",IF(Tableau2[[#This Row],[TB-value]]=\"\",\"N/A\",IF(Tableau2[[#This Row],[TB-value-date]]=\"\",\"N/A\",\"Yes\"))))","v":"N/A"},null,null,null,null,null,null,null,null,null,null,{"$f":"IF(Tableau2[[#This Row],[TE-Period-start]]=\"\",\"N/A\",IF(Tableau2[[#This Row],[TE-Period-end]]=\"\",\"N/A\",IF(Tableau2[[#This Row],[TE-value]]=\"\",\"N/A\",IF(Tableau2[[#This Row],[TE-value-date]]=\"\",\"N/A\",\"Yes\"))))","v":"N/A"}]
["Agence Francaise de Developpement","FR-03",{"$f":"VLOOKUP(Tableau2[[#This Row],[Organisation identifier]],Tableau3[#All],4,FALSE)","v":"Agence Francaise de Developpement"},"French","Evaluation Contribution au plan de redressement du secteur de l’électricité au Sénégal","https://www.afd.fr/sites/afd/files/2020-01-03-58-36/resume-evaluation-contribution-plan-redressement-secteur-electricite-senegal-CSN1351.pdf","A07 - Review of project performance and evaluation\n","French",null,"SN - Senegal\n",{"$f":"IF(Tableau2[[#This Row],[TB-Period-start]]=\"\",\"N/A\",IF(Tableau2[[#This Row],[TB-Period-end]]=\"\",\"N/A\",IF(Tableau2[[#This Row],[TB-value]]=\"\",\"N/A\",IF(Tableau2[[#This Row],[TB-value-date]]=\"\",\"N/A\",\"Yes\"))))","v":"N/A"},null,null,null,null,null,null,null,null,null,null,{"$f":"IF(Tableau2[[#This Row],[TE-Period-start]]=\"\",\"N/A\",IF(Tableau2[[#This Row],[TE-Period-end]]=\"\",\"N/A\",IF(Tableau2[[#This Row],[TE-value]]=\"\",\"N/A\",IF(Tableau2[[#This Row],[TE-value-date]]=\"\",\"N/A\",\"Yes\"))))","v":"N/A"}]
["Agence Francaise de Developpement","FR-03",{"$f":"VLOOKUP(Tableau2[[#This Row],[Organisation identifier]],Tableau3[#All],4,FALSE)","v":"Agence Francaise de Developpement"},"French","Evaluation Centrale solaire Zagtouli","https://www.afd.fr/sites/afd/files/2020-01-04-44-50/resume-evaluation-centrale-solaire-zagtouli-CBF1257.pdf","A07 - Review of project performance and evaluation\n","French",null,"BF - Burkina Faso\n",{"$f":"IF(Tableau2[[#This Row],[TB-Period-start]]=\"\",\"N/A\",IF(Tableau2[[#This Row],[TB-Period-end]]=\"\",\"N/A\",IF(Tableau2[[#This Row],[TB-value]]=\"\",\"N/A\",IF(Tableau2[[#This Row],[TB-value-date]]=\"\",\"N/A\",\"Yes\"))))","v":"N/A"},null,null,null,null,null,null,null,null,null,null,{"$f":"IF(Tableau2[[#This Row],[TE-Period-start]]=\"\",\"N/A\",IF(Tableau2[[#This Row],[TE-Period-end]]=\"\",\"N/A\",IF(Tableau2[[#This Row],[TE-value]]=\"\",\"N/A\",IF(Tableau2[[#This Row],[TE-value-date]]=\"\",\"N/A\",\"Yes\"))))","v":"N/A"}]
["Agence Francaise de Developpement","FR-03",{"$f":"VLOOKUP(Tableau2[[#This Row],[Organisation identifier]],Tableau3[#All],4,FALSE)","v":"Agence Francaise de Developpement"},"French","Evaluation Ligne d’Interconnexion électrique entre Bolgatanga (Ghana) et Ouagadougou (Burkina Faso)","https://www.afd.fr/sites/afd/files/2020-01-04-37-13/resume-evaluation-ligne-interconnexion-electrique-bolgatanga-ghana-et-ouagadougou-burkina-faso-CBF1182.pdf","A07 - Review of project performance and evaluation\n","French",null,"BF - Burkina Faso\n",{"$f":"IF(Tableau2[[#This Row],[TB-Period-start]]=\"\",\"N/A\",IF(Tableau2[[#This Row],[TB-Period-end]]=\"\",\"N/A\",IF(Tableau2[[#This Row],[TB-value]]=\"\",\"N/A\",IF(Tableau2[[#This Row],[TB-value-date]]=\"\",\"N/A\",\"Yes\"))))","v":"N/A"},null,null,null,null,null,null,null,null,null,null,{"$f":"IF(Tableau2[[#This Row],[TE-Period-start]]=\"\",\"N/A\",IF(Tableau2[[#This Row],[TE-Period-end]]=\"\",\"N/A\",IF(Tableau2[[#This Row],[TE-value]]=\"\",\"N/A\",IF(Tableau2[[#This Row],[TE-value-date]]=\"\",\"N/A\",\"Yes\"))))","v":"N/A"}]
["Agence Francaise de Developpement","FR-03",{"$f":"VLOOKUP(Tableau2[[#This Row],[Organisation identifier]],Tableau3[#All],4,FALSE)","v":"Agence Francaise de Developpement"},"French","Evaluation Programme sectoriel irrigation : irrigation et entreprenariat rural dans les régions Ouest, Artibonite et Plateau central","https://www.afd.fr/sites/afd/files/2019-12-03-56-00/resume-evaluation--programme-sectoriel-irrigation-haiti-CHT1044-3005.pdf","A07 - Review of project performance and evaluation\n","French",null,"HT - Haiti\n",{"$f":"IF(Tableau2[[#This Row],[TB-Period-start]]=\"\",\"N/A\",IF(Tableau2[[#This Row],[TB-Period-end]]=\"\",\"N/A\",IF(Tableau2[[#This Row],[TB-value]]=\"\",\"N/A\",IF(Tableau2[[#This Row],[TB-value-date]]=\"\",\"N/A\",\"Yes\"))))","v":"N/A"},null,null,null,null,null,null,null,null,null,null,{"$f":"IF(Tableau2[[#This Row],[TE-Period-start]]=\"\",\"N/A\",IF(Tableau2[[#This Row],[TE-Period-end]]=\"\",\"N/A\",IF(Tableau2[[#This Row],[TE-value]]=\"\",\"N/A\",IF(Tableau2[[#This Row],[TE-value-date]]=\"\",\"N/A\",\"Yes\"))))","v":"N/A"}]
["Agence Francaise de Developpement","FR-03",{"$f":"VLOOKUP(Tableau2[[#This Row],[Organisation identifier]],Tableau3[#All],4,FALSE)","v":"Agence Francaise de Developpement"},"French","Stratégie régionale océan atlantique 2019 2023","https://www.afd.fr/fr/ressources/strategie-regionale-ocean-atlantique-2019-2023","B17 - Country/Region web page\n","French",null,null,{"$f":"IF(Tableau2[[#This Row],[TB-Period-start]]=\"\",\"N/A\",IF(Tableau2[[#This Row],[TB-Period-end]]=\"\",\"N/A\",IF(Tableau2[[#This Row],[TB-value]]=\"\",\"N/A\",IF(Tableau2[[#This Row],[TB-value-date]]=\"\",\"N/A\",\"Yes\"))))","v":"N/A"},null,null,null,null,null,null,null,null,null,null,{"$f":"IF(Tableau2[[#This Row],[TE-Period-start]]=\"\",\"N/A\",IF(Tableau2[[#This Row],[TE-Period-end]]=\"\",\"N/A\",IF(Tableau2[[#This Row],[TE-value]]=\"\",\"N/A\",IF(Tableau2[[#This Row],[TE-value-date]]=\"\",\"N/A\",\"Yes\"))))","v":"N/A"}]
["Agence Francaise de Developpement","FR-03",{"$f":"VLOOKUP(Tableau2[[#This Row],[Organisation identifier]],Tableau3[#All],4,FALSE)","v":"Agence Francaise de Developpement"},"French","Stratégie régionale Océan pacifique 2019 2023","https://www.afd.fr/fr/ressources/strategie-regionale-ocean-pacifique-2019-2023","B17 - Country/Region web page\n","French",null,null,{"$f":"IF(Tableau2[[#This Row],[TB-Period-start]]=\"\",\"N/A\",IF(Tableau2[[#This Row],[TB-Period-end]]=\"\",\"N/A\",IF(Tableau2[[#This Row],[TB-value]]=\"\",\"N/A\",IF(Tableau2[[#This Row],[TB-value-date]]=\"\",\"N/A\",\"Yes\"))))","v":"N/A"},null,null,null,null,null,null,null,null,null,null,{"$f":"IF(Tableau2[[#This Row],[TE-Period-start]]=\"\",\"N/A\",IF(Tableau2[[#This Row],[TE-Period-end]]=\"\",\"N/A\",IF(Tableau2[[#This Row],[TE-value]]=\"\",\"N/A\",IF(Tableau2[[#This Row],[TE-value-date]]=\"\",\"N/A\",\"Yes\"))))","v":"N/A"}]
["Agence Francaise de Developpement","FR-03",{"$f":"VLOOKUP(Tableau2[[#This Row],[Organisation identifier]],Tableau3[#All],4,FALSE)","v":"Agence Francaise de Developpement"},"French","stratégie régionale Moyen Orient 2020 2023","https://www.afd.fr/fr/ressources/strategie-regionale-moyen-orient-2020-2023","B17 - Country/Region web page\n","French",null,null,{"$f":"IF(Tableau2[[#This Row],[TB-Period-start]]=\"\",\"N/A\",IF(Tableau2[[#This Row],[TB-Period-end]]=\"\",\"N/A\",IF(Tableau2[[#This Row],[TB-value]]=\"\",\"N/A\",IF(Tableau2[[#This Row],[TB-value-date]]=\"\",\"N/A\",\"Yes\"))))","v":"N/A"},null,null,null,null,null,null,null,null,null,null,{"$f":"IF(Tableau2[[#This Row],[TE-Period-start]]=\"\",\"N/A\",IF(Tableau2[[#This Row],[TE-Period-end]]=\"\",\"N/A\",IF(Tableau2[[#This Row],[TE-value]]=\"\",\"N/A\",IF(Tableau2[[#This Row],[TE-value-date]]=\"\",\"N/A\",\"Yes\"))))","v":"N/A"}]
["Agence Francaise de Developpement","FR-03",{"$f":"VLOOKUP(Tableau2[[#This Row],[Organisation identifier]],Tableau3[#All],4,FALSE)","v":"Agence Francaise de Developpement"},"French","Evaluation Education pour tous  EPT 1","https://www.afd.fr/fr/ressources/resume-devaluation-programme-education-pour-tous-au-benin-ept-1","A07 - Review of project performance and evaluation\n","French",null,"BJ - Benin\n",{"$f":"IF(Tableau2[[#This Row],[TB-Period-start]]=\"\",\"N/A\",IF(Tableau2[[#This Row],[TB-Period-end]]=\"\",\"N/A\",IF(Tableau2[[#This Row],[TB-value]]=\"\",\"N/A\",IF(Tableau2[[#This Row],[TB-value-date]]=\"\",\"N/A\",\"Yes\"))))","v":"N/A"},null,null,null,null,null,null,null,null,null,null,{"$f":"IF(Tableau2[[#This Row],[TE-Period-start]]=\"\",\"N/A\",IF(Tableau2[[#This Row],[TE-Period-end]]=\"\",\"N/A\",IF(Tableau2[[#This Row],[TE-value]]=\"\",\"N/A\",IF(Tableau2[[#This Row],[TE-value-date]]=\"\",\"N/A\",\"Yes\"))))","v":"N/A"}]
["Agence Francaise de Developpement","FR-03",{"$f":"VLOOKUP(Tableau2[[#This Row],[Organisation identifier]],Tableau3[#All],4,FALSE)","v":"Agence Francaise de Developpement"},"French","Evaluation Micofinance  PARSA - Projet de contribution au développement et à la professionnalisation du secteur de la microfinance Sanduk","https://www.afd.fr/fr/ressources/resume-devaluation-projet-dappui-et-de-renforcement-des-sanduk-danjouan-parsa-comores","A07 - Review of project performance and evaluation\n","French",null,"KM - Comoros (the)\n",{"$f":"IF(Tableau2[[#This Row],[TB-Period-start]]=\"\",\"N/A\",IF(Tableau2[[#This Row],[TB-Period-end]]=\"\",\"N/A\",IF(Tableau2[[#This Row],[TB-value]]=\"\",\"N/A\",IF(Tableau2[[#This Row],[TB-value-date]]=\"\",\"N/A\",\"Yes\"))))","v":"N/A"},null,null,null,null,null,null,null,null,null,null,{"$f":"IF(Tableau2[[#This Row],[TE-Period-start]]=\"\",\"N/A\",IF(Tableau2[[#This Row],[TE-Period-end]]=\"\",\"N/A\",IF(Tableau2[[#This Row],[TE-value]]=\"\",\"N/A\",IF(Tableau2[[#This Row],[TE-value-date]]=\"\",\"N/A\",\"Yes\"))))","v":"N/A"}]
["Agence Francaise de Developpement","FR-03",{"$f":"VLOOKUP(Tableau2[[#This Row],[Organisation identifier]],Tableau3[#All],4,FALSE)","v":"Agence Francaise de Developpement"},"French","Evaluation Projet de refinancement des Sanduk (PRSA)","https://www.afd.fr/fr/ressources/resume-devaluation-projet-de-refinancement-des-sanduk-prsa-comores","A07 - Review of project performance and evaluation\n","French",null,"KM - Comoros (the)\n",{"$f":"IF(Tableau2[[#This Row],[TB-Period-start]]=\"\",\"N/A\",IF(Tableau2[[#This Row],[TB-Period-end]]=\"\",\"N/A\",IF(Tableau2[[#This Row],[TB-value]]=\"\",\"N/A\",IF(Tableau2[[#This Row],[TB-value-date]]=\"\",\"N/A\",\"Yes\"))))","v":"N/A"},null,null,null,null,null,null,null,null,null,null,{"$f":"IF(Tableau2[[#This Row],[TE-Period-start]]=\"\",\"N/A\",IF(Tableau2[[#This Row],[TE-Period-end]]=\"\",\"N/A\",IF(Tableau2[[#This Row],[TE-value]]=\"\",\"N/A\",IF(Tableau2[[#This Row],[TE-value-date]]=\"\",\"N/A\",\"Yes\"))))","v":"N/A"}]
["Agence Francaise de Developpement","FR-03",{"$f":"VLOOKUP(Tableau2[[#This Row],[Organisation identifier]],Tableau3[#All],4,FALSE)","v":"Agence Francaise de Developpement"},"French","Evaluation Ligne de crédit concessionnel à Byblos pour le financement de prêts étudiants (universités privées)","https://www.afd.fr/fr/ressources/resume-devaluation-ligne-de-credit-pour-des-prets-etudiants-liban","A07 - Review of project performance and evaluation\n","French",null,"LB - Lebanon\n",{"$f":"IF(Tableau2[[#This Row],[TB-Period-start]]=\"\",\"N/A\",IF(Tableau2[[#This Row],[TB-Period-end]]=\"\",\"N/A\",IF(Tableau2[[#This Row],[TB-value]]=\"\",\"N/A\",IF(Tableau2[[#This Row],[TB-value-date]]=\"\",\"N/A\",\"Yes\"))))","v":"N/A"},null,null,null,null,null,null,null,null,null,null,{"$f":"IF(Tableau2[[#This Row],[TE-Period-start]]=\"\",\"N/A\",IF(Tableau2[[#This Row],[TE-Period-end]]=\"\",\"N/A\",IF(Tableau2[[#This Row],[TE-value]]=\"\",\"N/A\",IF(Tableau2[[#This Row],[TE-value-date]]=\"\",\"N/A\",\"Yes\"))))","v":"N/A"}]
["Agence Francaise de Developpement","FR-03",{"$f":"VLOOKUP(Tableau2[[#This Row],[Organisation identifier]],Tableau3[#All],4,FALSE)","v":"Agence Francaise de Developpement"},"French","Evaluation PRCC 1 et 2 - Outils pour la promotion des exportations malgaches","https://www.afd.fr/fr/ressources/resume-devaluation-programmes-de-renforcement-des-capacites-commerciales-1-et-2-prcc-madagascar","A07 - Review of project performance and evaluation\n","French",null,"MG - Madagascar\n",{"$f":"IF(Tableau2[[#This Row],[TB-Period-start]]=\"\",\"N/A\",IF(Tableau2[[#This Row],[TB-Period-end]]=\"\",\"N/A\",IF(Tableau2[[#This Row],[TB-value]]=\"\",\"N/A\",IF(Tableau2[[#This Row],[TB-value-date]]=\"\",\"N/A\",\"Yes\"))))","v":"N/A"},null,null,null,null,null,null,null,null,null,null,{"$f":"IF(Tableau2[[#This Row],[TE-Period-start]]=\"\",\"N/A\",IF(Tableau2[[#This Row],[TE-Period-end]]=\"\",\"N/A\",IF(Tableau2[[#This Row],[TE-value]]=\"\",\"N/A\",IF(Tableau2[[#This Row],[TE-value-date]]=\"\",\"N/A\",\"Yes\"))))","v":"N/A"}]
["Agence Francaise de Developpement","FR-03",{"$f":"VLOOKUP(Tableau2[[#This Row],[Organisation identifier]],Tableau3[#All],4,FALSE)","v":"Agence Francaise de Developpement"},"French","Evaluation Metro léger de Tunis","https://www.afd.fr/fr/ressources/resume-devaluation-projet-de-modernisation-des-infrastructures-du-metro-leger-de-tunis","A07 - Review of project performance and evaluation\n","French",null,"TN - Tunisia\n",{"$f":"IF(Tableau2[[#This Row],[TB-Period-start]]=\"\",\"N/A\",IF(Tableau2[[#This Row],[TB-Period-end]]=\"\",\"N/A\",IF(Tableau2[[#This Row],[TB-value]]=\"\",\"N/A\",IF(Tableau2[[#This Row],[TB-value-date]]=\"\",\"N/A\",\"Yes\"))))","v":"N/A"},null,null,null,null,null,null,null,null,null,null,{"$f":"IF(Tableau2[[#This Row],[TE-Period-start]]=\"\",\"N/A\",IF(Tableau2[[#This Row],[TE-Period-end]]=\"\",\"N/A\",IF(Tableau2[[#This Row],[TE-value]]=\"\",\"N/A\",IF(Tableau2[[#This Row],[TE-value-date]]=\"\",\"N/A\",\"Yes\"))))","v":"N/A"}]
["Agence Francaise de Developpement","FR-03",{"$f":"VLOOKUP(Tableau2[[#This Row],[Organisation identifier]],Tableau3[#All],4,FALSE)","v":"Agence Francaise de Developpement"},"French","Evaluation Mise à niveau des circuits de distribution des produits agricoles et de la pêche","https://www.afd.fr/fr/ressources/resume-devaluation-programme-de-mise-niveau-des-circuits-de-distribution-tunisie","A07 - Review of project performance and evaluation\n","French",null,"TN - Tunisia\n",{"$f":"IF(Tableau2[[#This Row],[TB-Period-start]]=\"\",\"N/A\",IF(Tableau2[[#This Row],[TB-Period-end]]=\"\",\"N/A\",IF(Tableau2[[#This Row],[TB-value]]=\"\",\"N/A\",IF(Tableau2[[#This Row],[TB-value-date]]=\"\",\"N/A\",\"Yes\"))))","v":"N/A"},null,null,null,null,null,null,null,null,null,null,{"$f":"IF(Tableau2[[#This Row],[TE-Period-start]]=\"\",\"N/A\",IF(Tableau2[[#This Row],[TE-Period-end]]=\"\",\"N/A\",IF(Tableau2[[#This Row],[TE-value]]=\"\",\"N/A\",IF(Tableau2[[#This Row],[TE-value-date]]=\"\",\"N/A\",\"Yes\"))))","v":"N/A"}]
["Agence Francaise de Developpement","FR-03",{"$f":"VLOOKUP(Tableau2[[#This Row],[Organisation identifier]],Tableau3[#All],4,FALSE)","v":"Agence Francaise de Developpement"},"French","Evaluation LC Climat TEB-TSKB","https://www.afd.fr/en/ressources/evaluation-summary-credit-line-industrial-development-bank-turkey-tskb","A07 - Review of project performance and evaluation\n","French",null,"TR - Turkey\n",{"$f":"IF(Tableau2[[#This Row],[TB-Period-start]]=\"\",\"N/A\",IF(Tableau2[[#This Row],[TB-Period-end]]=\"\",\"N/A\",IF(Tableau2[[#This Row],[TB-value]]=\"\",\"N/A\",IF(Tableau2[[#This Row],[TB-value-date]]=\"\",\"N/A\",\"Yes\"))))","v":"N/A"},null,null,null,null,null,null,null,null,null,null,{"$f":"IF(Tableau2[[#This Row],[TE-Period-start]]=\"\",\"N/A\",IF(Tableau2[[#This Row],[TE-Period-end]]=\"\",\"N/A\",IF(Tableau2[[#This Row],[TE-value]]=\"\",\"N/A\",IF(Tableau2[[#This Row],[TE-value-date]]=\"\",\"N/A\",\"Yes\"))))","v":"N/A"}]
["Agence Francaise de Developpement","FR-03",{"$f":"VLOOKUP(Tableau2[[#This Row],[Organisation identifier]],Tableau3[#All],4,FALSE)","v":"Agence Francaise de Developpement"},"French","Evaluation Extension de la ligne de metro M2 au centre multimodal de yenikapi","https://www.afd.fr/en/ressources/evaluation-summary-sishane-yenikapi-metro-extension-project-metropolitan-municipality-istanbul","A07 - Review of project performance and evaluation\n","French",null,"TR - Turkey\n",{"$f":"IF(Tableau2[[#This Row],[TB-Period-start]]=\"\",\"N/A\",IF(Tableau2[[#This Row],[TB-Period-end]]=\"\",\"N/A\",IF(Tableau2[[#This Row],[TB-value]]=\"\",\"N/A\",IF(Tableau2[[#This Row],[TB-value-date]]=\"\",\"N/A\",\"Yes\"))))","v":"N/A"},null,null,null,null,null,null,null,null,null,null,{"$f":"IF(Tableau2[[#This Row],[TE-Period-start]]=\"\",\"N/A\",IF(Tableau2[[#This Row],[TE-Period-end]]=\"\",\"N/A\",IF(Tableau2[[#This Row],[TE-value]]=\"\",\"N/A\",IF(Tableau2[[#This Row],[TE-value-date]]=\"\",\"N/A\",\"Yes\"))))","v":"N/A"}]
["Agence Francaise de Developpement","FR-03",{"$f":"VLOOKUP(Tableau2[[#This Row],[Organisation identifier]],Tableau3[#All],4,FALSE)","v":"Agence Francaise de Developpement"},"French","Evaluation Lao Cai","https://www.afd.fr/en/ressources/evaluation-summary-rural-infrastructure-development-and-tourism-project-lao-cai-province-vietnam","A07 - Review of project performance and evaluation\n","French",null,"VN - Viet Nam\n",{"$f":"IF(Tableau2[[#This Row],[TB-Period-start]]=\"\",\"N/A\",IF(Tableau2[[#This Row],[TB-Period-end]]=\"\",\"N/A\",IF(Tableau2[[#This Row],[TB-value]]=\"\",\"N/A\",IF(Tableau2[[#This Row],[TB-value-date]]=\"\",\"N/A\",\"Yes\"))))","v":"N/A"},null,null,null,null,null,null,null,null,null,null,{"$f":"IF(Tableau2[[#This Row],[TE-Period-start]]=\"\",\"N/A\",IF(Tableau2[[#This Row],[TE-Period-end]]=\"\",\"N/A\",IF(Tableau2[[#This Row],[TE-value]]=\"\",\"N/A\",IF(Tableau2[[#This Row],[TE-value-date]]=\"\",\"N/A\",\"Yes\"))))","v":"N/A"}]
["Agence Francaise de Developpement","FR-03",{"$f":"VLOOKUP(Tableau2[[#This Row],[Organisation identifier]],Tableau3[#All],4,FALSE)","v":"Agence Francaise de Developpement"},"French","Evaluation APCC Crise syrienne - PUI","https://www.afd.fr/fr/ressources/resume-devaluation-resilience-sociale-au-moyen-orient-lacces-la-sante-outil-de-prevention-des-tensions","A07 - Review of project performance and evaluation\n","French",null,"SY - Syrian Arab Republic\n",{"$f":"IF(Tableau2[[#This Row],[TB-Period-start]]=\"\",\"N/A\",IF(Tableau2[[#This Row],[TB-Period-end]]=\"\",\"N/A\",IF(Tableau2[[#This Row],[TB-value]]=\"\",\"N/A\",IF(Tableau2[[#This Row],[TB-value-date]]=\"\",\"N/A\",\"Yes\"))))","v":"N/A"},null,null,null,null,null,null,null,null,null,null,{"$f":"IF(Tableau2[[#This Row],[TE-Period-start]]=\"\",\"N/A\",IF(Tableau2[[#This Row],[TE-Period-end]]=\"\",\"N/A\",IF(Tableau2[[#This Row],[TE-value]]=\"\",\"N/A\",IF(Tableau2[[#This Row],[TE-value-date]]=\"\",\"N/A\",\"Yes\"))))","v":"N/A"}]
["Agence Francaise de Developpement","FR-03",{"$f":"VLOOKUP(Tableau2[[#This Row],[Organisation identifier]],Tableau3[#All],4,FALSE)","v":"Agence Francaise de Developpement"},"French","Evaluation APCC Crise syrienne - PUI","https://www.afd.fr/fr/ressources/resume-devaluation-resilience-sociale-au-moyen-orient-protection-sociale-de-proximite-au-sein-de-neuf-municipalites","A07 - Review of project performance and evaluation\n","French",null,"SY - Syrian Arab Republic\n",{"$f":"IF(Tableau2[[#This Row],[TB-Period-start]]=\"\",\"N/A\",IF(Tableau2[[#This Row],[TB-Period-end]]=\"\",\"N/A\",IF(Tableau2[[#This Row],[TB-value]]=\"\",\"N/A\",IF(Tableau2[[#This Row],[TB-value-date]]=\"\",\"N/A\",\"Yes\"))))","v":"N/A"},null,null,null,null,null,null,null,null,null,null,{"$f":"IF(Tableau2[[#This Row],[TE-Period-start]]=\"\",\"N/A\",IF(Tableau2[[#This Row],[TE-Period-end]]=\"\",\"N/A\",IF(Tableau2[[#This Row],[TE-value]]=\"\",\"N/A\",IF(Tableau2[[#This Row],[TE-value-date]]=\"\",\"N/A\",\"Yes\"))))","v":"N/A"}]
["Agence Francaise de Developpement","FR-03",{"$f":"VLOOKUP(Tableau2[[#This Row],[Organisation identifier]],Tableau3[#All],4,FALSE)","v":"Agence Francaise de Developpement"},"French","Evaluation APCC Crise syrienne - PUI","https://www.afd.fr/fr/ressources/resume-devaluation-resilience-sociale-au-moyen-orient-acces-la-sante-leducation-et-aux-soins-psychosociaux-pour-les-refugies-syriens-et-les-communautes-hotes","A07 - Review of project performance and evaluation\n","French",null,"SY - Syrian Arab Republic\n",{"$f":"IF(Tableau2[[#This Row],[TB-Period-start]]=\"\",\"N/A\",IF(Tableau2[[#This Row],[TB-Period-end]]=\"\",\"N/A\",IF(Tableau2[[#This Row],[TB-value]]=\"\",\"N/A\",IF(Tableau2[[#This Row],[TB-value-date]]=\"\",\"N/A\",\"Yes\"))))","v":"N/A"},null,null,null,null,null,null,null,null,null,null,{"$f":"IF(Tableau2[[#This Row],[TE-Period-start]]=\"\",\"N/A\",IF(Tableau2[[#This Row],[TE-Period-end]]=\"\",\"N/A\",IF(Tableau2[[#This Row],[TE-value]]=\"\",\"N/A\",IF(Tableau2[[#This Row],[TE-value-date]]=\"\",\"N/A\",\"Yes\"))))","v":"N/A"}]
["Agence Francaise de Developpement","FR-03",{"$f":"VLOOKUP(Tableau2[[#This Row],[Organisation identifier]],Tableau3[#All],4,FALSE)","v":"Agence Francaise de Developpement"},"French","Evaluation Quatrième programme de mise à niveau des entreprises (PME )","https://www.afd.fr/fr/ressources/resume-devaluation-quatrieme-ligne-de-credit-de-restructuration-financiere-lcrf-des-pme-en-tunisie","A07 - Review of project performance and evaluation\n","French",null,"TN - Tunisia\n",{"$f":"IF(Tableau2[[#This Row],[TB-Period-start]]=\"\",\"N/A\",IF(Tableau2[[#This Row],[TB-Period-end]]=\"\",\"N/A\",IF(Tableau2[[#This Row],[TB-value]]=\"\",\"N/A\",IF(Tableau2[[#This Row],[TB-value-date]]=\"\",\"N/A\",\"Yes\"))))","v":"N/A"},null,null,null,null,null,null,null,null,null,null,{"$f":"IF(Tableau2[[#This Row],[TE-Period-start]]=\"\",\"N/A\",IF(Tableau2[[#This Row],[TE-Period-end]]=\"\",\"N/A\",IF(Tableau2[[#This Row],[TE-value]]=\"\",\"N/A\",IF(Tableau2[[#This Row],[TE-value-date]]=\"\",\"N/A\",\"Yes\"))))","v":"N/A"}]
["Agence Francaise de Developpement","FR-03",{"$f":"VLOOKUP(Tableau2[[#This Row],[Organisation identifier]],Tableau3[#All],4,FALSE)","v":"Agence Francaise de Developpement"},"French","Assainissement Nord Gaza II","https://www.afd.fr/en/ressources/evaluation-summary-north-gaza-emergency-sewage-treatment-plant-ngest-gaza-strip-palestine","A07 - Review of project performance and evaluation\n","French",null,"PS - Palestine, State of\nTN - Tunisia\n",{"$f":"IF(Tableau2[[#This Row],[TB-Period-start]]=\"\",\"N/A\",IF(Tableau2[[#This Row],[TB-Period-end]]=\"\",\"N/A\",IF(Tableau2[[#This Row],[TB-value]]=\"\",\"N/A\",IF(Tableau2[[#This Row],[TB-value-date]]=\"\",\"N/A\",\"Yes\"))))","v":"N/A"},null,null,null,null,null,null,null,null,null,null,{"$f":"IF(Tableau2[[#This Row],[TE-Period-start]]=\"\",\"N/A\",IF(Tableau2[[#This Row],[TE-Period-end]]=\"\",\"N/A\",IF(Tableau2[[#This Row],[TE-value]]=\"\",\"N/A\",IF(Tableau2[[#This Row],[TE-value-date]]=\"\",\"N/A\",\"Yes\"))))","v":"N/A"}]
["Agence Francaise de Developpement","FR-03",{"$f":"VLOOKUP(Tableau2[[#This Row],[Organisation identifier]],Tableau3[#All],4,FALSE)","v":"Agence Francaise de Developpement"},"French","Fonds Commun santé 3","https://www.afd.fr/sites/afd/files/2020-07-08-41-23/resume-evaluation-fonds-commun-sante-appui-plan-developpement-sanitaire-niger-cne1164.pdf","A07 - Review of project performance and evaluation\n","French",2020,"NE - Niger (the)\n",{"$f":"IF(Tableau2[[#This Row],[TB-Period-start]]=\"\",\"N/A\",IF(Tableau2[[#This Row],[TB-Period-end]]=\"\",\"N/A\",IF(Tableau2[[#This Row],[TB-value]]=\"\",\"N/A\",IF(Tableau2[[#This Row],[TB-value-date]]=\"\",\"N/A\",\"Yes\"))))","v":"N/A"},null,null,null,null,null,null,null,null,null,null,{"$f":"IF(Tableau2[[#This Row],[TE-Period-start]]=\"\",\"N/A\",IF(Tableau2[[#This Row],[TE-Period-end]]=\"\",\"N/A\",IF(Tableau2[[#This Row],[TE-value]]=\"\",\"N/A\",IF(Tableau2[[#This Row],[TE-value-date]]=\"\",\"N/A\",\"Yes\"))))","v":"N/A"}]
["Agence Francaise de Developpement","FR-03",{"$f":"VLOOKUP(Tableau2[[#This Row],[Organisation identifier]],Tableau3[#All],4,FALSE)","v":"Agence Francaise de Developpement"},"French"," Programme Education","https://www.afd.fr/fr/ressources/resume-devaluation-appui-au-programme-sectoriel-de-leducation-pse-guinee","A07 - Review of project performance and evaluation\n","French",null,"GN - Guinea\n",{"$f":"IF(Tableau2[[#This Row],[TB-Period-start]]=\"\",\"N/A\",IF(Tableau2[[#This Row],[TB-Period-end]]=\"\",\"N/A\",IF(Tableau2[[#This Row],[TB-value]]=\"\",\"N/A\",IF(Tableau2[[#This Row],[TB-value-date]]=\"\",\"N/A\",\"Yes\"))))","v":"N/A"},null,null,null,null,null,null,null,null,null,null,{"$f":"IF(Tableau2[[#This Row],[TE-Period-start]]=\"\",\"N/A\",IF(Tableau2[[#This Row],[TE-Period-end]]=\"\",\"N/A\",IF(Tableau2[[#This Row],[TE-value]]=\"\",\"N/A\",IF(Tableau2[[#This Row],[TE-value-date]]=\"\",\"N/A\",\"Yes\"))))","v":"N/A"}]
["Agence Francaise de Developpement","FR-03",{"$f":"VLOOKUP(Tableau2[[#This Row],[Organisation identifier]],Tableau3[#All],4,FALSE)","v":"Agence Francaise de Developpement"},"French","Formation professionnelle","https://www.afd.fr/fr/ressources/resume-devaluation-projet-dappui-la-formation-professionnelle-au-vietnam","A07 - Review of project performance and evaluation\n","French",null,"VN - Viet Nam\n",{"$f":"IF(Tableau2[[#This Row],[TB-Period-start]]=\"\",\"N/A\",IF(Tableau2[[#This Row],[TB-Period-end]]=\"\",\"N/A\",IF(Tableau2[[#This Row],[TB-value]]=\"\",\"N/A\",IF(Tableau2[[#This Row],[TB-value-date]]=\"\",\"N/A\",\"Yes\"))))","v":"N/A"},null,null,null,null,null,null,null,null,null,null,{"$f":"IF(Tableau2[[#This Row],[TE-Period-start]]=\"\",\"N/A\",IF(Tableau2[[#This Row],[TE-Period-end]]=\"\",\"N/A\",IF(Tableau2[[#This Row],[TE-value]]=\"\",\"N/A\",IF(Tableau2[[#This Row],[TE-value-date]]=\"\",\"N/A\",\"Yes\"))))","v":"N/A"}]
["Agence Francaise de Developpement","FR-03",{"$f":"VLOOKUP(Tableau2[[#This Row],[Organisation identifier]],Tableau3[#All],4,FALSE)","v":"Agence Francaise de Developpement"},"French","PRESU 1","https://www.afd.fr/fr/ressources/resume-devaluation-programme-de-reconstruction-economique-et-sociale-en-milieu-urbain-presu-rca","A07 - Review of project performance and evaluation\n","French",null,"CF - Central African Republic (the)\n",{"$f":"IF(Tableau2[[#This Row],[TB-Period-start]]=\"\",\"N/A\",IF(Tableau2[[#This Row],[TB-Period-end]]=\"\",\"N/A\",IF(Tableau2[[#This Row],[TB-value]]=\"\",\"N/A\",IF(Tableau2[[#This Row],[TB-value-date]]=\"\",\"N/A\",\"Yes\"))))","v":"N/A"},null,null,null,null,null,null,null,null,null,null,{"$f":"IF(Tableau2[[#This Row],[TE-Period-start]]=\"\",\"N/A\",IF(Tableau2[[#This Row],[TE-Period-end]]=\"\",\"N/A\",IF(Tableau2[[#This Row],[TE-value]]=\"\",\"N/A\",IF(Tableau2[[#This Row],[TE-value-date]]=\"\",\"N/A\",\"Yes\"))))","v":"N/A"}]
["Agence Francaise de Developpement","FR-03",{"$f":"VLOOKUP(Tableau2[[#This Row],[Organisation identifier]],Tableau3[#All],4,FALSE)","v":"Agence Francaise de Developpement"},"French","CPEJ","https://www.afd.fr/fr/ressources/resume-devaluation-competences-pour-lemploi-des-jeunes-haiti","A07 - Review of project performance and evaluation\n","French",null,"HT - Haiti\n",{"$f":"IF(Tableau2[[#This Row],[TB-Period-start]]=\"\",\"N/A\",IF(Tableau2[[#This Row],[TB-Period-end]]=\"\",\"N/A\",IF(Tableau2[[#This Row],[TB-value]]=\"\",\"N/A\",IF(Tableau2[[#This Row],[TB-value-date]]=\"\",\"N/A\",\"Yes\"))))","v":"N/A"},null,null,null,null,null,null,null,null,null,null,{"$f":"IF(Tableau2[[#This Row],[TE-Period-start]]=\"\",\"N/A\",IF(Tableau2[[#This Row],[TE-Period-end]]=\"\",\"N/A\",IF(Tableau2[[#This Row],[TE-value]]=\"\",\"N/A\",IF(Tableau2[[#This Row],[TE-value-date]]=\"\",\"N/A\",\"Yes\"))))","v":"N/A"}]
["Agence Francaise de Developpement","FR-03",{"$f":"VLOOKUP(Tableau2[[#This Row],[Organisation identifier]],Tableau3[#All],4,FALSE)","v":"Agence Francaise de Developpement"},"French"," FEPV","https://www.afd.fr/fr/ressources/resume-devaluation-evaluation-mi-parcours-projet-formation-et-employabilite-des-populations-vulnerables-impactees-par-la-crise-syrienne-au-liban","A07 - Review of project performance and evaluation\n","French",null,"LB - Lebanon\n",{"$f":"IF(Tableau2[[#This Row],[TB-Period-start]]=\"\",\"N/A\",IF(Tableau2[[#This Row],[TB-Period-end]]=\"\",\"N/A\",IF(Tableau2[[#This Row],[TB-value]]=\"\",\"N/A\",IF(Tableau2[[#This Row],[TB-value-date]]=\"\",\"N/A\",\"Yes\"))))","v":"N/A"},null,null,null,null,null,null,null,null,null,null,{"$f":"IF(Tableau2[[#This Row],[TE-Period-start]]=\"\",\"N/A\",IF(Tableau2[[#This Row],[TE-Period-end]]=\"\",\"N/A\",IF(Tableau2[[#This Row],[TE-value]]=\"\",\"N/A\",IF(Tableau2[[#This Row],[TE-value-date]]=\"\",\"N/A\",\"Yes\"))))","v":"N/A"}]
["Agence Francaise de Developpement","FR-03",{"$f":"VLOOKUP(Tableau2[[#This Row],[Organisation identifier]],Tableau3[#All],4,FALSE)","v":"Agence Francaise de Developpement"},"French","AEP Mombasa","https://www.afd.fr/en/ressources/evaluation-summary-mombasa-water-and-sanitation-service-improvement-project-mombasa-wassip-kenya","A07 - Review of project performance and evaluation\n","French",null,"KE - Kenya\n",{"$f":"IF(Tableau2[[#This Row],[TB-Period-start]]=\"\",\"N/A\",IF(Tableau2[[#This Row],[TB-Period-end]]=\"\",\"N/A\",IF(Tableau2[[#This Row],[TB-value]]=\"\",\"N/A\",IF(Tableau2[[#This Row],[TB-value-date]]=\"\",\"N/A\",\"Yes\"))))","v":"N/A"},null,null,null,null,null,null,null,null,null,null,{"$f":"IF(Tableau2[[#This Row],[TE-Period-start]]=\"\",\"N/A\",IF(Tableau2[[#This Row],[TE-Period-end]]=\"\",\"N/A\",IF(Tableau2[[#This Row],[TE-value]]=\"\",\"N/A\",IF(Tableau2[[#This Row],[TE-value-date]]=\"\",\"N/A\",\"Yes\"))))","v":"N/A"}]
["Agence Francaise de Developpement","FR-03",{"$f":"VLOOKUP(Tableau2[[#This Row],[Organisation identifier]],Tableau3[#All],4,FALSE)","v":"Agence Francaise de Developpement"},"French","OMVS GIRE","https://www.afd.fr/fr/ressources/resume-devaluation-appui-omvs-pour-la-gestion-integree-des-ressources-en-eau","A07 - Review of project performance and evaluation\n","French",2019,"GN - Guinea\nML - Mali\nMR - Mauritania\nSN - Senegal\n",{"$f":"IF(Tableau2[[#This Row],[TB-Period-start]]=\"\",\"N/A\",IF(Tableau2[[#This Row],[TB-Period-end]]=\"\",\"N/A\",IF(Tableau2[[#This Row],[TB-value]]=\"\",\"N/A\",IF(Tableau2[[#This Row],[TB-value-date]]=\"\",\"N/A\",\"Yes\"))))","v":"N/A"},null,null,null,null,null,null,null,null,null,null,{"$f":"IF(Tableau2[[#This Row],[TE-Period-start]]=\"\",\"N/A\",IF(Tableau2[[#This Row],[TE-Period-end]]=\"\",\"N/A\",IF(Tableau2[[#This Row],[TE-value]]=\"\",\"N/A\",IF(Tableau2[[#This Row],[TE-value-date]]=\"\",\"N/A\",\"Yes\"))))","v":"N/A"}]
["Agence Francaise de Developpement","FR-03",{"$f":"VLOOKUP(Tableau2[[#This Row],[Organisation identifier]],Tableau3[#All],4,FALSE)","v":"Agence Francaise de Developpement"},"French","PASST 1 et 2","https://www.afd.fr/fr/ressources/resume-devaluation-projets-dappui-au-secteur-de-la-sante-au-tchad-passt-1-et-2-0","A07 - Review of project performance and evaluation\n","French",null,"TD - Chad\n",{"$f":"IF(Tableau2[[#This Row],[TB-Period-start]]=\"\",\"N/A\",IF(Tableau2[[#This Row],[TB-Period-end]]=\"\",\"N/A\",IF(Tableau2[[#This Row],[TB-value]]=\"\",\"N/A\",IF(Tableau2[[#This Row],[TB-value-date]]=\"\",\"N/A\",\"Yes\"))))","v":"N/A"},null,null,null,null,null,null,null,null,null,null,{"$f":"IF(Tableau2[[#This Row],[TE-Period-start]]=\"\",\"N/A\",IF(Tableau2[[#This Row],[TE-Period-end]]=\"\",\"N/A\",IF(Tableau2[[#This Row],[TE-value]]=\"\",\"N/A\",IF(Tableau2[[#This Row],[TE-value-date]]=\"\",\"N/A\",\"Yes\"))))","v":"N/A"}]
["Agence Francaise de Developpement","FR-03",{"$f":"VLOOKUP(Tableau2[[#This Row],[Organisation identifier]],Tableau3[#All],4,FALSE)","v":"Agence Francaise de Developpement"},"French","PARC (Projet d'appui au renforcement des capacités","https://www.afd.fr/fr/ressources/resume-devaluation-programme-dappui-au-renforcement-des-capacites-des-maitrises-douvrage-en-rca-parc-zingo","A07 - Review of project performance and evaluation\n","French",null,"CF - Central African Republic (the)\n",{"$f":"IF(Tableau2[[#This Row],[TB-Period-start]]=\"\",\"N/A\",IF(Tableau2[[#This Row],[TB-Period-end]]=\"\",\"N/A\",IF(Tableau2[[#This Row],[TB-value]]=\"\",\"N/A\",IF(Tableau2[[#This Row],[TB-value-date]]=\"\",\"N/A\",\"Yes\"))))","v":"N/A"},null,null,null,null,null,null,null,null,null,null,{"$f":"IF(Tableau2[[#This Row],[TE-Period-start]]=\"\",\"N/A\",IF(Tableau2[[#This Row],[TE-Period-end]]=\"\",\"N/A\",IF(Tableau2[[#This Row],[TE-value]]=\"\",\"N/A\",IF(Tableau2[[#This Row],[TE-value-date]]=\"\",\"N/A\",\"Yes\"))))","v":"N/A"}]
["Agence Francaise de Developpement","FR-03",{"$f":"VLOOKUP(Tableau2[[#This Row],[Organisation identifier]],Tableau3[#All],4,FALSE)","v":"Agence Francaise de Developpement"},"French","THIMO IV","https://www.afd.fr/fr/ressources/resume-devaluation-projet-de-rehabilitation-du-reseau-de-drainage-pluvial-de-la-ville-de-bangui","A07 - Review of project performance and evaluation\n","French",null,"CF - Central African Republic (the)\n",{"$f":"IF(Tableau2[[#This Row],[TB-Period-start]]=\"\",\"N/A\",IF(Tableau2[[#This Row],[TB-Period-end]]=\"\",\"N/A\",IF(Tableau2[[#This Row],[TB-value]]=\"\",\"N/A\",IF(Tableau2[[#This Row],[TB-value-date]]=\"\",\"N/A\",\"Yes\"))))","v":"N/A"},null,null,null,null,null,null,null,null,null,null,{"$f":"IF(Tableau2[[#This Row],[TE-Period-start]]=\"\",\"N/A\",IF(Tableau2[[#This Row],[TE-Period-end]]=\"\",\"N/A\",IF(Tableau2[[#This Row],[TE-value]]=\"\",\"N/A\",IF(Tableau2[[#This Row],[TE-value-date]]=\"\",\"N/A\",\"Yes\"))))","v":"N/A"}]
["Agence Francaise de Developpement","FR-03",{"$f":"VLOOKUP(Tableau2[[#This Row],[Organisation identifier]],Tableau3[#All],4,FALSE)","v":"Agence Francaise de Developpement"},"French","CHRAFATE PACE","https://www.afd.fr/fr/ressources/resume-devaluation-appui-la-creation-dentreprises-pour-les-populations-defavorisees-de-la-province-de-fahs-anjra-maroc-pace-fahs-anjra","A07 - Review of project performance and evaluation\n","French",null,"MA - Morocco\n",{"$f":"IF(Tableau2[[#This Row],[TB-Period-start]]=\"\",\"N/A\",IF(Tableau2[[#This Row],[TB-Period-end]]=\"\",\"N/A\",IF(Tableau2[[#This Row],[TB-value]]=\"\",\"N/A\",IF(Tableau2[[#This Row],[TB-value-date]]=\"\",\"N/A\",\"Yes\"))))","v":"N/A"},null,null,null,null,null,null,null,null,null,null,{"$f":"IF(Tableau2[[#This Row],[TE-Period-start]]=\"\",\"N/A\",IF(Tableau2[[#This Row],[TE-Period-end]]=\"\",\"N/A\",IF(Tableau2[[#This Row],[TE-value]]=\"\",\"N/A\",IF(Tableau2[[#This Row],[TE-value-date]]=\"\",\"N/A\",\"Yes\"))))","v":"N/A"}]
["Agence Francaise de Developpement","FR-03",{"$f":"VLOOKUP(Tableau2[[#This Row],[Organisation identifier]],Tableau3[#All],4,FALSE)","v":"Agence Francaise de Developpement"},"French","construction de l'usine de traitement d'eau potable de Niroth de la PPWSA","https://www.afd.fr/en/ressources/evaluation-summary-niroth-water-production-facilities-phase-1-cambodia","A07 - Review of project performance and evaluation\n","French",null,"KH - Cambodia\n",{"$f":"IF(Tableau2[[#This Row],[TB-Period-start]]=\"\",\"N/A\",IF(Tableau2[[#This Row],[TB-Period-end]]=\"\",\"N/A\",IF(Tableau2[[#This Row],[TB-value]]=\"\",\"N/A\",IF(Tableau2[[#This Row],[TB-value-date]]=\"\",\"N/A\",\"Yes\"))))","v":"N/A"},null,null,null,null,null,null,null,null,null,null,{"$f":"IF(Tableau2[[#This Row],[TE-Period-start]]=\"\",\"N/A\",IF(Tableau2[[#This Row],[TE-Period-end]]=\"\",\"N/A\",IF(Tableau2[[#This Row],[TE-value]]=\"\",\"N/A\",IF(Tableau2[[#This Row],[TE-value-date]]=\"\",\"N/A\",\"Yes\"))))","v":"N/A"}]
["Agence Francaise de Developpement","FR-03",{"$f":"VLOOKUP(Tableau2[[#This Row],[Organisation identifier]],Tableau3[#All],4,FALSE)","v":"Agence Francaise de Developpement"},"French","Amélioration de l'offre d'enseignement fondamental dans le district de Bamako (1er cycle public)","https://www.afd.fr/fr/ressources/resume-devaluation-projet-damelioration-de-loffre-denseignement-fondamental-au-mali-paoefm","A07 - Review of project performance and evaluation\n","French",null,"ML - Mali\n",{"$f":"IF(Tableau2[[#This Row],[TB-Period-start]]=\"\",\"N/A\",IF(Tableau2[[#This Row],[TB-Period-end]]=\"\",\"N/A\",IF(Tableau2[[#This Row],[TB-value]]=\"\",\"N/A\",IF(Tableau2[[#This Row],[TB-value-date]]=\"\",\"N/A\",\"Yes\"))))","v":"N/A"},null,null,null,null,null,null,null,null,null,null,{"$f":"IF(Tableau2[[#This Row],[TE-Period-start]]=\"\",\"N/A\",IF(Tableau2[[#This Row],[TE-Period-end]]=\"\",\"N/A\",IF(Tableau2[[#This Row],[TE-value]]=\"\",\"N/A\",IF(Tableau2[[#This Row],[TE-value-date]]=\"\",\"N/A\",\"Yes\"))))","v":"N/A"}]
["Agence Francaise de Developpement","FR-03",{"$f":"VLOOKUP(Tableau2[[#This Row],[Organisation identifier]],Tableau3[#All],4,FALSE)","v":"Agence Francaise de Developpement"},"French","CAPAF CGAP","https://www.afd.fr/fr/ressources/resume-devaluation-renforcement-des-capacites-des-imf-en-afrique-francophone","A07 - Review of project performance and evaluation\n","French",null,null,{"$f":"IF(Tableau2[[#This Row],[TB-Period-start]]=\"\",\"N/A\",IF(Tableau2[[#This Row],[TB-Period-end]]=\"\",\"N/A\",IF(Tableau2[[#This Row],[TB-value]]=\"\",\"N/A\",IF(Tableau2[[#This Row],[TB-value-date]]=\"\",\"N/A\",\"Yes\"))))","v":"N/A"},null,null,null,null,null,null,null,null,null,null,{"$f":"IF(Tableau2[[#This Row],[TE-Period-start]]=\"\",\"N/A\",IF(Tableau2[[#This Row],[TE-Period-end]]=\"\",\"N/A\",IF(Tableau2[[#This Row],[TE-value]]=\"\",\"N/A\",IF(Tableau2[[#This Row],[TE-value-date]]=\"\",\"N/A\",\"Yes\"))))","v":"N/A"}]
["Agence Francaise de Developpement","FR-03",{"$f":"VLOOKUP(Tableau2[[#This Row],[Organisation identifier]],Tableau3[#All],4,FALSE)","v":"Agence Francaise de Developpement"},"French","PRCC IGP Afrique - OAPI","https://www.afd.fr/fr/ressources/resume-devaluation-appui-la-mise-en-place-des-indications-geographiques-dans-les-etats-membres-de-loapi-pampig","A07 - Review of project performance and evaluation\n","French",null,"CM - Cameroon\nGN - Guinea\n",{"$f":"IF(Tableau2[[#This Row],[TB-Period-start]]=\"\",\"N/A\",IF(Tableau2[[#This Row],[TB-Period-end]]=\"\",\"N/A\",IF(Tableau2[[#This Row],[TB-value]]=\"\",\"N/A\",IF(Tableau2[[#This Row],[TB-value-date]]=\"\",\"N/A\",\"Yes\"))))","v":"N/A"},null,null,null,null,null,null,null,null,null,null,{"$f":"IF(Tableau2[[#This Row],[TE-Period-start]]=\"\",\"N/A\",IF(Tableau2[[#This Row],[TE-Period-end]]=\"\",\"N/A\",IF(Tableau2[[#This Row],[TE-value]]=\"\",\"N/A\",IF(Tableau2[[#This Row],[TE-value-date]]=\"\",\"N/A\",\"Yes\"))))","v":"N/A"}]
["Agence Francaise de Developpement","FR-03","Agence Francaise de Developpement","French","L'ANALYSE DÉVELOPPEMENT DURABLE","https://www.afd.fr/fr/ressources/lanalyse-developpement-durable?origin=/fr/rechercher?query=dispositif+avis+d%C3%A9veloppement+durable","A01 - Pre- and post-project impact appraisal","French",2018,null,{"$f":"IF([1]!Tableau2[[#This Row],[TB-Period-start]]=\"\",\"N/A\",IF([1]!Tableau2[[#This Row],[TB-Period-end]]=\"\",\"N/A\",IF([1]!Tableau2[[#This Row],[TB-value]]=\"\",\"N/A\",IF([1]!Tableau2[[#This Row],[TB-value-date]]=\"\",\"N/A\",\"Yes\"))))","v":{"$error":"#REF!"}},null,null,null,null,null,null,null,null,null,null,{"$f":"IF([1]!Tableau2[[#This Row],[TE-Period-start]]=\"\",\"N/A\",IF([1]!Tableau2[[#This Row],[TE-Period-end]]=\"\",\"N/A\",IF([1]!Tableau2[[#This Row],[TE-value]]=\"\",\"N/A\",IF([1]!Tableau2[[#This Row],[TE-value-date]]=\"\",\"N/A\",\"Yes\"))))","v":{"$error":"#REF!"}}]
[{"$f":"VLOOKUP(Tableau2[[#This Row],[Organisation identifier]],Tableau3[#All],4,FALSE)","v":"Agence Francaise de Developpement"},"FR-03",{"$f":"VLOOKUP(Tableau2[[#This Row],[Organisation identifier]],Tableau3[#All],4,FALSE)","v":"Agence Francaise de Developpement"},"French","Politique de maitrise des risques environnementaux et sociaux","https://www.afd.fr/fr/politique-de-maitrise-des-risques-environnementaux-et-sociaux-lies-aux-operations-financees-par-lafd","A01 - Pre- and post-project impact appraisal","English",2017,null,{"$f":"IF(Tableau2[[#This Row],[TB-Period-start]]=\"\",\"N/A\",IF(Tableau2[[#This Row],[TB-Period-end]]=\"\",\"N/A\",IF(Tableau2[[#This Row],[TB-value]]=\"\",\"N/A\",IF(Tableau2[[#This Row],[TB-value-date]]=\"\",\"N/A\",\"Yes\"))))","v":"N/A"},null,null,null,null,null,null,null,null,null,null,{"$f":"IF(Tableau2[[#This Row],[TE-Period-start]]=\"\",\"N/A\",IF(Tableau2[[#This Row],[TE-Period-end]]=\"\",\"N/A\",IF(Tableau2[[#This Row],[TE-value]]=\"\",\"N/A\",IF(Tableau2[[#This Row],[TE-value-date]]=\"\",\"N/A\",\"Yes\"))))","v":"N/A"}]
[{"$f":"VLOOKUP(Tableau2[[#This Row],[Organisation identifier]],Tableau3[#All],4,FALSE)","v":"Agence Francaise de Developpement"},"FR-03",{"$f":"VLOOKUP(Tableau2[[#This Row],[Organisation identifier]],Tableau3[#All],4,FALSE)","v":"Agence Francaise de Developpement"},"French","Rapport annuel du groupe Afd 2019-2020","https://www.afd.fr/fr/actualites/rapport-annuel-du-groupe-afd-2019-2020","B01 - Annual report\n\n","French",2020,null,{"$f":"IF(Tableau2[[#This Row],[TB-Period-start]]=\"\",\"N/A\",IF(Tableau2[[#This Row],[TB-Period-end]]=\"\",\"N/A\",IF(Tableau2[[#This Row],[TB-value]]=\"\",\"N/A\",IF(Tableau2[[#This Row],[TB-value-date]]=\"\",\"N/A\",\"Yes\"))))","v":"N/A"},null,null,null,null,null,null,null,null,null,null,{"$f":"IF(Tableau2[[#This Row],[TE-Period-start]]=\"\",\"N/A\",IF(Tableau2[[#This Row],[TE-Period-end]]=\"\",\"N/A\",IF(Tableau2[[#This Row],[TE-value]]=\"\",\"N/A\",IF(Tableau2[[#This Row],[TE-value-date]]=\"\",\"N/A\",\"Yes\"))))","v":"N/A"}]
["agence Francaise de Developpement","FR-03",{"$f":"VLOOKUP(Tableau2[[#This Row],[Organisation identifier]],Tableau3[#All],4,FALSE)","v":"Agence Francaise de Developpement"},"English","Southeast Asia Regional Strategy 2020-2024","https://www.afd.fr/en/ressources/southeast-asia-regional-strategy-2020-2024?origin=/en/ressources-accueil","B03 - Country strategy paper\n","English",2020,"KH - Cambodia\nID - Indonesia\nLA - Lao People’s Democratic Republic (the)\nMM - Myanmar\nPH - Philippines (the)\nTH - Thailand\nVN - Viet Nam\n",{"$f":"IF(Tableau2[[#This Row],[TB-Period-start]]=\"\",\"N/A\",IF(Tableau2[[#This Row],[TB-Period-end]]=\"\",\"N/A\",IF(Tableau2[[#This Row],[TB-value]]=\"\",\"N/A\",IF(Tableau2[[#This Row],[TB-value-date]]=\"\",\"N/A\",\"Yes\"))))","v":"N/A"},null,null,null,null,null,null,null,null,null,null,{"$f":"IF(Tableau2[[#This Row],[TE-Period-start]]=\"\",\"N/A\",IF(Tableau2[[#This Row],[TE-Period-end]]=\"\",\"N/A\",IF(Tableau2[[#This Row],[TE-value]]=\"\",\"N/A\",IF(Tableau2[[#This Row],[TE-value-date]]=\"\",\"N/A\",\"Yes\"))))","v":"N/A"}]
["Agence Francaise de Developpement","FR-03","Agence Francaise de Developpement","French","Stratégie régionale Asie du Sud-Est 2020-2024","https://www.afd.fr/fr/ressources/strategie-regionale-asie-du-sud-est-2020-2024","B03 - Country strategy paper\n","French",2020,"KH - Cambodia\nID - Indonesia\nLA - Lao People’s Democratic Republic (the)\nMM - Myanmar\nPH - Philippines (the)\nTH - Thailand\nVN - Viet Nam\n",{"$f":"IF(Tableau2[[#This Row],[TB-Period-start]]=\"\",\"N/A\",IF(Tableau2[[#This Row],[TB-Period-end]]=\"\",\"N/A\",IF(Tableau2[[#This Row],[TB-value]]=\"\",\"N/A\",IF(Tableau2[[#This Row],[TB-value-date]]=\"\",\"N/A\",\"Yes\"))))","v":"N/A"},null,null,null,null,null,null,null,null,null,null,{"$f":"IF(Tableau2[[#This Row],[TE-Period-start]]=\"\",\"N/A\",IF(Tableau2[[#This Row],[TE-Period-end]]=\"\",\"N/A\",IF(Tableau2[[#This Row],[TE-value]]=\"\",\"N/A\",IF(Tableau2[[#This Row],[TE-value-date]]=\"\",\"N/A\",\"Yes\"))))","v":"N/A"}]
["Agence Francaise de Developpement","FR-03",{"$f":"VLOOKUP(Tableau2[[#This Row],[Organisation identifier]],Tableau3[#All],4,FALSE)","v":"Agence Francaise de Developpement"},"French","Stratégie Transition énergétique 2019-2022","https://www.afd.fr/fr/ressources/strategie-transition-energetique-2019-2022","B12 - Thematic strategy\n","French",2019,null,{"$f":"IF(Tableau2[[#This Row],[TB-Period-start]]=\"\",\"N/A\",IF(Tableau2[[#This Row],[TB-Period-end]]=\"\",\"N/A\",IF(Tableau2[[#This Row],[TB-value]]=\"\",\"N/A\",IF(Tableau2[[#This Row],[TB-value-date]]=\"\",\"N/A\",\"Yes\"))))","v":"N/A"},null,null,null,null,null,null,null,null,null,null,{"$f":"IF(Tableau2[[#This Row],[TE-Period-start]]=\"\",\"N/A\",IF(Tableau2[[#This Row],[TE-Period-end]]=\"\",\"N/A\",IF(Tableau2[[#This Row],[TE-value]]=\"\",\"N/A\",IF(Tableau2[[#This Row],[TE-value-date]]=\"\",\"N/A\",\"Yes\"))))","v":"N/A"}]
["Agence Francaise de Developpement","FR-03",{"$f":"VLOOKUP(Tableau2[[#This Row],[Organisation identifier]],Tableau3[#All],4,FALSE)","v":"Agence Francaise de Developpement"},"English","Energy Transition Strategy 2019-2022","https://www.afd.fr/en/ressources/energy-transition-strategy-2019-2022","B12 - Thematic strategy\n","English",2019,null,{"$f":"IF(Tableau2[[#This Row],[TB-Period-start]]=\"\",\"N/A\",IF(Tableau2[[#This Row],[TB-Period-end]]=\"\",\"N/A\",IF(Tableau2[[#This Row],[TB-value]]=\"\",\"N/A\",IF(Tableau2[[#This Row],[TB-value-date]]=\"\",\"N/A\",\"Yes\"))))","v":"N/A"},null,null,null,null,null,null,null,null,null,null,{"$f":"IF(Tableau2[[#This Row],[TE-Period-start]]=\"\",\"N/A\",IF(Tableau2[[#This Row],[TE-Period-end]]=\"\",\"N/A\",IF(Tableau2[[#This Row],[TE-value]]=\"\",\"N/A\",IF(Tableau2[[#This Row],[TE-value-date]]=\"\",\"N/A\",\"Yes\"))))","v":"N/A"}]
[{"$f":"VLOOKUP(Tableau2[[#This Row],[Organisation identifier]],Tableau3[#All],4,FALSE)","v":"Agence Francaise de Developpement"},"FR-03",{"$f":"VLOOKUP(Tableau2[[#This Row],[Organisation identifier]],Tableau3[#All],4,FALSE)","v":"Agence Francaise de Developpement"},"French","Golfe de Guinée - Bilan d'activité 2019","https://www.afd.fr/fr/ressources/golfe-de-guinee-bilan-d-activite-2019","B10 - Country Evaluation Report\n","French",2020,"BJ - Benin\nCI - Côte d’Ivoire\nGH - Ghana\nNG - Nigeria\nTG - Togo\n",{"$f":"IF(Tableau2[[#This Row],[TB-Period-start]]=\"\",\"N/A\",IF(Tableau2[[#This Row],[TB-Period-end]]=\"\",\"N/A\",IF(Tableau2[[#This Row],[TB-value]]=\"\",\"N/A\",IF(Tableau2[[#This Row],[TB-value-date]]=\"\",\"N/A\",\"Yes\"))))","v":"N/A"},null,null,null,null,null,null,null,null,null,null,{"$f":"IF(Tableau2[[#This Row],[TE-Period-start]]=\"\",\"N/A\",IF(Tableau2[[#This Row],[TE-Period-end]]=\"\",\"N/A\",IF(Tableau2[[#This Row],[TE-value]]=\"\",\"N/A\",IF(Tableau2[[#This Row],[TE-value-date]]=\"\",\"N/A\",\"Yes\"))))","v":"N/A"}]
[{"$f":"VLOOKUP(Tableau2[[#This Row],[Organisation identifier]],Tableau3[#All],4,FALSE)","v":"Agence Francaise de Developpement"},"FR-03",{"$f":"VLOOKUP(Tableau2[[#This Row],[Organisation identifier]],Tableau3[#All],4,FALSE)","v":"Agence Francaise de Developpement"},"French","Stratégie Sénégal 2019-2023","https://www.afd.fr/fr/ressources/strategie-senegal-2019-2023?origin=/fr/rechercher?query=strat%C3%A9gie","B03 - Country strategy paper\n","French",2020,"SN - Senegal\n",{"$f":"IF(Tableau2[[#This Row],[TB-Period-start]]=\"\",\"N/A\",IF(Tableau2[[#This Row],[TB-Period-end]]=\"\",\"N/A\",IF(Tableau2[[#This Row],[TB-value]]=\"\",\"N/A\",IF(Tableau2[[#This Row],[TB-value-date]]=\"\",\"N/A\",\"Yes\"))))","v":"N/A"},null,null,null,null,null,null,null,null,null,null,{"$f":"IF(Tableau2[[#This Row],[TE-Period-start]]=\"\",\"N/A\",IF(Tableau2[[#This Row],[TE-Period-end]]=\"\",\"N/A\",IF(Tableau2[[#This Row],[TE-value]]=\"\",\"N/A\",IF(Tableau2[[#This Row],[TE-value-date]]=\"\",\"N/A\",\"Yes\"))))","v":"N/A"}]
[{"$f":"VLOOKUP(Tableau2[[#This Row],[Organisation identifier]],Tableau3[#All],4,FALSE)","v":"Agence Francaise de Developpement"},"FR-03",{"$f":"VLOOKUP(Tableau2[[#This Row],[Organisation identifier]],Tableau3[#All],4,FALSE)","v":"Agence Francaise de Developpement"},"English","Middle East Regional Strategy 2020-2030","https://www.afd.fr/en/ressources/middle-east-regional-strategy-2020-2030","B03 - Country strategy paper\n","English",2020,"IQ - Iraq\nJO - Jordan\nLB - Lebanon\nPS - Palestine, State of\n",{"$f":"IF(Tableau2[[#This Row],[TB-Period-start]]=\"\",\"N/A\",IF(Tableau2[[#This Row],[TB-Period-end]]=\"\",\"N/A\",IF(Tableau2[[#This Row],[TB-value]]=\"\",\"N/A\",IF(Tableau2[[#This Row],[TB-value-date]]=\"\",\"N/A\",\"Yes\"))))","v":"N/A"},null,null,null,null,null,null,null,null,null,null,{"$f":"IF(Tableau2[[#This Row],[TE-Period-start]]=\"\",\"N/A\",IF(Tableau2[[#This Row],[TE-Period-end]]=\"\",\"N/A\",IF(Tableau2[[#This Row],[TE-value]]=\"\",\"N/A\",IF(Tableau2[[#This Row],[TE-value-date]]=\"\",\"N/A\",\"Yes\"))))","v":"N/A"}]
[{"$f":"VLOOKUP(Tableau2[[#This Row],[Organisation identifier]],Tableau3[#All],4,FALSE)","v":"Agence Francaise de Developpement"},"FR-03",{"$f":"VLOOKUP(Tableau2[[#This Row],[Organisation identifier]],Tableau3[#All],4,FALSE)","v":"Agence Francaise de Developpement"},"English","Pacific Ocean Regional Strategy 2019-2023","https://www.afd.fr/en/ressources/pacific-ocean-regional-strategy-2019-2023","B03 - Country strategy paper\n","English",2020,"PF - French Polynesia\nNC - New Caledonia\n",{"$f":"IF(Tableau2[[#This Row],[TB-Period-start]]=\"\",\"N/A\",IF(Tableau2[[#This Row],[TB-Period-end]]=\"\",\"N/A\",IF(Tableau2[[#This Row],[TB-value]]=\"\",\"N/A\",IF(Tableau2[[#This Row],[TB-value-date]]=\"\",\"N/A\",\"Yes\"))))","v":"N/A"},null,null,null,null,null,null,null,null,null,null,{"$f":"IF(Tableau2[[#This Row],[TE-Period-start]]=\"\",\"N/A\",IF(Tableau2[[#This Row],[TE-Period-end]]=\"\",\"N/A\",IF(Tableau2[[#This Row],[TE-value]]=\"\",\"N/A\",IF(Tableau2[[#This Row],[TE-value-date]]=\"\",\"N/A\",\"Yes\"))))","v":"N/A"}]
[{"$f":"VLOOKUP(Tableau2[[#This Row],[Organisation identifier]],Tableau3[#All],4,FALSE)","v":"Agence Francaise de Developpement"},"FR-03",{"$f":"VLOOKUP(Tableau2[[#This Row],[Organisation identifier]],Tableau3[#All],4,FALSE)","v":"Agence Francaise de Developpement"},"English","Three Oceans Strategy","https://www.afd.fr/en/ressources/three-oceans-strategy","B03 - Country strategy paper\n","English",2020,"KM - Comoros (the)\nDO - Dominican Republic (the)\nGF - French Guiana\nPF - French Polynesia\nGP - Guadeloupe\nHT - Haiti\nMG - Madagascar\nMQ - Martinique\nMU - Mauritius\nYT - Mayotte\nNC - New Caledonia\nRE - Réunion\nPM - Saint Pierre and Miquelon\nSR - Suriname\n",{"$f":"IF(Tableau2[[#This Row],[TB-Period-start]]=\"\",\"N/A\",IF(Tableau2[[#This Row],[TB-Period-end]]=\"\",\"N/A\",IF(Tableau2[[#This Row],[TB-value]]=\"\",\"N/A\",IF(Tableau2[[#This Row],[TB-value-date]]=\"\",\"N/A\",\"Yes\"))))","v":"N/A"},null,null,null,null,null,null,null,null,null,null,{"$f":"IF(Tableau2[[#This Row],[TE-Period-start]]=\"\",\"N/A\",IF(Tableau2[[#This Row],[TE-Period-end]]=\"\",\"N/A\",IF(Tableau2[[#This Row],[TE-value]]=\"\",\"N/A\",IF(Tableau2[[#This Row],[TE-value-date]]=\"\",\"N/A\",\"Yes\"))))","v":"N/A"}]
[{"$f":"VLOOKUP(Tableau2[[#This Row],[Organisation identifier]],Tableau3[#All],4,FALSE)","v":"Agence Francaise de Developpement"},"FR-03","Agence Francaise de Developpement","Spanish","Estrategia México 2018-2022","https://www.afd.fr/es/ressources/estrategia-mexico-2018-2022","B03 - Country strategy paper\n","Spanish",2019,"MX - Mexico\n",{"$f":"IF(Tableau2[[#This Row],[TB-Period-start]]=\"\",\"N/A\",IF(Tableau2[[#This Row],[TB-Period-end]]=\"\",\"N/A\",IF(Tableau2[[#This Row],[TB-value]]=\"\",\"N/A\",IF(Tableau2[[#This Row],[TB-value-date]]=\"\",\"N/A\",\"Yes\"))))","v":"N/A"},null,null,null,null,null,null,null,null,null,null,{"$f":"IF(Tableau2[[#This Row],[TE-Period-start]]=\"\",\"N/A\",IF(Tableau2[[#This Row],[TE-Period-end]]=\"\",\"N/A\",IF(Tableau2[[#This Row],[TE-value]]=\"\",\"N/A\",IF(Tableau2[[#This Row],[TE-value-date]]=\"\",\"N/A\",\"Yes\"))))","v":"N/A"}]
[{"$f":"VLOOKUP(Tableau2[[#This Row],[Organisation identifier]],Tableau3[#All],4,FALSE)","v":"Agence Francaise de Developpement"},"FR-03",{"$f":"VLOOKUP(Tableau2[[#This Row],[Organisation identifier]],Tableau3[#All],4,FALSE)","v":"Agence Francaise de Developpement"},"English","Pakistan Strategy 2018-2022","https://www.afd.fr/en/ressources/pakistan-strategy-2018-2022","B03 - Country strategy paper\n","English",2019,"PK - Pakistan\n",{"$f":"IF(Tableau2[[#This Row],[TB-Period-start]]=\"\",\"N/A\",IF(Tableau2[[#This Row],[TB-Period-end]]=\"\",\"N/A\",IF(Tableau2[[#This Row],[TB-value]]=\"\",\"N/A\",IF(Tableau2[[#This Row],[TB-value-date]]=\"\",\"N/A\",\"Yes\"))))","v":"N/A"},null,null,null,null,null,null,null,null,null,null,{"$f":"IF(Tableau2[[#This Row],[TE-Period-start]]=\"\",\"N/A\",IF(Tableau2[[#This Row],[TE-Period-end]]=\"\",\"N/A\",IF(Tableau2[[#This Row],[TE-value]]=\"\",\"N/A\",IF(Tableau2[[#This Row],[TE-value-date]]=\"\",\"N/A\",\"Yes\"))))","v":"N/A"}]
[{"$f":"VLOOKUP(Tableau2[[#This Row],[Organisation identifier]],Tableau3[#All],4,FALSE)","v":"Agence Francaise de Developpement"},"FR-03",{"$f":"VLOOKUP(Tableau2[[#This Row],[Organisation identifier]],Tableau3[#All],4,FALSE)","v":"Agence Francaise de Developpement"},"English","Strategy Indonesia 2017-2021","https://www.afd.fr/en/ressources/strategy-indonesia-2017-2021","B03 - Country strategy paper\n","English",2018,"ID - Indonesia\n",{"$f":"IF(Tableau2[[#This Row],[TB-Period-start]]=\"\",\"N/A\",IF(Tableau2[[#This Row],[TB-Period-end]]=\"\",\"N/A\",IF(Tableau2[[#This Row],[TB-value]]=\"\",\"N/A\",IF(Tableau2[[#This Row],[TB-value-date]]=\"\",\"N/A\",\"Yes\"))))","v":"N/A"},null,null,null,null,null,null,null,null,null,null,{"$f":"IF(Tableau2[[#This Row],[TE-Period-start]]=\"\",\"N/A\",IF(Tableau2[[#This Row],[TE-Period-end]]=\"\",\"N/A\",IF(Tableau2[[#This Row],[TE-value]]=\"\",\"N/A\",IF(Tableau2[[#This Row],[TE-value-date]]=\"\",\"N/A\",\"Yes\"))))","v":"N/A"}]
[{"$f":"VLOOKUP(Tableau2[[#This Row],[Organisation identifier]],Tableau3[#All],4,FALSE)","v":"Agence Francaise de Developpement"},"FR-03",{"$f":"VLOOKUP(Tableau2[[#This Row],[Organisation identifier]],Tableau3[#All],4,FALSE)","v":"Agence Francaise de Developpement"},"English","Strategy India 2017-2021","https://www.afd.fr/en/ressources/strategy-india-2017-2021","B03 - Country strategy paper\n","English",2018,"IN - India\n",{"$f":"IF(Tableau2[[#This Row],[TB-Period-start]]=\"\",\"N/A\",IF(Tableau2[[#This Row],[TB-Period-end]]=\"\",\"N/A\",IF(Tableau2[[#This Row],[TB-value]]=\"\",\"N/A\",IF(Tableau2[[#This Row],[TB-value-date]]=\"\",\"N/A\",\"Yes\"))))","v":"N/A"},null,null,null,null,null,null,null,null,null,null,{"$f":"IF(Tableau2[[#This Row],[TE-Period-start]]=\"\",\"N/A\",IF(Tableau2[[#This Row],[TE-Period-end]]=\"\",\"N/A\",IF(Tableau2[[#This Row],[TE-value]]=\"\",\"N/A\",IF(Tableau2[[#This Row],[TE-value-date]]=\"\",\"N/A\",\"Yes\"))))","v":"N/A"}]
[{"$f":"VLOOKUP(Tableau2[[#This Row],[Organisation identifier]],Tableau3[#All],4,FALSE)","v":"Agence Francaise de Developpement"},"FR-03",{"$f":"VLOOKUP(Tableau2[[#This Row],[Organisation identifier]],Tableau3[#All],4,FALSE)","v":"Agence Francaise de Developpement"},"English","Strategy Tanzania 2017-2021","https://www.afd.fr/en/ressources/strategy-tanzania-2017-2021","B03 - Country strategy paper\n","English",2018,"TZ - Tanzania, United Republic of\n",{"$f":"IF(Tableau2[[#This Row],[TB-Period-start]]=\"\",\"N/A\",IF(Tableau2[[#This Row],[TB-Period-end]]=\"\",\"N/A\",IF(Tableau2[[#This Row],[TB-value]]=\"\",\"N/A\",IF(Tableau2[[#This Row],[TB-value-date]]=\"\",\"N/A\",\"Yes\"))))","v":"N/A"},null,null,null,null,null,null,null,null,null,null,{"$f":"IF(Tableau2[[#This Row],[TE-Period-start]]=\"\",\"N/A\",IF(Tableau2[[#This Row],[TE-Period-end]]=\"\",\"N/A\",IF(Tableau2[[#This Row],[TE-value]]=\"\",\"N/A\",IF(Tableau2[[#This Row],[TE-value-date]]=\"\",\"N/A\",\"Yes\"))))","v":"N/A"}]
[{"$f":"VLOOKUP(Tableau2[[#This Row],[Organisation identifier]],Tableau3[#All],4,FALSE)","v":"Agence Francaise de Developpement"},"FR-03",{"$f":"VLOOKUP(Tableau2[[#This Row],[Organisation identifier]],Tableau3[#All],4,FALSE)","v":"Agence Francaise de Developpement"},"French","Stratégie Nigéria 2017-2021","https://www.afd.fr/fr/ressources/strategie-nigeria-2017-2021","B03 - Country strategy paper\n","French",2018,"NG - Nigeria\n",{"$f":"IF(Tableau2[[#This Row],[TB-Period-start]]=\"\",\"N/A\",IF(Tableau2[[#This Row],[TB-Period-end]]=\"\",\"N/A\",IF(Tableau2[[#This Row],[TB-value]]=\"\",\"N/A\",IF(Tableau2[[#This Row],[TB-value-date]]=\"\",\"N/A\",\"Yes\"))))","v":"N/A"},null,null,null,null,null,null,null,null,null,null,{"$f":"IF(Tableau2[[#This Row],[TE-Period-start]]=\"\",\"N/A\",IF(Tableau2[[#This Row],[TE-Period-end]]=\"\",\"N/A\",IF(Tableau2[[#This Row],[TE-value]]=\"\",\"N/A\",IF(Tableau2[[#This Row],[TE-value-date]]=\"\",\"N/A\",\"Yes\"))))","v":"N/A"}]
[{"$f":"VLOOKUP(Tableau2[[#This Row],[Organisation identifier]],Tableau3[#All],4,FALSE)","v":"Agence Francaise de Developpement"},"FR-03",{"$f":"VLOOKUP(Tableau2[[#This Row],[Organisation identifier]],Tableau3[#All],4,FALSE)","v":"Agence Francaise de Developpement"},"English","Nigeria Strategy 2017-2021","https://www.afd.fr/en/ressources/nigeria-strategy-2017-2021","B03 - Country strategy paper\n","English",2018,"NG - Nigeria\n",{"$f":"IF(Tableau2[[#This Row],[TB-Period-start]]=\"\",\"N/A\",IF(Tableau2[[#This Row],[TB-Period-end]]=\"\",\"N/A\",IF(Tableau2[[#This Row],[TB-value]]=\"\",\"N/A\",IF(Tableau2[[#This Row],[TB-value-date]]=\"\",\"N/A\",\"Yes\"))))","v":"N/A"},null,null,null,null,null,null,null,null,null,null,{"$f":"IF(Tableau2[[#This Row],[TE-Period-start]]=\"\",\"N/A\",IF(Tableau2[[#This Row],[TE-Period-end]]=\"\",\"N/A\",IF(Tableau2[[#This Row],[TE-value]]=\"\",\"N/A\",IF(Tableau2[[#This Row],[TE-value-date]]=\"\",\"N/A\",\"Yes\"))))","v":"N/A"}]
[{"$f":"VLOOKUP(Tableau2[[#This Row],[Organisation identifier]],Tableau3[#All],4,FALSE)","v":"Agence Francaise de Developpement"},"FR-03",{"$f":"VLOOKUP(Tableau2[[#This Row],[Organisation identifier]],Tableau3[#All],4,FALSE)","v":"Agence Francaise de Developpement"},"French","Stratégie Pays - Jordanie 2016 2020","https://www.afd.fr/fr/ressources/strategie-pays-jordanie","B03 - Country strategy paper\n","French",2018,"JO - Jordan\n",{"$f":"IF(Tableau2[[#This Row],[TB-Period-start]]=\"\",\"N/A\",IF(Tableau2[[#This Row],[TB-Period-end]]=\"\",\"N/A\",IF(Tableau2[[#This Row],[TB-value]]=\"\",\"N/A\",IF(Tableau2[[#This Row],[TB-value-date]]=\"\",\"N/A\",\"Yes\"))))","v":"N/A"},null,null,null,null,null,null,null,null,null,null,{"$f":"IF(Tableau2[[#This Row],[TE-Period-start]]=\"\",\"N/A\",IF(Tableau2[[#This Row],[TE-Period-end]]=\"\",\"N/A\",IF(Tableau2[[#This Row],[TE-value]]=\"\",\"N/A\",IF(Tableau2[[#This Row],[TE-value-date]]=\"\",\"N/A\",\"Yes\"))))","v":"N/A"}]
[{"$f":"VLOOKUP(Tableau2[[#This Row],[Organisation identifier]],Tableau3[#All],4,FALSE)","v":"Agence Francaise de Developpement"},"FR-03",{"$f":"VLOOKUP(Tableau2[[#This Row],[Organisation identifier]],Tableau3[#All],4,FALSE)","v":"Agence Francaise de Developpement"},"French","Stratégie Djibouti 2017-2021","https://www.afd.fr/fr/ressources/strategie-djibouti-2017-2021","B03 - Country strategy paper\n","French",2018,"DJ - Djibouti\n",{"$f":"IF(Tableau2[[#This Row],[TB-Period-start]]=\"\",\"N/A\",IF(Tableau2[[#This Row],[TB-Period-end]]=\"\",\"N/A\",IF(Tableau2[[#This Row],[TB-value]]=\"\",\"N/A\",IF(Tableau2[[#This Row],[TB-value-date]]=\"\",\"N/A\",\"Yes\"))))","v":"N/A"},null,null,null,null,null,null,null,null,null,null,{"$f":"IF(Tableau2[[#This Row],[TE-Period-start]]=\"\",\"N/A\",IF(Tableau2[[#This Row],[TE-Period-end]]=\"\",\"N/A\",IF(Tableau2[[#This Row],[TE-value]]=\"\",\"N/A\",IF(Tableau2[[#This Row],[TE-value-date]]=\"\",\"N/A\",\"Yes\"))))","v":"N/A"}]
[{"$f":"VLOOKUP(Tableau2[[#This Row],[Organisation identifier]],Tableau3[#All],4,FALSE)","v":"Agence Francaise de Developpement"},"FR-03",{"$f":"VLOOKUP(Tableau2[[#This Row],[Organisation identifier]],Tableau3[#All],4,FALSE)","v":"Agence Francaise de Developpement"},"English","Financial Systems Strategy 2018-2022","https://www.afd.fr/en/ressources/financial-systems-strategy-2018-2022","B11 - Sector strategy\n","English",2018,null,{"$f":"IF(Tableau2[[#This Row],[TB-Period-start]]=\"\",\"N/A\",IF(Tableau2[[#This Row],[TB-Period-end]]=\"\",\"N/A\",IF(Tableau2[[#This Row],[TB-value]]=\"\",\"N/A\",IF(Tableau2[[#This Row],[TB-value-date]]=\"\",\"N/A\",\"Yes\"))))","v":"N/A"},null,null,null,null,null,null,null,null,null,null,{"$f":"IF(Tableau2[[#This Row],[TE-Period-start]]=\"\",\"N/A\",IF(Tableau2[[#This Row],[TE-Period-end]]=\"\",\"N/A\",IF(Tableau2[[#This Row],[TE-value]]=\"\",\"N/A\",IF(Tableau2[[#This Row],[TE-value-date]]=\"\",\"N/A\",\"Yes\"))))","v":"N/A"}]
[{"$f":"VLOOKUP(Tableau2[[#This Row],[Organisation identifier]],Tableau3[#All],4,FALSE)","v":"Agence Francaise de Developpement"},"FR-03",{"$f":"VLOOKUP(Tableau2[[#This Row],[Organisation identifier]],Tableau3[#All],4,FALSE)","v":"Agence Francaise de Developpement"},"English","Climate and Development Strategy 2017-2022","https://www.afd.fr/sites/afd/files/2018-03-02-13-32/climate-development-strategy-2017-2022.pdf","B11 - Sector strategy\n","English",2017,null,{"$f":"IF(Tableau2[[#This Row],[TB-Period-start]]=\"\",\"N/A\",IF(Tableau2[[#This Row],[TB-Period-end]]=\"\",\"N/A\",IF(Tableau2[[#This Row],[TB-value]]=\"\",\"N/A\",IF(Tableau2[[#This Row],[TB-value-date]]=\"\",\"N/A\",\"Yes\"))))","v":"N/A"},null,null,null,null,null,null,null,null,null,null,{"$f":"IF(Tableau2[[#This Row],[TE-Period-start]]=\"\",\"N/A\",IF(Tableau2[[#This Row],[TE-Period-end]]=\"\",\"N/A\",IF(Tableau2[[#This Row],[TE-value]]=\"\",\"N/A\",IF(Tableau2[[#This Row],[TE-value-date]]=\"\",\"N/A\",\"Yes\"))))","v":"N/A"}]
["agence Francaise de Developpement","FR-03","Agence Francaise de Developpement","French","REGIONAL STRATEGY BRAZIL-SOUTHERN CONE 2020-2024","https://www.afd.fr/en/ressources/regional-strategy-brazil-southern-cone-2020-2024","B03 - Country strategy paper\n","English",2020,"BR - Brazil\n",{"$f":"IF(Tableau2[[#This Row],[TB-Period-start]]=\"\",\"N/A\",IF(Tableau2[[#This Row],[TB-Period-end]]=\"\",\"N/A\",IF(Tableau2[[#This Row],[TB-value]]=\"\",\"N/A\",IF(Tableau2[[#This Row],[TB-value-date]]=\"\",\"N/A\",\"Yes\"))))","v":"N/A"},null,null,null,null,null,null,null,null,null,null,{"$f":"IF(Tableau2[[#This Row],[TE-Period-start]]=\"\",\"N/A\",IF(Tableau2[[#This Row],[TE-Period-end]]=\"\",\"N/A\",IF(Tableau2[[#This Row],[TE-value]]=\"\",\"N/A\",IF(Tableau2[[#This Row],[TE-value-date]]=\"\",\"N/A\",\"Yes\"))))","v":"N/A"}]
[{"$f":"VLOOKUP(Tableau2[[#This Row],[Organisation identifier]],Tableau3[#All],4,FALSE)","v":"Agence Francaise de Developpement"},"FR-03",{"$f":"VLOOKUP(Tableau2[[#This Row],[Organisation identifier]],Tableau3[#All],4,FALSE)","v":"Agence Francaise de Developpement"},"French","Stratégie régionale Brésil-Cône sud 2020-2024","https://www.afd.fr/sites/afd/files/2020-11-04-41-17/strategie-regionale-bresil-cone-sud-2020-2024.pdf","B03 - Country strategy paper\n","French",2020,"BR - Brazil\n",{"$f":"IF(Tableau2[[#This Row],[TB-Period-start]]=\"\",\"N/A\",IF(Tableau2[[#This Row],[TB-Period-end]]=\"\",\"N/A\",IF(Tableau2[[#This Row],[TB-value]]=\"\",\"N/A\",IF(Tableau2[[#This Row],[TB-value-date]]=\"\",\"N/A\",\"Yes\"))))","v":"N/A"},null,null,null,null,null,null,null,null,null,null,{"$f":"IF(Tableau2[[#This Row],[TE-Period-start]]=\"\",\"N/A\",IF(Tableau2[[#This Row],[TE-Period-end]]=\"\",\"N/A\",IF(Tableau2[[#This Row],[TE-value]]=\"\",\"N/A\",IF(Tableau2[[#This Row],[TE-value-date]]=\"\",\"N/A\",\"Yes\"))))","v":"N/A"}]
["Agence Francaise de Developpement","FR-03","Agence Francaise de Developpement","French","ESTRATEGIA REGIONAL BRASIL-CONO SUR 2020-2024","https://www.afd.fr/es/ressources/estrategia-regional-brasil-cono-sur-2020-2024","B03 - Country strategy paper\n","Spanish",2020,"BR - Brazil\n",{"$f":"IF(Tableau2[[#This Row],[TB-Period-start]]=\"\",\"N/A\",IF(Tableau2[[#This Row],[TB-Period-end]]=\"\",\"N/A\",IF(Tableau2[[#This Row],[TB-value]]=\"\",\"N/A\",IF(Tableau2[[#This Row],[TB-value-date]]=\"\",\"N/A\",\"Yes\"))))","v":"N/A"},null,null,null,null,null,null,null,null,null,null,{"$f":"IF(Tableau2[[#This Row],[TE-Period-start]]=\"\",\"N/A\",IF(Tableau2[[#This Row],[TE-Period-end]]=\"\",\"N/A\",IF(Tableau2[[#This Row],[TE-value]]=\"\",\"N/A\",IF(Tableau2[[#This Row],[TE-value-date]]=\"\",\"N/A\",\"Yes\"))))","v":"N/A"}]
["Agence Francaise de Developpement","FR-03",{"$f":"VLOOKUP(Tableau2[[#This Row],[Organisation identifier]],Tableau3[#All],4,FALSE)","v":"Agence Francaise de Developpement"},"French","ESTRATÉGIA REGIONAL BRASIL CONE-SUL 2020-2024","https://www.afd.fr/pt/ressources/estrategia-regional-brasil-cone-sul-2020-2024","B03 - Country strategy paper\n","Portuguese",2020,"BR - Brazil\n",{"$f":"IF(Tableau2[[#This Row],[TB-Period-start]]=\"\",\"N/A\",IF(Tableau2[[#This Row],[TB-Period-end]]=\"\",\"N/A\",IF(Tableau2[[#This Row],[TB-value]]=\"\",\"N/A\",IF(Tableau2[[#This Row],[TB-value-date]]=\"\",\"N/A\",\"Yes\"))))","v":"N/A"},null,null,null,null,null,null,null,null,null,null,{"$f":"IF(Tableau2[[#This Row],[TE-Period-start]]=\"\",\"N/A\",IF(Tableau2[[#This Row],[TE-Period-end]]=\"\",\"N/A\",IF(Tableau2[[#This Row],[TE-value]]=\"\",\"N/A\",IF(Tableau2[[#This Row],[TE-value-date]]=\"\",\"N/A\",\"Yes\"))))","v":"N/A"}]
[{"$f":"VLOOKUP(Tableau2[[#This Row],[Organisation identifier]],Tableau3[#All],4,FALSE)","v":"Agence Francaise de Developpement"},"FR-03",{"$f":"VLOOKUP(Tableau2[[#This Row],[Organisation identifier]],Tableau3[#All],4,FALSE)","v":"Agence Francaise de Developpement"},"French","Evaluation - Projet d’appui à la formation professionnelle au Vietnam","https://www.afd.fr/sites/afd/files/2020-07-08-58-25/resume-evaluation-appui-formation-professionnelle-vietnam-cvn1127.pdf","A07 - Review of project performance and evaluation\n","French",2020,"VN - Viet Nam\n",{"$f":"IF(Tableau2[[#This Row],[TB-Period-start]]=\"\",\"N/A\",IF(Tableau2[[#This Row],[TB-Period-end]]=\"\",\"N/A\",IF(Tableau2[[#This Row],[TB-value]]=\"\",\"N/A\",IF(Tableau2[[#This Row],[TB-value-date]]=\"\",\"N/A\",\"Yes\"))))","v":"N/A"},null,null,null,null,null,null,null,null,null,null,{"$f":"IF(Tableau2[[#This Row],[TE-Period-start]]=\"\",\"N/A\",IF(Tableau2[[#This Row],[TE-Period-end]]=\"\",\"N/A\",IF(Tableau2[[#This Row],[TE-value]]=\"\",\"N/A\",IF(Tableau2[[#This Row],[TE-value-date]]=\"\",\"N/A\",\"Yes\"))))","v":"N/A"}]
[{"$f":"VLOOKUP(Tableau2[[#This Row],[Organisation identifier]],Tableau3[#All],4,FALSE)","v":"Agence Francaise de Developpement"},"FR-03",{"$f":"VLOOKUP(Tableau2[[#This Row],[Organisation identifier]],Tableau3[#All],4,FALSE)","v":"Agence Francaise de Developpement"},"French","Evaluation - Appui au programme sectoriel de l’éducation (PSE), Guinée","https://www.afd.fr/sites/afd/files/2020-07-08-51-15/resume-evaluation-appui-programme-sectoriel-education-pse-guinee-cgn3002.pdf","A07 - Review of project performance and evaluation\n","French",2020,"GN - Guinea\n",{"$f":"IF(Tableau2[[#This Row],[TB-Period-start]]=\"\",\"N/A\",IF(Tableau2[[#This Row],[TB-Period-end]]=\"\",\"N/A\",IF(Tableau2[[#This Row],[TB-value]]=\"\",\"N/A\",IF(Tableau2[[#This Row],[TB-value-date]]=\"\",\"N/A\",\"Yes\"))))","v":"N/A"},null,null,null,null,null,null,null,null,null,null,{"$f":"IF(Tableau2[[#This Row],[TE-Period-start]]=\"\",\"N/A\",IF(Tableau2[[#This Row],[TE-Period-end]]=\"\",\"N/A\",IF(Tableau2[[#This Row],[TE-value]]=\"\",\"N/A\",IF(Tableau2[[#This Row],[TE-value-date]]=\"\",\"N/A\",\"Yes\"))))","v":"N/A"}]
[{"$f":"VLOOKUP(Tableau2[[#This Row],[Organisation identifier]],Tableau3[#All],4,FALSE)","v":"Agence Francaise de Developpement"},"FR-03",{"$f":"VLOOKUP(Tableau2[[#This Row],[Organisation identifier]],Tableau3[#All],4,FALSE)","v":"Agence Francaise de Developpement"},"French","Stratégie transition territoriale et écologique 2020-2024","https://www.afd.fr/sites/afd/files/2020-12-04-05-44/strategie-transition-territoriale-et-ecologique-2020-2024.pdf","B11 - Sector strategy\n","French",2020,null,{"$f":"IF(Tableau2[[#This Row],[TB-Period-start]]=\"\",\"N/A\",IF(Tableau2[[#This Row],[TB-Period-end]]=\"\",\"N/A\",IF(Tableau2[[#This Row],[TB-value]]=\"\",\"N/A\",IF(Tableau2[[#This Row],[TB-value-date]]=\"\",\"N/A\",\"Yes\"))))","v":"N/A"},null,null,null,null,null,null,null,null,null,null,{"$f":"IF(Tableau2[[#This Row],[TE-Period-start]]=\"\",\"N/A\",IF(Tableau2[[#This Row],[TE-Period-end]]=\"\",\"N/A\",IF(Tableau2[[#This Row],[TE-value]]=\"\",\"N/A\",IF(Tableau2[[#This Row],[TE-value-date]]=\"\",\"N/A\",\"Yes\"))))","v":"N/A"}]
["Agence Francaise de Developpement","FR-03",{"$f":"VLOOKUP(Tableau2[[#This Row],[Organisation identifier]],Tableau3[#All],4,FALSE)","v":"Agence Francaise de Developpement"},"French","Evaluation - Centres secondaires","https://www.afd.fr/fr/ressources/resume-evaluation-projet-centres-secondaires-burkina-faso","A07 - Review of project performance and evaluation\n","French",2020,"BF - Burkina Faso\n",{"$f":"IF(Tableau2[[#This Row],[TB-Period-start]]=\"\",\"N/A\",IF(Tableau2[[#This Row],[TB-Period-end]]=\"\",\"N/A\",IF(Tableau2[[#This Row],[TB-value]]=\"\",\"N/A\",IF(Tableau2[[#This Row],[TB-value-date]]=\"\",\"N/A\",\"Yes\"))))","v":"N/A"},null,null,null,null,null,null,null,null,null,null,{"$f":"IF(Tableau2[[#This Row],[TE-Period-start]]=\"\",\"N/A\",IF(Tableau2[[#This Row],[TE-Period-end]]=\"\",\"N/A\",IF(Tableau2[[#This Row],[TE-value]]=\"\",\"N/A\",IF(Tableau2[[#This Row],[TE-value-date]]=\"\",\"N/A\",\"Yes\"))))","v":"N/A"}]
["Agence Francaise de Developpement","FR-03",{"$f":"VLOOKUP(Tableau2[[#This Row],[Organisation identifier]],Tableau3[#All],4,FALSE)","v":"Agence Francaise de Developpement"},"French","Evaluation - PME Education","https://www.afd.fr/fr/ressources/resume-evaluation-appui-pme-afd-programmes-education-burkina-faso","A07 - Review of project performance and evaluation\n","French",2020,"BF - Burkina Faso\n",{"$f":"IF(Tableau2[[#This Row],[TB-Period-start]]=\"\",\"N/A\",IF(Tableau2[[#This Row],[TB-Period-end]]=\"\",\"N/A\",IF(Tableau2[[#This Row],[TB-value]]=\"\",\"N/A\",IF(Tableau2[[#This Row],[TB-value-date]]=\"\",\"N/A\",\"Yes\"))))","v":"N/A"},null,null,null,null,null,null,null,null,null,null,{"$f":"IF(Tableau2[[#This Row],[TE-Period-start]]=\"\",\"N/A\",IF(Tableau2[[#This Row],[TE-Period-end]]=\"\",\"N/A\",IF(Tableau2[[#This Row],[TE-value]]=\"\",\"N/A\",IF(Tableau2[[#This Row],[TE-value-date]]=\"\",\"N/A\",\"Yes\"))))","v":"N/A"}]
["agence Francaise de Developpement","FR-03",{"$f":"VLOOKUP(Tableau2[[#This Row],[Organisation identifier]],Tableau3[#All],4,FALSE)","v":"Agence Francaise de Developpement"},"French","Evaluation Speed (Phase II)","https://www.afd.fr/en/ressources/evaluation-summary-sustainable-energy-efficiency-development-palestine-speed-project","A07 - Review of project performance and evaluation\n","English",2020,"PS - Palestine, State of\n",{"$f":"IF(Tableau2[[#This Row],[TB-Period-start]]=\"\",\"N/A\",IF(Tableau2[[#This Row],[TB-Period-end]]=\"\",\"N/A\",IF(Tableau2[[#This Row],[TB-value]]=\"\",\"N/A\",IF(Tableau2[[#This Row],[TB-value-date]]=\"\",\"N/A\",\"Yes\"))))","v":"N/A"},null,null,null,null,null,null,null,null,null,null,{"$f":"IF(Tableau2[[#This Row],[TE-Period-start]]=\"\",\"N/A\",IF(Tableau2[[#This Row],[TE-Period-end]]=\"\",\"N/A\",IF(Tableau2[[#This Row],[TE-value]]=\"\",\"N/A\",IF(Tableau2[[#This Row],[TE-value-date]]=\"\",\"N/A\",\"Yes\"))))","v":"N/A"}]
["Agence Francaise de Developpement","FR-03",{"$f":"VLOOKUP(Tableau2[[#This Row],[Organisation identifier]],Tableau3[#All],4,FALSE)","v":"Agence Francaise de Developpement"},"French","Evaluation C2D 1 DEFI - THIMO / Chantier école / Stages / AGR-MPE","https://www.afd.fr/fr/ressources/resume-evaluation-sous-projet-phase-1-projet-c2d-emploi-activites-thimo-cote-d-ivoire","A07 - Review of project performance and evaluation\n","French",2019,"CI - Côte d’Ivoire\n",{"$f":"IF(Tableau2[[#This Row],[TB-Period-start]]=\"\",\"N/A\",IF(Tableau2[[#This Row],[TB-Period-end]]=\"\",\"N/A\",IF(Tableau2[[#This Row],[TB-value]]=\"\",\"N/A\",IF(Tableau2[[#This Row],[TB-value-date]]=\"\",\"N/A\",\"Yes\"))))","v":"N/A"},null,null,null,null,null,null,null,null,null,null,{"$f":"IF(Tableau2[[#This Row],[TE-Period-start]]=\"\",\"N/A\",IF(Tableau2[[#This Row],[TE-Period-end]]=\"\",\"N/A\",IF(Tableau2[[#This Row],[TE-value]]=\"\",\"N/A\",IF(Tableau2[[#This Row],[TE-value-date]]=\"\",\"N/A\",\"Yes\"))))","v":"N/A"}]
["Agence Francaise de Developpement","FR-03",{"$f":"VLOOKUP(Tableau2[[#This Row],[Organisation identifier]],Tableau3[#All],4,FALSE)","v":"Agence Francaise de Developpement"},"French","Evaluation Quirimbas II","https://www.afd.fr/fr/ressources/resume-evaluation-projets-consolidation-parc-national-quirimbas-et-adaptation-changement-climatique-mozambique","A07 - Review of project performance and evaluation\n","French",2019,"MZ - Mozambique\n",{"$f":"IF(Tableau2[[#This Row],[TB-Period-start]]=\"\",\"N/A\",IF(Tableau2[[#This Row],[TB-Period-end]]=\"\",\"N/A\",IF(Tableau2[[#This Row],[TB-value]]=\"\",\"N/A\",IF(Tableau2[[#This Row],[TB-value-date]]=\"\",\"N/A\",\"Yes\"))))","v":"N/A"},null,null,null,null,null,null,null,null,null,null,{"$f":"IF(Tableau2[[#This Row],[TE-Period-start]]=\"\",\"N/A\",IF(Tableau2[[#This Row],[TE-Period-end]]=\"\",\"N/A\",IF(Tableau2[[#This Row],[TE-value]]=\"\",\"N/A\",IF(Tableau2[[#This Row],[TE-value-date]]=\"\",\"N/A\",\"Yes\"))))","v":"N/A"}]
["Agence Francaise de Developpement","FR-03",{"$f":"VLOOKUP(Tableau2[[#This Row],[Organisation identifier]],Tableau3[#All],4,FALSE)","v":"Agence Francaise de Developpement"},"French","Evaluation Rizi-Pisciculture en Guinée Forestière (PDRP-GF)","https://www.afd.fr/fr/ressources/resume-evaluation-developpement-rizi-pisciculture-guinee-forestiere","A07 - Review of project performance and evaluation\n","French",2017,"GN - Guinea\n",{"$f":"IF(Tableau2[[#This Row],[TB-Period-start]]=\"\",\"N/A\",IF(Tableau2[[#This Row],[TB-Period-end]]=\"\",\"N/A\",IF(Tableau2[[#This Row],[TB-value]]=\"\",\"N/A\",IF(Tableau2[[#This Row],[TB-value-date]]=\"\",\"N/A\",\"Yes\"))))","v":"N/A"},null,null,null,null,null,null,null,null,null,null,{"$f":"IF(Tableau2[[#This Row],[TE-Period-start]]=\"\",\"N/A\",IF(Tableau2[[#This Row],[TE-Period-end]]=\"\",\"N/A\",IF(Tableau2[[#This Row],[TE-value]]=\"\",\"N/A\",IF(Tableau2[[#This Row],[TE-value-date]]=\"\",\"N/A\",\"Yes\"))))","v":"N/A"}]
["Agence Francaise de Developpement","FR-03",{"$f":"VLOOKUP(Tableau2[[#This Row],[Organisation identifier]],Tableau3[#All],4,FALSE)","v":"Agence Francaise de Developpement"},"French","Guide pratique : Agir pour un monde en commun","https://www.afd.fr/fr/ressources/guide-pratique-agir-pour-un-monde-en-commun","A02 - Objectives / Purpose of activity\n","French",2020,null,{"$f":"IF(Tableau2[[#This Row],[TB-Period-start]]=\"\",\"N/A\",IF(Tableau2[[#This Row],[TB-Period-end]]=\"\",\"N/A\",IF(Tableau2[[#This Row],[TB-value]]=\"\",\"N/A\",IF(Tableau2[[#This Row],[TB-value-date]]=\"\",\"N/A\",\"Yes\"))))","v":"N/A"},null,null,null,null,null,null,null,null,null,null,{"$f":"IF(Tableau2[[#This Row],[TE-Period-start]]=\"\",\"N/A\",IF(Tableau2[[#This Row],[TE-Period-end]]=\"\",\"N/A\",IF(Tableau2[[#This Row],[TE-value]]=\"\",\"N/A\",IF(Tableau2[[#This Row],[TE-value-date]]=\"\",\"N/A\",\"Yes\"))))","v":"N/A"}]
["Agence Francaise de Developpement","FR-03",{"$f":"VLOOKUP(Tableau2[[#This Row],[Organisation identifier]],Tableau3[#All],4,FALSE)","v":"Agence Francaise de Developpement"},"French","Stratégie régionale océan Pacifique 2019-2023","https://www.afd.fr/fr/ressources/strategie-regionale-ocean-pacifique-2019-2023","B03 - Country strategy paper\n","French",2020,"PF - French Polynesia\nNC - New Caledonia\n",{"$f":"IF(Tableau2[[#This Row],[TB-Period-start]]=\"\",\"N/A\",IF(Tableau2[[#This Row],[TB-Period-end]]=\"\",\"N/A\",IF(Tableau2[[#This Row],[TB-value]]=\"\",\"N/A\",IF(Tableau2[[#This Row],[TB-value-date]]=\"\",\"N/A\",\"Yes\"))))","v":"N/A"},null,null,null,null,null,null,null,null,null,null,{"$f":"IF(Tableau2[[#This Row],[TE-Period-start]]=\"\",\"N/A\",IF(Tableau2[[#This Row],[TE-Period-end]]=\"\",\"N/A\",IF(Tableau2[[#This Row],[TE-value]]=\"\",\"N/A\",IF(Tableau2[[#This Row],[TE-value-date]]=\"\",\"N/A\",\"Yes\"))))","v":"N/A"}]
["Agence Francaise de Developpement","FR-03",{"$f":"VLOOKUP(Tableau2[[#This Row],[Organisation identifier]],Tableau3[#All],4,FALSE)","v":"Agence Francaise de Developpement"},"French","L'AFD et la région océan Atlantique","https://www.afd.fr/fr/ressources/lafd-et-la-region-ocean-atlantique","A12 - Activity web page\n","French",2020,"DO - Dominican Republic (the)\nGP - Guadeloupe\nGY - Guyana\nHT - Haiti\nMQ - Martinique\nPM - Saint Pierre and Miquelon\n",{"$f":"IF(Tableau2[[#This Row],[TB-Period-start]]=\"\",\"N/A\",IF(Tableau2[[#This Row],[TB-Period-end]]=\"\",\"N/A\",IF(Tableau2[[#This Row],[TB-value]]=\"\",\"N/A\",IF(Tableau2[[#This Row],[TB-value-date]]=\"\",\"N/A\",\"Yes\"))))","v":"N/A"},null,null,null,null,null,null,null,null,null,null,{"$f":"IF(Tableau2[[#This Row],[TE-Period-start]]=\"\",\"N/A\",IF(Tableau2[[#This Row],[TE-Period-end]]=\"\",\"N/A\",IF(Tableau2[[#This Row],[TE-value]]=\"\",\"N/A\",IF(Tableau2[[#This Row],[TE-value-date]]=\"\",\"N/A\",\"Yes\"))))","v":"N/A"}]
["Agence Francaise de Developpement","FR-03",{"$f":"VLOOKUP(Tableau2[[#This Row],[Organisation identifier]],Tableau3[#All],4,FALSE)","v":"Agence Francaise de Developpement"},"French","Lancement de la Ligue africaine de basketball : le sport pour écrire une histoire commune","https://www.afd.fr/fr/ressources/lancement-de-la-ligue-africaine-de-basketball-le-sport-pour-ecrire-une-histoire-commune","B11 - Sector strategy\n","French",2020,null,{"$f":"IF(Tableau2[[#This Row],[TB-Period-start]]=\"\",\"N/A\",IF(Tableau2[[#This Row],[TB-Period-end]]=\"\",\"N/A\",IF(Tableau2[[#This Row],[TB-value]]=\"\",\"N/A\",IF(Tableau2[[#This Row],[TB-value-date]]=\"\",\"N/A\",\"Yes\"))))","v":"N/A"},null,null,null,null,null,null,null,null,null,null,{"$f":"IF(Tableau2[[#This Row],[TE-Period-start]]=\"\",\"N/A\",IF(Tableau2[[#This Row],[TE-Period-end]]=\"\",\"N/A\",IF(Tableau2[[#This Row],[TE-value]]=\"\",\"N/A\",IF(Tableau2[[#This Row],[TE-value-date]]=\"\",\"N/A\",\"Yes\"))))","v":"N/A"}]
["Agence Francaise de Developpement","FR-03",{"$f":"VLOOKUP(Tableau2[[#This Row],[Organisation identifier]],Tableau3[#All],4,FALSE)","v":"Agence Francaise de Developpement"},"French","L'Amérique latine en 2020","https://www.afd.fr/fr/l-amerique-latine-en-2020","B03 - Country strategy paper\n","French",2020,null,{"$f":"IF(Tableau2[[#This Row],[TB-Period-start]]=\"\",\"N/A\",IF(Tableau2[[#This Row],[TB-Period-end]]=\"\",\"N/A\",IF(Tableau2[[#This Row],[TB-value]]=\"\",\"N/A\",IF(Tableau2[[#This Row],[TB-value-date]]=\"\",\"N/A\",\"Yes\"))))","v":"N/A"},null,null,null,null,null,null,null,null,null,null,{"$f":"IF(Tableau2[[#This Row],[TE-Period-start]]=\"\",\"N/A\",IF(Tableau2[[#This Row],[TE-Period-end]]=\"\",\"N/A\",IF(Tableau2[[#This Row],[TE-value]]=\"\",\"N/A\",IF(Tableau2[[#This Row],[TE-value-date]]=\"\",\"N/A\",\"Yes\"))))","v":"N/A"}]
["Agence Francaise de Developpement","FR-03",{"$f":"VLOOKUP(Tableau2[[#This Row],[Organisation identifier]],Tableau3[#All],4,FALSE)","v":"Agence Francaise de Developpement"},"French","La France au Sahel, l'approche 3D","https://www.afd.fr/fr/ressources/la-france-au-sahel-l-approche-3d","B12 - Thematic strategy\n","French",2020,"BF - Burkina Faso\nTD - Chad\nML - Mali\nMR - Mauritania\nNE - Niger (the)\n",{"$f":"IF(Tableau2[[#This Row],[TB-Period-start]]=\"\",\"N/A\",IF(Tableau2[[#This Row],[TB-Period-end]]=\"\",\"N/A\",IF(Tableau2[[#This Row],[TB-value]]=\"\",\"N/A\",IF(Tableau2[[#This Row],[TB-value-date]]=\"\",\"N/A\",\"Yes\"))))","v":"N/A"},null,null,null,null,null,null,null,null,null,null,{"$f":"IF(Tableau2[[#This Row],[TE-Period-start]]=\"\",\"N/A\",IF(Tableau2[[#This Row],[TE-Period-end]]=\"\",\"N/A\",IF(Tableau2[[#This Row],[TE-value]]=\"\",\"N/A\",IF(Tableau2[[#This Row],[TE-value-date]]=\"\",\"N/A\",\"Yes\"))))","v":"N/A"}]
["Agence Francaise de Developpement","FR-03",{"$f":"VLOOKUP(Tableau2[[#This Row],[Organisation identifier]],Tableau3[#All],4,FALSE)","v":"Agence Francaise de Developpement"},"French","Observatoire des communes de Mayotte - Édition 2019","https://www.afd.fr/fr/ressources/observatoire-des-communes-de-mayotte-edition-2019","B03 - Country strategy paper\n","French",2020,"YT - Mayotte\n",{"$f":"IF(Tableau2[[#This Row],[TB-Period-start]]=\"\",\"N/A\",IF(Tableau2[[#This Row],[TB-Period-end]]=\"\",\"N/A\",IF(Tableau2[[#This Row],[TB-value]]=\"\",\"N/A\",IF(Tableau2[[#This Row],[TB-value-date]]=\"\",\"N/A\",\"Yes\"))))","v":"N/A"},null,null,null,null,null,null,null,null,null,null,{"$f":"IF(Tableau2[[#This Row],[TE-Period-start]]=\"\",\"N/A\",IF(Tableau2[[#This Row],[TE-Period-end]]=\"\",\"N/A\",IF(Tableau2[[#This Row],[TE-value]]=\"\",\"N/A\",IF(Tableau2[[#This Row],[TE-value-date]]=\"\",\"N/A\",\"Yes\"))))","v":"N/A"}]
["Agence Francaise de Developpement","FR-03",{"$f":"VLOOKUP(Tableau2[[#This Row],[Organisation identifier]],Tableau3[#All],4,FALSE)","v":"Agence Francaise de Developpement"},"French","Bilan responsabilité sociétale 2019","https://www.afd.fr/fr/ressources/bilan-responsabilite-societale-2019","B09 - Institutional Evaluation Report\n","French",2020,null,{"$f":"IF(Tableau2[[#This Row],[TB-Period-start]]=\"\",\"N/A\",IF(Tableau2[[#This Row],[TB-Period-end]]=\"\",\"N/A\",IF(Tableau2[[#This Row],[TB-value]]=\"\",\"N/A\",IF(Tableau2[[#This Row],[TB-value-date]]=\"\",\"N/A\",\"Yes\"))))","v":"N/A"},null,null,null,null,null,null,null,null,null,null,{"$f":"IF(Tableau2[[#This Row],[TE-Period-start]]=\"\",\"N/A\",IF(Tableau2[[#This Row],[TE-Period-end]]=\"\",\"N/A\",IF(Tableau2[[#This Row],[TE-value]]=\"\",\"N/A\",IF(Tableau2[[#This Row],[TE-value-date]]=\"\",\"N/A\",\"Yes\"))))","v":"N/A"}]
["Agence Francaise de Developpement","FR-03",{"$f":"VLOOKUP(Tableau2[[#This Row],[Organisation identifier]],Tableau3[#All],4,FALSE)","v":"Agence Francaise de Developpement"},"French","Observatoire des communes de Nouvelle-Calédonie 2020","https://www.afd.fr/fr/ressources/observatoire-des-communes-de-nouvelle-caledonie-2020","B03 - Country strategy paper\n","French",2020,"NC - New Caledonia\n",{"$f":"IF(Tableau2[[#This Row],[TB-Period-start]]=\"\",\"N/A\",IF(Tableau2[[#This Row],[TB-Period-end]]=\"\",\"N/A\",IF(Tableau2[[#This Row],[TB-value]]=\"\",\"N/A\",IF(Tableau2[[#This Row],[TB-value-date]]=\"\",\"N/A\",\"Yes\"))))","v":"N/A"},null,null,null,null,null,null,null,null,null,null,{"$f":"IF(Tableau2[[#This Row],[TE-Period-start]]=\"\",\"N/A\",IF(Tableau2[[#This Row],[TE-Period-end]]=\"\",\"N/A\",IF(Tableau2[[#This Row],[TE-value]]=\"\",\"N/A\",IF(Tableau2[[#This Row],[TE-value-date]]=\"\",\"N/A\",\"Yes\"))))","v":"N/A"}]
["Agence Francaise de Developpement","FR-03",{"$f":"VLOOKUP(Tableau2[[#This Row],[Organisation identifier]],Tableau3[#All],4,FALSE)","v":"Agence Francaise de Developpement"},"French","Observatoire des communes de Polynésie française 2020","https://www.afd.fr/fr/ressources/observatoire-des-communes-de-polynesie-francaise-2020","B03 - Country strategy paper\n","French",2020,"PF - French Polynesia\n",{"$f":"IF(Tableau2[[#This Row],[TB-Period-start]]=\"\",\"N/A\",IF(Tableau2[[#This Row],[TB-Period-end]]=\"\",\"N/A\",IF(Tableau2[[#This Row],[TB-value]]=\"\",\"N/A\",IF(Tableau2[[#This Row],[TB-value-date]]=\"\",\"N/A\",\"Yes\"))))","v":"N/A"},null,null,null,null,null,null,null,null,null,null,{"$f":"IF(Tableau2[[#This Row],[TE-Period-start]]=\"\",\"N/A\",IF(Tableau2[[#This Row],[TE-Period-end]]=\"\",\"N/A\",IF(Tableau2[[#This Row],[TE-value]]=\"\",\"N/A\",IF(Tableau2[[#This Row],[TE-value-date]]=\"\",\"N/A\",\"Yes\"))))","v":"N/A"}]
["Agence Francaise de Developpement","FR-03",{"$f":"VLOOKUP(Tableau2[[#This Row],[Organisation identifier]],Tableau3[#All],4,FALSE)","v":"Agence Francaise de Developpement"},"French","L’open data pour une agriculture résiliente - Hackathon Accra 2019","https://www.afd.fr/fr/ressources/lopen-data-pour-une-agriculture-resiliente-hackathon-accra-2019","B18 - Sector web page\n","French",2020,"GH - Ghana\n",{"$f":"IF(Tableau2[[#This Row],[TB-Period-start]]=\"\",\"N/A\",IF(Tableau2[[#This Row],[TB-Period-end]]=\"\",\"N/A\",IF(Tableau2[[#This Row],[TB-value]]=\"\",\"N/A\",IF(Tableau2[[#This Row],[TB-value-date]]=\"\",\"N/A\",\"Yes\"))))","v":"N/A"},null,null,null,null,null,null,null,null,null,null,{"$f":"IF(Tableau2[[#This Row],[TE-Period-start]]=\"\",\"N/A\",IF(Tableau2[[#This Row],[TE-Period-end]]=\"\",\"N/A\",IF(Tableau2[[#This Row],[TE-value]]=\"\",\"N/A\",IF(Tableau2[[#This Row],[TE-value-date]]=\"\",\"N/A\",\"Yes\"))))","v":"N/A"}]
["Agence Francaise de Developpement","FR-03",{"$f":"VLOOKUP(Tableau2[[#This Row],[Organisation identifier]],Tableau3[#All],4,FALSE)","v":"Agence Francaise de Developpement"},"French","L'AFD et les villes durables","https://www.afd.fr/fr/ressources/lafd-et-les-villes-durables","B18 - Sector web page\n","French",2020,null,{"$f":"IF(Tableau2[[#This Row],[TB-Period-start]]=\"\",\"N/A\",IF(Tableau2[[#This Row],[TB-Period-end]]=\"\",\"N/A\",IF(Tableau2[[#This Row],[TB-value]]=\"\",\"N/A\",IF(Tableau2[[#This Row],[TB-value-date]]=\"\",\"N/A\",\"Yes\"))))","v":"N/A"},null,null,null,null,null,null,null,null,null,null,{"$f":"IF(Tableau2[[#This Row],[TE-Period-start]]=\"\",\"N/A\",IF(Tableau2[[#This Row],[TE-Period-end]]=\"\",\"N/A\",IF(Tableau2[[#This Row],[TE-value]]=\"\",\"N/A\",IF(Tableau2[[#This Row],[TE-value-date]]=\"\",\"N/A\",\"Yes\"))))","v":"N/A"}]
["Agence Francaise de Developpement","FR-03",{"$f":"VLOOKUP(Tableau2[[#This Row],[Organisation identifier]],Tableau3[#All],4,FALSE)","v":"Agence Francaise de Developpement"},"French","Eau et assainissement - Bilan d'activité 2019","https://www.afd.fr/fr/ressources/eau-et-assainissement-bilan-d-activite-2019","B18 - Sector web page\n","French",2020,null,{"$f":"IF(Tableau2[[#This Row],[TB-Period-start]]=\"\",\"N/A\",IF(Tableau2[[#This Row],[TB-Period-end]]=\"\",\"N/A\",IF(Tableau2[[#This Row],[TB-value]]=\"\",\"N/A\",IF(Tableau2[[#This Row],[TB-value-date]]=\"\",\"N/A\",\"Yes\"))))","v":"N/A"},null,null,null,null,null,null,null,null,null,null,{"$f":"IF(Tableau2[[#This Row],[TE-Period-start]]=\"\",\"N/A\",IF(Tableau2[[#This Row],[TE-Period-end]]=\"\",\"N/A\",IF(Tableau2[[#This Row],[TE-value]]=\"\",\"N/A\",IF(Tableau2[[#This Row],[TE-value-date]]=\"\",\"N/A\",\"Yes\"))))","v":"N/A"}]
["Agence Francaise de Developpement","FR-03",{"$f":"VLOOKUP(Tableau2[[#This Row],[Organisation identifier]],Tableau3[#All],4,FALSE)","v":"Agence Francaise de Developpement"},"French","L'AFD et l'Inde : focus sur l'énergie","https://www.afd.fr/fr/ressources/lafd-et-l-inde-focus-sur-l-energie","B11 - Sector strategy\n","French",2020,"IN - India\n",{"$f":"IF(Tableau2[[#This Row],[TB-Period-start]]=\"\",\"N/A\",IF(Tableau2[[#This Row],[TB-Period-end]]=\"\",\"N/A\",IF(Tableau2[[#This Row],[TB-value]]=\"\",\"N/A\",IF(Tableau2[[#This Row],[TB-value-date]]=\"\",\"N/A\",\"Yes\"))))","v":"N/A"},null,null,null,null,null,null,null,null,null,null,{"$f":"IF(Tableau2[[#This Row],[TE-Period-start]]=\"\",\"N/A\",IF(Tableau2[[#This Row],[TE-Period-end]]=\"\",\"N/A\",IF(Tableau2[[#This Row],[TE-value]]=\"\",\"N/A\",IF(Tableau2[[#This Row],[TE-value-date]]=\"\",\"N/A\",\"Yes\"))))","v":"N/A"}]
["Agence Francaise de Developpement","FR-03",{"$f":"VLOOKUP(Tableau2[[#This Row],[Organisation identifier]],Tableau3[#All],4,FALSE)","v":"Agence Francaise de Developpement"},"French","L'AFD et l'Inde : focus sur la biodiversité","L'AFD et l'Inde: focus sur la biodiversité | AFD - Agence Française de Développement","B11 - Sector strategy\n","English",2020,"IN - India\n",{"$f":"IF(Tableau2[[#This Row],[TB-Period-start]]=\"\",\"N/A\",IF(Tableau2[[#This Row],[TB-Period-end]]=\"\",\"N/A\",IF(Tableau2[[#This Row],[TB-value]]=\"\",\"N/A\",IF(Tableau2[[#This Row],[TB-value-date]]=\"\",\"N/A\",\"Yes\"))))","v":"N/A"},null,null,null,null,null,null,null,null,null,null,{"$f":"IF(Tableau2[[#This Row],[TE-Period-start]]=\"\",\"N/A\",IF(Tableau2[[#This Row],[TE-Period-end]]=\"\",\"N/A\",IF(Tableau2[[#This Row],[TE-value]]=\"\",\"N/A\",IF(Tableau2[[#This Row],[TE-value-date]]=\"\",\"N/A\",\"Yes\"))))","v":"N/A"}]
["Agence Francaise de Developpement","FR-03",{"$f":"VLOOKUP(Tableau2[[#This Row],[Organisation identifier]],Tableau3[#All],4,FALSE)","v":"Agence Francaise de Developpement"},"French","Stratégie régionale Moyen-Orient 2020-2030","https://www.afd.fr/fr/ressources/strategie-regionale-moyen-orient-2020-2030","B03 - Country strategy paper\n","French",2020,"IQ - Iraq\nJO - Jordan\nLB - Lebanon\nPS - Palestine, State of\n",{"$f":"IF(Tableau2[[#This Row],[TB-Period-start]]=\"\",\"N/A\",IF(Tableau2[[#This Row],[TB-Period-end]]=\"\",\"N/A\",IF(Tableau2[[#This Row],[TB-value]]=\"\",\"N/A\",IF(Tableau2[[#This Row],[TB-value-date]]=\"\",\"N/A\",\"Yes\"))))","v":"N/A"},null,null,null,null,null,null,null,null,null,null,{"$f":"IF(Tableau2[[#This Row],[TE-Period-start]]=\"\",\"N/A\",IF(Tableau2[[#This Row],[TE-Period-end]]=\"\",\"N/A\",IF(Tableau2[[#This Row],[TE-value]]=\"\",\"N/A\",IF(Tableau2[[#This Row],[TE-value-date]]=\"\",\"N/A\",\"Yes\"))))","v":"N/A"}]
["Agence Francaise de Developpement","FR-03",{"$f":"VLOOKUP(Tableau2[[#This Row],[Organisation identifier]],Tableau3[#All],4,FALSE)","v":"Agence Francaise de Developpement"},"French","FOCUS Villes durables","https://www.afd.fr/fr/ressources/focus-villes-durables","B18 - Sector web page\n","French",2020,null,{"$f":"IF(Tableau2[[#This Row],[TB-Period-start]]=\"\",\"N/A\",IF(Tableau2[[#This Row],[TB-Period-end]]=\"\",\"N/A\",IF(Tableau2[[#This Row],[TB-value]]=\"\",\"N/A\",IF(Tableau2[[#This Row],[TB-value-date]]=\"\",\"N/A\",\"Yes\"))))","v":"N/A"},null,null,null,null,null,null,null,null,null,null,{"$f":"IF(Tableau2[[#This Row],[TE-Period-start]]=\"\",\"N/A\",IF(Tableau2[[#This Row],[TE-Period-end]]=\"\",\"N/A\",IF(Tableau2[[#This Row],[TE-value]]=\"\",\"N/A\",IF(Tableau2[[#This Row],[TE-value-date]]=\"\",\"N/A\",\"Yes\"))))","v":"N/A"}]
["Agence Francaise de Developpement","FR-03",{"$f":"VLOOKUP(Tableau2[[#This Row],[Organisation identifier]],Tableau3[#All],4,FALSE)","v":"Agence Francaise de Developpement"},"French","Climat - Bilan d'activité 2019","https://www.afd.fr/fr/ressources/climat-bilan-d-activite-2019","B18 - Sector web page\n","French",2020,null,{"$f":"IF(Tableau2[[#This Row],[TB-Period-start]]=\"\",\"N/A\",IF(Tableau2[[#This Row],[TB-Period-end]]=\"\",\"N/A\",IF(Tableau2[[#This Row],[TB-value]]=\"\",\"N/A\",IF(Tableau2[[#This Row],[TB-value-date]]=\"\",\"N/A\",\"Yes\"))))","v":"N/A"},null,null,null,null,null,null,null,null,null,null,{"$f":"IF(Tableau2[[#This Row],[TE-Period-start]]=\"\",\"N/A\",IF(Tableau2[[#This Row],[TE-Period-end]]=\"\",\"N/A\",IF(Tableau2[[#This Row],[TE-value]]=\"\",\"N/A\",IF(Tableau2[[#This Row],[TE-value-date]]=\"\",\"N/A\",\"Yes\"))))","v":"N/A"}]
["Agence Francaise de Developpement","FR-03",{"$f":"VLOOKUP(Tableau2[[#This Row],[Organisation identifier]],Tableau3[#All],4,FALSE)","v":"Agence Francaise de Developpement"},"French","CLIMATE - 2019 ACTIVITY REPORT","https://www.afd.fr/en/ressources/climate-2019-activity-report","B01 - Annual report\n","English",2020,null,{"$f":"IF(Tableau2[[#This Row],[TB-Period-start]]=\"\",\"N/A\",IF(Tableau2[[#This Row],[TB-Period-end]]=\"\",\"N/A\",IF(Tableau2[[#This Row],[TB-value]]=\"\",\"N/A\",IF(Tableau2[[#This Row],[TB-value-date]]=\"\",\"N/A\",\"Yes\"))))","v":"N/A"},null,null,null,null,null,null,null,null,null,null,{"$f":"IF(Tableau2[[#This Row],[TE-Period-start]]=\"\",\"N/A\",IF(Tableau2[[#This Row],[TE-Period-end]]=\"\",\"N/A\",IF(Tableau2[[#This Row],[TE-value]]=\"\",\"N/A\",IF(Tableau2[[#This Row],[TE-value-date]]=\"\",\"N/A\",\"Yes\"))))","v":"N/A"}]
["Agence Francaise de Developpement","FR-03",{"$f":"VLOOKUP(Tableau2[[#This Row],[Organisation identifier]],Tableau3[#All],4,FALSE)","v":"Agence Francaise de Developpement"},"French","CAMBIO CLIMÁTICO - BALANCE DE ACTIVIDADES 2019","https://www.afd.fr/es/ressources/cambio-climatico-balance-de-actividades-2019","B01 - Annual report\n","Spanish",2020,null,{"$f":"IF(Tableau2[[#This Row],[TB-Period-start]]=\"\",\"N/A\",IF(Tableau2[[#This Row],[TB-Period-end]]=\"\",\"N/A\",IF(Tableau2[[#This Row],[TB-value]]=\"\",\"N/A\",IF(Tableau2[[#This Row],[TB-value-date]]=\"\",\"N/A\",\"Yes\"))))","v":"N/A"},null,null,null,null,null,null,null,null,null,null,{"$f":"IF(Tableau2[[#This Row],[TE-Period-start]]=\"\",\"N/A\",IF(Tableau2[[#This Row],[TE-Period-end]]=\"\",\"N/A\",IF(Tableau2[[#This Row],[TE-value]]=\"\",\"N/A\",IF(Tableau2[[#This Row],[TE-value-date]]=\"\",\"N/A\",\"Yes\"))))","v":"N/A"}]
["Agence Francaise de Developpement","FR-03",{"$f":"VLOOKUP(Tableau2[[#This Row],[Organisation identifier]],Tableau3[#All],4,FALSE)","v":"Agence Francaise de Developpement"},"French","CLIMA - RELATÓRIOS DE ATIVIDADES 2019","https://www.afd.fr/pt/ressources/clima-relatorios-de-atividades-2019","B01 - Annual report\n","Portuguese",2020,null,{"$f":"IF(Tableau2[[#This Row],[TB-Period-start]]=\"\",\"N/A\",IF(Tableau2[[#This Row],[TB-Period-end]]=\"\",\"N/A\",IF(Tableau2[[#This Row],[TB-value]]=\"\",\"N/A\",IF(Tableau2[[#This Row],[TB-value-date]]=\"\",\"N/A\",\"Yes\"))))","v":"N/A"},null,null,null,null,null,null,null,null,null,null,{"$f":"IF(Tableau2[[#This Row],[TE-Period-start]]=\"\",\"N/A\",IF(Tableau2[[#This Row],[TE-Period-end]]=\"\",\"N/A\",IF(Tableau2[[#This Row],[TE-value]]=\"\",\"N/A\",IF(Tableau2[[#This Row],[TE-value-date]]=\"\",\"N/A\",\"Yes\"))))","v":"N/A"}]
["Agence Francaise de Developpement","FR-03",{"$f":"VLOOKUP(Tableau2[[#This Row],[Organisation identifier]],Tableau3[#All],4,FALSE)","v":"Agence Francaise de Developpement"},"French","L'AFD et l'Indonésie","https://www.afd.fr/pt/ressources/clima-relatorios-de-atividades-2019","B03 - Country strategy paper\n","French",2020,"ID - Indonesia\n",{"$f":"IF(Tableau2[[#This Row],[TB-Period-start]]=\"\",\"N/A\",IF(Tableau2[[#This Row],[TB-Period-end]]=\"\",\"N/A\",IF(Tableau2[[#This Row],[TB-value]]=\"\",\"N/A\",IF(Tableau2[[#This Row],[TB-value-date]]=\"\",\"N/A\",\"Yes\"))))","v":"N/A"},null,null,null,null,null,null,null,null,null,null,{"$f":"IF(Tableau2[[#This Row],[TE-Period-start]]=\"\",\"N/A\",IF(Tableau2[[#This Row],[TE-Period-end]]=\"\",\"N/A\",IF(Tableau2[[#This Row],[TE-value]]=\"\",\"N/A\",IF(Tableau2[[#This Row],[TE-value-date]]=\"\",\"N/A\",\"Yes\"))))","v":"N/A"}]
["Agence Francaise de Developpement","FR-03",{"$f":"VLOOKUP(Tableau2[[#This Row],[Organisation identifier]],Tableau3[#All],4,FALSE)","v":"Agence Francaise de Developpement"},"French","L'AFD et les Philippines","https://www.afd.fr/fr/ressources/lafd-et-les-philippines","B03 - Country strategy paper\n","French",2020,"PH - Philippines (the)\n",{"$f":"IF(Tableau2[[#This Row],[TB-Period-start]]=\"\",\"N/A\",IF(Tableau2[[#This Row],[TB-Period-end]]=\"\",\"N/A\",IF(Tableau2[[#This Row],[TB-value]]=\"\",\"N/A\",IF(Tableau2[[#This Row],[TB-value-date]]=\"\",\"N/A\",\"Yes\"))))","v":"N/A"},null,null,null,null,null,null,null,null,null,null,{"$f":"IF(Tableau2[[#This Row],[TE-Period-start]]=\"\",\"N/A\",IF(Tableau2[[#This Row],[TE-Period-end]]=\"\",\"N/A\",IF(Tableau2[[#This Row],[TE-value]]=\"\",\"N/A\",IF(Tableau2[[#This Row],[TE-value-date]]=\"\",\"N/A\",\"Yes\"))))","v":"N/A"}]
["Agence Francaise de Developpement","FR-03",{"$f":"VLOOKUP(Tableau2[[#This Row],[Organisation identifier]],Tableau3[#All],4,FALSE)","v":"Agence Francaise de Developpement"},"French","AFD AND INDONESIA","https://www.afd.fr/en/ressources/afd-and-indonesia","B03 - Country strategy paper\n","English",2020,"ID - Indonesia\n",{"$f":"IF(Tableau2[[#This Row],[TB-Period-start]]=\"\",\"N/A\",IF(Tableau2[[#This Row],[TB-Period-end]]=\"\",\"N/A\",IF(Tableau2[[#This Row],[TB-value]]=\"\",\"N/A\",IF(Tableau2[[#This Row],[TB-value-date]]=\"\",\"N/A\",\"Yes\"))))","v":"N/A"},null,null,null,null,null,null,null,null,null,null,{"$f":"IF(Tableau2[[#This Row],[TE-Period-start]]=\"\",\"N/A\",IF(Tableau2[[#This Row],[TE-Period-end]]=\"\",\"N/A\",IF(Tableau2[[#This Row],[TE-value]]=\"\",\"N/A\",IF(Tableau2[[#This Row],[TE-value-date]]=\"\",\"N/A\",\"Yes\"))))","v":"N/A"}]
["Agence Francaise de Developpement","FR-03",{"$f":"VLOOKUP(Tableau2[[#This Row],[Organisation identifier]],Tableau3[#All],4,FALSE)","v":"Agence Francaise de Developpement"},"French","AFD AND THE PHILIPPINES","https://www.afd.fr/en/ressources/afd-and-philippines","B03 - Country strategy paper\n","English",2020,"PH - Philippines (the)\n",{"$f":"IF(Tableau2[[#This Row],[TB-Period-start]]=\"\",\"N/A\",IF(Tableau2[[#This Row],[TB-Period-end]]=\"\",\"N/A\",IF(Tableau2[[#This Row],[TB-value]]=\"\",\"N/A\",IF(Tableau2[[#This Row],[TB-value-date]]=\"\",\"N/A\",\"Yes\"))))","v":"N/A"},null,null,null,null,null,null,null,null,null,null,{"$f":"IF(Tableau2[[#This Row],[TE-Period-start]]=\"\",\"N/A\",IF(Tableau2[[#This Row],[TE-Period-end]]=\"\",\"N/A\",IF(Tableau2[[#This Row],[TE-value]]=\"\",\"N/A\",IF(Tableau2[[#This Row],[TE-value-date]]=\"\",\"N/A\",\"Yes\"))))","v":"N/A"}]
["Agence Francaise de Developpement","FR-03",{"$f":"VLOOKUP(Tableau2[[#This Row],[Organisation identifier]],Tableau3[#All],4,FALSE)","v":"Agence Francaise de Developpement"},"French","L'AFD à Djibouti","https://www.afd.fr/fr/ressources/l-afd-et-djibouti","B03 - Country strategy paper\n","French",2021,"DJ - Djibouti\n",{"$f":"IF(Tableau2[[#This Row],[TB-Period-start]]=\"\",\"N/A\",IF(Tableau2[[#This Row],[TB-Period-end]]=\"\",\"N/A\",IF(Tableau2[[#This Row],[TB-value]]=\"\",\"N/A\",IF(Tableau2[[#This Row],[TB-value-date]]=\"\",\"N/A\",\"Yes\"))))","v":"N/A"},null,null,null,null,null,null,null,null,null,null,{"$f":"IF(Tableau2[[#This Row],[TE-Period-start]]=\"\",\"N/A\",IF(Tableau2[[#This Row],[TE-Period-end]]=\"\",\"N/A\",IF(Tableau2[[#This Row],[TE-value]]=\"\",\"N/A\",IF(Tableau2[[#This Row],[TE-value-date]]=\"\",\"N/A\",\"Yes\"))))","v":"N/A"}]
["Agence Francaise de Developpement","FR-03",{"$f":"VLOOKUP(Tableau2[[#This Row],[Organisation identifier]],Tableau3[#All],4,FALSE)","v":"Agence Francaise de Developpement"},"French","Le groupe AFD en Afrique du Nord","https://www.afd.fr/fr/ressources/le-groupe-afd-en-afrique-du-nord","B03 - Country strategy paper\n","French",2020,"DZ - Algeria\nEG - Egypt\nMA - Morocco\nTN - Tunisia\n",{"$f":"IF(Tableau2[[#This Row],[TB-Period-start]]=\"\",\"N/A\",IF(Tableau2[[#This Row],[TB-Period-end]]=\"\",\"N/A\",IF(Tableau2[[#This Row],[TB-value]]=\"\",\"N/A\",IF(Tableau2[[#This Row],[TB-value-date]]=\"\",\"N/A\",\"Yes\"))))","v":"N/A"},null,null,null,null,null,null,null,null,null,null,{"$f":"IF(Tableau2[[#This Row],[TE-Period-start]]=\"\",\"N/A\",IF(Tableau2[[#This Row],[TE-Period-end]]=\"\",\"N/A\",IF(Tableau2[[#This Row],[TE-value]]=\"\",\"N/A\",IF(Tableau2[[#This Row],[TE-value-date]]=\"\",\"N/A\",\"Yes\"))))","v":"N/A"}]
["Agence Francaise de Developpement","FR-03",{"$f":"VLOOKUP(Tableau2[[#This Row],[Organisation identifier]],Tableau3[#All],4,FALSE)","v":"Agence Francaise de Developpement"},"French","L'AFD et Saint-Pierre-et-Miquelon","https://www.afd.fr/fr/ressources/l-afd-et-saint-pierre-et-miquelon","B03 - Country strategy paper\n","French",2020,"PM - Saint Pierre and Miquelon\n",{"$f":"IF(Tableau2[[#This Row],[TB-Period-start]]=\"\",\"N/A\",IF(Tableau2[[#This Row],[TB-Period-end]]=\"\",\"N/A\",IF(Tableau2[[#This Row],[TB-value]]=\"\",\"N/A\",IF(Tableau2[[#This Row],[TB-value-date]]=\"\",\"N/A\",\"Yes\"))))","v":"N/A"},null,null,null,null,null,null,null,null,null,null,{"$f":"IF(Tableau2[[#This Row],[TE-Period-start]]=\"\",\"N/A\",IF(Tableau2[[#This Row],[TE-Period-end]]=\"\",\"N/A\",IF(Tableau2[[#This Row],[TE-value]]=\"\",\"N/A\",IF(Tableau2[[#This Row],[TE-value-date]]=\"\",\"N/A\",\"Yes\"))))","v":"N/A"}]
["Agence Francaise de Developpement","FR-03",{"$f":"VLOOKUP(Tableau2[[#This Row],[Organisation identifier]],Tableau3[#All],4,FALSE)","v":"Agence Francaise de Developpement"},"French","Eau et assainissement - Bilan d'activité 2014-2019","https://www.afd.fr/fr/ressources/eau-et-assainissement-bilan-d-activite-2014-2019","B18 - Sector web page\n","French",2020,null,{"$f":"IF(Tableau2[[#This Row],[TB-Period-start]]=\"\",\"N/A\",IF(Tableau2[[#This Row],[TB-Period-end]]=\"\",\"N/A\",IF(Tableau2[[#This Row],[TB-value]]=\"\",\"N/A\",IF(Tableau2[[#This Row],[TB-value-date]]=\"\",\"N/A\",\"Yes\"))))","v":"N/A"},null,null,null,null,null,null,null,null,null,null,{"$f":"IF(Tableau2[[#This Row],[TE-Period-start]]=\"\",\"N/A\",IF(Tableau2[[#This Row],[TE-Period-end]]=\"\",\"N/A\",IF(Tableau2[[#This Row],[TE-value]]=\"\",\"N/A\",IF(Tableau2[[#This Row],[TE-value-date]]=\"\",\"N/A\",\"Yes\"))))","v":"N/A"}]
["Agence Francaise de Developpement","FR-03",{"$f":"VLOOKUP(Tableau2[[#This Row],[Organisation identifier]],Tableau3[#All],4,FALSE)","v":"Agence Francaise de Developpement"},"French","Éducation, formation, emploi - bilan d'activité 2019","https://www.afd.fr/fr/ressources/education-formation-emploi-bilan-dactivite-2019","B18 - Sector web page\n","French",2020,null,{"$f":"IF(Tableau2[[#This Row],[TB-Period-start]]=\"\",\"N/A\",IF(Tableau2[[#This Row],[TB-Period-end]]=\"\",\"N/A\",IF(Tableau2[[#This Row],[TB-value]]=\"\",\"N/A\",IF(Tableau2[[#This Row],[TB-value-date]]=\"\",\"N/A\",\"Yes\"))))","v":"N/A"},null,null,null,null,null,null,null,null,null,null,{"$f":"IF(Tableau2[[#This Row],[TE-Period-start]]=\"\",\"N/A\",IF(Tableau2[[#This Row],[TE-Period-end]]=\"\",\"N/A\",IF(Tableau2[[#This Row],[TE-value]]=\"\",\"N/A\",IF(Tableau2[[#This Row],[TE-value-date]]=\"\",\"N/A\",\"Yes\"))))","v":"N/A"}]
["Agence Francaise de Developpement","FR-03",{"$f":"VLOOKUP(Tableau2[[#This Row],[Organisation identifier]],Tableau3[#All],4,FALSE)","v":"Agence Francaise de Developpement"},"French","L'AFD, l'agriculture, le développement rural et la biodiversité","https://www.afd.fr/fr/ressources/l-afd-l-agriculture-le-developpement-rural-et-la-biodiversite","B18 - Sector web page\n","French",2020,null,{"$f":"IF(Tableau2[[#This Row],[TB-Period-start]]=\"\",\"N/A\",IF(Tableau2[[#This Row],[TB-Period-end]]=\"\",\"N/A\",IF(Tableau2[[#This Row],[TB-value]]=\"\",\"N/A\",IF(Tableau2[[#This Row],[TB-value-date]]=\"\",\"N/A\",\"Yes\"))))","v":"N/A"},null,null,null,null,null,null,null,null,null,null,{"$f":"IF(Tableau2[[#This Row],[TE-Period-start]]=\"\",\"N/A\",IF(Tableau2[[#This Row],[TE-Period-end]]=\"\",\"N/A\",IF(Tableau2[[#This Row],[TE-value]]=\"\",\"N/A\",IF(Tableau2[[#This Row],[TE-value-date]]=\"\",\"N/A\",\"Yes\"))))","v":"N/A"}]
["Agence Francaise de Developpement","FR-03",{"$f":"VLOOKUP(Tableau2[[#This Row],[Organisation identifier]],Tableau3[#All],4,FALSE)","v":"Agence Francaise de Developpement"},"French","L'AFD et la République du Congo","https://www.afd.fr/fr/ressources/l-afd-et-la-republique-du-congo","B03 - Country strategy paper\n","French",2020,"CD - Congo (the Democratic Republic of the)\n",{"$f":"IF(Tableau2[[#This Row],[TB-Period-start]]=\"\",\"N/A\",IF(Tableau2[[#This Row],[TB-Period-end]]=\"\",\"N/A\",IF(Tableau2[[#This Row],[TB-value]]=\"\",\"N/A\",IF(Tableau2[[#This Row],[TB-value-date]]=\"\",\"N/A\",\"Yes\"))))","v":"N/A"},null,null,null,null,null,null,null,null,null,null,{"$f":"IF(Tableau2[[#This Row],[TE-Period-start]]=\"\",\"N/A\",IF(Tableau2[[#This Row],[TE-Period-end]]=\"\",\"N/A\",IF(Tableau2[[#This Row],[TE-value]]=\"\",\"N/A\",IF(Tableau2[[#This Row],[TE-value-date]]=\"\",\"N/A\",\"Yes\"))))","v":"N/A"}]
["Agence Francaise de Developpement","FR-03",{"$f":"VLOOKUP(Tableau2[[#This Row],[Organisation identifier]],Tableau3[#All],4,FALSE)","v":"Agence Francaise de Developpement"},"French","L'AFD et l’éducation, la formation et l’emploi au Congo","https://www.afd.fr/fr/ressources/l-afd-et-l-education-la-formation-et-l-emploi-au-congo","B18 - Sector web page\n","French",2020,"CD - Congo (the Democratic Republic of the)\n",{"$f":"IF(Tableau2[[#This Row],[TB-Period-start]]=\"\",\"N/A\",IF(Tableau2[[#This Row],[TB-Period-end]]=\"\",\"N/A\",IF(Tableau2[[#This Row],[TB-value]]=\"\",\"N/A\",IF(Tableau2[[#This Row],[TB-value-date]]=\"\",\"N/A\",\"Yes\"))))","v":"N/A"},null,null,null,null,null,null,null,null,null,null,{"$f":"IF(Tableau2[[#This Row],[TE-Period-start]]=\"\",\"N/A\",IF(Tableau2[[#This Row],[TE-Period-end]]=\"\",\"N/A\",IF(Tableau2[[#This Row],[TE-value]]=\"\",\"N/A\",IF(Tableau2[[#This Row],[TE-value-date]]=\"\",\"N/A\",\"Yes\"))))","v":"N/A"}]
["Agence Francaise de Developpement","FR-03",{"$f":"VLOOKUP(Tableau2[[#This Row],[Organisation identifier]],Tableau3[#All],4,FALSE)","v":"Agence Francaise de Developpement"},"French","L’AFD et l'action sociale au Congo","https://www.afd.fr/fr/ressources/l-afd-et-l-action-sociale-au-congo","B18 - Sector web page\n","French",2020,"CD - Congo (the Democratic Republic of the)\n",{"$f":"IF(Tableau2[[#This Row],[TB-Period-start]]=\"\",\"N/A\",IF(Tableau2[[#This Row],[TB-Period-end]]=\"\",\"N/A\",IF(Tableau2[[#This Row],[TB-value]]=\"\",\"N/A\",IF(Tableau2[[#This Row],[TB-value-date]]=\"\",\"N/A\",\"Yes\"))))","v":"N/A"},null,null,null,null,null,null,null,null,null,null,{"$f":"IF(Tableau2[[#This Row],[TE-Period-start]]=\"\",\"N/A\",IF(Tableau2[[#This Row],[TE-Period-end]]=\"\",\"N/A\",IF(Tableau2[[#This Row],[TE-value]]=\"\",\"N/A\",IF(Tableau2[[#This Row],[TE-value-date]]=\"\",\"N/A\",\"Yes\"))))","v":"N/A"}]
["Agence Francaise de Developpement","FR-03",{"$f":"VLOOKUP(Tableau2[[#This Row],[Organisation identifier]],Tableau3[#All],4,FALSE)","v":"Agence Francaise de Developpement"},"French","L'AFD et les infrastructures au Congo","https://www.afd.fr/fr/ressources/l-afd-et-les-infrastructures-au-congo","B18 - Sector web page\n","French",2020,"CD - Congo (the Democratic Republic of the)\n",{"$f":"IF(Tableau2[[#This Row],[TB-Period-start]]=\"\",\"N/A\",IF(Tableau2[[#This Row],[TB-Period-end]]=\"\",\"N/A\",IF(Tableau2[[#This Row],[TB-value]]=\"\",\"N/A\",IF(Tableau2[[#This Row],[TB-value-date]]=\"\",\"N/A\",\"Yes\"))))","v":"N/A"},null,null,null,null,null,null,null,null,null,null,{"$f":"IF(Tableau2[[#This Row],[TE-Period-start]]=\"\",\"N/A\",IF(Tableau2[[#This Row],[TE-Period-end]]=\"\",\"N/A\",IF(Tableau2[[#This Row],[TE-value]]=\"\",\"N/A\",IF(Tableau2[[#This Row],[TE-value-date]]=\"\",\"N/A\",\"Yes\"))))","v":"N/A"}]
["Agence Francaise de Developpement","FR-03",{"$f":"VLOOKUP(Tableau2[[#This Row],[Organisation identifier]],Tableau3[#All],4,FALSE)","v":"Agence Francaise de Developpement"},"French","L'AFD et l’économie verte au Congo","https://www.afd.fr/fr/ressources/l-afd-et-l-economie-verte-au-congo","B18 - Sector web page\n","French",2020,"CD - Congo (the Democratic Republic of the)\n",{"$f":"IF(Tableau2[[#This Row],[TB-Period-start]]=\"\",\"N/A\",IF(Tableau2[[#This Row],[TB-Period-end]]=\"\",\"N/A\",IF(Tableau2[[#This Row],[TB-value]]=\"\",\"N/A\",IF(Tableau2[[#This Row],[TB-value-date]]=\"\",\"N/A\",\"Yes\"))))","v":"N/A"},null,null,null,null,null,null,null,null,null,null,{"$f":"IF(Tableau2[[#This Row],[TE-Period-start]]=\"\",\"N/A\",IF(Tableau2[[#This Row],[TE-Period-end]]=\"\",\"N/A\",IF(Tableau2[[#This Row],[TE-value]]=\"\",\"N/A\",IF(Tableau2[[#This Row],[TE-value-date]]=\"\",\"N/A\",\"Yes\"))))","v":"N/A"}]
["Agence Francaise de Developpement","FR-03",{"$f":"VLOOKUP(Tableau2[[#This Row],[Organisation identifier]],Tableau3[#All],4,FALSE)","v":"Agence Francaise de Developpement"},"French","L'AFD et la santé au Congo","https://www.afd.fr/fr/ressources/l-afd-et-la-sante-au-congo","B18 - Sector web page\n","French",2020,"CD - Congo (the Democratic Republic of the)\n",{"$f":"IF(Tableau2[[#This Row],[TB-Period-start]]=\"\",\"N/A\",IF(Tableau2[[#This Row],[TB-Period-end]]=\"\",\"N/A\",IF(Tableau2[[#This Row],[TB-value]]=\"\",\"N/A\",IF(Tableau2[[#This Row],[TB-value-date]]=\"\",\"N/A\",\"Yes\"))))","v":"N/A"},null,null,null,null,null,null,null,null,null,null,{"$f":"IF(Tableau2[[#This Row],[TE-Period-start]]=\"\",\"N/A\",IF(Tableau2[[#This Row],[TE-Period-end]]=\"\",\"N/A\",IF(Tableau2[[#This Row],[TE-value]]=\"\",\"N/A\",IF(Tableau2[[#This Row],[TE-value-date]]=\"\",\"N/A\",\"Yes\"))))","v":"N/A"}]
["Agence Francaise de Developpement","FR-03",{"$f":"VLOOKUP(Tableau2[[#This Row],[Organisation identifier]],Tableau3[#All],4,FALSE)","v":"Agence Francaise de Developpement"},"French","SOUTHEAST ASIA - 2020-2024 REGIONAL STRATEGY","https://www.afd.fr/en/ressources/southeast-asia-2020-2024-regional-strategy","B03 - Country strategy paper\n","English",2020,"KH - Cambodia\nID - Indonesia\nLA - Lao People’s Democratic Republic (the)\nMM - Myanmar\nPH - Philippines (the)\nTH - Thailand\nVN - Viet Nam\n",{"$f":"IF(Tableau2[[#This Row],[TB-Period-start]]=\"\",\"N/A\",IF(Tableau2[[#This Row],[TB-Period-end]]=\"\",\"N/A\",IF(Tableau2[[#This Row],[TB-value]]=\"\",\"N/A\",IF(Tableau2[[#This Row],[TB-value-date]]=\"\",\"N/A\",\"Yes\"))))","v":"N/A"},null,null,null,null,null,null,null,null,null,null,{"$f":"IF(Tableau2[[#This Row],[TE-Period-start]]=\"\",\"N/A\",IF(Tableau2[[#This Row],[TE-Period-end]]=\"\",\"N/A\",IF(Tableau2[[#This Row],[TE-value]]=\"\",\"N/A\",IF(Tableau2[[#This Row],[TE-value-date]]=\"\",\"N/A\",\"Yes\"))))","v":"N/A"}]
["Agence Francaise de Developpement","FR-03",{"$f":"VLOOKUP(Tableau2[[#This Row],[Organisation identifier]],Tableau3[#All],4,FALSE)","v":"Agence Francaise de Developpement"},"French","STRATÉGIE RÉGIONALE BRÉSIL-CÔNE SUD 2020-2024","Stratégie régionale Brésil-Cône sud 2020-2024 | AFD - Agence Française de Développement","B03 - Country strategy paper\n","French",2020,"BR - Brazil\n",{"$f":"IF(Tableau2[[#This Row],[TB-Period-start]]=\"\",\"N/A\",IF(Tableau2[[#This Row],[TB-Period-end]]=\"\",\"N/A\",IF(Tableau2[[#This Row],[TB-value]]=\"\",\"N/A\",IF(Tableau2[[#This Row],[TB-value-date]]=\"\",\"N/A\",\"Yes\"))))","v":"N/A"},null,null,null,null,null,null,null,null,null,null,{"$f":"IF(Tableau2[[#This Row],[TE-Period-start]]=\"\",\"N/A\",IF(Tableau2[[#This Row],[TE-Period-end]]=\"\",\"N/A\",IF(Tableau2[[#This Row],[TE-value]]=\"\",\"N/A\",IF(Tableau2[[#This Row],[TE-value-date]]=\"\",\"N/A\",\"Yes\"))))","v":"N/A"}]
["Agence Francaise de Developpement","FR-03",{"$f":"VLOOKUP(Tableau2[[#This Row],[Organisation identifier]],Tableau3[#All],4,FALSE)","v":"Agence Francaise de Developpement"},"French","STRATÉGIE SÉNÉGAL 2019-2023","Stratégie Sénégal 2019-2023 | AFD - Agence Française de Développement","B03 - Country strategy paper\n","French",2020,"SN - Senegal\n",{"$f":"IF(Tableau2[[#This Row],[TB-Period-start]]=\"\",\"N/A\",IF(Tableau2[[#This Row],[TB-Period-end]]=\"\",\"N/A\",IF(Tableau2[[#This Row],[TB-value]]=\"\",\"N/A\",IF(Tableau2[[#This Row],[TB-value-date]]=\"\",\"N/A\",\"Yes\"))))","v":"N/A"},null,null,null,null,null,null,null,null,null,null,{"$f":"IF(Tableau2[[#This Row],[TE-Period-start]]=\"\",\"N/A\",IF(Tableau2[[#This Row],[TE-Period-end]]=\"\",\"N/A\",IF(Tableau2[[#This Row],[TE-value]]=\"\",\"N/A\",IF(Tableau2[[#This Row],[TE-value-date]]=\"\",\"N/A\",\"Yes\"))))","v":"N/A"}]
["Agence Francaise de Developpement","FR-03","Agence Francaise de Developpement","French","REPORTING CLIMATE BOND AFD 2019","Reporting Climate Bond AFD 2019 | AFD - Agence Française de Développement","B06 - Institutional Audit Report\n","French",2020,null,{"$f":"IF(Tableau2[[#This Row],[TB-Period-start]]=\"\",\"N/A\",IF(Tableau2[[#This Row],[TB-Period-end]]=\"\",\"N/A\",IF(Tableau2[[#This Row],[TB-value]]=\"\",\"N/A\",IF(Tableau2[[#This Row],[TB-value-date]]=\"\",\"N/A\",\"Yes\"))))","v":"N/A"},null,null,null,null,null,null,null,null,null,null,{"$f":"IF(Tableau2[[#This Row],[TE-Period-start]]=\"\",\"N/A\",IF(Tableau2[[#This Row],[TE-Period-end]]=\"\",\"N/A\",IF(Tableau2[[#This Row],[TE-value]]=\"\",\"N/A\",IF(Tableau2[[#This Row],[TE-value-date]]=\"\",\"N/A\",\"Yes\"))))","v":"N/A"}]
["agence Francaise de Developpement","FR-03",{"$f":"VLOOKUP(Tableau2[[#This Row],[Organisation identifier]],Tableau3[#All],4,FALSE)","v":"Agence Francaise de Developpement"},"French","STRATÉGIE CLIMAT - DÉVELOPPEMENT 2017-2022 : REVUE À MI-PARCOURS","Stratégie Climat - Développement 2017-2022 : Revue à mi-parcours | AFD - Agence Française de Développement","B11 - Sector strategy\n","French",2020,null,{"$f":"IF(Tableau2[[#This Row],[TB-Period-start]]=\"\",\"N/A\",IF(Tableau2[[#This Row],[TB-Period-end]]=\"\",\"N/A\",IF(Tableau2[[#This Row],[TB-value]]=\"\",\"N/A\",IF(Tableau2[[#This Row],[TB-value-date]]=\"\",\"N/A\",\"Yes\"))))","v":"N/A"},null,null,null,null,null,null,null,null,null,null,{"$f":"IF(Tableau2[[#This Row],[TE-Period-start]]=\"\",\"N/A\",IF(Tableau2[[#This Row],[TE-Period-end]]=\"\",\"N/A\",IF(Tableau2[[#This Row],[TE-value]]=\"\",\"N/A\",IF(Tableau2[[#This Row],[TE-value-date]]=\"\",\"N/A\",\"Yes\"))))","v":"N/A"}]
["Agence Francaise de Developpement","FR-03",{"$f":"VLOOKUP(Tableau2[[#This Row],[Organisation identifier]],Tableau3[#All],4,FALSE)","v":"Agence Francaise de Developpement"},"French","L'AFD ET L'INDE: FOCUS SUR LE TRANSPORT URBAIN","L'AFD et l'Inde: focus sur le transport urbain | AFD - Agence Française de Développement","B11 - Sector strategy\n","French",2020,"IN - India\n",{"$f":"IF(Tableau2[[#This Row],[TB-Period-start]]=\"\",\"N/A\",IF(Tableau2[[#This Row],[TB-Period-end]]=\"\",\"N/A\",IF(Tableau2[[#This Row],[TB-value]]=\"\",\"N/A\",IF(Tableau2[[#This Row],[TB-value-date]]=\"\",\"N/A\",\"Yes\"))))","v":"N/A"},null,null,null,null,null,null,null,null,null,null,{"$f":"IF(Tableau2[[#This Row],[TE-Period-start]]=\"\",\"N/A\",IF(Tableau2[[#This Row],[TE-Period-end]]=\"\",\"N/A\",IF(Tableau2[[#This Row],[TE-value]]=\"\",\"N/A\",IF(Tableau2[[#This Row],[TE-value-date]]=\"\",\"N/A\",\"Yes\"))))","v":"N/A"}]
["Agence Francaise de Developpement","FR-03",{"$f":"VLOOKUP(Tableau2[[#This Row],[Organisation identifier]],Tableau3[#All],4,FALSE)","v":"Agence Francaise de Developpement"},"French","Rapport d'activité et de responsabilité sociétale 2020 (RSO)","Rapport d'activité et de responsabilité sociétale 2020 (RSO) | AFD - Agence Française de Développement","B01 - Annual report\n","French",2020,null,{"$f":"IF(Tableau2[[#This Row],[TB-Period-start]]=\"\",\"N/A\",IF(Tableau2[[#This Row],[TB-Period-end]]=\"\",\"N/A\",IF(Tableau2[[#This Row],[TB-value]]=\"\",\"N/A\",IF(Tableau2[[#This Row],[TB-value-date]]=\"\",\"N/A\",\"Yes\"))))","v":"N/A"},null,null,null,null,null,null,null,null,null,null,{"$f":"IF(Tableau2[[#This Row],[TE-Period-start]]=\"\",\"N/A\",IF(Tableau2[[#This Row],[TE-Period-end]]=\"\",\"N/A\",IF(Tableau2[[#This Row],[TE-value]]=\"\",\"N/A\",IF(Tableau2[[#This Row],[TE-value-date]]=\"\",\"N/A\",\"Yes\"))))","v":"N/A"}]
["Agence Francaise de Developpement","FR-03",{"$f":"VLOOKUP(Tableau2[[#This Row],[Organisation identifier]],Tableau3[#All],4,FALSE)","v":"Agence Francaise de Developpement"},"French","Afrique du Nord - Bilan d'activité 2019","Afrique du Nord - Bilan d'activité 2019 | AFD - Agence Française de Développement","B10 - Country Evaluation Report\n","French",2020,null,{"$f":"IF(Tableau2[[#This Row],[TB-Period-start]]=\"\",\"N/A\",IF(Tableau2[[#This Row],[TB-Period-end]]=\"\",\"N/A\",IF(Tableau2[[#This Row],[TB-value]]=\"\",\"N/A\",IF(Tableau2[[#This Row],[TB-value-date]]=\"\",\"N/A\",\"Yes\"))))","v":"N/A"},null,null,null,null,null,null,null,null,null,null,{"$f":"IF(Tableau2[[#This Row],[TE-Period-start]]=\"\",\"N/A\",IF(Tableau2[[#This Row],[TE-Period-end]]=\"\",\"N/A\",IF(Tableau2[[#This Row],[TE-value]]=\"\",\"N/A\",IF(Tableau2[[#This Row],[TE-value-date]]=\"\",\"N/A\",\"Yes\"))))","v":"N/A"}]
["Agence Francaise de Developpement","FR-03",{"$f":"VLOOKUP(Tableau2[[#This Row],[Organisation identifier]],Tableau3[#All],4,FALSE)","v":"Agence Francaise de Developpement"},"French","Transports et mobilité - Bilan d'activité 2019","Transports et mobilité - Bilan d'activité 2019 | AFD - Agence Française de Développement","B18 - Sector web page\n","French",2020,null,{"$f":"IF(Tableau2[[#This Row],[TB-Period-start]]=\"\",\"N/A\",IF(Tableau2[[#This Row],[TB-Period-end]]=\"\",\"N/A\",IF(Tableau2[[#This Row],[TB-value]]=\"\",\"N/A\",IF(Tableau2[[#This Row],[TB-value-date]]=\"\",\"N/A\",\"Yes\"))))","v":"N/A"},null,null,null,null,null,null,null,null,null,null,{"$f":"IF(Tableau2[[#This Row],[TE-Period-start]]=\"\",\"N/A\",IF(Tableau2[[#This Row],[TE-Period-end]]=\"\",\"N/A\",IF(Tableau2[[#This Row],[TE-value]]=\"\",\"N/A\",IF(Tableau2[[#This Row],[TE-value-date]]=\"\",\"N/A\",\"Yes\"))))","v":"N/A"}]
["Agence Francaise de Developpement","FR-03",{"$f":"VLOOKUP(Tableau2[[#This Row],[Organisation identifier]],Tableau3[#All],4,FALSE)","v":"Agence Francaise de Developpement"},"French","Développement urbain et appui aux collectivités locales - Bilan d'activité 2019","Développement urbain et appui aux collectivités locales - Bilan d'activité 2019 | AFD - Agence Française de Développement","B18 - Sector web page\n","French",2020,null,{"$f":"IF(Tableau2[[#This Row],[TB-Period-start]]=\"\",\"N/A\",IF(Tableau2[[#This Row],[TB-Period-end]]=\"\",\"N/A\",IF(Tableau2[[#This Row],[TB-value]]=\"\",\"N/A\",IF(Tableau2[[#This Row],[TB-value-date]]=\"\",\"N/A\",\"Yes\"))))","v":"N/A"},null,null,null,null,null,null,null,null,null,null,{"$f":"IF(Tableau2[[#This Row],[TE-Period-start]]=\"\",\"N/A\",IF(Tableau2[[#This Row],[TE-Period-end]]=\"\",\"N/A\",IF(Tableau2[[#This Row],[TE-value]]=\"\",\"N/A\",IF(Tableau2[[#This Row],[TE-value-date]]=\"\",\"N/A\",\"Yes\"))))","v":"N/A"}]
["Agence Francaise de Developpement","FR-03",{"$f":"VLOOKUP(Tableau2[[#This Row],[Organisation identifier]],Tableau3[#All],4,FALSE)","v":"Agence Francaise de Developpement"},"French","Sahel - Bilan d'activité 2019","Sahel - Bilan d'activité 2019 | AFD - Agence Française de Développement","B10 - Country Evaluation Report\n","French",2020,"BF - Burkina Faso\nTD - Chad\nGM - Gambia (the)\nML - Mali\nMR - Mauritania\nNE - Niger (the)\nSN - Senegal\n",{"$f":"IF(Tableau2[[#This Row],[TB-Period-start]]=\"\",\"N/A\",IF(Tableau2[[#This Row],[TB-Period-end]]=\"\",\"N/A\",IF(Tableau2[[#This Row],[TB-value]]=\"\",\"N/A\",IF(Tableau2[[#This Row],[TB-value-date]]=\"\",\"N/A\",\"Yes\"))))","v":"N/A"},null,null,null,null,null,null,null,null,null,null,{"$f":"IF(Tableau2[[#This Row],[TE-Period-start]]=\"\",\"N/A\",IF(Tableau2[[#This Row],[TE-Period-end]]=\"\",\"N/A\",IF(Tableau2[[#This Row],[TE-value]]=\"\",\"N/A\",IF(Tableau2[[#This Row],[TE-value-date]]=\"\",\"N/A\",\"Yes\"))))","v":"N/A"}]
["Agence Francaise de Developpement","FR-03",{"$f":"VLOOKUP(Tableau2[[#This Row],[Organisation identifier]],Tableau3[#All],4,FALSE)","v":"Agence Francaise de Developpement"},"French","Énergie - Bilan d'activité 2019","Énergie - Bilan d'activité 2019 | AFD - Agence Française de Développement","B11 - Sector strategy\n","French",2020,null,{"$f":"IF(Tableau2[[#This Row],[TB-Period-start]]=\"\",\"N/A\",IF(Tableau2[[#This Row],[TB-Period-end]]=\"\",\"N/A\",IF(Tableau2[[#This Row],[TB-value]]=\"\",\"N/A\",IF(Tableau2[[#This Row],[TB-value-date]]=\"\",\"N/A\",\"Yes\"))))","v":"N/A"},null,null,null,null,null,null,null,null,null,null,{"$f":"IF(Tableau2[[#This Row],[TE-Period-start]]=\"\",\"N/A\",IF(Tableau2[[#This Row],[TE-Period-end]]=\"\",\"N/A\",IF(Tableau2[[#This Row],[TE-value]]=\"\",\"N/A\",IF(Tableau2[[#This Row],[TE-value-date]]=\"\",\"N/A\",\"Yes\"))))","v":"N/A"}]
["Agence Francaise de Developpement","FR-03",{"$f":"VLOOKUP(Tableau2[[#This Row],[Organisation identifier]],Tableau3[#All],4,FALSE)","v":"Agence Francaise de Developpement"},"French","Santé et protection sociale - Bilan d'activité 2019","Santé et protection sociale - Bilan d'activité 2019 | AFD - Agence Française de Développement","B11 - Sector strategy\n","French",2020,null,{"$f":"IF(Tableau2[[#This Row],[TB-Period-start]]=\"\",\"N/A\",IF(Tableau2[[#This Row],[TB-Period-end]]=\"\",\"N/A\",IF(Tableau2[[#This Row],[TB-value]]=\"\",\"N/A\",IF(Tableau2[[#This Row],[TB-value-date]]=\"\",\"N/A\",\"Yes\"))))","v":"N/A"},null,null,null,null,null,null,null,null,null,null,{"$f":"IF(Tableau2[[#This Row],[TE-Period-start]]=\"\",\"N/A\",IF(Tableau2[[#This Row],[TE-Period-end]]=\"\",\"N/A\",IF(Tableau2[[#This Row],[TE-value]]=\"\",\"N/A\",IF(Tableau2[[#This Row],[TE-value-date]]=\"\",\"N/A\",\"Yes\"))))","v":"N/A"}]
["Agence Francaise de Developpement","FR-03",{"$f":"VLOOKUP(Tableau2[[#This Row],[Organisation identifier]],Tableau3[#All],4,FALSE)","v":"Agence Francaise de Developpement"},"French","Politique générale du groupe AFD en matière de prévention et de lutte contre les Pratiques prohibées (2020)","Politique générale du groupe AFD en matière de prévention et de lutte contre les Pratiques prohibées (2020) | AFD - Agence Française de Développement","B02 - Institutional Strategy paper\n","French",2020,null,{"$f":"IF(Tableau2[[#This Row],[TB-Period-start]]=\"\",\"N/A\",IF(Tableau2[[#This Row],[TB-Period-end]]=\"\",\"N/A\",IF(Tableau2[[#This Row],[TB-value]]=\"\",\"N/A\",IF(Tableau2[[#This Row],[TB-value-date]]=\"\",\"N/A\",\"Yes\"))))","v":"N/A"},null,null,null,null,null,null,null,null,null,null,{"$f":"IF(Tableau2[[#This Row],[TE-Period-start]]=\"\",\"N/A\",IF(Tableau2[[#This Row],[TE-Period-end]]=\"\",\"N/A\",IF(Tableau2[[#This Row],[TE-value]]=\"\",\"N/A\",IF(Tableau2[[#This Row],[TE-value-date]]=\"\",\"N/A\",\"Yes\"))))","v":"N/A"}]
["Agence Francaise de Developpement","FR-03",{"$f":"VLOOKUP(Tableau2[[#This Row],[Organisation identifier]],Tableau3[#All],4,FALSE)","v":"Agence Francaise de Developpement"},"French","Document d'enregistrement universel 2019","Document d'enregistrement universel 2019 | AFD - Agence Française de Développement","B06 - Institutional Audit Report\n","French",2020,null,{"$f":"IF(Tableau2[[#This Row],[TB-Period-start]]=\"\",\"N/A\",IF(Tableau2[[#This Row],[TB-Period-end]]=\"\",\"N/A\",IF(Tableau2[[#This Row],[TB-value]]=\"\",\"N/A\",IF(Tableau2[[#This Row],[TB-value-date]]=\"\",\"N/A\",\"Yes\"))))","v":"N/A"},null,null,null,null,null,null,null,null,null,null,{"$f":"IF(Tableau2[[#This Row],[TE-Period-start]]=\"\",\"N/A\",IF(Tableau2[[#This Row],[TE-Period-end]]=\"\",\"N/A\",IF(Tableau2[[#This Row],[TE-value]]=\"\",\"N/A\",IF(Tableau2[[#This Row],[TE-value-date]]=\"\",\"N/A\",\"Yes\"))))","v":"N/A"}]
["Agence Francaise de Developpement","FR-03","Agence Francaise de Developpement","French","l'AFD et la Thailande","L'AFD et la Thaïlande | AFD - Agence Française de Développement","B03 - Country strategy paper\n","French",2020,"TH - Thailand\n",{"$f":"IF(Tableau2[[#This Row],[TB-Period-start]]=\"\",\"N/A\",IF(Tableau2[[#This Row],[TB-Period-end]]=\"\",\"N/A\",IF(Tableau2[[#This Row],[TB-value]]=\"\",\"N/A\",IF(Tableau2[[#This Row],[TB-value-date]]=\"\",\"N/A\",\"Yes\"))))","v":"N/A"},null,null,null,null,null,null,null,null,null,null,{"$f":"IF(Tableau2[[#This Row],[TE-Period-start]]=\"\",\"N/A\",IF(Tableau2[[#This Row],[TE-Period-end]]=\"\",\"N/A\",IF(Tableau2[[#This Row],[TE-value]]=\"\",\"N/A\",IF(Tableau2[[#This Row],[TE-value-date]]=\"\",\"N/A\",\"Yes\"))))","v":"N/A"}]
[{"$f":"VLOOKUP(Tableau2[[#This Row],[Organisation identifier]],Tableau3[#All],4,FALSE)","v":"Agence Francaise de Developpement"},"FR-03",{"$f":"VLOOKUP(Tableau2[[#This Row],[Organisation identifier]],Tableau3[#All],4,FALSE)","v":"Agence Francaise de Developpement"},"French","La stratégie régionale Afrique du Nord ","https://www.afd.fr/fr/ressources/strategie-regionale-afrique-du-nord-2021-2025","B03 - Country strategy paper\n","French",2021,"DZ - Algeria\nEG - Egypt\nMA - Morocco\nTN - Tunisia\n",{"$f":"IF(Tableau2[[#This Row],[TB-Period-start]]=\"\",\"N/A\",IF(Tableau2[[#This Row],[TB-Period-end]]=\"\",\"N/A\",IF(Tableau2[[#This Row],[TB-value]]=\"\",\"N/A\",IF(Tableau2[[#This Row],[TB-value-date]]=\"\",\"N/A\",\"Yes\"))))","v":"N/A"},null,null,null,null,null,null,null,null,null,null,{"$f":"IF(Tableau2[[#This Row],[TE-Period-start]]=\"\",\"N/A\",IF(Tableau2[[#This Row],[TE-Period-end]]=\"\",\"N/A\",IF(Tableau2[[#This Row],[TE-value]]=\"\",\"N/A\",IF(Tableau2[[#This Row],[TE-value-date]]=\"\",\"N/A\",\"Yes\"))))","v":"N/A"}]
[{"$f":"VLOOKUP(Tableau2[[#This Row],[Organisation identifier]],Tableau3[#All],4,FALSE)","v":"Agence Francaise de Developpement"},"FR-03",{"$f":"VLOOKUP(Tableau2[[#This Row],[Organisation identifier]],Tableau3[#All],4,FALSE)","v":"Agence Francaise de Developpement"},"French","La stratégie régionale Amérique latine","https://www.afd.fr/fr/ressources/strategie-regionale-amerique-latine-2018-2022","B03 - Country strategy paper\n","French",2021,"AR - Argentina\nBO - Bolivia (Plurinational State of)\nBR - Brazil\nCO - Colombia\nCU - Cuba\nEC - Ecuador\nMX - Mexico\nPE - Peru\n",{"$f":"IF(Tableau2[[#This Row],[TB-Period-start]]=\"\",\"N/A\",IF(Tableau2[[#This Row],[TB-Period-end]]=\"\",\"N/A\",IF(Tableau2[[#This Row],[TB-value]]=\"\",\"N/A\",IF(Tableau2[[#This Row],[TB-value-date]]=\"\",\"N/A\",\"Yes\"))))","v":"N/A"},null,null,null,null,null,null,null,null,null,null,{"$f":"IF(Tableau2[[#This Row],[TE-Period-start]]=\"\",\"N/A\",IF(Tableau2[[#This Row],[TE-Period-end]]=\"\",\"N/A\",IF(Tableau2[[#This Row],[TE-value]]=\"\",\"N/A\",IF(Tableau2[[#This Row],[TE-value-date]]=\"\",\"N/A\",\"Yes\"))))","v":"N/A"}]
[{"$f":"VLOOKUP(Tableau2[[#This Row],[Organisation identifier]],Tableau3[#All],4,FALSE)","v":"Agence Francaise de Developpement"},"FR-03",{"$f":"VLOOKUP(Tableau2[[#This Row],[Organisation identifier]],Tableau3[#All],4,FALSE)","v":"Agence Francaise de Developpement"},"French","La stratégie Burkina Faso ","https://www.afd.fr/fr/ressources/strategie-burkina-faso-2020-2025","B03 - Country strategy paper\n","French",2021,"BF - Burkina Faso\n",{"$f":"IF(Tableau2[[#This Row],[TB-Period-start]]=\"\",\"N/A\",IF(Tableau2[[#This Row],[TB-Period-end]]=\"\",\"N/A\",IF(Tableau2[[#This Row],[TB-value]]=\"\",\"N/A\",IF(Tableau2[[#This Row],[TB-value-date]]=\"\",\"N/A\",\"Yes\"))))","v":"N/A"},null,null,null,null,null,null,null,null,null,null,{"$f":"IF(Tableau2[[#This Row],[TE-Period-start]]=\"\",\"N/A\",IF(Tableau2[[#This Row],[TE-Period-end]]=\"\",\"N/A\",IF(Tableau2[[#This Row],[TE-value]]=\"\",\"N/A\",IF(Tableau2[[#This Row],[TE-value-date]]=\"\",\"N/A\",\"Yes\"))))","v":"N/A"}]
[{"$f":"VLOOKUP(Tableau2[[#This Row],[Organisation identifier]],Tableau3[#All],4,FALSE)","v":"Agence Francaise de Developpement"},"FR-03",{"$f":"VLOOKUP(Tableau2[[#This Row],[Organisation identifier]],Tableau3[#All],4,FALSE)","v":"Agence Francaise de Developpement"},"French","La stratégie régionale Asie du sud","Stratégie régionale Asie du Sud 2020-2024 | AFD - Agence Française de Développement","B04 - Aid Allocation Policy\n","French",2021,"AF - Afghanistan\nBD - Bangladesh\nIN - India\nPK - Pakistan\nLK - Sri Lanka\n",{"$f":"IF(Tableau2[[#This Row],[TB-Period-start]]=\"\",\"N/A\",IF(Tableau2[[#This Row],[TB-Period-end]]=\"\",\"N/A\",IF(Tableau2[[#This Row],[TB-value]]=\"\",\"N/A\",IF(Tableau2[[#This Row],[TB-value-date]]=\"\",\"N/A\",\"Yes\"))))","v":"N/A"},null,null,null,null,null,null,null,null,null,null,{"$f":"IF(Tableau2[[#This Row],[TE-Period-start]]=\"\",\"N/A\",IF(Tableau2[[#This Row],[TE-Period-end]]=\"\",\"N/A\",IF(Tableau2[[#This Row],[TE-value]]=\"\",\"N/A\",IF(Tableau2[[#This Row],[TE-value-date]]=\"\",\"N/A\",\"Yes\"))))","v":"N/A"}]
[{"$f":"VLOOKUP(Tableau2[[#This Row],[Organisation identifier]],Tableau3[#All],4,FALSE)","v":"Agence Francaise de Developpement"},"FR-03",{"$f":"VLOOKUP(Tableau2[[#This Row],[Organisation identifier]],Tableau3[#All],4,FALSE)","v":"Agence Francaise de Developpement"},"French","La stratégie régionale grand sahel 2020-2024","https://www.afd.fr/fr/ressources/strategie-regionale-grand-sahel-2020-2024","B04 - Aid Allocation Policy\n","French",2021,"BF - Burkina Faso\nTD - Chad\nGM - Gambia (the)\nML - Mali\nMR - Mauritania\nNE - Niger (the)\nSN - Senegal\n",{"$f":"IF(Tableau2[[#This Row],[TB-Period-start]]=\"\",\"N/A\",IF(Tableau2[[#This Row],[TB-Period-end]]=\"\",\"N/A\",IF(Tableau2[[#This Row],[TB-value]]=\"\",\"N/A\",IF(Tableau2[[#This Row],[TB-value-date]]=\"\",\"N/A\",\"Yes\"))))","v":"N/A"},null,null,null,null,null,null,null,null,null,null,{"$f":"IF(Tableau2[[#This Row],[TE-Period-start]]=\"\",\"N/A\",IF(Tableau2[[#This Row],[TE-Period-end]]=\"\",\"N/A\",IF(Tableau2[[#This Row],[TE-value]]=\"\",\"N/A\",IF(Tableau2[[#This Row],[TE-value-date]]=\"\",\"N/A\",\"Yes\"))))","v":"N/A"}]
[{"$f":"VLOOKUP(Tableau2[[#This Row],[Organisation identifier]],Tableau3[#All],4,FALSE)","v":"Agence Francaise de Developpement"},"FR-03",{"$f":"VLOOKUP(Tableau2[[#This Row],[Organisation identifier]],Tableau3[#All],4,FALSE)","v":"Agence Francaise de Developpement"},"French","L stratégie régionale Afrique de l'Est 2020-2024","https://www.afd.fr/fr/ressources/strategie-regionale-afrique-de-lest-2020-2024?origin=/fr/rechercher?query=La+strat%C3%A9gie+r%C3%A9gionale+Afrique+de+l%27Est+2020-2024","B04 - Aid Allocation Policy\n","French",2021,"BI - Burundi\nDJ - Djibouti\nKE - Kenya\nTZ - Tanzania, United Republic of\nUG - Uganda\n",{"$f":"IF(Tableau2[[#This Row],[TB-Period-start]]=\"\",\"N/A\",IF(Tableau2[[#This Row],[TB-Period-end]]=\"\",\"N/A\",IF(Tableau2[[#This Row],[TB-value]]=\"\",\"N/A\",IF(Tableau2[[#This Row],[TB-value-date]]=\"\",\"N/A\",\"Yes\"))))","v":"N/A"},null,null,null,null,null,null,null,null,null,null,{"$f":"IF(Tableau2[[#This Row],[TE-Period-start]]=\"\",\"N/A\",IF(Tableau2[[#This Row],[TE-Period-end]]=\"\",\"N/A\",IF(Tableau2[[#This Row],[TE-value]]=\"\",\"N/A\",IF(Tableau2[[#This Row],[TE-value-date]]=\"\",\"N/A\",\"Yes\"))))","v":"N/A"}]
[{"$f":"VLOOKUP(Tableau2[[#This Row],[Organisation identifier]],Tableau3[#All],4,FALSE)","v":"Agence Francaise de Developpement"},"FR-03",{"$f":"VLOOKUP(Tableau2[[#This Row],[Organisation identifier]],Tableau3[#All],4,FALSE)","v":"Agence Francaise de Developpement"},"French","La stratégie Chine 2020 - 2024","https://www.afd.fr/fr/ressources/strategie-chine-2020-2024?origin=/fr/rechercher?query=strat%C3%A9gie+chine","B03 - Country strategy paper\n","French",2021,"CN - China\n",{"$f":"IF(Tableau2[[#This Row],[TB-Period-start]]=\"\",\"N/A\",IF(Tableau2[[#This Row],[TB-Period-end]]=\"\",\"N/A\",IF(Tableau2[[#This Row],[TB-value]]=\"\",\"N/A\",IF(Tableau2[[#This Row],[TB-value-date]]=\"\",\"N/A\",\"Yes\"))))","v":"N/A"},null,null,null,null,null,null,null,null,null,null,{"$f":"IF(Tableau2[[#This Row],[TE-Period-start]]=\"\",\"N/A\",IF(Tableau2[[#This Row],[TE-Period-end]]=\"\",\"N/A\",IF(Tableau2[[#This Row],[TE-value]]=\"\",\"N/A\",IF(Tableau2[[#This Row],[TE-value-date]]=\"\",\"N/A\",\"Yes\"))))","v":"N/A"}]
[{"$f":"VLOOKUP(Tableau2[[#This Row],[Organisation identifier]],Tableau3[#All],4,FALSE)","v":"Agence Francaise de Developpement"},"FR-03",{"$f":"VLOOKUP(Tableau2[[#This Row],[Organisation identifier]],Tableau3[#All],4,FALSE)","v":"Agence Francaise de Developpement"},"French","La stratégie Transition numérique","Stratégie Transition numérique 2021-2025 | AFD - Agence Française de Développement","B04 - Aid Allocation Policy\n","French",2021,null,{"$f":"IF(Tableau2[[#This Row],[TB-Period-start]]=\"\",\"N/A\",IF(Tableau2[[#This Row],[TB-Period-end]]=\"\",\"N/A\",IF(Tableau2[[#This Row],[TB-value]]=\"\",\"N/A\",IF(Tableau2[[#This Row],[TB-value-date]]=\"\",\"N/A\",\"Yes\"))))","v":"N/A"},null,null,null,null,null,null,null,null,null,null,{"$f":"IF(Tableau2[[#This Row],[TE-Period-start]]=\"\",\"N/A\",IF(Tableau2[[#This Row],[TE-Period-end]]=\"\",\"N/A\",IF(Tableau2[[#This Row],[TE-value]]=\"\",\"N/A\",IF(Tableau2[[#This Row],[TE-value-date]]=\"\",\"N/A\",\"Yes\"))))","v":"N/A"}]
["Agence Francaise de Developpement","FR-03",{"$f":"VLOOKUP(Tableau2[[#This Row],[Organisation identifier]],Tableau3[#All],4,FALSE)","v":"Agence Francaise de Developpement"},"French","Le plan d'orientation stratégique 2018-2022 ","https://www.afd.fr/sites/afd/files/2018-09-04-02-18/plan-orientation-strategique-afd-2018-2022.pdf","B04 - Aid Allocation Policy\n","French",2019,null,{"$f":"IF(Tableau2[[#This Row],[TB-Period-start]]=\"\",\"N/A\",IF(Tableau2[[#This Row],[TB-Period-end]]=\"\",\"N/A\",IF(Tableau2[[#This Row],[TB-value]]=\"\",\"N/A\",IF(Tableau2[[#This Row],[TB-value-date]]=\"\",\"N/A\",\"Yes\"))))","v":"N/A"},null,null,null,null,null,null,null,null,null,null,{"$f":"IF(Tableau2[[#This Row],[TE-Period-start]]=\"\",\"N/A\",IF(Tableau2[[#This Row],[TE-Period-end]]=\"\",\"N/A\",IF(Tableau2[[#This Row],[TE-value]]=\"\",\"N/A\",IF(Tableau2[[#This Row],[TE-value-date]]=\"\",\"N/A\",\"Yes\"))))","v":"N/A"}]
["Agence Francaise de Developpement","FR-03",{"$f":"VLOOKUP(Tableau2[[#This Row],[Organisation identifier]],Tableau3[#All],4,FALSE)","v":"Agence Francaise de Developpement"},"French","AFD Group 2018-2022 Strategy","https://www.afd.fr/sites/afd/files/2018-10-03-02-29/strategy-afd-2018-2022.pdf","B04 - Aid Allocation Policy\n",null,2019,null,{"$f":"IF(Tableau2[[#This Row],[TB-Period-start]]=\"\",\"N/A\",IF(Tableau2[[#This Row],[TB-Period-end]]=\"\",\"N/A\",IF(Tableau2[[#This Row],[TB-value]]=\"\",\"N/A\",IF(Tableau2[[#This Row],[TB-value-date]]=\"\",\"N/A\",\"Yes\"))))","v":"N/A"},null,null,null,null,null,null,null,null,null,null,{"$f":"IF(Tableau2[[#This Row],[TE-Period-start]]=\"\",\"N/A\",IF(Tableau2[[#This Row],[TE-Period-end]]=\"\",\"N/A\",IF(Tableau2[[#This Row],[TE-value]]=\"\",\"N/A\",IF(Tableau2[[#This Row],[TE-value-date]]=\"\",\"N/A\",\"Yes\"))))","v":"N/A"}]
["Agence Francaise de Developpement","FR-03",{"$f":"VLOOKUP(Tableau2[[#This Row],[Organisation identifier]],Tableau3[#All],4,FALSE)","v":"Agence Francaise de Developpement"},"French","Appel d'offres et passation de marchés","https://www.afd.fr/fr/appels-doffres-et-passations-de-marches","B05 - Procurement Policy and Procedure\n","French",null,null,{"$f":"IF(Tableau2[[#This Row],[TB-Period-start]]=\"\",\"N/A\",IF(Tableau2[[#This Row],[TB-Period-end]]=\"\",\"N/A\",IF(Tableau2[[#This Row],[TB-value]]=\"\",\"N/A\",IF(Tableau2[[#This Row],[TB-value-date]]=\"\",\"N/A\",\"Yes\"))))","v":"N/A"},null,null,null,null,null,null,null,null,null,null,{"$f":"IF(Tableau2[[#This Row],[TE-Period-start]]=\"\",\"N/A\",IF(Tableau2[[#This Row],[TE-Period-end]]=\"\",\"N/A\",IF(Tableau2[[#This Row],[TE-value]]=\"\",\"N/A\",IF(Tableau2[[#This Row],[TE-value-date]]=\"\",\"N/A\",\"Yes\"))))","v":"N/A"}]
["Agence Francaise de Developpement","FR-03","Agence Francaise de Developpement","French","Résultats 2020 du groupe AFD","https://www.afd.fr/sites/afd/files/2021-06-03-39-55/brochure-resultats-afd-2020.pdf","A05 - Budget\n","French",2021,null,{"$f":"IF(Tableau2[[#This Row],[TB-Period-start]]=\"\",\"N/A\",IF(Tableau2[[#This Row],[TB-Period-end]]=\"\",\"N/A\",IF(Tableau2[[#This Row],[TB-value]]=\"\",\"N/A\",IF(Tableau2[[#This Row],[TB-value-date]]=\"\",\"N/A\",\"Yes\"))))","v":"N/A"},null,null,null,null,null,null,null,null,null,null,{"$f":"IF(Tableau2[[#This Row],[TE-Period-start]]=\"\",\"N/A\",IF(Tableau2[[#This Row],[TE-Period-end]]=\"\",\"N/A\",IF(Tableau2[[#This Row],[TE-value]]=\"\",\"N/A\",IF(Tableau2[[#This Row],[TE-value-date]]=\"\",\"N/A\",\"Yes\"))))","v":"N/A"}]
["Agence Francaise de Developpement","FR-03",{"$f":"VLOOKUP(Tableau2[[#This Row],[Organisation identifier]],Tableau3[#All],4,FALSE)","v":"Agence Francaise de Developpement"},"French","Liste des avis de marchés publiés par l'AFD pour le compte de tiers","https://afd.dgmarket.com/tenders/brandedNoticeList.do","A10 - Tender\n","French",null,null,{"$f":"IF(Tableau2[[#This Row],[TB-Period-start]]=\"\",\"N/A\",IF(Tableau2[[#This Row],[TB-Period-end]]=\"\",\"N/A\",IF(Tableau2[[#This Row],[TB-value]]=\"\",\"N/A\",IF(Tableau2[[#This Row],[TB-value-date]]=\"\",\"N/A\",\"Yes\"))))","v":"N/A"},null,null,null,null,null,null,null,null,null,null,{"$f":"IF(Tableau2[[#This Row],[TE-Period-start]]=\"\",\"N/A\",IF(Tableau2[[#This Row],[TE-Period-end]]=\"\",\"N/A\",IF(Tableau2[[#This Row],[TE-value]]=\"\",\"N/A\",IF(Tableau2[[#This Row],[TE-value-date]]=\"\",\"N/A\",\"Yes\"))))","v":"N/A"}]
["Agence Francaise de Developpement","FR-03",{"$f":"VLOOKUP(Tableau2[[#This Row],[Organisation identifier]],Tableau3[#All],4,FALSE)","v":"Agence Francaise de Developpement"},"French","Liste des avis de marchés publiés par l'AFD pour son compte","https://www.afd.fr/fr/marches-publics-de-lafd","A10 - Tender\n","French",null,null,{"$f":"IF(Tableau2[[#This Row],[TB-Period-start]]=\"\",\"N/A\",IF(Tableau2[[#This Row],[TB-Period-end]]=\"\",\"N/A\",IF(Tableau2[[#This Row],[TB-value]]=\"\",\"N/A\",IF(Tableau2[[#This Row],[TB-value-date]]=\"\",\"N/A\",\"Yes\"))))","v":"N/A"},null,null,null,null,null,null,null,null,null,null,{"$f":"IF(Tableau2[[#This Row],[TE-Period-start]]=\"\",\"N/A\",IF(Tableau2[[#This Row],[TE-Period-end]]=\"\",\"N/A\",IF(Tableau2[[#This Row],[TE-value]]=\"\",\"N/A\",IF(Tableau2[[#This Row],[TE-value-date]]=\"\",\"N/A\",\"Yes\"))))","v":"N/A"}]
["Agence Francaise de Developpement","FR-03","Agence Francaise de Developpement","French","Financer les projets","https://www.afd.fr/fr/financer-les-projets","A04 - Conditions\n","French",null,null,{"$f":"IF(Tableau2[[#This Row],[TB-Period-start]]=\"\",\"N/A\",IF(Tableau2[[#This Row],[TB-Period-end]]=\"\",\"N/A\",IF(Tableau2[[#This Row],[TB-value]]=\"\",\"N/A\",IF(Tableau2[[#This Row],[TB-value-date]]=\"\",\"N/A\",\"Yes\"))))","v":"N/A"},null,null,null,null,null,null,null,null,null,null,{"$f":"IF(Tableau2[[#This Row],[TE-Period-start]]=\"\",\"N/A\",IF(Tableau2[[#This Row],[TE-Period-end]]=\"\",\"N/A\",IF(Tableau2[[#This Row],[TE-value]]=\"\",\"N/A\",IF(Tableau2[[#This Row],[TE-value-date]]=\"\",\"N/A\",\"Yes\"))))","v":"N/A"}]
["Agence Francaise de Developpement","FR-03","Agence Francaise de Developpement","French","Finance projects","https://www.afd.fr/en/finance-projects","A04 - Conditions\n","English",null,null,{"$f":"IF(Tableau2[[#This Row],[TB-Period-start]]=\"\",\"N/A\",IF(Tableau2[[#This Row],[TB-Period-end]]=\"\",\"N/A\",IF(Tableau2[[#This Row],[TB-value]]=\"\",\"N/A\",IF(Tableau2[[#This Row],[TB-value-date]]=\"\",\"N/A\",\"Yes\"))))","v":"N/A"},null,null,null,null,null,null,null,null,null,null,{"$f":"IF(Tableau2[[#This Row],[TE-Period-start]]=\"\",\"N/A\",IF(Tableau2[[#This Row],[TE-Period-end]]=\"\",\"N/A\",IF(Tableau2[[#This Row],[TE-value]]=\"\",\"N/A\",IF(Tableau2[[#This Row],[TE-value-date]]=\"\",\"N/A\",\"Yes\"))))","v":"N/A"}]
[{"$f":"VLOOKUP(Tableau2[[#This Row],[Organisation identifier]],Tableau3[#All],4,FALSE)","v":"Agence Francaise de Developpement"},"FR-03",{"$f":"VLOOKUP(Tableau2[[#This Row],[Organisation identifier]],Tableau3[#All],4,FALSE)","v":"Agence Francaise de Developpement"},"French","POLITIQUE FRANÇAISE EN FAVEUR DU DÉVELOPPEMENT","dpt2020_politique_developpement_cle431163.pdf (diplomatie.gouv.fr)","A05 - Budget\n","French",null,null,{"$f":"IF(Tableau2[[#This Row],[TB-Period-start]]=\"\",\"N/A\",IF(Tableau2[[#This Row],[TB-Period-end]]=\"\",\"N/A\",IF(Tableau2[[#This Row],[TB-value]]=\"\",\"N/A\",IF(Tableau2[[#This Row],[TB-value-date]]=\"\",\"N/A\",\"Yes\"))))","v":"N/A"},null,null,null,null,null,null,null,null,null,null,{"$f":"IF(Tableau2[[#This Row],[TE-Period-start]]=\"\",\"N/A\",IF(Tableau2[[#This Row],[TE-Period-end]]=\"\",\"N/A\",IF(Tableau2[[#This Row],[TE-value]]=\"\",\"N/A\",IF(Tableau2[[#This Row],[TE-value-date]]=\"\",\"N/A\",\"Yes\"))))","v":"N/A"}]
[{"$f":"VLOOKUP(Tableau2[[#This Row],[Organisation identifier]],Tableau3[#All],4,FALSE)","v":"Agence Francaise de Developpement"},"FR-03",{"$f":"VLOOKUP(Tableau2[[#This Row],[Organisation identifier]],Tableau3[#All],4,FALSE)","v":"Agence Francaise de Developpement"},"French","Budget -Aide publique au développement","https://www.performance-publique.budget.gouv.fr/sites/performance_publique/files/farandole/ressources/2020/pap/pdf/PAP2020_BG_Aide_publique_developpement.pdf","A05 - Budget\n","French",2020,null,{"$f":"IF(Tableau2[[#This Row],[TB-Period-start]]=\"\",\"N/A\",IF(Tableau2[[#This Row],[TB-Period-end]]=\"\",\"N/A\",IF(Tableau2[[#This Row],[TB-value]]=\"\",\"N/A\",IF(Tableau2[[#This Row],[TB-value-date]]=\"\",\"N/A\",\"Yes\"))))","v":"N/A"},null,null,null,null,null,null,null,null,null,null,{"$f":"IF(Tableau2[[#This Row],[TE-Period-start]]=\"\",\"N/A\",IF(Tableau2[[#This Row],[TE-Period-end]]=\"\",\"N/A\",IF(Tableau2[[#This Row],[TE-value]]=\"\",\"N/A\",IF(Tableau2[[#This Row],[TE-value-date]]=\"\",\"N/A\",\"Yes\"))))","v":"N/A"}]
[{"$f":"VLOOKUP(Tableau2[[#This Row],[Organisation identifier]],Tableau3[#All],4,FALSE)","v":"Agence Francaise de Developpement"},"FR-03",{"$f":"VLOOKUP(Tableau2[[#This Row],[Organisation identifier]],Tableau3[#All],4,FALSE)","v":"Agence Francaise de Developpement"},"French","Stratégie transition lien social","https://www.afd.fr/fr/ressources/lien-social-strategie-2021-2025","B12 - Thematic strategy\n","French",2021,null,{"$f":"IF(Tableau2[[#This Row],[TB-Period-start]]=\"\",\"N/A\",IF(Tableau2[[#This Row],[TB-Period-end]]=\"\",\"N/A\",IF(Tableau2[[#This Row],[TB-value]]=\"\",\"N/A\",IF(Tableau2[[#This Row],[TB-value-date]]=\"\",\"N/A\",\"Yes\"))))","v":"N/A"},null,null,null,null,null,null,null,null,null,null,{"$f":"IF(Tableau2[[#This Row],[TE-Period-start]]=\"\",\"N/A\",IF(Tableau2[[#This Row],[TE-Period-end]]=\"\",\"N/A\",IF(Tableau2[[#This Row],[TE-value]]=\"\",\"N/A\",IF(Tableau2[[#This Row],[TE-value-date]]=\"\",\"N/A\",\"Yes\"))))","v":"N/A"}]
[{"$f":"VLOOKUP(Tableau2[[#This Row],[Organisation identifier]],Tableau3[#All],4,FALSE)","v":"Agence Francaise de Developpement"},"FR-03",{"$f":"VLOOKUP(Tableau2[[#This Row],[Organisation identifier]],Tableau3[#All],4,FALSE)","v":"Agence Francaise de Developpement"},"French","Stratégie régionale Afrique centrale","https://www.afd.fr/fr/ressources/strategie-regionale-afrique-centrale-2020-2024","B04 - Aid Allocation Policy\n","French",2021,"CM - Cameroon\nCF - Central African Republic (the)\nCG - Congo (the)\nCD - Congo (the Democratic Republic of the)\nGA - Gabon\nST - Sao Tome and Principe\n",{"$f":"IF(Tableau2[[#This Row],[TB-Period-start]]=\"\",\"N/A\",IF(Tableau2[[#This Row],[TB-Period-end]]=\"\",\"N/A\",IF(Tableau2[[#This Row],[TB-value]]=\"\",\"N/A\",IF(Tableau2[[#This Row],[TB-value-date]]=\"\",\"N/A\",\"Yes\"))))","v":"N/A"},null,null,null,null,null,null,null,null,null,null,{"$f":"IF(Tableau2[[#This Row],[TE-Period-start]]=\"\",\"N/A\",IF(Tableau2[[#This Row],[TE-Period-end]]=\"\",\"N/A\",IF(Tableau2[[#This Row],[TE-value]]=\"\",\"N/A\",IF(Tableau2[[#This Row],[TE-value-date]]=\"\",\"N/A\",\"Yes\"))))","v":"N/A"}]
[{"$f":"VLOOKUP(Tableau2[[#This Row],[Organisation identifier]],Tableau3[#All],4,FALSE)","v":"Agence Francaise de Developpement"},"FR-03",{"$f":"VLOOKUP(Tableau2[[#This Row],[Organisation identifier]],Tableau3[#All],4,FALSE)","v":"Agence Francaise de Developpement"},"French","Stratégie régionale Andes","https://www.afd.fr/fr/ressources/strategie-regionale-andes-2020-2024","B04 - Aid Allocation Policy\n","French",2021,"BO - Bolivia (Plurinational State of)\nCO - Colombia\nEC - Ecuador\nPE - Peru\n",{"$f":"IF(Tableau2[[#This Row],[TB-Period-start]]=\"\",\"N/A\",IF(Tableau2[[#This Row],[TB-Period-end]]=\"\",\"N/A\",IF(Tableau2[[#This Row],[TB-value]]=\"\",\"N/A\",IF(Tableau2[[#This Row],[TB-value-date]]=\"\",\"N/A\",\"Yes\"))))","v":"N/A"},null,null,null,null,null,null,null,null,null,null,{"$f":"IF(Tableau2[[#This Row],[TE-Period-start]]=\"\",\"N/A\",IF(Tableau2[[#This Row],[TE-Period-end]]=\"\",\"N/A\",IF(Tableau2[[#This Row],[TE-value]]=\"\",\"N/A\",IF(Tableau2[[#This Row],[TE-value-date]]=\"\",\"N/A\",\"Yes\"))))","v":"N/A"}]
[{"$f":"VLOOKUP(Tableau2[[#This Row],[Organisation identifier]],Tableau3[#All],4,FALSE)","v":"Agence Francaise de Developpement"},"FR-03",{"$f":"VLOOKUP(Tableau2[[#This Row],[Organisation identifier]],Tableau3[#All],4,FALSE)","v":"Agence Francaise de Developpement"},"French","SOUTH ASIA - 2020-2024 REGIONAL STRATEGY","https://www.afd.fr/en/ressources/south-asia-2020-2024-regional-strategy","B04 - Aid Allocation Policy\n","English",2021,null,{"$f":"IF(Tableau2[[#This Row],[TB-Period-start]]=\"\",\"N/A\",IF(Tableau2[[#This Row],[TB-Period-end]]=\"\",\"N/A\",IF(Tableau2[[#This Row],[TB-value]]=\"\",\"N/A\",IF(Tableau2[[#This Row],[TB-value-date]]=\"\",\"N/A\",\"Yes\"))))","v":"N/A"},null,null,null,null,null,null,null,null,null,null,{"$f":"IF(Tableau2[[#This Row],[TE-Period-start]]=\"\",\"N/A\",IF(Tableau2[[#This Row],[TE-Period-end]]=\"\",\"N/A\",IF(Tableau2[[#This Row],[TE-value]]=\"\",\"N/A\",IF(Tableau2[[#This Row],[TE-value-date]]=\"\",\"N/A\",\"Yes\"))))","v":"N/A"}]
[{"$f":"VLOOKUP(Tableau2[[#This Row],[Organisation identifier]],Tableau3[#All],4,FALSE)","v":"Agence Francaise de Developpement"},"FR-03",{"$f":"VLOOKUP(Tableau2[[#This Row],[Organisation identifier]],Tableau3[#All],4,FALSE)","v":"Agence Francaise de Developpement"},"French","ESTRATEGIA REGIONAL ANDES 2020-2024","https://www.afd.fr/es/ressources/estrategia-regional-andes-2020-2024","B04 - Aid Allocation Policy\n","Spanish",2021,"BO - Bolivia (Plurinational State of)\nCO - Colombia\nEC - Ecuador\nPE - Peru\n",{"$f":"IF(Tableau2[[#This Row],[TB-Period-start]]=\"\",\"N/A\",IF(Tableau2[[#This Row],[TB-Period-end]]=\"\",\"N/A\",IF(Tableau2[[#This Row],[TB-value]]=\"\",\"N/A\",IF(Tableau2[[#This Row],[TB-value-date]]=\"\",\"N/A\",\"Yes\"))))","v":"N/A"},null,null,null,null,null,null,null,null,null,null,{"$f":"IF(Tableau2[[#This Row],[TE-Period-start]]=\"\",\"N/A\",IF(Tableau2[[#This Row],[TE-Period-end]]=\"\",\"N/A\",IF(Tableau2[[#This Row],[TE-value]]=\"\",\"N/A\",IF(Tableau2[[#This Row],[TE-value-date]]=\"\",\"N/A\",\"Yes\"))))","v":"N/A"}]
[{"$f":"VLOOKUP(Tableau2[[#This Row],[Organisation identifier]],Tableau3[#All],4,FALSE)","v":"Agence Francaise de Developpement"},"FR-03",{"$f":"VLOOKUP(Tableau2[[#This Row],[Organisation identifier]],Tableau3[#All],4,FALSE)","v":"Agence Francaise de Developpement"},"French","STRATÉGIE RÉGIONALE EURASIE 2020-2024","https://www.afd.fr/fr/ressources/strategie-regionale-eurasie-2020-2024","B03 - Country strategy paper\n","French",2021,"AM - Armenia\nAZ - Azerbaijan\nGE - Georgia\nKZ - Kazakhstan\nTR - Turkey\nUZ - Uzbekistan\n",{"$f":"IF(Tableau2[[#This Row],[TB-Period-start]]=\"\",\"N/A\",IF(Tableau2[[#This Row],[TB-Period-end]]=\"\",\"N/A\",IF(Tableau2[[#This Row],[TB-value]]=\"\",\"N/A\",IF(Tableau2[[#This Row],[TB-value-date]]=\"\",\"N/A\",\"Yes\"))))","v":"N/A"},null,null,null,null,null,null,null,null,null,null,{"$f":"IF(Tableau2[[#This Row],[TE-Period-start]]=\"\",\"N/A\",IF(Tableau2[[#This Row],[TE-Period-end]]=\"\",\"N/A\",IF(Tableau2[[#This Row],[TE-value]]=\"\",\"N/A\",IF(Tableau2[[#This Row],[TE-value-date]]=\"\",\"N/A\",\"Yes\"))))","v":"N/A"}]
[{"$f":"VLOOKUP(Tableau2[[#This Row],[Organisation identifier]],Tableau3[#All],4,FALSE)","v":"Agence Francaise de Developpement"},"FR-03",{"$f":"VLOOKUP(Tableau2[[#This Row],[Organisation identifier]],Tableau3[#All],4,FALSE)","v":"Agence Francaise de Developpement"},"French","ANDEAN REGION - 2020-2024 REGIONAL STRATEGY","https://www.afd.fr/en/ressources/andean-region-2020-2024-regional-strategy","B03 - Country strategy paper\n","English",2021,"BO - Bolivia (Plurinational State of)\nCO - Colombia\nEC - Ecuador\nPE - Peru\n",{"$f":"IF(Tableau2[[#This Row],[TB-Period-start]]=\"\",\"N/A\",IF(Tableau2[[#This Row],[TB-Period-end]]=\"\",\"N/A\",IF(Tableau2[[#This Row],[TB-value]]=\"\",\"N/A\",IF(Tableau2[[#This Row],[TB-value-date]]=\"\",\"N/A\",\"Yes\"))))","v":"N/A"},null,null,null,null,null,null,null,null,null,null,{"$f":"IF(Tableau2[[#This Row],[TE-Period-start]]=\"\",\"N/A\",IF(Tableau2[[#This Row],[TE-Period-end]]=\"\",\"N/A\",IF(Tableau2[[#This Row],[TE-value]]=\"\",\"N/A\",IF(Tableau2[[#This Row],[TE-value-date]]=\"\",\"N/A\",\"Yes\"))))","v":"N/A"}]
[{"$f":"VLOOKUP(Tableau2[[#This Row],[Organisation identifier]],Tableau3[#All],4,FALSE)","v":"Agence Francaise de Developpement"},"FR-03",{"$f":"VLOOKUP(Tableau2[[#This Row],[Organisation identifier]],Tableau3[#All],4,FALSE)","v":"Agence Francaise de Developpement"},"French","NORTH AFRICA - 2021-2025 REGIONAL STRATEGY","https://www.afd.fr/en/ressources/north-africa-2021-2025-regional-strategy","B03 - Country strategy paper\n","English",2021,"DZ - Algeria\nEG - Egypt\nMA - Morocco\nTN - Tunisia\n",{"$f":"IF(Tableau2[[#This Row],[TB-Period-start]]=\"\",\"N/A\",IF(Tableau2[[#This Row],[TB-Period-end]]=\"\",\"N/A\",IF(Tableau2[[#This Row],[TB-value]]=\"\",\"N/A\",IF(Tableau2[[#This Row],[TB-value-date]]=\"\",\"N/A\",\"Yes\"))))","v":"N/A"},null,null,null,null,null,null,null,null,null,null,{"$f":"IF(Tableau2[[#This Row],[TE-Period-start]]=\"\",\"N/A\",IF(Tableau2[[#This Row],[TE-Period-end]]=\"\",\"N/A\",IF(Tableau2[[#This Row],[TE-value]]=\"\",\"N/A\",IF(Tableau2[[#This Row],[TE-value-date]]=\"\",\"N/A\",\"Yes\"))))","v":"N/A"}]
[{"$f":"VLOOKUP(Tableau2[[#This Row],[Organisation identifier]],Tableau3[#All],4,FALSE)","v":"Agence Francaise de Developpement"},"FR-03",{"$f":"VLOOKUP(Tableau2[[#This Row],[Organisation identifier]],Tableau3[#All],4,FALSE)","v":"Agence Francaise de Developpement"},"French","STRATÉGIE RÉGIONALE AFRIQUE AUSTRALE 2021-2025","Stratégie régionale Afrique australe 2021-2025 | AFD - Agence Française de Développement","B03 - Country strategy paper\n","French",2021,"AO - Angola\nMZ - Mozambique\nNA - Namibia\nZA - South Africa\nZM - Zambia\nZW - Zimbabwe\n",{"$f":"IF(Tableau2[[#This Row],[TB-Period-start]]=\"\",\"N/A\",IF(Tableau2[[#This Row],[TB-Period-end]]=\"\",\"N/A\",IF(Tableau2[[#This Row],[TB-value]]=\"\",\"N/A\",IF(Tableau2[[#This Row],[TB-value-date]]=\"\",\"N/A\",\"Yes\"))))","v":"N/A"},null,null,null,null,null,null,null,null,null,null,{"$f":"IF(Tableau2[[#This Row],[TE-Period-start]]=\"\",\"N/A\",IF(Tableau2[[#This Row],[TE-Period-end]]=\"\",\"N/A\",IF(Tableau2[[#This Row],[TE-value]]=\"\",\"N/A\",IF(Tableau2[[#This Row],[TE-value-date]]=\"\",\"N/A\",\"Yes\"))))","v":"N/A"}]
[{"$f":"VLOOKUP(Tableau2[[#This Row],[Organisation identifier]],Tableau3[#All],4,FALSE)","v":"Agence Francaise de Developpement"},"FR-03",{"$f":"VLOOKUP(Tableau2[[#This Row],[Organisation identifier]],Tableau3[#All],4,FALSE)","v":"Agence Francaise de Developpement"},"French","EURASIA - 2020-2024 REGIONAL STRATEGY","Eurasia - 2020-2024 Regional Strategy | AFD - Agence Française de Développement","B03 - Country strategy paper\n","English",2021,"AM - Armenia\nAZ - Azerbaijan\nGE - Georgia\nKZ - Kazakhstan\nTR - Turkey\nUZ - Uzbekistan\n",{"$f":"IF(Tableau2[[#This Row],[TB-Period-start]]=\"\",\"N/A\",IF(Tableau2[[#This Row],[TB-Period-end]]=\"\",\"N/A\",IF(Tableau2[[#This Row],[TB-value]]=\"\",\"N/A\",IF(Tableau2[[#This Row],[TB-value-date]]=\"\",\"N/A\",\"Yes\"))))","v":"N/A"},null,null,null,null,null,null,null,null,null,null,{"$f":"IF(Tableau2[[#This Row],[TE-Period-start]]=\"\",\"N/A\",IF(Tableau2[[#This Row],[TE-Period-end]]=\"\",\"N/A\",IF(Tableau2[[#This Row],[TE-value]]=\"\",\"N/A\",IF(Tableau2[[#This Row],[TE-value-date]]=\"\",\"N/A\",\"Yes\"))))","v":"N/A"}]
["F",null,null,null,null,null,null,null,null,null,{"$f":"IF(Tableau2[[#This Row],[TB-Period-start]]=\"\",\"N/A\",IF(Tableau2[[#This Row],[TB-Period-end]]=\"\",\"N/A\",IF(Tableau2[[#This Row],[TB-value]]=\"\",\"N/A\",IF(Tableau2[[#This Row],[TB-value-date]]=\"\",\"N/A\",\"Yes\"))))","v":"N/A"},null,null,null,null,null,null,null,null,null,null,{"$f":"IF(Tableau2[[#This Row],[TE-Period-start]]=\"\",\"N/A\",IF(Tableau2[[#This Row],[TE-Period-end]]=\"\",\"N/A\",IF(Tableau2[[#This Row],[TE-value]]=\"\",\"N/A\",IF(Tableau2[[#This Row],[TE-value-date]]=\"\",\"N/A\",\"Yes\"))))","v":"N/A"}]

{"sheet":"Générer XML","index":1,"n_rows":0,"n_cols":0,"rows_kept":0,"cut":false,"hidden":false,"merged":[]}

{"sheet":"Guide","index":2,"n_rows":19,"n_cols":2,"rows_kept":19,"cut":false,"hidden":false,"merged":[]}
[]
[null,"Mettre à jour les données dans l'onglet 'Données\""]
[null,"Pour ajouter de nouvelles entrées (lignes), clic droit sur le numéro de la dernière ligne (noire), puis \"insertion\""]
[]
[null,"Générer le XML en allant sur l'onglet \"Générer XML\""]
[]
[]
[null,"Onglet \"Correspondances\""]
[null,"Le \"OrgID\" fait référence à la valeur en colonne B du tableau des données"]
[null,"RO-Type est le type associé à l'organisation"]
[null,"RO-Ref est la référence associée à l'organisation"]
[null,"Name, comme son nom l'indique"]
[null,"Toute modification de ces valeurs entrainera des changements dans l'onglet \"Données\" (colonnes A & C) et dans le fichier XML généré (attributs type et Ref de l'organisation et monnaie par défaut)"]
[]
[null,"Onglet \"Catégories\""]
[null,"Cet onglet liste l'ensemble des catégories de documents définies par le standard IATI"]
[]
[null,"Onglet \"Country\""]
[null,"Cet onglet liste l'ensemble des pays et de leur code définis par le standard IATI"]

{"sheet":"Correspondances","index":3,"n_rows":2,"n_cols":5,"rows_kept":2,"cut":false,"hidden":false,"merged":[]}
["OrgID","RO-Type","RO-Ref","Name","Default Currency"]
["FR-03",15,"XI-IATI-FR-3","Agence Francaise de Developpement","EUR"]

{"sheet":"Categories","index":4,"n_rows":31,"n_cols":3,"rows_kept":31,"cut":false,"hidden":false,"merged":[]}
["Code","Name","Concaténation des 2 champs"]
["A01","Pre- and post-project impact appraisal",{"$f":"CONCATENATE(A2,\" - \",B2)","v":"A01 - Pre- and post-project impact appraisal"}]
["A02","Objectives / Purpose of activity",{"$f":"CONCATENATE(A3,\" - \",B3)","v":"A02 - Objectives / Purpose of activity"}]
["A03","Intended ultimate beneficiaries","A03 - Intended ultimate beneficiaries"]
["A04","Conditions","A04 - Conditions"]
["A05","Budget","A05 - Budget"]
["A06","Summary information about contract","A06 - Summary information about contract"]
["A07","Review of project performance and evaluation","A07 - Review of project performance and evaluation"]
["A08","Results, outcomes and outputs","A08 - Results, outcomes and outputs"]
["A09","Memorandum of understanding (If agreed by all parties)","A09 - Memorandum of understanding (If agreed by all parties)"]
["A10","Tender","A10 - Tender"]
["A11","Contract","A11 - Contract"]
["A12","Activity web page","A12 - Activity web page"]
["B01","Annual report","B01 - Annual report"]
["B02","Institutional Strategy paper","B02 - Institutional Strategy paper"]
["B03","Country strategy paper","B03 - Country strategy paper"]
["B04","Aid Allocation Policy","B04 - Aid Allocation Policy"]
["B05","Procurement Policy and Procedure","B05 - Procurement Policy and Procedure"]
["B06","Institutional Audit Report","B06 - Institutional Audit Report"]
["B07","Country Audit Report","B07 - Country Audit Report"]
["B08","Exclusions Policy","B08 - Exclusions Policy"]
["B09","Institutional Evaluation Report","B09 - Institutional Evaluation Report"]
["B10","Country Evaluation Report","B10 - Country Evaluation Report"]
["B11","Sector strategy","B11 - Sector strategy"]
["B12","Thematic strategy","B12 - Thematic strategy"]
["B13","Country-level Memorandum of Understanding","B13 - Country-level Memorandum of Understanding"]
["B14","Evaluations policy","B14 - Evaluations policy"]
["B15","General Terms and Conditions","B15 - General Terms and Conditions"]
["B16","Organisation web page","B16 - Organisation web page"]
["B17","Country/Region web page","B17 - Country/Region web page"]
["B18","Sector web page",{"$f":"CONCATENATE(A31,\" - \",B31)","v":"B18 - Sector web page"}]

{"sheet":"Country","index":5,"n_rows":253,"n_cols":3,"rows_kept":253,"cut":false,"hidden":false,"merged":[]}
["Code","Name","Description"]
["AF","Afghanistan",{"$f":"CONCATENATE(A2,\" - \",B2)","v":"AF - Afghanistan"}]
["AX","Åland Islands",{"$f":"CONCATENATE(A3,\" - \",B3)","v":"AX - Åland Islands"}]
["AL","Albania","AL - Albania"]
["DZ","Algeria","DZ - Algeria"]
["AS","American Samoa","AS - American Samoa"]
["AD","Andorra","AD - Andorra"]
["AO","Angola","AO - Angola"]
["AI","Anguilla","AI - Anguilla"]
["AQ","Antarctica","AQ - Antarctica"]
["AG","Antigua and Barbuda","AG - Antigua and Barbuda"]
["AR","Argentina","AR - Argentina"]
["AM","Armenia","AM - Armenia"]
["AW","Aruba","AW - Aruba"]
["AU","Australia","AU - Australia"]
["AT","Austria","AT - Austria"]
["AZ","Azerbaijan","AZ - Azerbaijan"]
["BS","Bahamas (the)","BS - Bahamas (the)"]
["BH","Bahrain","BH - Bahrain"]
["BD","Bangladesh","BD - Bangladesh"]
["BB","Barbados","BB - Barbados"]
["BY","Belarus","BY - Belarus"]
["BE","Belgium","BE - Belgium"]
["BZ","Belize","BZ - Belize"]
["BJ","Benin","BJ - Benin"]
["BM","Bermuda","BM - Bermuda"]
["BT","Bhutan","BT - Bhutan"]
["BO","Bolivia (Plurinational State of)","BO - Bolivia (Plurinational State of)"]
["BQ","Bonaire, Sint Eustatius and Saba","BQ - Bonaire, Sint Eustatius and Saba"]
["BA","Bosnia and Herzegovina","BA - Bosnia and Herzegovina"]
["BW","Botswana","BW - Botswana"]
["BV","Bouvet Island","BV - Bouvet Island"]
["BR","Brazil","BR - Brazil"]
["IO","British Indian Ocean Territory (the)","IO - British Indian Ocean Territory (the)"]
["BN","Brunei Darussalam","BN - Brunei Darussalam"]
["BG","Bulgaria","BG - Bulgaria"]
["BF","Burkina Faso","BF - Burkina Faso"]
["BI","Burundi","BI - Burundi"]
["KH","Cambodia","KH - Cambodia"]
["CM","Cameroon","CM - Cameroon"]
["CA","Canada","CA - Canada"]
["CV","Cabo Verde","CV - Cabo Verde"]
["KY","Cayman Islands (the)","KY - Cayman Islands (the)"]
["CF","Central African Republic (the)","CF - Central African Republic (the)"]
["TD","Chad","TD - Chad"]
["CL","Chile","CL - Chile"]
["CN","China","CN - China"]
["CX","Christmas Island","CX - Christmas Island"]
["CC","Cocos (Keeling) Islands (the)","CC - Cocos (Keeling) Islands (the)"]
["CO","Colombia","CO - Colombia"]
["KM","Comoros (the)","KM - Comoros (the)"]
["CG","Congo (the)","CG - Congo (the)"]
["CD","Congo (the Democratic Republic of the)","CD - Congo (the Democratic Republic of the)"]
["CK","Cook Islands (the)","CK - Cook Islands (the)"]
["CR","Costa Rica","CR - Costa Rica"]
["CI","Côte d’Ivoire","CI - Côte d’Ivoire"]
["HR","Croatia","HR - Croatia"]
["CU","Cuba","CU - Cuba"]
["CW","Curaçao","CW - Curaçao"]
["CY","Cyprus","CY - Cyprus"]
["CZ","Czechia","CZ - Czechia"]
["DK","Denmark","DK - Denmark"]
["DJ","Djibouti","DJ - Djibouti"]
["DM","Dominica","DM - Dominica"]
["DO","Dominican Republic (the)","DO - Dominican Republic (the)"]
["EC","Ecuador","EC - Ecuador"]
["EG","Egypt",{"$f":"CONCATENATE(A67,\" - \",B67)","v":"EG - Egypt"}]
["SV","El Salvador","SV - El Salvador"]
["GQ","Equatorial Guinea","GQ - Equatorial Guinea"]
["ER","Eritrea","ER - Eritrea"]
["EE","Estonia","EE - Estonia"]
["ET","Ethiopia","ET - Ethiopia"]
["FK","Falkland Islands (the) [Malvinas]","FK - Falkland Islands (the) [Malvinas]"]
["FO","Faroe Islands (the)","FO - Faroe Islands (the)"]
["FJ","Fiji","FJ - Fiji"]
["FI","Finland","FI - Finland"]
["FR","France","FR - France"]
["GF","French Guiana","GF - French Guiana"]
["PF","French Polynesia","PF - French Polynesia"]
["TF","French Southern Territories (the)","TF - French Southern Territories (the)"]
["GA","Gabon","GA - Gabon"]
["GM","Gambia (the)","GM - Gambia (the)"]
["GE","Georgia","GE - Georgia"]
["DE","Germany","DE - Germany"]
["GH","Ghana","GH - Ghana"]
["GI","Gibraltar","GI - Gibraltar"]
["GR","Greece","GR - Greece"]
["GL","Greenland","GL - Greenland"]
["GD","Grenada","GD - Grenada"]
["GP","Guadeloupe","GP - Guadeloupe"]
["GU","Guam","GU - Guam"]
["GT","Guatemala","GT - Guatemala"]
["GG","Guernsey","GG - Guernsey"]
["GN","Guinea","GN - Guinea"]
["GW","Guinea-Bissau","GW - Guinea-Bissau"]
["GY","Guyana","GY - Guyana"]
["HT","Haiti","HT - Haiti"]
["HM","Heard Island and McDonald Islands","HM - Heard Island and McDonald Islands"]
["VA","Holy See (the)","VA - Holy See (the)"]
["HN","Honduras","HN - Honduras"]
["HK","Hong Kong","HK - Hong Kong"]
["HU","Hungary","HU - Hungary"]
["IS","Iceland","IS - Iceland"]
["IN","India","IN - India"]
["ID","Indonesia","ID - Indonesia"]
["IR","Iran (Islamic Republic of)","IR - Iran (Islamic Republic of)"]
["IQ","Iraq","IQ - Iraq"]
["IE","Ireland","IE - Ireland"]
["IM","Isle of Man","IM - Isle of Man"]
["IL","Israel","IL - Israel"]
["IT","Italy","IT - Italy"]
["JM","Jamaica","JM - Jamaica"]
["JP","Japan","JP - Japan"]
["JE","Jersey","JE - Jersey"]
["JO","Jordan","JO - Jordan"]
["KZ","Kazakhstan","KZ - Kazakhstan"]
["KE","Kenya","KE - Kenya"]
["KI","Kiribati","KI - Kiribati"]
["KP","Korea (the Democratic People’s Republic of)","KP - Korea (the Democratic People’s Republic of)"]
["KR","Korea (the Republic of)","KR - Korea (the Republic of)"]
["XK","Kosovo","XK - Kosovo"]
["KW","Kuwait","KW - Kuwait"]
["KG","Kyrgyzstan","KG - Kyrgyzstan"]
["LA","Lao People’s Democratic Republic (the)","LA - Lao People’s Democratic Republic (the)"]
["LV","Latvia","LV - Latvia"]
["LB","Lebanon","LB - Lebanon"]
["LS","Lesotho","LS - Lesotho"]
["LR","Liberia","LR - Liberia"]
["LY","Libya","LY - Libya"]
["LI","Liechtenstein","LI - Liechtenstein"]
["LT","Lithuania",{"$f":"CONCATENATE(A131,\" - \",B131)","v":"LT - Lithuania"}]
["LU","Luxembourg","LU - Luxembourg"]
["MO","Macao","MO - Macao"]
["MK","North Macedonia","MK - North Macedonia"]
["MG","Madagascar","MG - Madagascar"]
["MW","Malawi","MW - Malawi"]
["MY","Malaysia","MY - Malaysia"]
["MV","Maldives","MV - Maldives"]
["ML","Mali","ML - Mali"]
["MT","Malta","MT - Malta"]
["MH","Marshall Islands (the)","MH - Marshall Islands (the)"]
["MQ","Martinique","MQ - Martinique"]
["MR","Mauritania","MR - Mauritania"]
["MU","Mauritius","MU - Mauritius"]
["YT","Mayotte","YT - Mayotte"]
["MX","Mexico","MX - Mexico"]
["FM","Micronesia (Federated States of)","FM - Micronesia (Federated States of)"]
["MD","Moldova (the Republic of)","MD - Moldova (the Republic of)"]
["MC","Monaco","MC - Monaco"]
["MN","Mongolia","MN - Mongolia"]
["ME","Montenegro","ME - Montenegro"]
["MS","Montserrat","MS - Montserrat"]
["MA","Morocco","MA - Morocco"]
["MZ","Mozambique","MZ - Mozambique"]
["MM","Myanmar","MM - Myanmar"]
["NA","Namibia","NA - Namibia"]
["NR","Nauru","NR - Nauru"]
["NP","Nepal","NP - Nepal"]
["NL","Netherlands (the)","NL - Netherlands (the)"]
["AN (withdrawn)","NETHERLAND ANTILLES","AN (withdrawn) - NETHERLAND ANTILLES"]
["NC","New Caledonia","NC - New Caledonia"]
["NZ","New Zealand","NZ - New Zealand"]
["NI","Nicaragua","NI - Nicaragua"]
["NE","Niger (the)","NE - Niger (the)"]
["NG","Nigeria","NG - Nigeria"]
["NU","Niue","NU - Niue"]
["NF","Norfolk Island","NF - Norfolk Island"]
["MP","Northern Mariana Islands (the)","MP - Northern Mariana Islands (the)"]
["NO","Norway","NO - Norway"]
["OM","Oman","OM - Oman"]
["PK","Pakistan","PK - Pakistan"]
["PW","Palau","PW - Palau"]
["PS","Palestine, State of","PS - Palestine, State of"]
["PA","Panama","PA - Panama"]
["PG","Papua New Guinea","PG - Papua New Guinea"]
["PY","Paraguay","PY - Paraguay"]
["PE","Peru","PE - Peru"]
["PH","Philippines (the)","PH - Philippines (the)"]
["PN","Pitcairn","PN - Pitcairn"]
["PL","Poland","PL - Poland"]
["PT","Portugal","PT - Portugal"]
["PR","Puerto Rico","PR - Puerto Rico"]
["QA","Qatar","QA - Qatar"]
["RE","Réunion","RE - Réunion"]
["RO","Romania","RO - Romania"]
["RU","Russian Federation (the)","RU - Russian Federation (the)"]
["RW","Rwanda","RW - Rwanda"]
["BL","Saint Barthélemy","BL - Saint Barthélemy"]
["SH","Saint Helena, Ascension and Tristan da Cunha","SH - Saint Helena, Ascension and Tristan da Cunha"]
["KN","Saint Kitts and Nevis","KN - Saint Kitts and Nevis"]
["LC","Saint Lucia","LC - Saint Lucia"]
["MF","Saint Martin (French part)","MF - Saint Martin (French part)"]
["PM","Saint Pierre and Miquelon","PM - Saint Pierre and Miquelon"]
["VC","Saint Vincent and the Grenadines","VC - Saint Vincent and the Grenadines"]
["WS","Samoa",{"$f":"CONCATENATE(A195,\" - \",B195)","v":"WS - Samoa"}]
["SM","San Marino","SM - San Marino"]
["ST","Sao Tome and Principe","ST - Sao Tome and Principe"]
["SA","Saudi Arabia","SA - Saudi Arabia"]
["SN","Senegal","SN - Senegal"]
["RS","Serbia","RS - Serbia"]
["SC","Seychelles","SC - Seychelles"]
["SL","Sierra Leone","SL - Sierra Leone"]
["SG","Singapore","SG - Singapore"]
["SX","Sint Maarten (Dutch part)","SX - Sint Maarten (Dutch part)"]
["SK","Slovakia","SK - Slovakia"]
["SI","Slovenia","SI - Slovenia"]
["SB","Solomon Islands","SB - Solomon Islands"]
["SO","Somalia","SO - Somalia"]
["ZA","South Africa","ZA - South Africa"]
["GS","South Georgia and the South Sandwich Islands","GS - South Georgia and the South Sandwich Islands"]
["SS","South Sudan","SS - South Sudan"]
["ES","Spain","ES - Spain"]
["LK","Sri Lanka","LK - Sri Lanka"]
["SD","Sudan (the)","SD - Sudan (the)"]
["SR","Suriname","SR - Suriname"]
["SJ","Svalbard and Jan Mayen","SJ - Svalbard and Jan Mayen"]
["SZ","Eswatini","SZ - Eswatini"]
["SE","Sweden","SE - Sweden"]
["CH","Switzerland","CH - Switzerland"]
["SY","Syrian Arab Republic","SY - Syrian Arab Republic"]
["TW","Taiwan (Province of China)","TW - Taiwan (Province of China)"]
["TJ","Tajikistan","TJ - Tajikistan"]
["TZ","Tanzania, United Republic of","TZ - Tanzania, United Republic of"]
["TH","Thailand","TH - Thailand"]
["TL","Timor-Leste","TL - Timor-Leste"]
["TG","Togo","TG - Togo"]
["TK","Tokelau","TK - Tokelau"]
["TO","Tonga","TO - Tonga"]
["TT","Trinidad and Tobago","TT - Trinidad and Tobago"]
["TN","Tunisia","TN - Tunisia"]
["TR","Turkey","TR - Turkey"]
["TM","Turkmenistan","TM - Turkmenistan"]
["TC","Turks and Caicos Islands (the)","TC - Turks and Caicos Islands (the)"]
["TV","Tuvalu","TV - Tuvalu"]
["UG","Uganda","UG - Uganda"]
["UA","Ukraine","UA - Ukraine"]
["AE","United Arab Emirates (the)","AE - United Arab Emirates (the)"]
["GB","United Kingdom of Great Britain and Northern Ireland (the)","GB - United Kingdom of Great Britain and Northern Ireland (the)"]
["US","United States of America (the)","US - United States of America (the)"]
["UM","United States Minor Outlying Islands (the)","UM - United States Minor Outlying Islands (the)"]
["UY","Uruguay","UY - Uruguay"]
["UZ","Uzbekistan","UZ - Uzbekistan"]
["VU","Vanuatu","VU - Vanuatu"]
["VE","Venezuela (Bolivarian Republic of)","VE - Venezuela (Bolivarian Republic of)"]
["VN","Viet Nam","VN - Viet Nam"]
["VG","Virgin Islands (British)","VG - Virgin Islands (British)"]
["VI","Virgin Islands (U.S.)","VI - Virgin Islands (U.S.)"]
["WF","Wallis and Futuna","WF - Wallis and Futuna"]
["EH","Western Sahara","EH - Western Sahara"]
["YE","Yemen","YE - Yemen"]
["ZM","Zambia","ZM - Zambia"]
["ZW","Zimbabwe",{"$f":"CONCATENATE(A252,\" - \",B252)","v":"ZW - Zimbabwe"}]
["ZZ","Multi-countries","ZZ - Multi-countries"]